Workbook

Sheet INTRO
C1: The current version should be used in countries endemic for Loiasis
B2: PC Joint Reporting Form v.4.1 (Loa)
B4: The purpose of this template Joint Reporting Form (JRF) - available as an Excel file - is to provide national health authorities and data managers with a standardized tool to address these reporting challenges, facilitate integration and thereby further contribute to improving overall programme management. This template aims to standardize national reporting of programme implementation outcomes, improve availability and coordination of preventive chemotherapy data across the World Health Organization regions. National authorities are requested to complete this form for submission to the World Health Organization within 3 months after the last round was implemented and no later than 31 March of the next implementation year.
B6: Structure of the application (worksheets):
B8: INTRO | C8: This worksheet includes guides on how to complete the joint reporting form and information about status of PC for endemic diseases in the country
B9: COUNTRY_INFO | C9: This worksheet includes information about administrative structure of the country, population by age group, status of endemicity for each disease, population requiring PC, planned interventions and interventions implemented
B10: MDA1, MDA2, MDA3, MDA4, MDA5, T1, T2 and T3 | C10: These worksheets include information about endemic districts targeted for treatment with specified PC medicines, treatment plan, and number of people who received treatment by age group. Depending on co-endemicity of the diseases in a country the tool will generate respective worksheets to fill in.
B11: DISTRICT | C11: This worksheet includes summary of people treated by disease at the level of implementation. If data by gender is available, it requires to enter.
B12: SUMMARY | C12: This worksheet includes summary of people treated by disease and by PC intervention. Before generating the report (run macros) please select the disease for which you need the report. Follow the same rule to generate various reports. This worksheet should be printed and submitted as a Joint Report (see the instruction for submission in the SUMMARY worksheet).
B14: Instruction for data entry
B16: Most of the cells in the above-mentioned worksheets include formula that are calculated automatically according to the treatment policy recommended by WHO for each disease. See the link https://www.who.int/publications/i/item/9789241599993
B18: Please enter your data into the cells according to their colour code:
C20: White - cell is not protected. Please enter the value of the requested indicator.
C22: Yellow - cell is protected and includes name of indicator. No data entry required.
C24: Orange - cell is not protected and includes a drop-down menu. Please select the value from the drop-down list.
C27: Green - cell is not protected and includes formula. Please change the value only if your data are different from those that are calculated automatically.
C30: Blue - cell is protected and includes formula. No data entry required.
B32: Country data
B34: COUNTRY | E34: South Sudan | G34: SS | H34: SSD
B36: Year of reporting data | E36: 2022
B38: Is country endemic for lymphatic filariasis (LF)? | E38: Endemic
B40: Is country endemic for onchocerciasis (ONCHO)? | E40: Endemic
B42: Is country endemic for soil-transmitted helminthiases (STH)? | E42: Endemic
B44: Is country endemic for schistosomiasis (SCH)? | E44: Endemic
B46: How many administrative units in the country? | E46: 80
B47: If demographical data at the second administrative level are not available by age group, please enter the proportion (%) of population by age group in the country. If data are available, please leave these cells blank.
B48: 1-4 years age | C48: Preschool-age children (PreSAC) | E48: 0.1107
B49: 5-14 years age | C49: School-age children (SAC) | E49: 0.3089
B50: 15 years + | C50: Adults | E50: 0.5529
B51: 15-49 years | C51: Women of reproductive age (WRA) | E51: 0.2258

Sheet COUNTRY_INFO
A1: COUNTRY INFORMATION
A2: Administrative structure, population by age group, endemicity status, planned interventions and interventions implemented
A4: TOTAL | D4: =SUBTOTAL(9,D$10:D$1010) -> 14110063.8 | E4: =SUBTOTAL(9,E$10:E$1010) -> 1561983 | F4: 4358600 | G4: 7801455 | M4: =SUBTOTAL(9,M$10:M$1010) -> 9198157.269 | N4: 9209211.847 | O4: 205731 | P4: 574077 | Q4: 419639 | R4: 1199447 | S4: 357085 | T4: 1152586 | U4: 2485804 | V4: 3995475
A6: Country administrative structure | D6: Population | H6: Endemicity | M6: Population requiring PC | W6: Number of treatment rounds planned for the year | AA6: PC implemented
A7: Country | B7: Province/State | C7: District | D7: Total | E7: PreSAC | F7: SAC | G7: Adults | H7: LF | I7: Oncho | J7: STH | K7: SCH | L7: Loa | M7: LF | N7: ONCHO | O7: STH | S7: SCH | W7: LF | X7: Oncho | Y7: STH | Z7: SCH | AA7: ROUND 1 | AB7: ROUND 2 | AC7: ROUND 3
O8: PreSAC | P8: SAC | Q8: WRA | R8: TOTAL | S8: PreSAC | T8: SAC | U8: Adults | V8: TOTAL | AH8: IU_ID | AI8: IU_Name | AJ8: Parent_IU_ID | AK8: Parent_IU_Name | AO8: mda1 | AP8: mda3 | AQ8: mda4
AD9: x | AE9: x | AF9: x | AG9: x | AH9: x | AI9: x | AJ9: x | AK9: x | AL9: x | AM9: x | AN9: x | AO9: x | AP9: x | AQ9: x | AR9: x | AS9: x | AT9: x | AU9: x | AV9: x | AW9: x | AX9: x | AY9: x | AZ9: x | BA9: x | BB9: x
A10: =IF(INTRO!$E$34<>0,INTRO!$E$34,"") -> South Sudan | B10: Central Equatoria | C10: TEREKEKA | D10: 243214.5077 | E10: =IF(INTRO!$E$48="","",ROUND($D10*INTRO!$E$48,0)) -> 26924 | F10: =IF(INTRO!$E$49="","",ROUND($D10*INTRO!$E$49,0)) -> 75129 | G10: =IF(INTRO!$E$50="","",ROUND($D10*INTRO!$E$50,0)) -> 134473 | H10: 1 | I10: 1 | J10: 2 | K10: 2 | L10: 1 | M10: =IF(INTRO!$E$38="Endemic", IF($H10>0, IF($H10=4,"Unknown", IF($H10=99,"Stopped", $D10)), 0),"Not required") -> 243214.5077 | N10: =IF(INTRO!$E$40="Endemic", IF($I10>0, IF($I10=4,"Unknown",IF($I10=99,"Stopped", $D10)), 0),"Not required") -> 243214.5077 | O10: =IF(INTRO!$E$42="Endemic", IF($J10>1, IF($J10=4, "Unknown", IF($J10=99, "Surveillance", E10)), 0),"Not required") -> 26924 | P10: =IF(INTRO!$E$42="Endemic", IF($J10>1, IF($J10=4, "Unknown", IF($J10=99, "Surveillance", F10)), 0),"Not required") -> 75129 | Q10: =IF(INTRO!$E$42="Endemic", IF($J10>1, IF($J10=4, "Unknown", IF($J10=99, "Surveillance", ROUND(D10*INTRO!$E$51,0))), 0),"Not required") -> 54918 | R10: =IF(INTRO!$E$42="Endemic", IF($J10>1, IF($J10=4, "Unknown", IF($J10=99, "Surveillance", SUM($O10:$Q10))), 0),"Not required") -> 156971 | S10: 1799 | T10: 5807 | U10: 12523 | V10: =IF(INTRO!$E$44="Endemic", IF($K10>1, IF($K10=4, "Unknown", IF($K10=99, "Surveillance", SUM($S10:$U10))), 0),"Not required") -> 20129 | W10: 1 | X10: 1 | Y10: 1 | Z10: 0 | AA10: MDA1 (IVM+ALB) | AH10: 44323 | AI10: TEREKEKA | AO10: ='MDA1'!K10 -> 92868 | AP10: ='MDA3'!O10 -> 0 | AQ10: ='MDA4'!S10 -> 0
A11: =IF(INTRO!$E$34<>0,INTRO!$E$34,"") -> South Sudan | B11: Central Equatoria | C11: JUBA | D11: 620103 | E11: =IF(INTRO!$E$48="","",ROUND($D11*INTRO!$E$48,0)) -> 68645 | F11: =IF(INTRO!$E$49="","",ROUND($D11*INTRO!$E$49,0)) -> 191550 | G11: =IF(INTRO!$E$50="","",ROUND($D11*INTRO!$E$50,0)) -> 342855 | H11: 1 | I11: 1 | J11: 2 | K11: 3 | L11: 1 | M11: =IF(INTRO!$E$38="Endemic", IF($H11>0, IF($H11=4,"Unknown", IF($H11=99,"Stopped", $D11)), 0),"Not required") -> 620103 | N11: =IF(INTRO!$E$40="Endemic", IF($I11>0, IF($I11=4,"Unknown",IF($I11=99,"Stopped", $D11)), 0),"Not required") -> 620103 | O11: =IF(INTRO!$E$42="Endemic", IF($J11>1, IF($J11=4, "Unknown", IF($J11=99, "Surveillance", E11)), 0),"Not required") -> 68645 | P11: =IF(INTRO!$E$42="Endemic", IF($J11>1, IF($J11=4, "Unknown", IF($J11=99, "Surveillance", F11)), 0),"Not required") -> 191550 | Q11: =IF(INTRO!$E$42="Endemic", IF($J11>1, IF($J11=4, "Unknown", IF($J11=99, "Surveillance", ROUND(D11*INTRO!$E$51,0))), 0),"Not required") -> 140019 | R11: =IF(INTRO!$E$42="Endemic", IF($J11>1, IF($J11=4, "Unknown", IF($J11=99, "Surveillance", SUM($O11:$Q11))), 0),"Not required") -> 400214 | S11: 39572 | T11: 127723 | U11: 275460 | V11: =IF(INTRO!$E$44="Endemic", IF($K11>1, IF($K11=4, "Unknown", IF($K11=99, "Surveillance", SUM($S11:$U11))), 0),"Not required") -> 442755 | W11: 1 | X11: 1 | Y11: 1 | Z11: 0 | AA11: MDA1 (IVM+ALB) | AH11: 44319 | AI11: JUBA | AO11: ='MDA1'!K11 -> 366852 | AP11: ='MDA3'!O11 -> 0 | AQ11: ='MDA4'!S11 -> 0
A12: =IF(INTRO!$E$34<>0,INTRO!$E$34,"") -> South Sudan | B12: Central Equatoria | C12: LAINYA | D12: 150384.6968 | E12: =IF(INTRO!$E$48="","",ROUND($D12*INTRO!$E$48,0)) -> 16648 | F12: =IF(INTRO!$E$49="","",ROUND($D12*INTRO!$E$49,0)) -> 46454 | G12: =IF(INTRO!$E$50="","",ROUND($D12*INTRO!$E$50,0)) -> 83148 | H12: 1 | I12: 1 | J12: 3 | K12: 3 | L12: 1 | M12: =IF(INTRO!$E$38="Endemic", IF($H12>0, IF($H12=4,"Unknown", IF($H12=99,"Stopped", $D12)), 0),"Not required") -> 150384.6968 | N12: =IF(INTRO!$E$40="Endemic", IF($I12>0, IF($I12=4,"Unknown",IF($I12=99,"Stopped", $D12)), 0),"Not required") -> 150384.6968 | O12: =IF(INTRO!$E$42="Endemic", IF($J12>1, IF($J12=4, "Unknown", IF($J12=99, "Surveillance", E12)), 0),"Not required") -> 16648 | P12: =IF(INTRO!$E$42="Endemic", IF($J12>1, IF($J12=4, "Unknown", IF($J12=99, "Surveillance", F12)), 0),"Not required") -> 46454 | Q12: =IF(INTRO!$E$42="Endemic", IF($J12>1, IF($J12=4, "Unknown", IF($J12=99, "Surveillance", ROUND(D12*INTRO!$E$51,0))), 0),"Not required") -> 33957 | R12: =IF(INTRO!$E$42="Endemic", IF($J12>1, IF($J12=4, "Unknown", IF($J12=99, "Surveillance", SUM($O12:$Q12))), 0),"Not required") -> 97059 | S12: 12487 | T12: 40302 | U12: 86923 | V12: =IF(INTRO!$E$44="Endemic", IF($K12>1, IF($K12=4, "Unknown", IF($K12=99, "Surveillance", SUM($S12:$U12))), 0),"Not required") -> 139712 | W12: 1 | X12: 1 | Y12: 1 | Z12: 0 | AA12: MDA1 (IVM+ALB) | AH12: 44321 | AI12: LAINYA | AO12: ='MDA1'!K12 -> 23935 | AP12: ='MDA3'!O12 -> 0 | AQ12: ='MDA4'!S12 -> 0
A13: =IF(INTRO!$E$34<>0,INTRO!$E$34,"") -> South Sudan | B13: Central Equatoria | C13: YEI | D13: 339757.4686 | E13: =IF(INTRO!$E$48="","",ROUND($D13*INTRO!$E$48,0)) -> 37611 | F13: =IF(INTRO!$E$49="","",ROUND($D13*INTRO!$E$49,0)) -> 104951 | G13: =IF(INTRO!$E$50="","",ROUND($D13*INTRO!$E$50,0)) -> 187852 | H13: 1 | I13: 1 | J13: 2 | K13: 3 | L13: 1 | M13: =IF(INTRO!$E$38="Endemic", IF($H13>0, IF($H13=4,"Unknown", IF($H13=99,"Stopped", $D13)), 0),"Not required") -> 339757.4686 | N13: =IF(INTRO!$E$40="Endemic", IF($I13>0, IF($I13=4,"Unknown",IF($I13=99,"Stopped", $D13)), 0),"Not required") -> 339757.4686 | O13: =IF(INTRO!$E$42="Endemic", IF($J13>1, IF($J13=4, "Unknown", IF($J13=99, "Surveillance", E13)), 0),"Not required") -> 37611 | P13: =IF(INTRO!$E$42="Endemic", IF($J13>1, IF($J13=4, "Unknown", IF($J13=99, "Surveillance", F13)), 0),"Not required") -> 104951 | Q13: =IF(INTRO!$E$42="Endemic", IF($J13>1, IF($J13=4, "Unknown", IF($J13=99, "Surveillance", ROUND(D13*INTRO!$E$51,0))), 0),"Not required") -> 76717 | R13: =IF(INTRO!$E$42="Endemic", IF($J13>1, IF($J13=4, "Unknown", IF($J13=99, "Surveillance", SUM($O13:$Q13))), 0),"Not required") -> 219279 | S13: 28210 | T13: 91056 | U13: 196381 | V13: =IF(INTRO!$E$44="Endemic", IF($K13>1, IF($K13=4, "Unknown", IF($K13=99, "Surveillance", SUM($S13:$U13))), 0),"Not required") -> 315647 | W13: 1 | X13: 1 | Y13: 1 | Z13: 0 | AA13: MDA1 (IVM+ALB) | AH13: 44324 | AI13: YEI | AO13: ='MDA1'!K13 -> 40468 | AP13: ='MDA3'!O13 -> 0 | AQ13: ='MDA4'!S13 -> 0
A14: =IF(INTRO!$E$34<>0,INTRO!$E$34,"") -> South Sudan | B14: Central Equatoria | C14: MOROBO | D14: 174520.1718 | E14: =IF(INTRO!$E$48="","",ROUND($D14*INTRO!$E$48,0)) -> 19319 | F14: =IF(INTRO!$E$49="","",ROUND($D14*INTRO!$E$49,0)) -> 53909 | G14: =IF(INTRO!$E$50="","",ROUND($D14*INTRO!$E$50,0)) -> 96492 | H14: 1 | I14: 1 | J14: 3 | K14: 2 | L14: 1 | M14: =IF(INTRO!$E$38="Endemic", IF($H14>0, IF($H14=4,"Unknown", IF($H14=99,"Stopped", $D14)), 0),"Not required") -> 174520.1718 | N14: =IF(INTRO!$E$40="Endemic", IF($I14>0, IF($I14=4,"Unknown",IF($I14=99,"Stopped", $D14)), 0),"Not required") -> 174520.1718 | O14: =IF(INTRO!$E$42="Endemic", IF($J14>1, IF($J14=4, "Unknown", IF($J14=99, "Surveillance", E14)), 0),"Not required") -> 19319 | P14: =IF(INTRO!$E$42="Endemic", IF($J14>1, IF($J14=4, "Unknown", IF($J14=99, "Surveillance", F14)), 0),"Not required") -> 53909 | Q14: =IF(INTRO!$E$42="Endemic", IF($J14>1, IF($J14=4, "Unknown", IF($J14=99, "Surveillance", ROUND(D14*INTRO!$E$51,0))), 0),"Not required") -> 39407 | R14: =IF(INTRO!$E$42="Endemic", IF($J14>1, IF($J14=4, "Unknown", IF($J14=99, "Surveillance", SUM($O14:$Q14))), 0),"Not required") -> 112635 | S14: 6753 | T14: 21796 | U14: 47007 | V14: =IF(INTRO!$E$44="Endemic", IF($K14>1, IF($K14=4, "Unknown", IF($K14=99, "Surveillance", SUM($S14:$U14))), 0),"Not required") -> 75556 | W14: 1 | X14: 1 | Y14: 1 | Z14: 0 | AA14: MDA1 (IVM+ALB) | AH14: 44322 | AI14: MOROBO | AO14: ='MDA1'!K14 -> 23717 | AP14: ='MDA3'!O14 -> 0 | AQ14: ='MDA4'!S14 -> 0
A15: =IF(INTRO!$E$34<>0,INTRO!$E$34,"") -> South Sudan | B15: Central Equatoria | C15: KAJO KEJI | D15: 330474.5936 | E15: =IF(INTRO!$E$48="","",ROUND($D15*INTRO!$E$48,0)) -> 36584 | F15: =IF(INTRO!$E$49="","",ROUND($D15*INTRO!$E$49,0)) -> 102084 | G15: =IF(INTRO!$E$50="","",ROUND($D15*INTRO!$E$50,0)) -> 182719 | H15: 1 | I15: 1 | J15: 2 | K15: 2 | L15: 1 | M15: =IF(INTRO!$E$38="Endemic", IF($H15>0, IF($H15=4,"Unknown", IF($H15=99,"Stopped", $D15)), 0),"Not required") -> 330474.5936 | N15: =IF(INTRO!$E$40="Endemic", IF($I15>0, IF($I15=4,"Unknown",IF($I15=99,"Stopped", $D15)), 0),"Not required") -> 330474.5936 | O15: =IF(INTRO!$E$42="Endemic", IF($J15>1, IF($J15=4, "Unknown", IF($J15=99, "Surveillance", E15)), 0),"Not required") -> 36584 | P15: =IF(INTRO!$E$42="Endemic", IF($J15>1, IF($J15=4, "Unknown", IF($J15=99, "Surveillance", F15)), 0),"Not required") -> 102084 | Q15: =IF(INTRO!$E$42="Endemic", IF($J15>1, IF($J15=4, "Unknown", IF($J15=99, "Surveillance", ROUND(D15*INTRO!$E$51,0))), 0),"Not required") -> 74621 | R15: =IF(INTRO!$E$42="Endemic", IF($J15>1, IF($J15=4, "Unknown", IF($J15=99, "Surveillance", SUM($O15:$Q15))), 0),"Not required") -> 213289 | S15: 27438 | T15: 88567 | U15: 191014 | V15: =IF(INTRO!$E$44="Endemic", IF($K15>1, IF($K15=4, "Unknown", IF($K15=99, "Surveillance", SUM($S15:$U15))), 0),"Not required") -> 307019 | W15: 1 | X15: 1 | Y15: 1 | Z15: 0 | AA15: MDA1 (IVM+ALB) | AH15: 44320 | AI15: KAJO KEJI | AO15: ='MDA1'!K15 -> 95316 | AP15: ='MDA3'!O15 -> 0 | AQ15: ='MDA4'!S15 -> 0
A16: =IF(INTRO!$E$34<>0,INTRO!$E$34,"") -> South Sudan | B16: Eastern Equatoria | C16: TORIT | D16: 184739.8215 | E16: =IF(INTRO!$E$48="","",ROUND($D16*INTRO!$E$48,0)) -> 20451 | F16: =IF(INTRO!$E$49="","",ROUND($D16*INTRO!$E$49,0)) -> 57066 | G16: =IF(INTRO!$E$50="","",ROUND($D16*INTRO!$E$50,0)) -> 102143 | H16: 1 | I16: 1 | J16: 1 | K16: 2 | L16: 1 | M16: =IF(INTRO!$E$38="Endemic", IF($H16>0, IF($H16=4,"Unknown", IF($H16=99,"Stopped", $D16)), 0),"Not required") -> 184739.8215 | N16: =IF(INTRO!$E$40="Endemic", IF($I16>0, IF($I16=4,"Unknown",IF($I16=99,"Stopped", $D16)), 0),"Not required") -> 184739.8215 | O16: =IF(INTRO!$E$42="Endemic", IF($J16>1, IF($J16=4, "Unknown", IF($J16=99, "Surveillance", E16)), 0),"Not required") -> 0 | P16: =IF(INTRO!$E$42="Endemic", IF($J16>1, IF($J16=4, "Unknown", IF($J16=99, "Surveillance", F16)), 0),"Not required") -> 0 | Q16: =IF(INTRO!$E$42="Endemic", IF($J16>1, IF($J16=4, "Unknown", IF($J16=99, "Surveillance", ROUND(D16*INTRO!$E$51,0))), 0),"Not required") -> 0 | R16: =IF(INTRO!$E$42="Endemic", IF($J16>1, IF($J16=4, "Unknown", IF($J16=99, "Surveillance", SUM($O16:$Q16))), 0),"Not required") -> 0 | S16: 14098 | T16: 45504 | U16: 98138 | V16: =IF(INTRO!$E$44="Endemic", IF($K16>1, IF($K16=4, "Unknown", IF($K16=99, "Surveillance", SUM($S16:$U16))), 0),"Not required") -> 157740 | W16: 1 | X16: 1 | Y16: 0 | Z16: 0 | AA16: MDA1 (IVM+ALB) | AH16: 44332 | AI16: TORIT | AO16: ='MDA1'!K16 -> 51904 | AP16: ='MDA3'!O16 -> 0 | AQ16: ='MDA4'!S16 -> 0
A17: =IF(INTRO!$E$34<>0,INTRO!$E$34,"") -> South Sudan | B17: Eastern Equatoria | C17: LOPA/LAFON | D17: 196496.7153 | E17: =IF(INTRO!$E$48="","",ROUND($D17*INTRO!$E$48,0)) -> 21752 | F17: =IF(INTRO!$E$49="","",ROUND($D17*INTRO!$E$49,0)) -> 60698 | G17: =IF(INTRO!$E$50="","",ROUND($D17*INTRO!$E$50,0)) -> 108643 | H17: 0 | I17: 1 | J17: 0 | K17: 2 | L17: 1 | M17: =IF(INTRO!$E$38="Endemic", IF($H17>0, IF($H17=4,"Unknown", IF($H17=99,"Stopped", $D17)), 0),"Not required") -> 0 | N17: =IF(INTRO!$E$40="Endemic", IF($I17>0, IF($I17=4,"Unknown",IF($I17=99,"Stopped", $D17)), 0),"Not required") -> 196496.7153 | O17: =IF(INTRO!$E$42="Endemic", IF($J17>1, IF($J17=4, "Unknown", IF($J17=99, "Surveillance", E17)), 0),"Not required") -> 0 | P17: =IF(INTRO!$E$42="Endemic", IF($J17>1, IF($J17=4, "Unknown", IF($J17=99, "Surveillance", F17)), 0),"Not required") -> 0 | Q17: =IF(INTRO!$E$42="Endemic", IF($J17>1, IF($J17=4, "Unknown", IF($J17=99, "Surveillance", ROUND(D17*INTRO!$E$51,0))), 0),"Not required") -> 0 | R17: =IF(INTRO!$E$42="Endemic", IF($J17>1, IF($J17=4, "Unknown", IF($J17=99, "Surveillance", SUM($O17:$Q17))), 0),"Not required") -> 0 | S17: 1323 | T17: 4270 | U17: 9209 | V17: =IF(INTRO!$E$44="Endemic", IF($K17>1, IF($K17=4, "Unknown", IF($K17=99, "Surveillance", SUM($S17:$U17))), 0),"Not required") -> 14802 | W17: 0 | X17: 1 | Y17: 0 | Z17: 0 | AA17: MDA3 (IVM) | AH17: 44330 | AI17: LOPA/LAFON | AO17: ='MDA1'!K17 -> 0 | AP17: ='MDA3'!O17 -> 15116 | AQ17: ='MDA4'!S17 -> 0
A18: =IF(INTRO!$E$34<>0,INTRO!$E$34,"") -> South Sudan | B18: Eastern Equatoria | C18: KAPOETA NORTH | D18: 191458.5012 | E18: =IF(INTRO!$E$48="","",ROUND($D18*INTRO!$E$48,0)) -> 21194 | F18: =IF(INTRO!$E$49="","",ROUND($D18*INTRO!$E$49,0)) -> 59142 | G18: =IF(INTRO!$E$50="","",ROUND($D18*INTRO!$E$50,0)) -> 105857 | H18: 0 | I18: 4 | J18: 0 | K18: 1 | L18: 1 | M18: =IF(INTRO!$E$38="Endemic", IF($H18>0, IF($H18=4,"Unknown", IF($H18=99,"Stopped", $D18)), 0),"Not required") -> 0 | N18: =IF(INTRO!$E$40="Endemic", IF($I18>0, IF($I18=4,"Unknown",IF($I18=99,"Stopped", $D18)), 0),"Not required") -> Unknown | O18: =IF(INTRO!$E$42="Endemic", IF($J18>1, IF($J18=4, "Unknown", IF($J18=99, "Surveillance", E18)), 0),"Not required") -> 0 | P18: =IF(INTRO!$E$42="Endemic", IF($J18>1, IF($J18=4, "Unknown", IF($J18=99, "Surveillance", F18)), 0),"Not required") -> 0 | Q18: =IF(INTRO!$E$42="Endemic", IF($J18>1, IF($J18=4, "Unknown", IF($J18=99, "Surveillance", ROUND(D18*INTRO!$E$51,0))), 0),"Not required") -> 0 | R18: =IF(INTRO!$E$42="Endemic", IF($J18>1, IF($J18=4, "Unknown", IF($J18=99, "Surveillance", SUM($O18:$Q18))), 0),"Not required") -> 0 | S18: 0 | T18: 0 | U18: 0 | V18: =IF(INTRO!$E$44="Endemic", IF($K18>1, IF($K18=4, "Unknown", IF($K18=99, "Surveillance", SUM($S18:$U18))), 0),"Not required") -> 0 | W18: 0 | X18: 0 | Y18: 0 | Z18: 0 | AH18: 44328 | AI18: KAPOETA NORTH | AO18: ='MDA1'!K18 -> 0 | AP18: ='MDA3'!O18 -> 0 | AQ18: ='MDA4'!S18 -> 0
A19: =IF(INTRO!$E$34<>0,INTRO!$E$34,"") -> South Sudan | B19: Eastern Equatoria | C19: KAPOETA EAST | D19: 303981.7988 | E19: =IF(INTRO!$E$48="","",ROUND($D19*INTRO!$E$48,0)) -> 33651 | F19: =IF(INTRO!$E$49="","",ROUND($D19*INTRO!$E$49,0)) -> 93900 | G19: =IF(INTRO!$E$50="","",ROUND($D19*INTRO!$E$50,0)) -> 168072 | H19: 1 | I19: 4 | J19: 1 | K19: 1 | L19: 1 | M19: =IF(INTRO!$E$38="Endemic", IF($H19>0, IF($H19=4,"Unknown", IF($H19=99,"Stopped", $D19)), 0),"Not required") -> 303981.7988 | N19: =IF(INTRO!$E$40="Endemic", IF($I19>0, IF($I19=4,"Unknown",IF($I19=99,"Stopped", $D19)), 0),"Not required") -> Unknown | O19: =IF(INTRO!$E$42="Endemic", IF($J19>1, IF($J19=4, "Unknown", IF($J19=99, "Surveillance", E19)), 0),"Not required") -> 0 | P19: =IF(INTRO!$E$42="Endemic", IF($J19>1, IF($J19=4, "Unknown", IF($J19=99, "Surveillance", F19)), 0),"Not required") -> 0 | Q19: =IF(INTRO!$E$42="Endemic", IF($J19>1, IF($J19=4, "Unknown", IF($J19=99, "Surveillance", ROUND(D19*INTRO!$E$51,0))), 0),"Not required") -> 0 | R19: =IF(INTRO!$E$42="Endemic", IF($J19>1, IF($J19=4, "Unknown", IF($J19=99, "Surveillance", SUM($O19:$Q19))), 0),"Not required") -> 0 | S19: 0 | T19: 0 | U19: 0 | V19: =IF(INTRO!$E$44="Endemic", IF($K19>1, IF($K19=4, "Unknown", IF($K19=99, "Surveillance", SUM($S19:$U19))), 0),"Not required") -> 0 | W19: 1 | X19: 0 | Y19: 0 | Z19: 0 | AA19: MDA4 (ALB/2*ALB) | AH19: 44327 | AI19: KAPOETA EAST | AO19: ='MDA1'!K19 -> 0 | AP19: ='MDA3'!O19 -> 0 | AQ19: ='MDA4'!S19 -> 67069
A20: =IF(INTRO!$E$34<>0,INTRO!$E$34,"") -> South Sudan | B20: Eastern Equatoria | C20: KAPOETA SOUTH | D20: 147791.8572 | E20: =IF(INTRO!$E$48="","",ROUND($D20*INTRO!$E$48,0)) -> 16361 | F20: =IF(INTRO!$E$49="","",ROUND($D20*INTRO!$E$49,0)) -> 45653 | G20: =IF(INTRO!$E$50="","",ROUND($D20*INTRO!$E$50,0)) -> 81714 | H20: 1 | I20: 4 | J20: 1 | K20: 1 | L20: 1 | M20: =IF(INTRO!$E$38="Endemic", IF($H20>0, IF($H20=4,"Unknown", IF($H20=99,"Stopped", $D20)), 0),"Not required") -> 147791.8572 | N20: =IF(INTRO!$E$40="Endemic", IF($I20>0, IF($I20=4,"Unknown",IF($I20=99,"Stopped", $D20)), 0),"Not required") -> Unknown | O20: =IF(INTRO!$E$42="Endemic", IF($J20>1, IF($J20=4, "Unknown", IF($J20=99, "Surveillance", E20)), 0),"Not required") -> 0 | P20: =IF(INTRO!$E$42="Endemic", IF($J20>1, IF($J20=4, "Unknown", IF($J20=99, "Surveillance", F20)), 0),"Not required") -> 0 | Q20: =IF(INTRO!$E$42="Endemic", IF($J20>1, IF($J20=4, "Unknown", IF($J20=99, "Surveillance", ROUND(D20*INTRO!$E$51,0))), 0),"Not required") -> 0 | R20: =IF(INTRO!$E$42="Endemic", IF($J20>1, IF($J20=4, "Unknown", IF($J20=99, "Surveillance", SUM($O20:$Q20))), 0),"Not required") -> 0 | S20: 0 | T20: 0 | U20: 0 | V20: =IF(INTRO!$E$44="Endemic", IF($K20>1, IF($K20=4, "Unknown", IF($K20=99, "Surveillance", SUM($S20:$U20))), 0),"Not required") -> 0 | W20: 1 | X20: 0 | Y20: 0 | Z20: 0 | AA20: MDA1 (IVM+ALB) | AH20: 44329 | AI20: KAPOETA SOUTH | AO20: ='MDA1'!K20 -> 46892 | AP20: ='MDA3'!O20 -> 0 | AQ20: ='MDA4'!S20 -> 0
A21: =IF(INTRO!$E$34<>0,INTRO!$E$34,"") -> South Sudan | B21: Eastern Equatoria | C21: BUDI | D21: 184739.8215 | E21: =IF(INTRO!$E$48="","",ROUND($D21*INTRO!$E$48,0)) -> 20451 | F21: =IF(INTRO!$E$49="","",ROUND($D21*INTRO!$E$49,0)) -> 57066 | G21: =IF(INTRO!$E$50="","",ROUND($D21*INTRO!$E$50,0)) -> 102143 | H21: 1 | I21: 4 | J21: 1 | K21: 1 | L21: 1 | M21: =IF(INTRO!$E$38="Endemic", IF($H21>0, IF($H21=4,"Unknown", IF($H21=99,"Stopped", $D21)), 0),"Not required") -> 184739.8215 | N21: =IF(INTRO!$E$40="Endemic", IF($I21>0, IF($I21=4,"Unknown",IF($I21=99,"Stopped", $D21)), 0),"Not required") -> Unknown | O21: =IF(INTRO!$E$42="Endemic", IF($J21>1, IF($J21=4, "Unknown", IF($J21=99, "Surveillance", E21)), 0),"Not required") -> 0 | P21: =IF(INTRO!$E$42="Endemic", IF($J21>1, IF($J21=4, "Unknown", IF($J21=99, "Surveillance", F21)), 0),"Not required") -> 0 | Q21: =IF(INTRO!$E$42="Endemic", IF($J21>1, IF($J21=4, "Unknown", IF($J21=99, "Surveillance", ROUND(D21*INTRO!$E$51,0))), 0),"Not required") -> 0 | R21: =IF(INTRO!$E$42="Endemic", IF($J21>1, IF($J21=4, "Unknown", IF($J21=99, "Surveillance", SUM($O21:$Q21))), 0),"Not required") -> 0 | S21: 0 | T21: 0 | U21: 0 | V21: =IF(INTRO!$E$44="Endemic", IF($K21>1, IF($K21=4, "Unknown", IF($K21=99, "Surveillance", SUM($S21:$U21))), 0),"Not required") -> 0 | W21: 1 | X21: 0 | Y21: 0 | Z21: 0 | AA21: MDA1 (IVM+ALB) | AH21: 44325 | AI21: BUDI | AO21: ='MDA1'!K21 -> 28980 | AP21: ='MDA3'!O21 -> 0 | AQ21: ='MDA4'!S21 -> 0
A22: =IF(INTRO!$E$34<>0,INTRO!$E$34,"") -> South Sudan | B22: Eastern Equatoria | C22: IKOTOS | D22: 156189.9416 | E22: =IF(INTRO!$E$48="","",ROUND($D22*INTRO!$E$48,0)) -> 17290 | F22: =IF(INTRO!$E$49="","",ROUND($D22*INTRO!$E$49,0)) -> 48247 | G22: =IF(INTRO!$E$50="","",ROUND($D22*INTRO!$E$50,0)) -> 86357 | H22: 1 | I22: 1 | J22: 1 | K22: 1 | L22: 1 | M22: =IF(INTRO!$E$38="Endemic", IF($H22>0, IF($H22=4,"Unknown", IF($H22=99,"Stopped", $D22)), 0),"Not required") -> 156189.9416 | N22: =IF(INTRO!$E$40="Endemic", IF($I22>0, IF($I22=4,"Unknown",IF($I22=99,"Stopped", $D22)), 0),"Not required") -> 156189.9416 | O22: =IF(INTRO!$E$42="Endemic", IF($J22>1, IF($J22=4, "Unknown", IF($J22=99, "Surveillance", E22)), 0),"Not required") -> 0 | P22: =IF(INTRO!$E$42="Endemic", IF($J22>1, IF($J22=4, "Unknown", IF($J22=99, "Surveillance", F22)), 0),"Not required") -> 0 | Q22: =IF(INTRO!$E$42="Endemic", IF($J22>1, IF($J22=4, "Unknown", IF($J22=99, "Surveillance", ROUND(D22*INTRO!$E$51,0))), 0),"Not required") -> 0 | R22: =IF(INTRO!$E$42="Endemic", IF($J22>1, IF($J22=4, "Unknown", IF($J22=99, "Surveillance", SUM($O22:$Q22))), 0),"Not required") -> 0 | S22: 0 | T22: 0 | U22: 0 | V22: =IF(INTRO!$E$44="Endemic", IF($K22>1, IF($K22=4, "Unknown", IF($K22=99, "Surveillance", SUM($S22:$U22))), 0),"Not required") -> 0 | W22: 1 | X22: 1 | Y22: 0 | Z22: 0 | AA22: MDA1 (IVM+ALB) | AH22: 44326 | AI22: IKOTOS | AO22: ='MDA1'!K22 -> 46400 | AP22: ='MDA3'!O22 -> 0 | AQ22: ='MDA4'!S22 -> 0
A23: =IF(INTRO!$E$34<>0,INTRO!$E$34,"") -> South Sudan | B23: Eastern Equatoria | C23: MAGWI | D23: 314058.227 | E23: =IF(INTRO!$E$48="","",ROUND($D23*INTRO!$E$48,0)) -> 34766 | F23: =IF(INTRO!$E$49="","",ROUND($D23*INTRO!$E$49,0)) -> 97013 | G23: =IF(INTRO!$E$50="","",ROUND($D23*INTRO!$E$50,0)) -> 173643 | H23: 1 | I23: 1 | J23: 1 | K23: 2 | L23: 1 | M23: =IF(INTRO!$E$38="Endemic", IF($H23>0, IF($H23=4,"Unknown", IF($H23=99,"Stopped", $D23)), 0),"Not required") -> 314058.227 | N23: =IF(INTRO!$E$40="Endemic", IF($I23>0, IF($I23=4,"Unknown",IF($I23=99,"Stopped", $D23)), 0),"Not required") -> 314058.227 | O23: =IF(INTRO!$E$42="Endemic", IF($J23>1, IF($J23=4, "Unknown", IF($J23=99, "Surveillance", E23)), 0),"Not required") -> 0 | P23: =IF(INTRO!$E$42="Endemic", IF($J23>1, IF($J23=4, "Unknown", IF($J23=99, "Surveillance", F23)), 0),"Not required") -> 0 | Q23: =IF(INTRO!$E$42="Endemic", IF($J23>1, IF($J23=4, "Unknown", IF($J23=99, "Surveillance", ROUND(D23*INTRO!$E$51,0))), 0),"Not required") -> 0 | R23: =IF(INTRO!$E$42="Endemic", IF($J23>1, IF($J23=4, "Unknown", IF($J23=99, "Surveillance", SUM($O23:$Q23))), 0),"Not required") -> 0 | S23: 4532 | T23: 14631 | U23: 31554 | V23: =IF(INTRO!$E$44="Endemic", IF($K23>1, IF($K23=4, "Unknown", IF($K23=99, "Surveillance", SUM($S23:$U23))), 0),"Not required") -> 50717 | W23: 1 | X23: 1 | Y23: 0 | Z23: 0 | AA23: MDA1 (IVM+ALB) | AH23: 44331 | AI23: MAGWI | AO23: ='MDA1'!K23 -> 73715 | AP23: ='MDA3'!O23 -> 0 | AQ23: ='MDA4'!S23 -> 0
A24: =IF(INTRO!$E$34<>0,INTRO!$E$34,"") -> South Sudan | B24: Jonglei | C24: FANGAK | D24: 177414.307 | E24: =IF(INTRO!$E$48="","",ROUND($D24*INTRO!$E$48,0)) -> 19640 | F24: =IF(INTRO!$E$49="","",ROUND($D24*INTRO!$E$49,0)) -> 54803 | G24: =IF(INTRO!$E$50="","",ROUND($D24*INTRO!$E$50,0)) -> 98092 | H24: 1 | I24: 4 | J24: 0 | K24: 3 | L24: 1 | M24: =IF(INTRO!$E$38="Endemic", IF($H24>0, IF($H24=4,"Unknown", IF($H24=99,"Stopped", $D24)), 0),"Not required") -> 177414.307 | N24: =IF(INTRO!$E$40="Endemic", IF($I24>0, IF($I24=4,"Unknown",IF($I24=99,"Stopped", $D24)), 0),"Not required") -> Unknown | O24: =IF(INTRO!$E$42="Endemic", IF($J24>1, IF($J24=4, "Unknown", IF($J24=99, "Surveillance", E24)), 0),"Not required") -> 0 | P24: =IF(INTRO!$E$42="Endemic", IF($J24>1, IF($J24=4, "Unknown", IF($J24=99, "Surveillance", F24)), 0),"Not required") -> 0 | Q24: =IF(INTRO!$E$42="Endemic", IF($J24>1, IF($J24=4, "Unknown", IF($J24=99, "Surveillance", ROUND(D24*INTRO!$E$51,0))), 0),"Not required") -> 0 | R24: =IF(INTRO!$E$42="Endemic", IF($J24>1, IF($J24=4, "Unknown", IF($J24=99, "Surveillance", SUM($O24:$Q24))), 0),"Not required") -> 0 | S24: 14730 | T24: 47548 | U24: 102546 | V24: =IF(INTRO!$E$44="Endemic", IF($K24>1, IF($K24=4, "Unknown", IF($K24=99, "Surveillance", SUM($S24:$U24))), 0),"Not required") -> 164824 | W24: 1 | X24: 0 | Y24: 0 | Z24: 0 | AA24: MDA4 (ALB/2*ALB) | AH24: 44342 | AI24: OLD PANGAK | AO24: ='MDA1'!K24 -> 0 | AP24: ='MDA3'!O24 -> 0 | AQ24: ='MDA4'!S24 -> 38107
A25: =IF(INTRO!$E$34<>0,INTRO!$E$34,"") -> South Sudan | B25: Jonglei | C25: KHORFLUS | D25: 159891.4217 | E25: =IF(INTRO!$E$48="","",ROUND($D25*INTRO!$E$48,0)) -> 17700 | F25: =IF(INTRO!$E$49="","",ROUND($D25*INTRO!$E$49,0)) -> 49390 | G25: =IF(INTRO!$E$50="","",ROUND($D25*INTRO!$E$50,0)) -> 88404 | H25: 1 | I25: 4 | J25: 1 | K25: 2 | L25: 0 | M25: =IF(INTRO!$E$38="Endemic", IF($H25>0, IF($H25=4,"Unknown", IF($H25=99,"Stopped", $D25)), 0),"Not required") -> 159891.4217 | N25: =IF(INTRO!$E$40="Endemic", IF($I25>0, IF($I25=4,"Unknown",IF($I25=99,"Stopped", $D25)), 0),"Not required") -> Unknown | O25: =IF(INTRO!$E$42="Endemic", IF($J25>1, IF($J25=4, "Unknown", IF($J25=99, "Surveillance", E25)), 0),"Not required") -> 0 | P25: =IF(INTRO!$E$42="Endemic", IF($J25>1, IF($J25=4, "Unknown", IF($J25=99, "Surveillance", F25)), 0),"Not required") -> 0 | Q25: =IF(INTRO!$E$42="Endemic", IF($J25>1, IF($J25=4, "Unknown", IF($J25=99, "Surveillance", ROUND(D25*INTRO!$E$51,0))), 0),"Not required") -> 0 | R25: =IF(INTRO!$E$42="Endemic", IF($J25>1, IF($J25=4, "Unknown", IF($J25=99, "Surveillance", SUM($O25:$Q25))), 0),"Not required") -> 0 | S25: 2063 | T25: 6658 | U25: 14359 | V25: =IF(INTRO!$E$44="Endemic", IF($K25>1, IF($K25=4, "Unknown", IF($K25=99, "Surveillance", SUM($S25:$U25))), 0),"Not required") -> 23080 | W25: 1 | X25: 0 | Y25: 0 | Z25: 0 | AA25: MDA1 (IVM+ALB) | AH25: 44338 | AI25: KHORFLUS | AO25: ='MDA1'!K25 -> 17897 | AP25: ='MDA3'!O25 -> 0 | AQ25: ='MDA4'!S25 -> 0
A26: =IF(INTRO!$E$34<>0,INTRO!$E$34,"") -> South Sudan | B26: Jonglei | C26: AYOD | D26: 225600.385 | E26: =IF(INTRO!$E$48="","",ROUND($D26*INTRO!$E$48,0)) -> 24974 | F26: =IF(INTRO!$E$49="","",ROUND($D26*INTRO!$E$49,0)) -> 69688 | G26: =IF(INTRO!$E$50="","",ROUND($D26*INTRO!$E$50,0)) -> 124734 | H26: 0 | I26: 4 | J26: 0 | K26: 3 | L26: 1 | M26: =IF(INTRO!$E$38="Endemic", IF($H26>0, IF($H26=4,"Unknown", IF($H26=99,"Stopped", $D26)), 0),"Not required") -> 0 | N26: =IF(INTRO!$E$40="Endemic", IF($I26>0, IF($I26=4,"Unknown",IF($I26=99,"Stopped", $D26)), 0),"Not required") -> Unknown | O26: =IF(INTRO!$E$42="Endemic", IF($J26>1, IF($J26=4, "Unknown", IF($J26=99, "Surveillance", E26)), 0),"Not required") -> 0 | P26: =IF(INTRO!$E$42="Endemic", IF($J26>1, IF($J26=4, "Unknown", IF($J26=99, "Surveillance", F26)), 0),"Not required") -> 0 | Q26: =IF(INTRO!$E$42="Endemic", IF($J26>1, IF($J26=4, "Unknown", IF($J26=99, "Surveillance", ROUND(D26*INTRO!$E$51,0))), 0),"Not required") -> 0 | R26: =IF(INTRO!$E$42="Endemic", IF($J26>1, IF($J26=4, "Unknown", IF($J26=99, "Surveillance", SUM($O26:$Q26))), 0),"Not required") -> 0 | S26: 15922 | T26: 51392 | U26: 110838 | V26: =IF(INTRO!$E$44="Endemic", IF($K26>1, IF($K26=4, "Unknown", IF($K26=99, "Surveillance", SUM($S26:$U26))), 0),"Not required") -> 178152 | W26: 0 | X26: 0 | Y26: 0 | Z26: 0 | AH26: 44334 | AI26: AYOD | AO26: ='MDA1'!K26 -> 0 | AP26: ='MDA3'!O26 -> 0 | AQ26: ='MDA4'!S26 -> 0
A27: =IF(INTRO!$E$34<>0,INTRO!$E$34,"") -> South Sudan | B27: Jonglei | C27: DUK | D27: 105134.1291 | E27: =IF(INTRO!$E$48="","",ROUND($D27*INTRO!$E$48,0)) -> 11638 | F27: =IF(INTRO!$E$49="","",ROUND($D27*INTRO!$E$49,0)) -> 32476 | G27: =IF(INTRO!$E$50="","",ROUND($D27*INTRO!$E$50,0)) -> 58129 | H27: 0 | I27: 4 | J27: 0 | K27: 2 | L27: 0 | M27: =IF(INTRO!$E$38="Endemic", IF($H27>0, IF($H27=4,"Unknown", IF($H27=99,"Stopped", $D27)), 0),"Not required") -> 0 | N27: =IF(INTRO!$E$40="Endemic", IF($I27>0, IF($I27=4,"Unknown",IF($I27=99,"Stopped", $D27)), 0),"Not required") -> Unknown | O27: =IF(INTRO!$E$42="Endemic", IF($J27>1, IF($J27=4, "Unknown", IF($J27=99, "Surveillance", E27)), 0),"Not required") -> 0 | P27: =IF(INTRO!$E$42="Endemic", IF($J27>1, IF($J27=4, "Unknown", IF($J27=99, "Surveillance", F27)), 0),"Not required") -> 0 | Q27: =IF(INTRO!$E$42="Endemic", IF($J27>1, IF($J27=4, "Unknown", IF($J27=99, "Surveillance", ROUND(D27*INTRO!$E$51,0))), 0),"Not required") -> 0 | R27: =IF(INTRO!$E$42="Endemic", IF($J27>1, IF($J27=4, "Unknown", IF($J27=99, "Surveillance", SUM($O27:$Q27))), 0),"Not required") -> 0 | S27: 7489 | T27: 24175 | U27: 52139 | V27: =IF(INTRO!$E$44="Endemic", IF($K27>1, IF($K27=4, "Unknown", IF($K27=99, "Surveillance", SUM($S27:$U27))), 0),"Not required") -> 83803 | W27: 0 | X27: 0 | Y27: 0 | Z27: 0 | AH27: 44336 | AI27: DUK | AO27: ='MDA1'!K27 -> 0 | AP27: ='MDA3'!O27 -> 0 | AQ27: ='MDA4'!S27 -> 0
A28: =IF(INTRO!$E$34<>0,INTRO!$E$34,"") -> South Sudan | B28: Jonglei | C28: UROR | D28: 286928.8922 | E28: =IF(INTRO!$E$48="","",ROUND($D28*INTRO!$E$48,0)) -> 31763 | F28: =IF(INTRO!$E$49="","",ROUND($D28*INTRO!$E$49,0)) -> 88632 | G28: =IF(INTRO!$E$50="","",ROUND($D28*INTRO!$E$50,0)) -> 158643 | H28: 0 | I28: 4 | J28: 1 | K28: 3 | L28: 1 | M28: =IF(INTRO!$E$38="Endemic", IF($H28>0, IF($H28=4,"Unknown", IF($H28=99,"Stopped", $D28)), 0),"Not required") -> 0 | N28: =IF(INTRO!$E$40="Endemic", IF($I28>0, IF($I28=4,"Unknown",IF($I28=99,"Stopped", $D28)), 0),"Not required") -> Unknown | O28: =IF(INTRO!$E$42="Endemic", IF($J28>1, IF($J28=4, "Unknown", IF($J28=99, "Surveillance", E28)), 0),"Not required") -> 0 | P28: =IF(INTRO!$E$42="Endemic", IF($J28>1, IF($J28=4, "Unknown", IF($J28=99, "Surveillance", F28)), 0),"Not required") -> 0 | Q28: =IF(INTRO!$E$42="Endemic", IF($J28>1, IF($J28=4, "Unknown", IF($J28=99, "Surveillance", ROUND(D28*INTRO!$E$51,0))), 0),"Not required") -> 0 | R28: =IF(INTRO!$E$42="Endemic", IF($J28>1, IF($J28=4, "Unknown", IF($J28=99, "Surveillance", SUM($O28:$Q28))), 0),"Not required") -> 0 | S28: 5199 | T28: 16781 | U28: 36192 | V28: =IF(INTRO!$E$44="Endemic", IF($K28>1, IF($K28=4, "Unknown", IF($K28=99, "Surveillance", SUM($S28:$U28))), 0),"Not required") -> 58172 | W28: 0 | X28: 0 | Y28: 0 | Z28: 0 | AH28: 44347 | AI28: WUROR | AO28: ='MDA1'!K28 -> 0 | AP28: ='MDA3'!O28 -> 0 | AQ28: ='MDA4'!S28 -> 0
A29: =IF(INTRO!$E$34<>0,INTRO!$E$34,"") -> South Sudan | B29: Jonglei | C29: NYIROL | D29: 175223.5485 | E29: =IF(INTRO!$E$48="","",ROUND($D29*INTRO!$E$48,0)) -> 19397 | F29: =IF(INTRO!$E$49="","",ROUND($D29*INTRO!$E$49,0)) -> 54127 | G29: =IF(INTRO!$E$50="","",ROUND($D29*INTRO!$E$50,0)) -> 96881 | H29: 0 | I29: 4 | J29: 1 | K29: 1 | L29: 0 | M29: =IF(INTRO!$E$38="Endemic", IF($H29>0, IF($H29=4,"Unknown", IF($H29=99,"Stopped", $D29)), 0),"Not required") -> 0 | N29: =IF(INTRO!$E$40="Endemic", IF($I29>0, IF($I29=4,"Unknown",IF($I29=99,"Stopped", $D29)), 0),"Not required") -> Unknown | O29: =IF(INTRO!$E$42="Endemic", IF($J29>1, IF($J29=4, "Unknown", IF($J29=99, "Surveillance", E29)), 0),"Not required") -> 0 | P29: =IF(INTRO!$E$42="Endemic", IF($J29>1, IF($J29=4, "Unknown", IF($J29=99, "Surveillance", F29)), 0),"Not required") -> 0 | Q29: =IF(INTRO!$E$42="Endemic", IF($J29>1, IF($J29=4, "Unknown", IF($J29=99, "Surveillance", ROUND(D29*INTRO!$E$51,0))), 0),"Not required") -> 0 | R29: =IF(INTRO!$E$42="Endemic", IF($J29>1, IF($J29=4, "Unknown", IF($J29=99, "Surveillance", SUM($O29:$Q29))), 0),"Not required") -> 0 | S29: 0 | T29: 0 | U29: 0 | V29: =IF(INTRO!$E$44="Endemic", IF($K29>1, IF($K29=4, "Unknown", IF($K29=99, "Surveillance", SUM($S29:$U29))), 0),"Not required") -> 0 | W29: 0 | X29: 0 | Y29: 0 | Z29: 0 | AH29: 44341 | AI29: NYIROL | AO29: ='MDA1'!K29 -> 0 | AP29: ='MDA3'!O29 -> 0 | AQ29: ='MDA4'!S29 -> 0
A30: =IF(INTRO!$E$34<>0,INTRO!$E$34,"") -> South Sudan | B30: Jonglei | C30: AKOBO | D30: 225600.385 | E30: =IF(INTRO!$E$48="","",ROUND($D30*INTRO!$E$48,0)) -> 24974 | F30: =IF(INTRO!$E$49="","",ROUND($D30*INTRO!$E$49,0)) -> 69688 | G30: =IF(INTRO!$E$50="","",ROUND($D30*INTRO!$E$50,0)) -> 124734 | H30: 0 | I30: 1 | J30: 1 | K30: 1 | L30: 0 | M30: =IF(INTRO!$E$38="Endemic", IF($H30>0, IF($H30=4,"Unknown", IF($H30=99,"Stopped", $D30)), 0),"Not required") -> 0 | N30: =IF(INTRO!$E$40="Endemic", IF($I30>0, IF($I30=4,"Unknown",IF($I30=99,"Stopped", $D30)), 0),"Not required") -> 225600.385 | O30: =IF(INTRO!$E$42="Endemic", IF($J30>1, IF($J30=4, "Unknown", IF($J30=99, "Surveillance", E30)), 0),"Not required") -> 0 | P30: =IF(INTRO!$E$42="Endemic", IF($J30>1, IF($J30=4, "Unknown", IF($J30=99, "Surveillance", F30)), 0),"Not required") -> 0 | Q30: =IF(INTRO!$E$42="Endemic", IF($J30>1, IF($J30=4, "Unknown", IF($J30=99, "Surveillance", ROUND(D30*INTRO!$E$51,0))), 0),"Not required") -> 0 | R30: =IF(INTRO!$E$42="Endemic", IF($J30>1, IF($J30=4, "Unknown", IF($J30=99, "Surveillance", SUM($O30:$Q30))), 0),"Not required") -> 0 | S30: 0 | T30: 0 | U30: 0 | V30: =IF(INTRO!$E$44="Endemic", IF($K30>1, IF($K30=4, "Unknown", IF($K30=99, "Surveillance", SUM($S30:$U30))), 0),"Not required") -> 0 | W30: 0 | X30: 1 | Y30: 0 | Z30: 0 | AA30: MDA3 (IVM) | AH30: 44333 | AI30: AKOBO | AO30: ='MDA1'!K30 -> 0 | AP30: ='MDA3'!O30 -> 35449 | AQ30: ='MDA4'!S30 -> 0
A31: =IF(INTRO!$E$34<>0,INTRO!$E$34,"") -> South Sudan | B31: Jonglei | C31: POCHALA | D31: 107324.8876 | E31: =IF(INTRO!$E$48="","",ROUND($D31*INTRO!$E$48,0)) -> 11881 | F31: =IF(INTRO!$E$49="","",ROUND($D31*INTRO!$E$49,0)) -> 33153 | G31: =IF(INTRO!$E$50="","",ROUND($D31*INTRO!$E$50,0)) -> 59340 | H31: 1 | I31: 1 | J31: 0 | K31: 0 | L31: 4 | M31: =IF(INTRO!$E$38="Endemic", IF($H31>0, IF($H31=4,"Unknown", IF($H31=99,"Stopped", $D31)), 0),"Not required") -> 107324.8876 | N31: =IF(INTRO!$E$40="Endemic", IF($I31>0, IF($I31=4,"Unknown",IF($I31=99,"Stopped", $D31)), 0),"Not required") -> 107324.8876 | O31: =IF(INTRO!$E$42="Endemic", IF($J31>1, IF($J31=4, "Unknown", IF($J31=99, "Surveillance", E31)), 0),"Not required") -> 0 | P31: =IF(INTRO!$E$42="Endemic", IF($J31>1, IF($J31=4, "Unknown", IF($J31=99, "Surveillance", F31)), 0),"Not required") -> 0 | Q31: =IF(INTRO!$E$42="Endemic", IF($J31>1, IF($J31=4, "Unknown", IF($J31=99, "Surveillance", ROUND(D31*INTRO!$E$51,0))), 0),"Not required") -> 0 | R31: =IF(INTRO!$E$42="Endemic", IF($J31>1, IF($J31=4, "Unknown", IF($J31=99, "Surveillance", SUM($O31:$Q31))), 0),"Not required") -> 0 | S31: 0 | T31: 0 | U31: 0 | V31: =IF(INTRO!$E$44="Endemic", IF($K31>1, IF($K31=4, "Unknown", IF($K31=99, "Surveillance", SUM($S31:$U31))), 0),"Not required") -> 0 | W31: 1 | X31: 1 | Y31: 0 | Z31: 0 | AA31: MDA1 (IVM+ALB) | AH31: 44344 | AI31: POCHALA | AO31: ='MDA1'!K31 -> 18759 | AP31: ='MDA3'!O31 -> 0 | AQ31: ='MDA4'!S31 -> 0
A32: =IF(INTRO!$E$34<>0,INTRO!$E$34,"") -> South Sudan | B32: Jonglei | C32: PIBOR | D32: 238742.8142 | E32: =IF(INTRO!$E$48="","",ROUND($D32*INTRO!$E$48,0)) -> 26429 | F32: =IF(INTRO!$E$49="","",ROUND($D32*INTRO!$E$49,0)) -> 73748 | G32: =IF(INTRO!$E$50="","",ROUND($D32*INTRO!$E$50,0)) -> 132001 | H32: 1 | I32: 1 | J32: 0 | K32: 0 | L32: 4 | M32: =IF(INTRO!$E$38="Endemic", IF($H32>0, IF($H32=4,"Unknown", IF($H32=99,"Stopped", $D32)), 0),"Not required") -> 238742.8142 | N32: =IF(INTRO!$E$40="Endemic", IF($I32>0, IF($I32=4,"Unknown",IF($I32=99,"Stopped", $D32)), 0),"Not required") -> 238742.8142 | O32: =IF(INTRO!$E$42="Endemic", IF($J32>1, IF($J32=4, "Unknown", IF($J32=99, "Surveillance", E32)), 0),"Not required") -> 0 | P32: =IF(INTRO!$E$42="Endemic", IF($J32>1, IF($J32=4, "Unknown", IF($J32=99, "Surveillance", F32)), 0),"Not required") -> 0 | Q32: =IF(INTRO!$E$42="Endemic", IF($J32>1, IF($J32=4, "Unknown", IF($J32=99, "Surveillance", ROUND(D32*INTRO!$E$51,0))), 0),"Not required") -> 0 | R32: =IF(INTRO!$E$42="Endemic", IF($J32>1, IF($J32=4, "Unknown", IF($J32=99, "Surveillance", SUM($O32:$Q32))), 0),"Not required") -> 0 | S32: 0 | T32: 0 | U32: 0 | V32: =IF(INTRO!$E$44="Endemic", IF($K32>1, IF($K32=4, "Unknown", IF($K32=99, "Surveillance", SUM($S32:$U32))), 0),"Not required") -> 0 | W32: 1 | X32: 1 | Y32: 0 | Z32: 0 | AA32: MDA1 (IVM+ALB) | AH32: 44343 | AI32: PIBOR | AO32: ='MDA1'!K32 -> 36007 | AP32: ='MDA3'!O32 -> 0 | AQ32: ='MDA4'!S32 -> 0
A33: =IF(INTRO!$E$34<>0,INTRO!$E$34,"") -> South Sudan | B33: Jonglei | C33: TWIC EAST | D33: 137989.1412 | E33: =IF(INTRO!$E$48="","",ROUND($D33*INTRO!$E$48,0)) -> 15275 | F33: =IF(INTRO!$E$49="","",ROUND($D33*INTRO!$E$49,0)) -> 42625 | G33: =IF(INTRO!$E$50="","",ROUND($D33*INTRO!$E$50,0)) -> 76294 | H33: 0 | I33: 4 | J33: 1 | K33: 2 | L33: 0 | M33: =IF(INTRO!$E$38="Endemic", IF($H33>0, IF($H33=4,"Unknown", IF($H33=99,"Stopped", $D33)), 0),"Not required") -> 0 | N33: =IF(INTRO!$E$40="Endemic", IF($I33>0, IF($I33=4,"Unknown",IF($I33=99,"Stopped", $D33)), 0),"Not required") -> Unknown | O33: =IF(INTRO!$E$42="Endemic", IF($J33>1, IF($J33=4, "Unknown", IF($J33=99, "Surveillance", E33)), 0),"Not required") -> 0 | P33: =IF(INTRO!$E$42="Endemic", IF($J33>1, IF($J33=4, "Unknown", IF($J33=99, "Surveillance", F33)), 0),"Not required") -> 0 | Q33: =IF(INTRO!$E$42="Endemic", IF($J33>1, IF($J33=4, "Unknown", IF($J33=99, "Surveillance", ROUND(D33*INTRO!$E$51,0))), 0),"Not required") -> 0 | R33: =IF(INTRO!$E$42="Endemic", IF($J33>1, IF($J33=4, "Unknown", IF($J33=99, "Surveillance", SUM($O33:$Q33))), 0),"Not required") -> 0 | S33: 11457 | T33: 36980 | U33: 79758 | V33: =IF(INTRO!$E$44="Endemic", IF($K33>1, IF($K33=4, "Unknown", IF($K33=99, "Surveillance", SUM($S33:$U33))), 0),"Not required") -> 128195 | W33: 0 | X33: 0 | Y33: 0 | Z33: 0 | AH33: 44346 | AI33: TWIC EAST | AO33: ='MDA1'!K33 -> 0 | AP33: ='MDA3'!O33 -> 0 | AQ33: ='MDA4'!S33 -> 0
A34: =IF(INTRO!$E$34<>0,INTRO!$E$34,"") -> South Sudan | B34: Jonglei | C34: BOR SOUTH | D34: 357018.3116 | E34: =IF(INTRO!$E$48="","",ROUND($D34*INTRO!$E$48,0)) -> 39522 | F34: =IF(INTRO!$E$49="","",ROUND($D34*INTRO!$E$49,0)) -> 110283 | G34: =IF(INTRO!$E$50="","",ROUND($D34*INTRO!$E$50,0)) -> 197395 | H34: 0 | I34: 4 | J34: 0 | K34: 3 | L34: 1 | M34: =IF(INTRO!$E$38="Endemic", IF($H34>0, IF($H34=4,"Unknown", IF($H34=99,"Stopped", $D34)), 0),"Not required") -> 0 | N34: =IF(INTRO!$E$40="Endemic", IF($I34>0, IF($I34=4,"Unknown",IF($I34=99,"Stopped", $D34)), 0),"Not required") -> Unknown | O34: =IF(INTRO!$E$42="Endemic", IF($J34>1, IF($J34=4, "Unknown", IF($J34=99, "Surveillance", E34)), 0),"Not required") -> 0 | P34: =IF(INTRO!$E$42="Endemic", IF($J34>1, IF($J34=4, "Unknown", IF($J34=99, "Surveillance", F34)), 0),"Not required") -> 0 | Q34: =IF(INTRO!$E$42="Endemic", IF($J34>1, IF($J34=4, "Unknown", IF($J34=99, "Surveillance", ROUND(D34*INTRO!$E$51,0))), 0),"Not required") -> 0 | R34: =IF(INTRO!$E$42="Endemic", IF($J34>1, IF($J34=4, "Unknown", IF($J34=99, "Surveillance", SUM($O34:$Q34))), 0),"Not required") -> 0 | S34: 29642 | T34: 95682 | U34: 206357 | V34: =IF(INTRO!$E$44="Endemic", IF($K34>1, IF($K34=4, "Unknown", IF($K34=99, "Surveillance", SUM($S34:$U34))), 0),"Not required") -> 331681 | W34: 0 | X34: 0 | Y34: 0 | Z34: 0 | AH34: 44335 | AI34: BOR SOUTH | AO34: ='MDA1'!K34 -> 0 | AP34: ='MDA3'!O34 -> 0 | AQ34: ='MDA4'!S34 -> 0
A35: =IF(INTRO!$E$34<>0,INTRO!$E$34,"") -> South Sudan | B35: Lakes | C35: CUEBIT | D35: 214446.0824 | E35: =IF(INTRO!$E$48="","",ROUND($D35*INTRO!$E$48,0)) -> 23739 | F35: =IF(INTRO!$E$49="","",ROUND($D35*INTRO!$E$49,0)) -> 66242 | G35: =IF(INTRO!$E$50="","",ROUND($D35*INTRO!$E$50,0)) -> 118567 | H35: 0 | I35: 1 | J35: 1 | K35: 0 | L35: 1 | M35: =IF(INTRO!$E$38="Endemic", IF($H35>0, IF($H35=4,"Unknown", IF($H35=99,"Stopped", $D35)), 0),"Not required") -> 0 | N35: =IF(INTRO!$E$40="Endemic", IF($I35>0, IF($I35=4,"Unknown",IF($I35=99,"Stopped", $D35)), 0),"Not required") -> 214446.0824 | O35: =IF(INTRO!$E$42="Endemic", IF($J35>1, IF($J35=4, "Unknown", IF($J35=99, "Surveillance", E35)), 0),"Not required") -> 0 | P35: =IF(INTRO!$E$42="Endemic", IF($J35>1, IF($J35=4, "Unknown", IF($J35=99, "Surveillance", F35)), 0),"Not required") -> 0 | Q35: =IF(INTRO!$E$42="Endemic", IF($J35>1, IF($J35=4, "Unknown", IF($J35=99, "Surveillance", ROUND(D35*INTRO!$E$51,0))), 0),"Not required") -> 0 | R35: =IF(INTRO!$E$42="Endemic", IF($J35>1, IF($J35=4, "Unknown", IF($J35=99, "Surveillance", SUM($O35:$Q35))), 0),"Not required") -> 0 | S35: 0 | T35: 0 | U35: 0 | V35: =IF(INTRO!$E$44="Endemic", IF($K35>1, IF($K35=4, "Unknown", IF($K35=99, "Surveillance", SUM($S35:$U35))), 0),"Not required") -> 0 | W35: 0 | X35: 1 | Y35: 0 | Z35: 0 | AA35: MDA3 (IVM) | AH35: 44350 | AI35: CUEBIT | AO35: ='MDA1'!K35 -> 0 | AP35: ='MDA3'!O35 -> 82073 | AQ35: ='MDA4'!S35 -> 0
A36: =IF(INTRO!$E$34<>0,INTRO!$E$34,"") -> South Sudan | B36: Lakes | C36: RUMBEK NORTH | D36: 78672.1004 | E36: =IF(INTRO!$E$48="","",ROUND($D36*INTRO!$E$48,0)) -> 8709 | F36: =IF(INTRO!$E$49="","",ROUND($D36*INTRO!$E$49,0)) -> 24302 | G36: =IF(INTRO!$E$50="","",ROUND($D36*INTRO!$E$50,0)) -> 43498 | H36: 1 | I36: 1 | J36: 1 | K36: 0 | L36: 1 | M36: =IF(INTRO!$E$38="Endemic", IF($H36>0, IF($H36=4,"Unknown", IF($H36=99,"Stopped", $D36)), 0),"Not required") -> 78672.1004 | N36: =IF(INTRO!$E$40="Endemic", IF($I36>0, IF($I36=4,"Unknown",IF($I36=99,"Stopped", $D36)), 0),"Not required") -> 78672.1004 | O36: =IF(INTRO!$E$42="Endemic", IF($J36>1, IF($J36=4, "Unknown", IF($J36=99, "Surveillance", E36)), 0),"Not required") -> 0 | P36: =IF(INTRO!$E$42="Endemic", IF($J36>1, IF($J36=4, "Unknown", IF($J36=99, "Surveillance", F36)), 0),"Not required") -> 0 | Q36: =IF(INTRO!$E$42="Endemic", IF($J36>1, IF($J36=4, "Unknown", IF($J36=99, "Surveillance", ROUND(D36*INTRO!$E$51,0))), 0),"Not required") -> 0 | R36: =IF(INTRO!$E$42="Endemic", IF($J36>1, IF($J36=4, "Unknown", IF($J36=99, "Surveillance", SUM($O36:$Q36))), 0),"Not required") -> 0 | S36: 0 | T36: 0 | U36: 0 | V36: =IF(INTRO!$E$44="Endemic", IF($K36>1, IF($K36=4, "Unknown", IF($K36=99, "Surveillance", SUM($S36:$U36))), 0),"Not required") -> 0 | W36: 1 | X36: 1 | Y36: 0 | Z36: 0 | AA36: MDA1 (IVM+ALB) | AH36: 44353 | AI36: RUMBEK NORTH | AO36: ='MDA1'!K36 -> 40127 | AP36: ='MDA3'!O36 -> 0 | AQ36: ='MDA4'!S36 -> 0
A37: =IF(INTRO!$E$34<>0,INTRO!$E$34,"") -> South Sudan | B37: Lakes | C37: RUMBEK CENTRE | D37: 280428.7579 | E37: =IF(INTRO!$E$48="","",ROUND($D37*INTRO!$E$48,0)) -> 31043 | F37: =IF(INTRO!$E$49="","",ROUND($D37*INTRO!$E$49,0)) -> 86624 | G37: =IF(INTRO!$E$50="","",ROUND($D37*INTRO!$E$50,0)) -> 155049 | H37: 1 | I37: 1 | J37: 1 | K37: 1 | L37: 1 | M37: =IF(INTRO!$E$38="Endemic", IF($H37>0, IF($H37=4,"Unknown", IF($H37=99,"Stopped", $D37)), 0),"Not required") -> 280428.7579 | N37: =IF(INTRO!$E$40="Endemic", IF($I37>0, IF($I37=4,"Unknown",IF($I37=99,"Stopped", $D37)), 0),"Not required") -> 280428.7579 | O37: =IF(INTRO!$E$42="Endemic", IF($J37>1, IF($J37=4, "Unknown", IF($J37=99, "Surveillance", E37)), 0),"Not required") -> 0 | P37: =IF(INTRO!$E$42="Endemic", IF($J37>1, IF($J37=4, "Unknown", IF($J37=99, "Surveillance", F37)), 0),"Not required") -> 0 | Q37: =IF(INTRO!$E$42="Endemic", IF($J37>1, IF($J37=4, "Unknown", IF($J37=99, "Surveillance", ROUND(D37*INTRO!$E$51,0))), 0),"Not required") -> 0 | R37: =IF(INTRO!$E$42="Endemic", IF($J37>1, IF($J37=4, "Unknown", IF($J37=99, "Surveillance", SUM($O37:$Q37))), 0),"Not required") -> 0 | S37: 0 | T37: 0 | U37: 0 | V37: =IF(INTRO!$E$44="Endemic", IF($K37>1, IF($K37=4, "Unknown", IF($K37=99, "Surveillance", SUM($S37:$U37))), 0),"Not required") -> 0 | W37: 1 | X37: 1 | Y37: 0 | Z37: 0 | AA37: MDA1 (IVM+ALB) | AH37: 44351 | AI37: RUMBEK CENTRE | AO37: ='MDA1'!K37 -> 90346 | AP37: ='MDA3'!O37 -> 0 | AQ37: ='MDA4'!S37 -> 0
A38: =IF(INTRO!$E$34<>0,INTRO!$E$34,"") -> South Sudan | B38: Lakes | C38: WULU | D38: 73596.7548 | E38: =IF(INTRO!$E$48="","",ROUND($D38*INTRO!$E$48,0)) -> 8147 | F38: =IF(INTRO!$E$49="","",ROUND($D38*INTRO!$E$49,0)) -> 22734 | G38: =IF(INTRO!$E$50="","",ROUND($D38*INTRO!$E$50,0)) -> 40692 | H38: 1 | I38: 1 | J38: 1 | K38: 0 | L38: 1 | M38: =IF(INTRO!$E$38="Endemic", IF($H38>0, IF($H38=4,"Unknown", IF($H38=99,"Stopped", $D38)), 0),"Not required") -> 73596.7548 | N38: =IF(INTRO!$E$40="Endemic", IF($I38>0, IF($I38=4,"Unknown",IF($I38=99,"Stopped", $D38)), 0),"Not required") -> 73596.7548 | O38: =IF(INTRO!$E$42="Endemic", IF($J38>1, IF($J38=4, "Unknown", IF($J38=99, "Surveillance", E38)), 0),"Not required") -> 0 | P38: =IF(INTRO!$E$42="Endemic", IF($J38>1, IF($J38=4, "Unknown", IF($J38=99, "Surveillance", F38)), 0),"Not required") -> 0 | Q38: =IF(INTRO!$E$42="Endemic", IF($J38>1, IF($J38=4, "Unknown", IF($J38=99, "Surveillance", ROUND(D38*INTRO!$E$51,0))), 0),"Not required") -> 0 | R38: =IF(INTRO!$E$42="Endemic", IF($J38>1, IF($J38=4, "Unknown", IF($J38=99, "Surveillance", SUM($O38:$Q38))), 0),"Not required") -> 0 | S38: 0 | T38: 0 | U38: 0 | V38: =IF(INTRO!$E$44="Endemic", IF($K38>1, IF($K38=4, "Unknown", IF($K38=99, "Surveillance", SUM($S38:$U38))), 0),"Not required") -> 0 | W38: 1 | X38: 1 | Y38: 0 | Z38: 0 | AA38: MDA1 (IVM+ALB) | AH38: 44354 | AI38: WULU | AO38: ='MDA1'!K38 -> 27653 | AP38: ='MDA3'!O38 -> 0 | AQ38: ='MDA4'!S38 -> 0
A39: =IF(INTRO!$E$34<>0,INTRO!$E$34,"") -> South Sudan | B39: Lakes | C39: RUMBEK EAST | D39: 224596.7736 | E39: =IF(INTRO!$E$48="","",ROUND($D39*INTRO!$E$48,0)) -> 24863 | F39: =IF(INTRO!$E$49="","",ROUND($D39*INTRO!$E$49,0)) -> 69378 | G39: =IF(INTRO!$E$50="","",ROUND($D39*INTRO!$E$50,0)) -> 124180 | H39: 0 | I39: 1 | J39: 1 | K39: 1 | L39: 1 | M39: =IF(INTRO!$E$38="Endemic", IF($H39>0, IF($H39=4,"Unknown", IF($H39=99,"Stopped", $D39)), 0),"Not required") -> 0 | N39: =IF(INTRO!$E$40="Endemic", IF($I39>0, IF($I39=4,"Unknown",IF($I39=99,"Stopped", $D39)), 0),"Not required") -> 224596.7736 | O39: =IF(INTRO!$E$42="Endemic", IF($J39>1, IF($J39=4, "Unknown", IF($J39=99, "Surveillance", E39)), 0),"Not required") -> 0 | P39: =IF(INTRO!$E$42="Endemic", IF($J39>1, IF($J39=4, "Unknown", IF($J39=99, "Surveillance", F39)), 0),"Not required") -> 0 | Q39: =IF(INTRO!$E$42="Endemic", IF($J39>1, IF($J39=4, "Unknown", IF($J39=99, "Surveillance", ROUND(D39*INTRO!$E$51,0))), 0),"Not required") -> 0 | R39: =IF(INTRO!$E$42="Endemic", IF($J39>1, IF($J39=4, "Unknown", IF($J39=99, "Surveillance", SUM($O39:$Q39))), 0),"Not required") -> 0 | S39: 0 | T39: 0 | U39: 0 | V39: =IF(INTRO!$E$44="Endemic", IF($K39>1, IF($K39=4, "Unknown", IF($K39=99, "Surveillance", SUM($S39:$U39))), 0),"Not required") -> 0 | W39: 0 | X39: 1 | Y39: 0 | Z39: 0 | AA39: MDA3 (IVM) | AH39: 44352 | AI39: RUMBEK EAST | AO39: ='MDA1'!K39 -> 0 | AP39: ='MDA3'!O39 -> 122904 | AQ39: ='MDA4'!S39 -> 0
A40: =IF(INTRO!$E$34<>0,INTRO!$E$34,"") -> South Sudan | B40: Lakes | C40: YIROL WEST | D40: 187798.3962 | E40: =IF(INTRO!$E$48="","",ROUND($D40*INTRO!$E$48,0)) -> 20789 | F40: =IF(INTRO!$E$49="","",ROUND($D40*INTRO!$E$49,0)) -> 58011 | G40: =IF(INTRO!$E$50="","",ROUND($D40*INTRO!$E$50,0)) -> 103834 | H40: 0 | I40: 1 | J40: 1 | K40: 2 | L40: 1 | M40: =IF(INTRO!$E$38="Endemic", IF($H40>0, IF($H40=4,"Unknown", IF($H40=99,"Stopped", $D40)), 0),"Not required") -> 0 | N40: =IF(INTRO!$E$40="Endemic", IF($I40>0, IF($I40=4,"Unknown",IF($I40=99,"Stopped", $D40)), 0),"Not required") -> 187798.3962 | O40: =IF(INTRO!$E$42="Endemic", IF($J40>1, IF($J40=4, "Unknown", IF($J40=99, "Surveillance", E40)), 0),"Not required") -> 0 | P40: =IF(INTRO!$E$42="Endemic", IF($J40>1, IF($J40=4, "Unknown", IF($J40=99, "Surveillance", F40)), 0),"Not required") -> 0 | Q40: =IF(INTRO!$E$42="Endemic", IF($J40>1, IF($J40=4, "Unknown", IF($J40=99, "Surveillance", ROUND(D40*INTRO!$E$51,0))), 0),"Not required") -> 0 | R40: =IF(INTRO!$E$42="Endemic", IF($J40>1, IF($J40=4, "Unknown", IF($J40=99, "Surveillance", SUM($O40:$Q40))), 0),"Not required") -> 0 | S40: 3259 | T40: 10519 | U40: 22687 | V40: =IF(INTRO!$E$44="Endemic", IF($K40>1, IF($K40=4, "Unknown", IF($K40=99, "Surveillance", SUM($S40:$U40))), 0),"Not required") -> 36465 | W40: 0 | X40: 1 | Y40: 0 | Z40: 0 | AA40: MDA3 (IVM) | AH40: 44356 | AI40: YIROL WEST | AO40: ='MDA1'!K40 -> 0 | AP40: ='MDA3'!O40 -> 34054 | AQ40: ='MDA4'!S40 -> 0
A41: =IF(INTRO!$E$34<>0,INTRO!$E$34,"") -> South Sudan | B41: Lakes | C41: YIROL EAST | D41: 123084.5571 | E41: =IF(INTRO!$E$48="","",ROUND($D41*INTRO!$E$48,0)) -> 13625 | F41: =IF(INTRO!$E$49="","",ROUND($D41*INTRO!$E$49,0)) -> 38021 | G41: =IF(INTRO!$E$50="","",ROUND($D41*INTRO!$E$50,0)) -> 68053 | H41: 0 | I41: 1 | J41: 1 | K41: 2 | L41: 1 | M41: =IF(INTRO!$E$38="Endemic", IF($H41>0, IF($H41=4,"Unknown", IF($H41=99,"Stopped", $D41)), 0),"Not required") -> 0 | N41: =IF(INTRO!$E$40="Endemic", IF($I41>0, IF($I41=4,"Unknown",IF($I41=99,"Stopped", $D41)), 0),"Not required") -> 123084.5571 | O41: =IF(INTRO!$E$42="Endemic", IF($J41>1, IF($J41=4, "Unknown", IF($J41=99, "Surveillance", E41)), 0),"Not required") -> 0 | P41: =IF(INTRO!$E$42="Endemic", IF($J41>1, IF($J41=4, "Unknown", IF($J41=99, "Surveillance", F41)), 0),"Not required") -> 0 | Q41: =IF(INTRO!$E$42="Endemic", IF($J41>1, IF($J41=4, "Unknown", IF($J41=99, "Surveillance", ROUND(D41*INTRO!$E$51,0))), 0),"Not required") -> 0 | R41: =IF(INTRO!$E$42="Endemic", IF($J41>1, IF($J41=4, "Unknown", IF($J41=99, "Surveillance", SUM($O41:$Q41))), 0),"Not required") -> 0 | S41: 5309 | T41: 17135 | U41: 36957 | V41: =IF(INTRO!$E$44="Endemic", IF($K41>1, IF($K41=4, "Unknown", IF($K41=99, "Surveillance", SUM($S41:$U41))), 0),"Not required") -> 59401 | W41: 0 | X41: 1 | Y41: 0 | Z41: 0 | AA41: MDA3 (IVM) | AH41: 44355 | AI41: YIROL EAST | AO41: ='MDA1'!K41 -> 0 | AP41: ='MDA3'!O41 -> 46247 | AQ41: ='MDA4'!S41 -> 0
A42: =IF(INTRO!$E$34<>0,INTRO!$E$34,"") -> South Sudan | B42: Lakes | C42: AWERIAL | D42: 86286.1797 | E42: =IF(INTRO!$E$48="","",ROUND($D42*INTRO!$E$48,0)) -> 9552 | F42: =IF(INTRO!$E$49="","",ROUND($D42*INTRO!$E$49,0)) -> 26654 | G42: =IF(INTRO!$E$50="","",ROUND($D42*INTRO!$E$50,0)) -> 47708 | H42: 1 | I42: 1 | J42: 1 | K42: 3 | L42: 1 | M42: =IF(INTRO!$E$38="Endemic", IF($H42>0, IF($H42=4,"Unknown", IF($H42=99,"Stopped", $D42)), 0),"Not required") -> 86286.1797 | N42: =IF(INTRO!$E$40="Endemic", IF($I42>0, IF($I42=4,"Unknown",IF($I42=99,"Stopped", $D42)), 0),"Not required") -> 86286.1797 | O42: =IF(INTRO!$E$42="Endemic", IF($J42>1, IF($J42=4, "Unknown", IF($J42=99, "Surveillance", E42)), 0),"Not required") -> 0 | P42: =IF(INTRO!$E$42="Endemic", IF($J42>1, IF($J42=4, "Unknown", IF($J42=99, "Surveillance", F42)), 0),"Not required") -> 0 | Q42: =IF(INTRO!$E$42="Endemic", IF($J42>1, IF($J42=4, "Unknown", IF($J42=99, "Surveillance", ROUND(D42*INTRO!$E$51,0))), 0),"Not required") -> 0 | R42: =IF(INTRO!$E$42="Endemic", IF($J42>1, IF($J42=4, "Unknown", IF($J42=99, "Surveillance", SUM($O42:$Q42))), 0),"Not required") -> 0 | S42: 5829 | T42: 18820 | U42: 40588 | V42: =IF(INTRO!$E$44="Endemic", IF($K42>1, IF($K42=4, "Unknown", IF($K42=99, "Surveillance", SUM($S42:$U42))), 0),"Not required") -> 65237 | W42: 1 | X42: 1 | Y42: 0 | Z42: 0 | AA42: MDA1 (IVM+ALB) | AH42: 44349 | AI42: AWERIAL | AO42: ='MDA1'!K42 -> 39859 | AP42: ='MDA3'!O42 -> 0 | AQ42: ='MDA4'!S42 -> 0
A43: =IF(INTRO!$E$34<>0,INTRO!$E$34,"") -> South Sudan | B43: Northern Bahr El Ghazal | C43: AWIEL NORTH | D43: 215185.5297 | E43: =IF(INTRO!$E$48="","",ROUND($D43*INTRO!$E$48,0)) -> 23821 | F43: =IF(INTRO!$E$49="","",ROUND($D43*INTRO!$E$49,0)) -> 66471 | G43: =IF(INTRO!$E$50="","",ROUND($D43*INTRO!$E$50,0)) -> 118976 | H43: 0 | I43: 1 | J43: 1 | K43: 0 | L43: 1 | M43: =IF(INTRO!$E$38="Endemic", IF($H43>0, IF($H43=4,"Unknown", IF($H43=99,"Stopped", $D43)), 0),"Not required") -> 0 | N43: =IF(INTRO!$E$40="Endemic", IF($I43>0, IF($I43=4,"Unknown",IF($I43=99,"Stopped", $D43)), 0),"Not required") -> 215185.5297 | O43: =IF(INTRO!$E$42="Endemic", IF($J43>1, IF($J43=4, "Unknown", IF($J43=99, "Surveillance", E43)), 0),"Not required") -> 0 | P43: =IF(INTRO!$E$42="Endemic", IF($J43>1, IF($J43=4, "Unknown", IF($J43=99, "Surveillance", F43)), 0),"Not required") -> 0 | Q43: =IF(INTRO!$E$42="Endemic", IF($J43>1, IF($J43=4, "Unknown", IF($J43=99, "Surveillance", ROUND(D43*INTRO!$E$51,0))), 0),"Not required") -> 0 | R43: =IF(INTRO!$E$42="Endemic", IF($J43>1, IF($J43=4, "Unknown", IF($J43=99, "Surveillance", SUM($O43:$Q43))), 0),"Not required") -> 0 | S43: 0 | T43: 0 | U43: 0 | V43: =IF(INTRO!$E$44="Endemic", IF($K43>1, IF($K43=4, "Unknown", IF($K43=99, "Surveillance", SUM($S43:$U43))), 0),"Not required") -> 0 | W43: 0 | X43: 1 | Y43: 0 | Z43: 0 | AA43: MDA3 (IVM) | AH43: 44359 | AI43: AWIEL NORTH | AO43: ='MDA1'!K43 -> 0 | AP43: ='MDA3'!O43 -> 82043 | AQ43: ='MDA4'!S43 -> 0
A44: =IF(INTRO!$E$34<>0,INTRO!$E$34,"") -> South Sudan | B44: Northern Bahr El Ghazal | C44: AWIEL EAST | D44: 516926.7077 | E44: =IF(INTRO!$E$48="","",ROUND($D44*INTRO!$E$48,0)) -> 57224 | F44: =IF(INTRO!$E$49="","",ROUND($D44*INTRO!$E$49,0)) -> 159679 | G44: =IF(INTRO!$E$50="","",ROUND($D44*INTRO!$E$50,0)) -> 285809 | H44: 1 | I44: 1 | J44: 1 | K44: 1 | L44: 1 | M44: =IF(INTRO!$E$38="Endemic", IF($H44>0, IF($H44=4,"Unknown", IF($H44=99,"Stopped", $D44)), 0),"Not required") -> 516926.7077 | N44: =IF(INTRO!$E$40="Endemic", IF($I44>0, IF($I44=4,"Unknown",IF($I44=99,"Stopped", $D44)), 0),"Not required") -> 516926.7077 | O44: =IF(INTRO!$E$42="Endemic", IF($J44>1, IF($J44=4, "Unknown", IF($J44=99, "Surveillance", E44)), 0),"Not required") -> 0 | P44: =IF(INTRO!$E$42="Endemic", IF($J44>1, IF($J44=4, "Unknown", IF($J44=99, "Surveillance", F44)), 0),"Not required") -> 0 | Q44: =IF(INTRO!$E$42="Endemic", IF($J44>1, IF($J44=4, "Unknown", IF($J44=99, "Surveillance", ROUND(D44*INTRO!$E$51,0))), 0),"Not required") -> 0 | R44: =IF(INTRO!$E$42="Endemic", IF($J44>1, IF($J44=4, "Unknown", IF($J44=99, "Surveillance", SUM($O44:$Q44))), 0),"Not required") -> 0 | S44: 0 | T44: 0 | U44: 0 | V44: =IF(INTRO!$E$44="Endemic", IF($K44>1, IF($K44=4, "Unknown", IF($K44=99, "Surveillance", SUM($S44:$U44))), 0),"Not required") -> 0 | W44: 1 | X44: 1 | Y44: 0 | Z44: 0 | AA44: MDA1 (IVM+ALB) | AH44: 44358 | AI44: AWIEL EAST | AO44: ='MDA1'!K44 -> 165096 | AP44: ='MDA3'!O44 -> 0 | AQ44: ='MDA4'!S44 -> 0
A45: =IF(INTRO!$E$34<>0,INTRO!$E$34,"") -> South Sudan | B45: Northern Bahr El Ghazal | C45: AWIEL SOUTH | D45: 122619.8829 | E45: =IF(INTRO!$E$48="","",ROUND($D45*INTRO!$E$48,0)) -> 13574 | F45: =IF(INTRO!$E$49="","",ROUND($D45*INTRO!$E$49,0)) -> 37877 | G45: =IF(INTRO!$E$50="","",ROUND($D45*INTRO!$E$50,0)) -> 67797 | H45: 0 | I45: 1 | J45: 1 | K45: 1 | L45: 1 | M45: =IF(INTRO!$E$38="Endemic", IF($H45>0, IF($H45=4,"Unknown", IF($H45=99,"Stopped", $D45)), 0),"Not required") -> 0 | N45: =IF(INTRO!$E$40="Endemic", IF($I45>0, IF($I45=4,"Unknown",IF($I45=99,"Stopped", $D45)), 0),"Not required") -> 122619.8829 | O45: =IF(INTRO!$E$42="Endemic", IF($J45>1, IF($J45=4, "Unknown", IF($J45=99, "Surveillance", E45)), 0),"Not required") -> 0 | P45: =IF(INTRO!$E$42="Endemic", IF($J45>1, IF($J45=4, "Unknown", IF($J45=99, "Surveillance", F45)), 0),"Not required") -> 0 | Q45: =IF(INTRO!$E$42="Endemic", IF($J45>1, IF($J45=4, "Unknown", IF($J45=99, "Surveillance", ROUND(D45*INTRO!$E$51,0))), 0),"Not required") -> 0 | R45: =IF(INTRO!$E$42="Endemic", IF($J45>1, IF($J45=4, "Unknown", IF($J45=99, "Surveillance", SUM($O45:$Q45))), 0),"Not required") -> 0 | S45: 0 | T45: 0 | U45: 0 | V45: =IF(INTRO!$E$44="Endemic", IF($K45>1, IF($K45=4, "Unknown", IF($K45=99, "Surveillance", SUM($S45:$U45))), 0),"Not required") -> 0 | W45: 0 | X45: 1 | Y45: 0 | Z45: 0 | AA45: MDA3 (IVM) | AH45: 44360 | AI45: AWIEL SOUTH | AO45: ='MDA1'!K45 -> 0 | AP45: ='MDA3'!O45 -> 52460 | AQ45: ='MDA4'!S45 -> 0
A46: =IF(INTRO!$E$34<>0,INTRO!$E$34,"") -> South Sudan | B46: Northern Bahr El Ghazal | C46: AWIEL WEST | D46: 277698.0013 | E46: =IF(INTRO!$E$48="","",ROUND($D46*INTRO!$E$48,0)) -> 30741 | F46: =IF(INTRO!$E$49="","",ROUND($D46*INTRO!$E$49,0)) -> 85781 | G46: =IF(INTRO!$E$50="","",ROUND($D46*INTRO!$E$50,0)) -> 153539 | H46: 1 | I46: 1 | J46: 1 | K46: 1 | L46: 1 | M46: =IF(INTRO!$E$38="Endemic", IF($H46>0, IF($H46=4,"Unknown", IF($H46=99,"Stopped", $D46)), 0),"Not required") -> 277698.0013 | N46: =IF(INTRO!$E$40="Endemic", IF($I46>0, IF($I46=4,"Unknown",IF($I46=99,"Stopped", $D46)), 0),"Not required") -> 277698.0013 | O46: =IF(INTRO!$E$42="Endemic", IF($J46>1, IF($J46=4, "Unknown", IF($J46=99, "Surveillance", E46)), 0),"Not required") -> 0 | P46: =IF(INTRO!$E$42="Endemic", IF($J46>1, IF($J46=4, "Unknown", IF($J46=99, "Surveillance", F46)), 0),"Not required") -> 0 | Q46: =IF(INTRO!$E$42="Endemic", IF($J46>1, IF($J46=4, "Unknown", IF($J46=99, "Surveillance", ROUND(D46*INTRO!$E$51,0))), 0),"Not required") -> 0 | R46: =IF(INTRO!$E$42="Endemic", IF($J46>1, IF($J46=4, "Unknown", IF($J46=99, "Surveillance", SUM($O46:$Q46))), 0),"Not required") -> 0 | S46: 0 | T46: 0 | U46: 0 | V46: =IF(INTRO!$E$44="Endemic", IF($K46>1, IF($K46=4, "Unknown", IF($K46=99, "Surveillance", SUM($S46:$U46))), 0),"Not required") -> 0 | W46: 1 | X46: 1 | Y46: 0 | Z46: 0 | AA46: MDA1 (IVM+ALB) | AH46: 44361 | AI46: AWIEL WEST | AO46: ='MDA1'!K46 -> 89690 | AP46: ='MDA3'!O46 -> 0 | AQ46: ='MDA4'!S46 -> 0
A47: =IF(INTRO!$E$34<>0,INTRO!$E$34,"") -> South Sudan | B47: Northern Bahr El Ghazal | C47: AWIEL CENTRE | D47: 69725.5307 | E47: =IF(INTRO!$E$48="","",ROUND($D47*INTRO!$E$48,0)) -> 7719 | F47: =IF(INTRO!$E$49="","",ROUND($D47*INTRO!$E$49,0)) -> 21538 | G47: =IF(INTRO!$E$50="","",ROUND($D47*INTRO!$E$50,0)) -> 38551 | H47: 1 | I47: 1 | J47: 1 | K47: 1 | L47: 1 | M47: =IF(INTRO!$E$38="Endemic", IF($H47>0, IF($H47=4,"Unknown", IF($H47=99,"Stopped", $D47)), 0),"Not required") -> 69725.5307 | N47: =IF(INTRO!$E$40="Endemic", IF($I47>0, IF($I47=4,"Unknown",IF($I47=99,"Stopped", $D47)), 0),"Not required") -> 69725.5307 | O47: =IF(INTRO!$E$42="Endemic", IF($J47>1, IF($J47=4, "Unknown", IF($J47=99, "Surveillance", E47)), 0),"Not required") -> 0 | P47: =IF(INTRO!$E$42="Endemic", IF($J47>1, IF($J47=4, "Unknown", IF($J47=99, "Surveillance", F47)), 0),"Not required") -> 0 | Q47: =IF(INTRO!$E$42="Endemic", IF($J47>1, IF($J47=4, "Unknown", IF($J47=99, "Surveillance", ROUND(D47*INTRO!$E$51,0))), 0),"Not required") -> 0 | R47: =IF(INTRO!$E$42="Endemic", IF($J47>1, IF($J47=4, "Unknown", IF($J47=99, "Surveillance", SUM($O47:$Q47))), 0),"Not required") -> 0 | S47: 0 | T47: 0 | U47: 0 | V47: =IF(INTRO!$E$44="Endemic", IF($K47>1, IF($K47=4, "Unknown", IF($K47=99, "Surveillance", SUM($S47:$U47))), 0),"Not required") -> 0 | W47: 1 | X47: 1 | Y47: 0 | Z47: 0 | AA47: MDA1 (IVM+ALB) | AH47: 44357 | AI47: AWIEL CENTRE | AO47: ='MDA1'!K47 -> 33491 | AP47: ='MDA3'!O47 -> 0 | AQ47: ='MDA4'!S47 -> 0
A48: =IF(INTRO!$E$34<>0,INTRO!$E$34,"") -> South Sudan | B48: Unity | C48: PARIANG | D48: 148225.7653 | E48: =IF(INTRO!$E$48="","",ROUND($D48*INTRO!$E$48,0)) -> 16409 | F48: =IF(INTRO!$E$49="","",ROUND($D48*INTRO!$E$49,0)) -> 45787 | G48: =IF(INTRO!$E$50="","",ROUND($D48*INTRO!$E$50,0)) -> 81954 | H48: 0 | I48: 4 | J48: 0 | K48: 2 | L48: 1 | M48: =IF(INTRO!$E$38="Endemic", IF($H48>0, IF($H48=4,"Unknown", IF($H48=99,"Stopped", $D48)), 0),"Not required") -> 0 | N48: =IF(INTRO!$E$40="Endemic", IF($I48>0, IF($I48=4,"Unknown",IF($I48=99,"Stopped", $D48)), 0),"Not required") -> Unknown | O48: =IF(INTRO!$E$42="Endemic", IF($J48>1, IF($J48=4, "Unknown", IF($J48=99, "Surveillance", E48)), 0),"Not required") -> 0 | P48: =IF(INTRO!$E$42="Endemic", IF($J48>1, IF($J48=4, "Unknown", IF($J48=99, "Surveillance", F48)), 0),"Not required") -> 0 | Q48: =IF(INTRO!$E$42="Endemic", IF($J48>1, IF($J48=4, "Unknown", IF($J48=99, "Surveillance", ROUND(D48*INTRO!$E$51,0))), 0),"Not required") -> 0 | R48: =IF(INTRO!$E$42="Endemic", IF($J48>1, IF($J48=4, "Unknown", IF($J48=99, "Surveillance", SUM($O48:$Q48))), 0),"Not required") -> 0 | S48: 512 | T48: 1654 | U48: 3567 | V48: =IF(INTRO!$E$44="Endemic", IF($K48>1, IF($K48=4, "Unknown", IF($K48=99, "Surveillance", SUM($S48:$U48))), 0),"Not required") -> 5733 | W48: 0 | X48: 0 | Y48: 0 | Z48: 0 | AH48: 44370 | AI48: PARIANG | AO48: ='MDA1'!K48 -> 0 | AP48: ='MDA3'!O48 -> 0 | AQ48: ='MDA4'!S48 -> 0
A49: =IF(INTRO!$E$34<>0,INTRO!$E$34,"") -> South Sudan | B49: Unity | C49: ABIEMNHOM | D49: 30486.0224 | E49: =IF(INTRO!$E$48="","",ROUND($D49*INTRO!$E$48,0)) -> 3375 | F49: =IF(INTRO!$E$49="","",ROUND($D49*INTRO!$E$49,0)) -> 9417 | G49: =IF(INTRO!$E$50="","",ROUND($D49*INTRO!$E$50,0)) -> 16856 | H49: 0 | I49: 4 | J49: 0 | K49: 3 | L49: 1 | M49: =IF(INTRO!$E$38="Endemic", IF($H49>0, IF($H49=4,"Unknown", IF($H49=99,"Stopped", $D49)), 0),"Not required") -> 0 | N49: =IF(INTRO!$E$40="Endemic", IF($I49>0, IF($I49=4,"Unknown",IF($I49=99,"Stopped", $D49)), 0),"Not required") -> Unknown | O49: =IF(INTRO!$E$42="Endemic", IF($J49>1, IF($J49=4, "Unknown", IF($J49=99, "Surveillance", E49)), 0),"Not required") -> 0 | P49: =IF(INTRO!$E$42="Endemic", IF($J49>1, IF($J49=4, "Unknown", IF($J49=99, "Surveillance", F49)), 0),"Not required") -> 0 | Q49: =IF(INTRO!$E$42="Endemic", IF($J49>1, IF($J49=4, "Unknown", IF($J49=99, "Surveillance", ROUND(D49*INTRO!$E$51,0))), 0),"Not required") -> 0 | R49: =IF(INTRO!$E$42="Endemic", IF($J49>1, IF($J49=4, "Unknown", IF($J49=99, "Surveillance", SUM($O49:$Q49))), 0),"Not required") -> 0 | S49: 1620 | T49: 5228 | U49: 11276 | V49: =IF(INTRO!$E$44="Endemic", IF($K49>1, IF($K49=4, "Unknown", IF($K49=99, "Surveillance", SUM($S49:$U49))), 0),"Not required") -> 18124 | W49: 0 | X49: 0 | Y49: 0 | Z49: 0 | AH49: 44362 | AI49: ABIEMNHOM | AO49: ='MDA1'!K49 -> 0 | AP49: ='MDA3'!O49 -> 0 | AQ49: ='MDA4'!S49 -> 0
A50: =IF(INTRO!$E$34<>0,INTRO!$E$34,"") -> South Sudan | B50: Unity | C50: MAYOM | D50: 216556.2125 | E50: =IF(INTRO!$E$48="","",ROUND($D50*INTRO!$E$48,0)) -> 23973 | F50: =IF(INTRO!$E$49="","",ROUND($D50*INTRO!$E$49,0)) -> 66894 | G50: =IF(INTRO!$E$50="","",ROUND($D50*INTRO!$E$50,0)) -> 119734 | H50: 0 | I50: 4 | J50: 1 | K50: 3 | L50: 1 | M50: =IF(INTRO!$E$38="Endemic", IF($H50>0, IF($H50=4,"Unknown", IF($H50=99,"Stopped", $D50)), 0),"Not required") -> 0 | N50: =IF(INTRO!$E$40="Endemic", IF($I50>0, IF($I50=4,"Unknown",IF($I50=99,"Stopped", $D50)), 0),"Not required") -> Unknown | O50: =IF(INTRO!$E$42="Endemic", IF($J50>1, IF($J50=4, "Unknown", IF($J50=99, "Surveillance", E50)), 0),"Not required") -> 0 | P50: =IF(INTRO!$E$42="Endemic", IF($J50>1, IF($J50=4, "Unknown", IF($J50=99, "Surveillance", F50)), 0),"Not required") -> 0 | Q50: =IF(INTRO!$E$42="Endemic", IF($J50>1, IF($J50=4, "Unknown", IF($J50=99, "Surveillance", ROUND(D50*INTRO!$E$51,0))), 0),"Not required") -> 0 | R50: =IF(INTRO!$E$42="Endemic", IF($J50>1, IF($J50=4, "Unknown", IF($J50=99, "Surveillance", SUM($O50:$Q50))), 0),"Not required") -> 0 | S50: 5993 | T50: 19345 | U50: 41722 | V50: =IF(INTRO!$E$44="Endemic", IF($K50>1, IF($K50=4, "Unknown", IF($K50=99, "Surveillance", SUM($S50:$U50))), 0),"Not required") -> 67060 | W50: 0 | X50: 0 | Y50: 0 | Z50: 0 | AH50: 44367 | AI50: MAYOM | AO50: ='MDA1'!K50 -> 0 | AP50: ='MDA3'!O50 -> 0 | AQ50: ='MDA4'!S50 -> 0
A51: =IF(INTRO!$E$34<>0,INTRO!$E$34,"") -> South Sudan | B51: Unity | C51: RUBKONA | D51: 179763.1396 | E51: =IF(INTRO!$E$48="","",ROUND($D51*INTRO!$E$48,0)) -> 19900 | F51: =IF(INTRO!$E$49="","",ROUND($D51*INTRO!$E$49,0)) -> 55529 | G51: =IF(INTRO!$E$50="","",ROUND($D51*INTRO!$E$50,0)) -> 99391 | H51: 1 | I51: 4 | J51: 1 | K51: 2 | L51: 1 | M51: =IF(INTRO!$E$38="Endemic", IF($H51>0, IF($H51=4,"Unknown", IF($H51=99,"Stopped", $D51)), 0),"Not required") -> 179763.1396 | N51: =IF(INTRO!$E$40="Endemic", IF($I51>0, IF($I51=4,"Unknown",IF($I51=99,"Stopped", $D51)), 0),"Not required") -> Unknown | O51: =IF(INTRO!$E$42="Endemic", IF($J51>1, IF($J51=4, "Unknown", IF($J51=99, "Surveillance", E51)), 0),"Not required") -> 0 | P51: =IF(INTRO!$E$42="Endemic", IF($J51>1, IF($J51=4, "Unknown", IF($J51=99, "Surveillance", F51)), 0),"Not required") -> 0 | Q51: =IF(INTRO!$E$42="Endemic", IF($J51>1, IF($J51=4, "Unknown", IF($J51=99, "Surveillance", ROUND(D51*INTRO!$E$51,0))), 0),"Not required") -> 0 | R51: =IF(INTRO!$E$42="Endemic", IF($J51>1, IF($J51=4, "Unknown", IF($J51=99, "Surveillance", SUM($O51:$Q51))), 0),"Not required") -> 0 | S51: 14502 | T51: 46802 | U51: 100939 | V51: =IF(INTRO!$E$44="Endemic", IF($K51>1, IF($K51=4, "Unknown", IF($K51=99, "Surveillance", SUM($S51:$U51))), 0),"Not required") -> 162243 | W51: 1 | X51: 0 | Y51: 0 | Z51: 0 | AA51: MDA4 (ALB/2*ALB) | AH51: 44369 | AI51: RUBKONA | AO51: ='MDA1'!K51 -> 0 | AP51: ='MDA3'!O51 -> 0 | AQ51: ='MDA4'!S51 -> 68618
A52: =IF(INTRO!$E$34<>0,INTRO!$E$34,"") -> South Sudan | B52: Unity | C52: GUIT | D52: 58869.341 | E52: =IF(INTRO!$E$48="","",ROUND($D52*INTRO!$E$48,0)) -> 6517 | F52: =IF(INTRO!$E$49="","",ROUND($D52*INTRO!$E$49,0)) -> 18185 | G52: =IF(INTRO!$E$50="","",ROUND($D52*INTRO!$E$50,0)) -> 32549 | H52: 0 | I52: 4 | J52: 1 | K52: 2 | L52: 1 | M52: =IF(INTRO!$E$38="Endemic", IF($H52>0, IF($H52=4,"Unknown", IF($H52=99,"Stopped", $D52)), 0),"Not required") -> 0 | N52: =IF(INTRO!$E$40="Endemic", IF($I52>0, IF($I52=4,"Unknown",IF($I52=99,"Stopped", $D52)), 0),"Not required") -> Unknown | O52: =IF(INTRO!$E$42="Endemic", IF($J52>1, IF($J52=4, "Unknown", IF($J52=99, "Surveillance", E52)), 0),"Not required") -> 0 | P52: =IF(INTRO!$E$42="Endemic", IF($J52>1, IF($J52=4, "Unknown", IF($J52=99, "Surveillance", F52)), 0),"Not required") -> 0 | Q52: =IF(INTRO!$E$42="Endemic", IF($J52>1, IF($J52=4, "Unknown", IF($J52=99, "Surveillance", ROUND(D52*INTRO!$E$51,0))), 0),"Not required") -> 0 | R52: =IF(INTRO!$E$42="Endemic", IF($J52>1, IF($J52=4, "Unknown", IF($J52=99, "Surveillance", SUM($O52:$Q52))), 0),"Not required") -> 0 | S52: 4426 | T52: 14284 | U52: 30807 | V52: =IF(INTRO!$E$44="Endemic", IF($K52>1, IF($K52=4, "Unknown", IF($K52=99, "Surveillance", SUM($S52:$U52))), 0),"Not required") -> 49517 | W52: 0 | X52: 0 | Y52: 0 | Z52: 0 | AH52: 44363 | AI52: GUIT | AO52: ='MDA1'!K52 -> 0 | AP52: ='MDA3'!O52 -> 0 | AQ52: ='MDA4'!S52 -> 0
A53: =IF(INTRO!$E$34<>0,INTRO!$E$34,"") -> South Sudan | B53: Unity | C53: KOCH | D53: 134559.2515 | E53: =IF(INTRO!$E$48="","",ROUND($D53*INTRO!$E$48,0)) -> 14896 | F53: =IF(INTRO!$E$49="","",ROUND($D53*INTRO!$E$49,0)) -> 41565 | G53: =IF(INTRO!$E$50="","",ROUND($D53*INTRO!$E$50,0)) -> 74398 | H53: 0 | I53: 4 | J53: 0 | K53: 2 | L53: 1 | M53: =IF(INTRO!$E$38="Endemic", IF($H53>0, IF($H53=4,"Unknown", IF($H53=99,"Stopped", $D53)), 0),"Not required") -> 0 | N53: =IF(INTRO!$E$40="Endemic", IF($I53>0, IF($I53=4,"Unknown",IF($I53=99,"Stopped", $D53)), 0),"Not required") -> Unknown | O53: =IF(INTRO!$E$42="Endemic", IF($J53>1, IF($J53=4, "Unknown", IF($J53=99, "Surveillance", E53)), 0),"Not required") -> 0 | P53: =IF(INTRO!$E$42="Endemic", IF($J53>1, IF($J53=4, "Unknown", IF($J53=99, "Surveillance", F53)), 0),"Not required") -> 0 | Q53: =IF(INTRO!$E$42="Endemic", IF($J53>1, IF($J53=4, "Unknown", IF($J53=99, "Surveillance", ROUND(D53*INTRO!$E$51,0))), 0),"Not required") -> 0 | R53: =IF(INTRO!$E$42="Endemic", IF($J53>1, IF($J53=4, "Unknown", IF($J53=99, "Surveillance", SUM($O53:$Q53))), 0),"Not required") -> 0 | S53: 9108 | T53: 29403 | U53: 63414 | V53: =IF(INTRO!$E$44="Endemic", IF($K53>1, IF($K53=4, "Unknown", IF($K53=99, "Surveillance", SUM($S53:$U53))), 0),"Not required") -> 101925 | W53: 0 | X53: 0 | Y53: 0 | Z53: 0 | AH53: 44364 | AI53: KOCH | AO53: ='MDA1'!K53 -> 0 | AP53: ='MDA3'!O53 -> 0 | AQ53: ='MDA4'!S53 -> 0
A54: =IF(INTRO!$E$34<>0,INTRO!$E$34,"") -> South Sudan | B54: Unity | C54: LEER | D54: 95663.4748 | E54: =IF(INTRO!$E$48="","",ROUND($D54*INTRO!$E$48,0)) -> 10590 | F54: =IF(INTRO!$E$49="","",ROUND($D54*INTRO!$E$49,0)) -> 29550 | G54: =IF(INTRO!$E$50="","",ROUND($D54*INTRO!$E$50,0)) -> 52892 | H54: 1 | I54: 4 | J54: 1 | K54: 3 | L54: 1 | M54: =IF(INTRO!$E$38="Endemic", IF($H54>0, IF($H54=4,"Unknown", IF($H54=99,"Stopped", $D54)), 0),"Not required") -> 95663.4748 | N54: =IF(INTRO!$E$40="Endemic", IF($I54>0, IF($I54=4,"Unknown",IF($I54=99,"Stopped", $D54)), 0),"Not required") -> Unknown | O54: =IF(INTRO!$E$42="Endemic", IF($J54>1, IF($J54=4, "Unknown", IF($J54=99, "Surveillance", E54)), 0),"Not required") -> 0 | P54: =IF(INTRO!$E$42="Endemic", IF($J54>1, IF($J54=4, "Unknown", IF($J54=99, "Surveillance", F54)), 0),"Not required") -> 0 | Q54: =IF(INTRO!$E$42="Endemic", IF($J54>1, IF($J54=4, "Unknown", IF($J54=99, "Surveillance", ROUND(D54*INTRO!$E$51,0))), 0),"Not required") -> 0 | R54: =IF(INTRO!$E$42="Endemic", IF($J54>1, IF($J54=4, "Unknown", IF($J54=99, "Surveillance", SUM($O54:$Q54))), 0),"Not required") -> 0 | S54: 7339 | T54: 23688 | U54: 51088 | V54: =IF(INTRO!$E$44="Endemic", IF($K54>1, IF($K54=4, "Unknown", IF($K54=99, "Surveillance", SUM($S54:$U54))), 0),"Not required") -> 82115 | W54: 1 | X54: 0 | Y54: 0 | Z54: 0 | AA54: MDA4 (ALB/2*ALB) | AH54: 44365 | AI54: LEER | AO54: ='MDA1'!K54 -> 0 | AP54: ='MDA3'!O54 -> 0 | AQ54: ='MDA4'!S54 -> 27333
A55: =IF(INTRO!$E$34<>0,INTRO!$E$34,"") -> South Sudan | B55: Unity | C55: MAYENDIT | D55: 96714.8267 | E55: =IF(INTRO!$E$48="","",ROUND($D55*INTRO!$E$48,0)) -> 10706 | F55: =IF(INTRO!$E$49="","",ROUND($D55*INTRO!$E$49,0)) -> 29875 | G55: =IF(INTRO!$E$50="","",ROUND($D55*INTRO!$E$50,0)) -> 53474 | H55: 0 | I55: 4 | J55: 1 | K55: 3 | L55: 1 | M55: =IF(INTRO!$E$38="Endemic", IF($H55>0, IF($H55=4,"Unknown", IF($H55=99,"Stopped", $D55)), 0),"Not required") -> 0 | N55: =IF(INTRO!$E$40="Endemic", IF($I55>0, IF($I55=4,"Unknown",IF($I55=99,"Stopped", $D55)), 0),"Not required") -> Unknown | O55: =IF(INTRO!$E$42="Endemic", IF($J55>1, IF($J55=4, "Unknown", IF($J55=99, "Surveillance", E55)), 0),"Not required") -> 0 | P55: =IF(INTRO!$E$42="Endemic", IF($J55>1, IF($J55=4, "Unknown", IF($J55=99, "Surveillance", F55)), 0),"Not required") -> 0 | Q55: =IF(INTRO!$E$42="Endemic", IF($J55>1, IF($J55=4, "Unknown", IF($J55=99, "Surveillance", ROUND(D55*INTRO!$E$51,0))), 0),"Not required") -> 0 | R55: =IF(INTRO!$E$42="Endemic", IF($J55>1, IF($J55=4, "Unknown", IF($J55=99, "Surveillance", SUM($O55:$Q55))), 0),"Not required") -> 0 | S55: 8030 | T55: 25919 | U55: 55900 | V55: =IF(INTRO!$E$44="Endemic", IF($K55>1, IF($K55=4, "Unknown", IF($K55=99, "Surveillance", SUM($S55:$U55))), 0),"Not required") -> 89849 | W55: 0 | X55: 0 | Y55: 0 | Z55: 0 | AH55: 44366 | AI55: MAYENDIT | AO55: ='MDA1'!K55 -> 0 | AP55: ='MDA3'!O55 -> 0 | AQ55: ='MDA4'!S55 -> 0
A56: =IF(INTRO!$E$34<>0,INTRO!$E$34,"") -> South Sudan | B56: Unity | C56: PAYNIJAR | D56: 91458.0672 | E56: =IF(INTRO!$E$48="","",ROUND($D56*INTRO!$E$48,0)) -> 10124 | F56: =IF(INTRO!$E$49="","",ROUND($D56*INTRO!$E$49,0)) -> 28251 | G56: =IF(INTRO!$E$50="","",ROUND($D56*INTRO!$E$50,0)) -> 50567 | H56: 0 | I56: 4 | J56: 1 | K56: 2 | L56: 1 | M56: =IF(INTRO!$E$38="Endemic", IF($H56>0, IF($H56=4,"Unknown", IF($H56=99,"Stopped", $D56)), 0),"Not required") -> 0 | N56: =IF(INTRO!$E$40="Endemic", IF($I56>0, IF($I56=4,"Unknown",IF($I56=99,"Stopped", $D56)), 0),"Not required") -> Unknown | O56: =IF(INTRO!$E$42="Endemic", IF($J56>1, IF($J56=4, "Unknown", IF($J56=99, "Surveillance", E56)), 0),"Not required") -> 0 | P56: =IF(INTRO!$E$42="Endemic", IF($J56>1, IF($J56=4, "Unknown", IF($J56=99, "Surveillance", F56)), 0),"Not required") -> 0 | Q56: =IF(INTRO!$E$42="Endemic", IF($J56>1, IF($J56=4, "Unknown", IF($J56=99, "Surveillance", ROUND(D56*INTRO!$E$51,0))), 0),"Not required") -> 0 | R56: =IF(INTRO!$E$42="Endemic", IF($J56>1, IF($J56=4, "Unknown", IF($J56=99, "Surveillance", SUM($O56:$Q56))), 0),"Not required") -> 0 | S56: 6717 | T56: 21677 | U56: 46753 | V56: =IF(INTRO!$E$44="Endemic", IF($K56>1, IF($K56=4, "Unknown", IF($K56=99, "Surveillance", SUM($S56:$U56))), 0),"Not required") -> 75147 | W56: 0 | X56: 0 | Y56: 0 | Z56: 0 | AH56: 44368 | AI56: PAYNIJAR | AO56: ='MDA1'!K56 -> 0 | AP56: ='MDA3'!O56 -> 0 | AQ56: ='MDA4'!S56 -> 0
A57: =IF(INTRO!$E$34<>0,INTRO!$E$34,"") -> South Sudan | B57: Upper Nile | C57: RENK | D57: 235276.8539 | E57: =IF(INTRO!$E$48="","",ROUND($D57*INTRO!$E$48,0)) -> 26045 | F57: =IF(INTRO!$E$49="","",ROUND($D57*INTRO!$E$49,0)) -> 72677 | G57: =IF(INTRO!$E$50="","",ROUND($D57*INTRO!$E$50,0)) -> 130085 | H57: 1 | I57: 4 | J57: 0 | K57: 2 | L57: 0 | M57: =IF(INTRO!$E$38="Endemic", IF($H57>0, IF($H57=4,"Unknown", IF($H57=99,"Stopped", $D57)), 0),"Not required") -> 235276.8539 | N57: =IF(INTRO!$E$40="Endemic", IF($I57>0, IF($I57=4,"Unknown",IF($I57=99,"Stopped", $D57)), 0),"Not required") -> Unknown | O57: =IF(INTRO!$E$42="Endemic", IF($J57>1, IF($J57=4, "Unknown", IF($J57=99, "Surveillance", E57)), 0),"Not required") -> 0 | P57: =IF(INTRO!$E$42="Endemic", IF($J57>1, IF($J57=4, "Unknown", IF($J57=99, "Surveillance", F57)), 0),"Not required") -> 0 | Q57: =IF(INTRO!$E$42="Endemic", IF($J57>1, IF($J57=4, "Unknown", IF($J57=99, "Surveillance", ROUND(D57*INTRO!$E$51,0))), 0),"Not required") -> 0 | R57: =IF(INTRO!$E$42="Endemic", IF($J57>1, IF($J57=4, "Unknown", IF($J57=99, "Surveillance", SUM($O57:$Q57))), 0),"Not required") -> 0 | S57: 14392 | T57: 46455 | U57: 100191 | V57: =IF(INTRO!$E$44="Endemic", IF($K57>1, IF($K57=4, "Unknown", IF($K57=99, "Surveillance", SUM($S57:$U57))), 0),"Not required") -> 161038 | W57: 1 | X57: 0 | Y57: 0 | Z57: 0 | AA57: MDA1 (IVM+ALB) | AH57: 44381 | AI57: RENK | AO57: ='MDA1'!K57 -> 30779 | AP57: ='MDA3'!O57 -> 0 | AQ57: ='MDA4'!S57 -> 0
A58: =IF(INTRO!$E$34<>0,INTRO!$E$34,"") -> South Sudan | B58: Upper Nile | C58: MANYO | D58: 64166.4147 | E58: =IF(INTRO!$E$48="","",ROUND($D58*INTRO!$E$48,0)) -> 7103 | F58: =IF(INTRO!$E$49="","",ROUND($D58*INTRO!$E$49,0)) -> 19821 | G58: =IF(INTRO!$E$50="","",ROUND($D58*INTRO!$E$50,0)) -> 35478 | H58: 1 | I58: 4 | J58: 0 | K58: 0 | L58: 0 | M58: =IF(INTRO!$E$38="Endemic", IF($H58>0, IF($H58=4,"Unknown", IF($H58=99,"Stopped", $D58)), 0),"Not required") -> 64166.4147 | N58: =IF(INTRO!$E$40="Endemic", IF($I58>0, IF($I58=4,"Unknown",IF($I58=99,"Stopped", $D58)), 0),"Not required") -> Unknown | O58: =IF(INTRO!$E$42="Endemic", IF($J58>1, IF($J58=4, "Unknown", IF($J58=99, "Surveillance", E58)), 0),"Not required") -> 0 | P58: =IF(INTRO!$E$42="Endemic", IF($J58>1, IF($J58=4, "Unknown", IF($J58=99, "Surveillance", F58)), 0),"Not required") -> 0 | Q58: =IF(INTRO!$E$42="Endemic", IF($J58>1, IF($J58=4, "Unknown", IF($J58=99, "Surveillance", ROUND(D58*INTRO!$E$51,0))), 0),"Not required") -> 0 | R58: =IF(INTRO!$E$42="Endemic", IF($J58>1, IF($J58=4, "Unknown", IF($J58=99, "Surveillance", SUM($O58:$Q58))), 0),"Not required") -> 0 | S58: 0 | T58: 0 | U58: 0 | V58: =IF(INTRO!$E$44="Endemic", IF($K58>1, IF($K58=4, "Unknown", IF($K58=99, "Surveillance", SUM($S58:$U58))), 0),"Not required") -> 0 | W58: 1 | X58: 0 | Y58: 0 | Z58: 0 | AA58: MDA1 (IVM+ALB) | AH58: 44378 | AI58: MANYO | AO58: ='MDA1'!K58 -> 13564 | AP58: ='MDA3'!O58 -> 0 | AQ58: ='MDA4'!S58 -> 0
A59: =IF(INTRO!$E$34<>0,INTRO!$E$34,"") -> South Sudan | B59: Upper Nile | C59: FASHODA | D59: 62520.9588 | E59: =IF(INTRO!$E$48="","",ROUND($D59*INTRO!$E$48,0)) -> 6921 | F59: =IF(INTRO!$E$49="","",ROUND($D59*INTRO!$E$49,0)) -> 19313 | G59: =IF(INTRO!$E$50="","",ROUND($D59*INTRO!$E$50,0)) -> 34568 | H59: 1 | I59: 4 | J59: 0 | K59: 1 | L59: 0 | M59: =IF(INTRO!$E$38="Endemic", IF($H59>0, IF($H59=4,"Unknown", IF($H59=99,"Stopped", $D59)), 0),"Not required") -> 62520.9588 | N59: =IF(INTRO!$E$40="Endemic", IF($I59>0, IF($I59=4,"Unknown",IF($I59=99,"Stopped", $D59)), 0),"Not required") -> Unknown | O59: =IF(INTRO!$E$42="Endemic", IF($J59>1, IF($J59=4, "Unknown", IF($J59=99, "Surveillance", E59)), 0),"Not required") -> 0 | P59: =IF(INTRO!$E$42="Endemic", IF($J59>1, IF($J59=4, "Unknown", IF($J59=99, "Surveillance", F59)), 0),"Not required") -> 0 | Q59: =IF(INTRO!$E$42="Endemic", IF($J59>1, IF($J59=4, "Unknown", IF($J59=99, "Surveillance", ROUND(D59*INTRO!$E$51,0))), 0),"Not required") -> 0 | R59: =IF(INTRO!$E$42="Endemic", IF($J59>1, IF($J59=4, "Unknown", IF($J59=99, "Surveillance", SUM($O59:$Q59))), 0),"Not required") -> 0 | S59: 0 | T59: 0 | U59: 0 | V59: =IF(INTRO!$E$44="Endemic", IF($K59>1, IF($K59=4, "Unknown", IF($K59=99, "Surveillance", SUM($S59:$U59))), 0),"Not required") -> 0 | W59: 1 | X59: 0 | Y59: 0 | Z59: 0 | AA59: MDA1 (IVM+ALB) | AH59: 44372 | AI59: FASHODA | AO59: ='MDA1'!K59 -> 15740 | AP59: ='MDA3'!O59 -> 0 | AQ59: ='MDA4'!S59 -> 0
A60: =IF(INTRO!$E$34<>0,INTRO!$E$34,"") -> South Sudan | B60: Upper Nile | C60: MELUT | D60: 83909.7637 | E60: =IF(INTRO!$E$48="","",ROUND($D60*INTRO!$E$48,0)) -> 9289 | F60: =IF(INTRO!$E$49="","",ROUND($D60*INTRO!$E$49,0)) -> 25920 | G60: =IF(INTRO!$E$50="","",ROUND($D60*INTRO!$E$50,0)) -> 46394 | H60: 1 | I60: 4 | J60: 0 | K60: 0 | L60: 0 | M60: =IF(INTRO!$E$38="Endemic", IF($H60>0, IF($H60=4,"Unknown", IF($H60=99,"Stopped", $D60)), 0),"Not required") -> 83909.7637 | N60: =IF(INTRO!$E$40="Endemic", IF($I60>0, IF($I60=4,"Unknown",IF($I60=99,"Stopped", $D60)), 0),"Not required") -> Unknown | O60: =IF(INTRO!$E$42="Endemic", IF($J60>1, IF($J60=4, "Unknown", IF($J60=99, "Surveillance", E60)), 0),"Not required") -> 0 | P60: =IF(INTRO!$E$42="Endemic", IF($J60>1, IF($J60=4, "Unknown", IF($J60=99, "Surveillance", F60)), 0),"Not required") -> 0 | Q60: =IF(INTRO!$E$42="Endemic", IF($J60>1, IF($J60=4, "Unknown", IF($J60=99, "Surveillance", ROUND(D60*INTRO!$E$51,0))), 0),"Not required") -> 0 | R60: =IF(INTRO!$E$42="Endemic", IF($J60>1, IF($J60=4, "Unknown", IF($J60=99, "Surveillance", SUM($O60:$Q60))), 0),"Not required") -> 0 | S60: 0 | T60: 0 | U60: 0 | V60: =IF(INTRO!$E$44="Endemic", IF($K60>1, IF($K60=4, "Unknown", IF($K60=99, "Surveillance", SUM($S60:$U60))), 0),"Not required") -> 0 | W60: 1 | X60: 0 | Y60: 0 | Z60: 0 | AA60: MDA1 (IVM+ALB) | AH60: 44379 | AI60: MELUT | AO60: ='MDA1'!K60 -> 9565 | AP60: ='MDA3'!O60 -> 0 | AQ60: ='MDA4'!S60 -> 0
A61: =IF(INTRO!$E$34<>0,INTRO!$E$34,"") -> South Sudan | B61: Upper Nile | C61: MABAN | D61: 77329.001 | E61: =IF(INTRO!$E$48="","",ROUND($D61*INTRO!$E$48,0)) -> 8560 | F61: =IF(INTRO!$E$49="","",ROUND($D61*INTRO!$E$49,0)) -> 23887 | G61: =IF(INTRO!$E$50="","",ROUND($D61*INTRO!$E$50,0)) -> 42755 | H61: 1 | I61: 1 | J61: 0 | K61: 0 | L61: 0 | M61: =IF(INTRO!$E$38="Endemic", IF($H61>0, IF($H61=4,"Unknown", IF($H61=99,"Stopped", $D61)), 0),"Not required") -> 77329.001 | N61: =IF(INTRO!$E$40="Endemic", IF($I61>0, IF($I61=4,"Unknown",IF($I61=99,"Stopped", $D61)), 0),"Not required") -> 77329.001 | O61: =IF(INTRO!$E$42="Endemic", IF($J61>1, IF($J61=4, "Unknown", IF($J61=99, "Surveillance", E61)), 0),"Not required") -> 0 | P61: =IF(INTRO!$E$42="Endemic", IF($J61>1, IF($J61=4, "Unknown", IF($J61=99, "Surveillance", F61)), 0),"Not required") -> 0 | Q61: =IF(INTRO!$E$42="Endemic", IF($J61>1, IF($J61=4, "Unknown", IF($J61=99, "Surveillance", ROUND(D61*INTRO!$E$51,0))), 0),"Not required") -> 0 | R61: =IF(INTRO!$E$42="Endemic", IF($J61>1, IF($J61=4, "Unknown", IF($J61=99, "Surveillance", SUM($O61:$Q61))), 0),"Not required") -> 0 | S61: 0 | T61: 0 | U61: 0 | V61: =IF(INTRO!$E$44="Endemic", IF($K61>1, IF($K61=4, "Unknown", IF($K61=99, "Surveillance", SUM($S61:$U61))), 0),"Not required") -> 0 | W61: 1 | X61: 1 | Y61: 0 | Z61: 0 | AA61: MDA1 (IVM+ALB) | AH61: 44375 | AI61: MABAN | AO61: ='MDA1'!K61 -> 30551 | AP61: ='MDA3'!O61 -> 0 | AQ61: ='MDA4'!S61 -> 0
A62: =IF(INTRO!$E$34<>0,INTRO!$E$34,"") -> South Sudan | B62: Upper Nile | C62: MAIWUT | D62: 134913.5921 | E62: =IF(INTRO!$E$48="","",ROUND($D62*INTRO!$E$48,0)) -> 14935 | F62: =IF(INTRO!$E$49="","",ROUND($D62*INTRO!$E$49,0)) -> 41675 | G62: =IF(INTRO!$E$50="","",ROUND($D62*INTRO!$E$50,0)) -> 74594 | H62: 0 | I62: 1 | J62: 1 | K62: 0 | L62: 0 | M62: =IF(INTRO!$E$38="Endemic", IF($H62>0, IF($H62=4,"Unknown", IF($H62=99,"Stopped", $D62)), 0),"Not required") -> 0 | N62: =IF(INTRO!$E$40="Endemic", IF($I62>0, IF($I62=4,"Unknown",IF($I62=99,"Stopped", $D62)), 0),"Not required") -> 134913.5921 | O62: =IF(INTRO!$E$42="Endemic", IF($J62>1, IF($J62=4, "Unknown", IF($J62=99, "Surveillance", E62)), 0),"Not required") -> 0 | P62: =IF(INTRO!$E$42="Endemic", IF($J62>1, IF($J62=4, "Unknown", IF($J62=99, "Surveillance", F62)), 0),"Not required") -> 0 | Q62: =IF(INTRO!$E$42="Endemic", IF($J62>1, IF($J62=4, "Unknown", IF($J62=99, "Surveillance", ROUND(D62*INTRO!$E$51,0))), 0),"Not required") -> 0 | R62: =IF(INTRO!$E$42="Endemic", IF($J62>1, IF($J62=4, "Unknown", IF($J62=99, "Surveillance", SUM($O62:$Q62))), 0),"Not required") -> 0 | S62: 0 | T62: 0 | U62: 0 | V62: =IF(INTRO!$E$44="Endemic", IF($K62>1, IF($K62=4, "Unknown", IF($K62=99, "Surveillance", SUM($S62:$U62))), 0),"Not required") -> 0 | W62: 0 | X62: 1 | Y62: 0 | Z62: 0 | AA62: MDA3 (IVM) | AH62: 44376 | AI62: MAIWUT | AO62: ='MDA1'!K62 -> 0 | AP62: ='MDA3'!O62 -> 37545 | AQ62: ='MDA4'!S62 -> 0
A63: =IF(INTRO!$E$34<>0,INTRO!$E$34,"") -> South Sudan | B63: Upper Nile | C63: LUAKPINY/NASIR | D63: 358673.3156 | E63: =IF(INTRO!$E$48="","",ROUND($D63*INTRO!$E$48,0)) -> 39705 | F63: =IF(INTRO!$E$49="","",ROUND($D63*INTRO!$E$49,0)) -> 110794 | G63: =IF(INTRO!$E$50="","",ROUND($D63*INTRO!$E$50,0)) -> 198310 | H63: 1 | I63: 4 | J63: 1 | K63: 0 | L63: 0 | M63: =IF(INTRO!$E$38="Endemic", IF($H63>0, IF($H63=4,"Unknown", IF($H63=99,"Stopped", $D63)), 0),"Not required") -> 358673.3156 | N63: =IF(INTRO!$E$40="Endemic", IF($I63>0, IF($I63=4,"Unknown",IF($I63=99,"Stopped", $D63)), 0),"Not required") -> Unknown | O63: =IF(INTRO!$E$42="Endemic", IF($J63>1, IF($J63=4, "Unknown", IF($J63=99, "Surveillance", E63)), 0),"Not required") -> 0 | P63: =IF(INTRO!$E$42="Endemic", IF($J63>1, IF($J63=4, "Unknown", IF($J63=99, "Surveillance", F63)), 0),"Not required") -> 0 | Q63: =IF(INTRO!$E$42="Endemic", IF($J63>1, IF($J63=4, "Unknown", IF($J63=99, "Surveillance", ROUND(D63*INTRO!$E$51,0))), 0),"Not required") -> 0 | R63: =IF(INTRO!$E$42="Endemic", IF($J63>1, IF($J63=4, "Unknown", IF($J63=99, "Surveillance", SUM($O63:$Q63))), 0),"Not required") -> 0 | S63: 0 | T63: 0 | U63: 0 | V63: =IF(INTRO!$E$44="Endemic", IF($K63>1, IF($K63=4, "Unknown", IF($K63=99, "Surveillance", SUM($S63:$U63))), 0),"Not required") -> 0 | W63: 1 | X63: 0 | Y63: 0 | Z63: 0 | AA63: MDA1 (IVM+ALB) | AH63: 44374 | AI63: LUAKPINY/NASIR | AO63: ='MDA1'!K63 -> 48107 | AP63: ='MDA3'!O63 -> 0 | AQ63: ='MDA4'!S63 -> 0
A64: =IF(INTRO!$E$34<>0,INTRO!$E$34,"") -> South Sudan | B64: Upper Nile | C64: LONGOCHUK | D64: 108589.4804 | E64: =IF(INTRO!$E$48="","",ROUND($D64*INTRO!$E$48,0)) -> 12021 | F64: =IF(INTRO!$E$49="","",ROUND($D64*INTRO!$E$49,0)) -> 33543 | G64: =IF(INTRO!$E$50="","",ROUND($D64*INTRO!$E$50,0)) -> 60039 | H64: 0 | I64: 1 | J64: 1 | K64: 1 | L64: 0 | M64: =IF(INTRO!$E$38="Endemic", IF($H64>0, IF($H64=4,"Unknown", IF($H64=99,"Stopped", $D64)), 0),"Not required") -> 0 | N64: =IF(INTRO!$E$40="Endemic", IF($I64>0, IF($I64=4,"Unknown",IF($I64=99,"Stopped", $D64)), 0),"Not required") -> 108589.4804 | O64: =IF(INTRO!$E$42="Endemic", IF($J64>1, IF($J64=4, "Unknown", IF($J64=99, "Surveillance", E64)), 0),"Not required") -> 0 | P64: =IF(INTRO!$E$42="Endemic", IF($J64>1, IF($J64=4, "Unknown", IF($J64=99, "Surveillance", F64)), 0),"Not required") -> 0 | Q64: =IF(INTRO!$E$42="Endemic", IF($J64>1, IF($J64=4, "Unknown", IF($J64=99, "Surveillance", ROUND(D64*INTRO!$E$51,0))), 0),"Not required") -> 0 | R64: =IF(INTRO!$E$42="Endemic", IF($J64>1, IF($J64=4, "Unknown", IF($J64=99, "Surveillance", SUM($O64:$Q64))), 0),"Not required") -> 0 | S64: 0 | T64: 0 | U64: 0 | V64: =IF(INTRO!$E$44="Endemic", IF($K64>1, IF($K64=4, "Unknown", IF($K64=99, "Surveillance", SUM($S64:$U64))), 0),"Not required") -> 0 | W64: 0 | X64: 1 | Y64: 0 | Z64: 0 | AA64: MDA3 (IVM) | AH64: 44373 | AI64: LONGOCHUK | AO64: ='MDA1'!K64 -> 0 | AP64: ='MDA3'!O64 -> 32275 | AQ64: ='MDA4'!S64 -> 0
A65: =IF(INTRO!$E$34<>0,INTRO!$E$34,"") -> South Sudan | B65: Upper Nile | C65: ULANG | D65: 144785.2666 | E65: =IF(INTRO!$E$48="","",ROUND($D65*INTRO!$E$48,0)) -> 16028 | F65: =IF(INTRO!$E$49="","",ROUND($D65*INTRO!$E$49,0)) -> 44724 | G65: =IF(INTRO!$E$50="","",ROUND($D65*INTRO!$E$50,0)) -> 80052 | H65: 1 | I65: 4 | J65: 1 | K65: 0 | L65: 0 | M65: =IF(INTRO!$E$38="Endemic", IF($H65>0, IF($H65=4,"Unknown", IF($H65=99,"Stopped", $D65)), 0),"Not required") -> 144785.2666 | N65: =IF(INTRO!$E$40="Endemic", IF($I65>0, IF($I65=4,"Unknown",IF($I65=99,"Stopped", $D65)), 0),"Not required") -> Unknown | O65: =IF(INTRO!$E$42="Endemic", IF($J65>1, IF($J65=4, "Unknown", IF($J65=99, "Surveillance", E65)), 0),"Not required") -> 0 | P65: =IF(INTRO!$E$42="Endemic", IF($J65>1, IF($J65=4, "Unknown", IF($J65=99, "Surveillance", F65)), 0),"Not required") -> 0 | Q65: =IF(INTRO!$E$42="Endemic", IF($J65>1, IF($J65=4, "Unknown", IF($J65=99, "Surveillance", ROUND(D65*INTRO!$E$51,0))), 0),"Not required") -> 0 | R65: =IF(INTRO!$E$42="Endemic", IF($J65>1, IF($J65=4, "Unknown", IF($J65=99, "Surveillance", SUM($O65:$Q65))), 0),"Not required") -> 0 | S65: 0 | T65: 0 | U65: 0 | V65: =IF(INTRO!$E$44="Endemic", IF($K65>1, IF($K65=4, "Unknown", IF($K65=99, "Surveillance", SUM($S65:$U65))), 0),"Not required") -> 0 | W65: 1 | X65: 0 | Y65: 0 | Z65: 0 | AA65: MDA1 (IVM+ALB) | AH65: 44382 | AI65: ULANG | AO65: ='MDA1'!K65 -> 15447 | AP65: ='MDA3'!O65 -> 0 | AQ65: ='MDA4'!S65 -> 0
A66: =IF(INTRO!$E$34<>0,INTRO!$E$34,"") -> South Sudan | B66: Upper Nile | C66: BALIET | D66: 65400.2414 | E66: =IF(INTRO!$E$48="","",ROUND($D66*INTRO!$E$48,0)) -> 7240 | F66: =IF(INTRO!$E$49="","",ROUND($D66*INTRO!$E$49,0)) -> 20202 | G66: =IF(INTRO!$E$50="","",ROUND($D66*INTRO!$E$50,0)) -> 36160 | H66: 1 | I66: 4 | J66: 1 | K66: 1 | L66: 0 | M66: =IF(INTRO!$E$38="Endemic", IF($H66>0, IF($H66=4,"Unknown", IF($H66=99,"Stopped", $D66)), 0),"Not required") -> 65400.2414 | N66: =IF(INTRO!$E$40="Endemic", IF($I66>0, IF($I66=4,"Unknown",IF($I66=99,"Stopped", $D66)), 0),"Not required") -> Unknown | O66: =IF(INTRO!$E$42="Endemic", IF($J66>1, IF($J66=4, "Unknown", IF($J66=99, "Surveillance", E66)), 0),"Not required") -> 0 | P66: =IF(INTRO!$E$42="Endemic", IF($J66>1, IF($J66=4, "Unknown", IF($J66=99, "Surveillance", F66)), 0),"Not required") -> 0 | Q66: =IF(INTRO!$E$42="Endemic", IF($J66>1, IF($J66=4, "Unknown", IF($J66=99, "Surveillance", ROUND(D66*INTRO!$E$51,0))), 0),"Not required") -> 0 | R66: =IF(INTRO!$E$42="Endemic", IF($J66>1, IF($J66=4, "Unknown", IF($J66=99, "Surveillance", SUM($O66:$Q66))), 0),"Not required") -> 0 | S66: 0 | T66: 0 | U66: 0 | V66: =IF(INTRO!$E$44="Endemic", IF($K66>1, IF($K66=4, "Unknown", IF($K66=99, "Surveillance", SUM($S66:$U66))), 0),"Not required") -> 0 | W66: 1 | X66: 0 | Y66: 0 | Z66: 0 | AA66: MDA1 (IVM+ALB) | AH66: 44371 | AI66: BALIET | AO66: ='MDA1'!K66 -> 7079 | AP66: ='MDA3'!O66 -> 0 | AQ66: ='MDA4'!S66 -> 0
A67: =IF(INTRO!$E$34<>0,INTRO!$E$34,"") -> South Sudan | B67: Upper Nile | C67: MALAKAL | D67: 215533.5049 | E67: =IF(INTRO!$E$48="","",ROUND($D67*INTRO!$E$48,0)) -> 23860 | F67: =IF(INTRO!$E$49="","",ROUND($D67*INTRO!$E$49,0)) -> 66578 | G67: =IF(INTRO!$E$50="","",ROUND($D67*INTRO!$E$50,0)) -> 119168 | H67: 1 | I67: 4 | J67: 0 | K67: 1 | L67: 0 | M67: =IF(INTRO!$E$38="Endemic", IF($H67>0, IF($H67=4,"Unknown", IF($H67=99,"Stopped", $D67)), 0),"Not required") -> 215533.5049 | N67: =IF(INTRO!$E$40="Endemic", IF($I67>0, IF($I67=4,"Unknown",IF($I67=99,"Stopped", $D67)), 0),"Not required") -> Unknown | O67: =IF(INTRO!$E$42="Endemic", IF($J67>1, IF($J67=4, "Unknown", IF($J67=99, "Surveillance", E67)), 0),"Not required") -> 0 | P67: =IF(INTRO!$E$42="Endemic", IF($J67>1, IF($J67=4, "Unknown", IF($J67=99, "Surveillance", F67)), 0),"Not required") -> 0 | Q67: =IF(INTRO!$E$42="Endemic", IF($J67>1, IF($J67=4, "Unknown", IF($J67=99, "Surveillance", ROUND(D67*INTRO!$E$51,0))), 0),"Not required") -> 0 | R67: =IF(INTRO!$E$42="Endemic", IF($J67>1, IF($J67=4, "Unknown", IF($J67=99, "Surveillance", SUM($O67:$Q67))), 0),"Not required") -> 0 | S67: 0 | T67: 0 | U67: 0 | V67: =IF(INTRO!$E$44="Endemic", IF($K67>1, IF($K67=4, "Unknown", IF($K67=99, "Surveillance", SUM($S67:$U67))), 0),"Not required") -> 0 | W67: 1 | X67: 0 | Y67: 0 | Z67: 0 | AA67: MDA1 (IVM+ALB) | AH67: 44377 | AI67: MALAKAL | AO67: ='MDA1'!K67 -> 20554 | AP67: ='MDA3'!O67 -> 0 | AQ67: ='MDA4'!S67 -> 0
A68: =IF(INTRO!$E$34<>0,INTRO!$E$34,"") -> South Sudan | B68: Upper Nile | C68: PANYKANG | D68: 77329.001 | E68: =IF(INTRO!$E$48="","",ROUND($D68*INTRO!$E$48,0)) -> 8560 | F68: =IF(INTRO!$E$49="","",ROUND($D68*INTRO!$E$49,0)) -> 23887 | G68: =IF(INTRO!$E$50="","",ROUND($D68*INTRO!$E$50,0)) -> 42755 | H68: 1 | I68: 4 | J68: 1 | K68: 1 | L68: 0 | M68: =IF(INTRO!$E$38="Endemic", IF($H68>0, IF($H68=4,"Unknown", IF($H68=99,"Stopped", $D68)), 0),"Not required") -> 77329.001 | N68: =IF(INTRO!$E$40="Endemic", IF($I68>0, IF($I68=4,"Unknown",IF($I68=99,"Stopped", $D68)), 0),"Not required") -> Unknown | O68: =IF(INTRO!$E$42="Endemic", IF($J68>1, IF($J68=4, "Unknown", IF($J68=99, "Surveillance", E68)), 0),"Not required") -> 0 | P68: =IF(INTRO!$E$42="Endemic", IF($J68>1, IF($J68=4, "Unknown", IF($J68=99, "Surveillance", F68)), 0),"Not required") -> 0 | Q68: =IF(INTRO!$E$42="Endemic", IF($J68>1, IF($J68=4, "Unknown", IF($J68=99, "Surveillance", ROUND(D68*INTRO!$E$51,0))), 0),"Not required") -> 0 | R68: =IF(INTRO!$E$42="Endemic", IF($J68>1, IF($J68=4, "Unknown", IF($J68=99, "Surveillance", SUM($O68:$Q68))), 0),"Not required") -> 0 | S68: 0 | T68: 0 | U68: 0 | V68: =IF(INTRO!$E$44="Endemic", IF($K68>1, IF($K68=4, "Unknown", IF($K68=99, "Surveillance", SUM($S68:$U68))), 0),"Not required") -> 0 | W68: 1 | X68: 0 | Y68: 0 | Z68: 0 | AA68: MDA1 (IVM+ALB) | AH68: 44380 | AI68: PANYKANG | AO68: ='MDA1'!K68 -> 17877 | AP68: ='MDA3'!O68 -> 0 | AQ68: ='MDA4'!S68 -> 0
A69: =IF(INTRO!$E$34<>0,INTRO!$E$34,"") -> South Sudan | B69: Warrap | C69: ABYEI | D69: 87788.4141 | E69: =IF(INTRO!$E$48="","",ROUND($D69*INTRO!$E$48,0)) -> 9718 | F69: =IF(INTRO!$E$49="","",ROUND($D69*INTRO!$E$49,0)) -> 27118 | G69: =IF(INTRO!$E$50="","",ROUND($D69*INTRO!$E$50,0)) -> 48538 | H69: 0 | I69: 4 | J69: 0 | K69: 1 | L69: 4 | M69: =IF(INTRO!$E$38="Endemic", IF($H69>0, IF($H69=4,"Unknown", IF($H69=99,"Stopped", $D69)), 0),"Not required") -> 0 | N69: =IF(INTRO!$E$40="Endemic", IF($I69>0, IF($I69=4,"Unknown",IF($I69=99,"Stopped", $D69)), 0),"Not required") -> Unknown | O69: =IF(INTRO!$E$42="Endemic", IF($J69>1, IF($J69=4, "Unknown", IF($J69=99, "Surveillance", E69)), 0),"Not required") -> 0 | P69: =IF(INTRO!$E$42="Endemic", IF($J69>1, IF($J69=4, "Unknown", IF($J69=99, "Surveillance", F69)), 0),"Not required") -> 0 | Q69: =IF(INTRO!$E$42="Endemic", IF($J69>1, IF($J69=4, "Unknown", IF($J69=99, "Surveillance", ROUND(D69*INTRO!$E$51,0))), 0),"Not required") -> 0 | R69: =IF(INTRO!$E$42="Endemic", IF($J69>1, IF($J69=4, "Unknown", IF($J69=99, "Surveillance", SUM($O69:$Q69))), 0),"Not required") -> 0 | S69: 0 | T69: 0 | U69: 0 | V69: =IF(INTRO!$E$44="Endemic", IF($K69>1, IF($K69=4, "Unknown", IF($K69=99, "Surveillance", SUM($S69:$U69))), 0),"Not required") -> 0 | W69: 0 | X69: 0 | Y69: 0 | Z69: 0 | AH69: 44383 | AI69: ABYEI | AO69: ='MDA1'!K69 -> 0 | AP69: ='MDA3'!O69 -> 0 | AQ69: ='MDA4'!S69 -> 0
A70: =IF(INTRO!$E$34<>0,INTRO!$E$34,"") -> South Sudan | B70: Warrap | C70: TWIC | D70: 343023.9797 | E70: =IF(INTRO!$E$48="","",ROUND($D70*INTRO!$E$48,0)) -> 37973 | F70: =IF(INTRO!$E$49="","",ROUND($D70*INTRO!$E$49,0)) -> 105960 | G70: =IF(INTRO!$E$50="","",ROUND($D70*INTRO!$E$50,0)) -> 189658 | H70: 1 | I70: 1 | J70: 0 | K70: 1 | L70: 1 | M70: =IF(INTRO!$E$38="Endemic", IF($H70>0, IF($H70=4,"Unknown", IF($H70=99,"Stopped", $D70)), 0),"Not required") -> 343023.9797 | N70: =IF(INTRO!$E$40="Endemic", IF($I70>0, IF($I70=4,"Unknown",IF($I70=99,"Stopped", $D70)), 0),"Not required") -> 343023.9797 | O70: =IF(INTRO!$E$42="Endemic", IF($J70>1, IF($J70=4, "Unknown", IF($J70=99, "Surveillance", E70)), 0),"Not required") -> 0 | P70: =IF(INTRO!$E$42="Endemic", IF($J70>1, IF($J70=4, "Unknown", IF($J70=99, "Surveillance", F70)), 0),"Not required") -> 0 | Q70: =IF(INTRO!$E$42="Endemic", IF($J70>1, IF($J70=4, "Unknown", IF($J70=99, "Surveillance", ROUND(D70*INTRO!$E$51,0))), 0),"Not required") -> 0 | R70: =IF(INTRO!$E$42="Endemic", IF($J70>1, IF($J70=4, "Unknown", IF($J70=99, "Surveillance", SUM($O70:$Q70))), 0),"Not required") -> 0 | S70: 0 | T70: 0 | U70: 0 | V70: =IF(INTRO!$E$44="Endemic", IF($K70>1, IF($K70=4, "Unknown", IF($K70=99, "Surveillance", SUM($S70:$U70))), 0),"Not required") -> 0 | W70: 1 | X70: 1 | Y70: 0 | Z70: 0 | AA70: MDA1 (IVM+ALB) | AH70: 44389 | AI70: TWIC | AO70: ='MDA1'!K70 -> 64416 | AP70: ='MDA3'!O70 -> 0 | AQ70: ='MDA4'!S70 -> 0
A71: =IF(INTRO!$E$34<>0,INTRO!$E$34,"") -> South Sudan | B71: Warrap | C71: GOGRIAL WEST | D71: 408052.9061 | E71: =IF(INTRO!$E$48="","",ROUND($D71*INTRO!$E$48,0)) -> 45171 | F71: =IF(INTRO!$E$49="","",ROUND($D71*INTRO!$E$49,0)) -> 126048 | G71: =IF(INTRO!$E$50="","",ROUND($D71*INTRO!$E$50,0)) -> 225612 | H71: 1 | I71: 1 | J71: 0 | K71: 1 | L71: 1 | M71: =IF(INTRO!$E$38="Endemic", IF($H71>0, IF($H71=4,"Unknown", IF($H71=99,"Stopped", $D71)), 0),"Not required") -> 408052.9061 | N71: =IF(INTRO!$E$40="Endemic", IF($I71>0, IF($I71=4,"Unknown",IF($I71=99,"Stopped", $D71)), 0),"Not required") -> 408052.9061 | O71: =IF(INTRO!$E$42="Endemic", IF($J71>1, IF($J71=4, "Unknown", IF($J71=99, "Surveillance", E71)), 0),"Not required") -> 0 | P71: =IF(INTRO!$E$42="Endemic", IF($J71>1, IF($J71=4, "Unknown", IF($J71=99, "Surveillance", F71)), 0),"Not required") -> 0 | Q71: =IF(INTRO!$E$42="Endemic", IF($J71>1, IF($J71=4, "Unknown", IF($J71=99, "Surveillance", ROUND(D71*INTRO!$E$51,0))), 0),"Not required") -> 0 | R71: =IF(INTRO!$E$42="Endemic", IF($J71>1, IF($J71=4, "Unknown", IF($J71=99, "Surveillance", SUM($O71:$Q71))), 0),"Not required") -> 0 | S71: 0 | T71: 0 | U71: 0 | V71: =IF(INTRO!$E$44="Endemic", IF($K71>1, IF($K71=4, "Unknown", IF($K71=99, "Surveillance", SUM($S71:$U71))), 0),"Not required") -> 0 | W71: 1 | X71: 1 | Y71: 0 | Z71: 0 | AA71: MDA1 (IVM+ALB) | AH71: 44385 | AI71: GOGRIAL WEST | AO71: ='MDA1'!K71 -> 166857 | AP71: ='MDA3'!O71 -> 0 | AQ71: ='MDA4'!S71 -> 0
A72: =IF(INTRO!$E$34<>0,INTRO!$E$34,"") -> South Sudan | B72: Warrap | C72: GOGRIAL EAST | D72: 172325.1697 | E72: =IF(INTRO!$E$48="","",ROUND($D72*INTRO!$E$48,0)) -> 19076 | F72: =IF(INTRO!$E$49="","",ROUND($D72*INTRO!$E$49,0)) -> 53231 | G72: =IF(INTRO!$E$50="","",ROUND($D72*INTRO!$E$50,0)) -> 95279 | H72: 1 | I72: 1 | J72: 0 | K72: 1 | L72: 1 | M72: =IF(INTRO!$E$38="Endemic", IF($H72>0, IF($H72=4,"Unknown", IF($H72=99,"Stopped", $D72)), 0),"Not required") -> 172325.1697 | N72: =IF(INTRO!$E$40="Endemic", IF($I72>0, IF($I72=4,"Unknown",IF($I72=99,"Stopped", $D72)), 0),"Not required") -> 172325.1697 | O72: =IF(INTRO!$E$42="Endemic", IF($J72>1, IF($J72=4, "Unknown", IF($J72=99, "Surveillance", E72)), 0),"Not required") -> 0 | P72: =IF(INTRO!$E$42="Endemic", IF($J72>1, IF($J72=4, "Unknown", IF($J72=99, "Surveillance", F72)), 0),"Not required") -> 0 | Q72: =IF(INTRO!$E$42="Endemic", IF($J72>1, IF($J72=4, "Unknown", IF($J72=99, "Surveillance", ROUND(D72*INTRO!$E$51,0))), 0),"Not required") -> 0 | R72: =IF(INTRO!$E$42="Endemic", IF($J72>1, IF($J72=4, "Unknown", IF($J72=99, "Surveillance", SUM($O72:$Q72))), 0),"Not required") -> 0 | S72: 0 | T72: 0 | U72: 0 | V72: =IF(INTRO!$E$44="Endemic", IF($K72>1, IF($K72=4, "Unknown", IF($K72=99, "Surveillance", SUM($S72:$U72))), 0),"Not required") -> 0 | W72: 1 | X72: 1 | Y72: 0 | Z72: 0 | AA72: MDA1 (IVM+ALB) | AH72: 44384 | AI72: GOGRIAL EAST | AO72: ='MDA1'!K72 -> 73159 | AP72: ='MDA3'!O72 -> 0 | AQ72: ='MDA4'!S72 -> 0
A73: =IF(INTRO!$E$34<>0,INTRO!$E$34,"") -> South Sudan | B73: Warrap | C73: TONJ NORTH | D73: 276370.8154 | E73: =IF(INTRO!$E$48="","",ROUND($D73*INTRO!$E$48,0)) -> 30594 | F73: =IF(INTRO!$E$49="","",ROUND($D73*INTRO!$E$49,0)) -> 85371 | G73: =IF(INTRO!$E$50="","",ROUND($D73*INTRO!$E$50,0)) -> 152805 | H73: 0 | I73: 1 | J73: 0 | K73: 3 | L73: 1 | M73: =IF(INTRO!$E$38="Endemic", IF($H73>0, IF($H73=4,"Unknown", IF($H73=99,"Stopped", $D73)), 0),"Not required") -> 0 | N73: =IF(INTRO!$E$40="Endemic", IF($I73>0, IF($I73=4,"Unknown",IF($I73=99,"Stopped", $D73)), 0),"Not required") -> 276370.8154 | O73: =IF(INTRO!$E$42="Endemic", IF($J73>1, IF($J73=4, "Unknown", IF($J73=99, "Surveillance", E73)), 0),"Not required") -> 0 | P73: =IF(INTRO!$E$42="Endemic", IF($J73>1, IF($J73=4, "Unknown", IF($J73=99, "Surveillance", F73)), 0),"Not required") -> 0 | Q73: =IF(INTRO!$E$42="Endemic", IF($J73>1, IF($J73=4, "Unknown", IF($J73=99, "Surveillance", ROUND(D73*INTRO!$E$51,0))), 0),"Not required") -> 0 | R73: =IF(INTRO!$E$42="Endemic", IF($J73>1, IF($J73=4, "Unknown", IF($J73=99, "Surveillance", SUM($O73:$Q73))), 0),"Not required") -> 0 | S73: 10009 | T73: 32305 | U73: 69675 | V73: =IF(INTRO!$E$44="Endemic", IF($K73>1, IF($K73=4, "Unknown", IF($K73=99, "Surveillance", SUM($S73:$U73))), 0),"Not required") -> 111989 | W73: 0 | X73: 1 | Y73: 0 | Z73: 0 | AA73: MDA3 (IVM) | AH73: 44387 | AI73: TONJ NORTH | AO73: ='MDA1'!K73 -> 0 | AP73: ='MDA3'!O73 -> 122935 | AQ73: ='MDA4'!S73 -> 0
A74: =IF(INTRO!$E$34<>0,INTRO!$E$34,"") -> South Sudan | B74: Warrap | C74: TONJ EAST | D74: 193459.3586 | E74: =IF(INTRO!$E$48="","",ROUND($D74*INTRO!$E$48,0)) -> 21416 | F74: =IF(INTRO!$E$49="","",ROUND($D74*INTRO!$E$49,0)) -> 59760 | G74: =IF(INTRO!$E$50="","",ROUND($D74*INTRO!$E$50,0)) -> 106964 | H74: 0 | I74: 1 | J74: 1 | K74: 2 | L74: 1 | M74: =IF(INTRO!$E$38="Endemic", IF($H74>0, IF($H74=4,"Unknown", IF($H74=99,"Stopped", $D74)), 0),"Not required") -> 0 | N74: =IF(INTRO!$E$40="Endemic", IF($I74>0, IF($I74=4,"Unknown",IF($I74=99,"Stopped", $D74)), 0),"Not required") -> 193459.3586 | O74: =IF(INTRO!$E$42="Endemic", IF($J74>1, IF($J74=4, "Unknown", IF($J74=99, "Surveillance", E74)), 0),"Not required") -> 0 | P74: =IF(INTRO!$E$42="Endemic", IF($J74>1, IF($J74=4, "Unknown", IF($J74=99, "Surveillance", F74)), 0),"Not required") -> 0 | Q74: =IF(INTRO!$E$42="Endemic", IF($J74>1, IF($J74=4, "Unknown", IF($J74=99, "Surveillance", ROUND(D74*INTRO!$E$51,0))), 0),"Not required") -> 0 | R74: =IF(INTRO!$E$42="Endemic", IF($J74>1, IF($J74=4, "Unknown", IF($J74=99, "Surveillance", SUM($O74:$Q74))), 0),"Not required") -> 0 | S74: 465 | T74: 1502 | U74: 3239 | V74: =IF(INTRO!$E$44="Endemic", IF($K74>1, IF($K74=4, "Unknown", IF($K74=99, "Surveillance", SUM($S74:$U74))), 0),"Not required") -> 5206 | W74: 0 | X74: 1 | Y74: 0 | Z74: 0 | AA74: MDA3 (IVM) | AH74: 44386 | AI74: TONJ EAST | AO74: ='MDA1'!K74 -> 0 | AP74: ='MDA3'!O74 -> 90194 | AQ74: ='MDA4'!S74 -> 0
A75: =IF(INTRO!$E$34<>0,INTRO!$E$34,"") -> South Sudan | B75: Warrap | C75: TONJ SOUTH | D75: 144687.6638 | E75: =IF(INTRO!$E$48="","",ROUND($D75*INTRO!$E$48,0)) -> 16017 | F75: =IF(INTRO!$E$49="","",ROUND($D75*INTRO!$E$49,0)) -> 44694 | G75: =IF(INTRO!$E$50="","",ROUND($D75*INTRO!$E$50,0)) -> 79998 | H75: 1 | I75: 1 | J75: 0 | K75: 3 | L75: 1 | M75: =IF(INTRO!$E$38="Endemic", IF($H75>0, IF($H75=4,"Unknown", IF($H75=99,"Stopped", $D75)), 0),"Not required") -> 144687.6638 | N75: =IF(INTRO!$E$40="Endemic", IF($I75>0, IF($I75=4,"Unknown",IF($I75=99,"Stopped", $D75)), 0),"Not required") -> 144687.6638 | O75: =IF(INTRO!$E$42="Endemic", IF($J75>1, IF($J75=4, "Unknown", IF($J75=99, "Surveillance", E75)), 0),"Not required") -> 0 | P75: =IF(INTRO!$E$42="Endemic", IF($J75>1, IF($J75=4, "Unknown", IF($J75=99, "Surveillance", F75)), 0),"Not required") -> 0 | Q75: =IF(INTRO!$E$42="Endemic", IF($J75>1, IF($J75=4, "Unknown", IF($J75=99, "Surveillance", ROUND(D75*INTRO!$E$51,0))), 0),"Not required") -> 0 | R75: =IF(INTRO!$E$42="Endemic", IF($J75>1, IF($J75=4, "Unknown", IF($J75=99, "Surveillance", SUM($O75:$Q75))), 0),"Not required") -> 0 | S75: 1676 | T75: 5410 | U75: 11668 | V75: =IF(INTRO!$E$44="Endemic", IF($K75>1, IF($K75=4, "Unknown", IF($K75=99, "Surveillance", SUM($S75:$U75))), 0),"Not required") -> 18754 | W75: 1 | X75: 1 | Y75: 0 | Z75: 0 | AA75: MDA1 (IVM+ALB) | AH75: 44388 | AI75: TONJ SOUTH | AO75: ='MDA1'!K75 -> 42262 | AP75: ='MDA3'!O75 -> 0 | AQ75: ='MDA4'!S75 -> 0
A76: =IF(INTRO!$E$34<>0,INTRO!$E$34,"") -> South Sudan | B76: Wesstern Equatoria | C76: TAMBURA | D76: 82150.7915 | E76: =IF(INTRO!$E$48="","",ROUND($D76*INTRO!$E$48,0)) -> 9094 | F76: =IF(INTRO!$E$49="","",ROUND($D76*INTRO!$E$49,0)) -> 25376 | G76: =IF(INTRO!$E$50="","",ROUND($D76*INTRO!$E$50,0)) -> 45421 | H76: 1 | I76: 1 | J76: 1 | K76: 2 | L76: 0 | M76: =IF(INTRO!$E$38="Endemic", IF($H76>0, IF($H76=4,"Unknown", IF($H76=99,"Stopped", $D76)), 0),"Not required") -> 82150.7915 | N76: =IF(INTRO!$E$40="Endemic", IF($I76>0, IF($I76=4,"Unknown",IF($I76=99,"Stopped", $D76)), 0),"Not required") -> 82150.7915 | O76: =IF(INTRO!$E$42="Endemic", IF($J76>1, IF($J76=4, "Unknown", IF($J76=99, "Surveillance", E76)), 0),"Not required") -> 0 | P76: =IF(INTRO!$E$42="Endemic", IF($J76>1, IF($J76=4, "Unknown", IF($J76=99, "Surveillance", F76)), 0),"Not required") -> 0 | Q76: =IF(INTRO!$E$42="Endemic", IF($J76>1, IF($J76=4, "Unknown", IF($J76=99, "Surveillance", ROUND(D76*INTRO!$E$51,0))), 0),"Not required") -> 0 | R76: =IF(INTRO!$E$42="Endemic", IF($J76>1, IF($J76=4, "Unknown", IF($J76=99, "Surveillance", SUM($O76:$Q76))), 0),"Not required") -> 0 | S76: 6268 | T76: 20233 | U76: 43638 | V76: =IF(INTRO!$E$44="Endemic", IF($K76>1, IF($K76=4, "Unknown", IF($K76=99, "Surveillance", SUM($S76:$U76))), 0),"Not required") -> 70139 | W76: 1 | X76: 1 | Y76: 0 | Z76: 0 | AA76: MDA1 (IVM+ALB) | AH76: 44399 | AI76: TAMBURA | AO76: ='MDA1'!K76 -> 22312 | AP76: ='MDA3'!O76 -> 0 | AQ76: ='MDA4'!S76 -> 0
A77: =IF(INTRO!$E$34<>0,INTRO!$E$34,"") -> South Sudan | B77: Wesstern Equatoria | C77: NAGERO | D77: 14768.7889 | E77: =IF(INTRO!$E$48="","",ROUND($D77*INTRO!$E$48,0)) -> 1635 | F77: =IF(INTRO!$E$49="","",ROUND($D77*INTRO!$E$49,0)) -> 4562 | G77: =IF(INTRO!$E$50="","",ROUND($D77*INTRO!$E$50,0)) -> 8166 | H77: 1 | I77: 1 | J77: 1 | K77: 1 | L77: 1 | M77: =IF(INTRO!$E$38="Endemic", IF($H77>0, IF($H77=4,"Unknown", IF($H77=99,"Stopped", $D77)), 0),"Not required") -> 14768.7889 | N77: =IF(INTRO!$E$40="Endemic", IF($I77>0, IF($I77=4,"Unknown",IF($I77=99,"Stopped", $D77)), 0),"Not required") -> 14768.7889 | O77: =IF(INTRO!$E$42="Endemic", IF($J77>1, IF($J77=4, "Unknown", IF($J77=99, "Surveillance", E77)), 0),"Not required") -> 0 | P77: =IF(INTRO!$E$42="Endemic", IF($J77>1, IF($J77=4, "Unknown", IF($J77=99, "Surveillance", F77)), 0),"Not required") -> 0 | Q77: =IF(INTRO!$E$42="Endemic", IF($J77>1, IF($J77=4, "Unknown", IF($J77=99, "Surveillance", ROUND(D77*INTRO!$E$51,0))), 0),"Not required") -> 0 | R77: =IF(INTRO!$E$42="Endemic", IF($J77>1, IF($J77=4, "Unknown", IF($J77=99, "Surveillance", SUM($O77:$Q77))), 0),"Not required") -> 0 | S77: 0 | T77: 0 | U77: 0 | V77: =IF(INTRO!$E$44="Endemic", IF($K77>1, IF($K77=4, "Unknown", IF($K77=99, "Surveillance", SUM($S77:$U77))), 0),"Not required") -> 0 | W77: 1 | X77: 1 | Y77: 0 | Z77: 0 | AA77: MDA1 (IVM+ALB) | AH77: 44396 | AI77: NAGERO | AO77: ='MDA1'!K77 -> 4496 | AP77: ='MDA3'!O77 -> 0 | AQ77: ='MDA4'!S77 -> 0
A78: =IF(INTRO!$E$34<>0,INTRO!$E$34,"") -> South Sudan | B78: Wesstern Equatoria | C78: NZARA | D78: 97842.5634 | E78: =IF(INTRO!$E$48="","",ROUND($D78*INTRO!$E$48,0)) -> 10831 | F78: =IF(INTRO!$E$49="","",ROUND($D78*INTRO!$E$49,0)) -> 30224 | G78: =IF(INTRO!$E$50="","",ROUND($D78*INTRO!$E$50,0)) -> 54097 | H78: 1 | I78: 1 | J78: 0 | K78: 0 | L78: 1 | M78: =IF(INTRO!$E$38="Endemic", IF($H78>0, IF($H78=4,"Unknown", IF($H78=99,"Stopped", $D78)), 0),"Not required") -> 97842.5634 | N78: =IF(INTRO!$E$40="Endemic", IF($I78>0, IF($I78=4,"Unknown",IF($I78=99,"Stopped", $D78)), 0),"Not required") -> 97842.5634 | O78: =IF(INTRO!$E$42="Endemic", IF($J78>1, IF($J78=4, "Unknown", IF($J78=99, "Surveillance", E78)), 0),"Not required") -> 0 | P78: =IF(INTRO!$E$42="Endemic", IF($J78>1, IF($J78=4, "Unknown", IF($J78=99, "Surveillance", F78)), 0),"Not required") -> 0 | Q78: =IF(INTRO!$E$42="Endemic", IF($J78>1, IF($J78=4, "Unknown", IF($J78=99, "Surveillance", ROUND(D78*INTRO!$E$51,0))), 0),"Not required") -> 0 | R78: =IF(INTRO!$E$42="Endemic", IF($J78>1, IF($J78=4, "Unknown", IF($J78=99, "Surveillance", SUM($O78:$Q78))), 0),"Not required") -> 0 | S78: 0 | T78: 0 | U78: 0 | V78: =IF(INTRO!$E$44="Endemic", IF($K78>1, IF($K78=4, "Unknown", IF($K78=99, "Surveillance", SUM($S78:$U78))), 0),"Not required") -> 0 | W78: 1 | X78: 1 | Y78: 0 | Z78: 0 | AA78: MDA1 (IVM+ALB) | AH78: 44397 | AI78: NZARA | AO78: ='MDA1'!K78 -> 36720 | AP78: ='MDA3'!O78 -> 0 | AQ78: ='MDA4'!S78 -> 0
A79: =IF(INTRO!$E$34<>0,INTRO!$E$34,"") -> South Sudan | B79: Wesstern Equatoria | C79: EZO | D79: 120918.1993 | E79: =IF(INTRO!$E$48="","",ROUND($D79*INTRO!$E$48,0)) -> 13386 | F79: =IF(INTRO!$E$49="","",ROUND($D79*INTRO!$E$49,0)) -> 37352 | G79: =IF(INTRO!$E$50="","",ROUND($D79*INTRO!$E$50,0)) -> 66856 | H79: 1 | I79: 1 | J79: 1 | K79: 2 | L79: 1 | M79: =IF(INTRO!$E$38="Endemic", IF($H79>0, IF($H79=4,"Unknown", IF($H79=99,"Stopped", $D79)), 0),"Not required") -> 120918.1993 | N79: =IF(INTRO!$E$40="Endemic", IF($I79>0, IF($I79=4,"Unknown",IF($I79=99,"Stopped", $D79)), 0),"Not required") -> 120918.1993 | O79: =IF(INTRO!$E$42="Endemic", IF($J79>1, IF($J79=4, "Unknown", IF($J79=99, "Surveillance", E79)), 0),"Not required") -> 0 | P79: =IF(INTRO!$E$42="Endemic", IF($J79>1, IF($J79=4, "Unknown", IF($J79=99, "Surveillance", F79)), 0),"Not required") -> 0 | Q79: =IF(INTRO!$E$42="Endemic", IF($J79>1, IF($J79=4, "Unknown", IF($J79=99, "Surveillance", ROUND(D79*INTRO!$E$51,0))), 0),"Not required") -> 0 | R79: =IF(INTRO!$E$42="Endemic", IF($J79>1, IF($J79=4, "Unknown", IF($J79=99, "Surveillance", SUM($O79:$Q79))), 0),"Not required") -> 0 | S79: 10039 | T79: 32406 | U79: 69891 | V79: =IF(INTRO!$E$44="Endemic", IF($K79>1, IF($K79=4, "Unknown", IF($K79=99, "Surveillance", SUM($S79:$U79))), 0),"Not required") -> 112336 | W79: 1 | X79: 1 | Y79: 0 | Z79: 0 | AA79: MDA1 (IVM+ALB) | AH79: 44390 | AI79: EZO | AO79: ='MDA1'!K79 -> 46656 | AP79: ='MDA3'!O79 -> 0 | AQ79: ='MDA4'!S79 -> 0
A80: =IF(INTRO!$E$34<>0,INTRO!$E$34,"") -> South Sudan | B80: Wesstern Equatoria | C80: YAMBIO | D80: 227067.6097 | E80: =IF(INTRO!$E$48="","",ROUND($D80*INTRO!$E$48,0)) -> 25136 | F80: =IF(INTRO!$E$49="","",ROUND($D80*INTRO!$E$49,0)) -> 70141 | G80: =IF(INTRO!$E$50="","",ROUND($D80*INTRO!$E$50,0)) -> 125546 | H80: 1 | I80: 1 | J80: 1 | K80: 1 | L80: 1 | M80: =IF(INTRO!$E$38="Endemic", IF($H80>0, IF($H80=4,"Unknown", IF($H80=99,"Stopped", $D80)), 0),"Not required") -> 227067.6097 | N80: =IF(INTRO!$E$40="Endemic", IF($I80>0, IF($I80=4,"Unknown",IF($I80=99,"Stopped", $D80)), 0),"Not required") -> 227067.6097 | O80: =IF(INTRO!$E$42="Endemic", IF($J80>1, IF($J80=4, "Unknown", IF($J80=99, "Surveillance", E80)), 0),"Not required") -> 0 | P80: =IF(INTRO!$E$42="Endemic", IF($J80>1, IF($J80=4, "Unknown", IF($J80=99, "Surveillance", F80)), 0),"Not required") -> 0 | Q80: =IF(INTRO!$E$42="Endemic", IF($J80>1, IF($J80=4, "Unknown", IF($J80=99, "Surveillance", ROUND(D80*INTRO!$E$51,0))), 0),"Not required") -> 0 | R80: =IF(INTRO!$E$42="Endemic", IF($J80>1, IF($J80=4, "Unknown", IF($J80=99, "Surveillance", SUM($O80:$Q80))), 0),"Not required") -> 0 | S80: 0 | T80: 0 | U80: 0 | V80: =IF(INTRO!$E$44="Endemic", IF($K80>1, IF($K80=4, "Unknown", IF($K80=99, "Surveillance", SUM($S80:$U80))), 0),"Not required") -> 0 | W80: 1 | X80: 1 | Y80: 0 | Z80: 0 | AA80: MDA1 (IVM+ALB) | AH80: 44400 | AI80: YAMBIO | AO80: ='MDA1'!K80 -> 82980 | AP80: ='MDA3'!O80 -> 0 | AQ80: ='MDA4'!S80 -> 0
A81: =IF(INTRO!$E$34<>0,INTRO!$E$34,"") -> South Sudan | B81: Wesstern Equatoria | C81: IBBA | D81: 62767.0876 | E81: =IF(INTRO!$E$48="","",ROUND($D81*INTRO!$E$48,0)) -> 6948 | F81: =IF(INTRO!$E$49="","",ROUND($D81*INTRO!$E$49,0)) -> 19389 | G81: =IF(INTRO!$E$50="","",ROUND($D81*INTRO!$E$50,0)) -> 34704 | H81: 1 | I81: 1 | J81: 1 | K81: 3 | L81: 1 | M81: =IF(INTRO!$E$38="Endemic", IF($H81>0, IF($H81=4,"Unknown", IF($H81=99,"Stopped", $D81)), 0),"Not required") -> 62767.0876 | N81: =IF(INTRO!$E$40="Endemic", IF($I81>0, IF($I81=4,"Unknown",IF($I81=99,"Stopped", $D81)), 0),"Not required") -> 62767.0876 | O81: =IF(INTRO!$E$42="Endemic", IF($J81>1, IF($J81=4, "Unknown", IF($J81=99, "Surveillance", E81)), 0),"Not required") -> 0 | P81: =IF(INTRO!$E$42="Endemic", IF($J81>1, IF($J81=4, "Unknown", IF($J81=99, "Surveillance", F81)), 0),"Not required") -> 0 | Q81: =IF(INTRO!$E$42="Endemic", IF($J81>1, IF($J81=4, "Unknown", IF($J81=99, "Surveillance", ROUND(D81*INTRO!$E$51,0))), 0),"Not required") -> 0 | R81: =IF(INTRO!$E$42="Endemic", IF($J81>1, IF($J81=4, "Unknown", IF($J81=99, "Surveillance", SUM($O81:$Q81))), 0),"Not required") -> 0 | S81: 3425 | T81: 11053 | U81: 23838 | V81: =IF(INTRO!$E$44="Endemic", IF($K81>1, IF($K81=4, "Unknown", IF($K81=99, "Surveillance", SUM($S81:$U81))), 0),"Not required") -> 38316 | W81: 1 | X81: 1 | Y81: 0 | Z81: 0 | AA81: MDA1 (IVM+ALB) | AH81: 44391 | AI81: IBBA | AO81: ='MDA1'!K81 -> 24269 | AP81: ='MDA3'!O81 -> 0 | AQ81: ='MDA4'!S81 -> 0
A82: =IF(INTRO!$E$34<>0,INTRO!$E$34,"") -> South Sudan | B82: Wesstern Equatoria | C82: MARIDI | D82: 122764.1653 | E82: =IF(INTRO!$E$48="","",ROUND($D82*INTRO!$E$48,0)) -> 13590 | F82: =IF(INTRO!$E$49="","",ROUND($D82*INTRO!$E$49,0)) -> 37922 | G82: =IF(INTRO!$E$50="","",ROUND($D82*INTRO!$E$50,0)) -> 67876 | H82: 1 | I82: 1 | J82: 1 | K82: 3 | L82: 1 | M82: =IF(INTRO!$E$38="Endemic", IF($H82>0, IF($H82=4,"Unknown", IF($H82=99,"Stopped", $D82)), 0),"Not required") -> 122764.1653 | N82: =IF(INTRO!$E$40="Endemic", IF($I82>0, IF($I82=4,"Unknown",IF($I82=99,"Stopped", $D82)), 0),"Not required") -> 122764.1653 | O82: =IF(INTRO!$E$42="Endemic", IF($J82>1, IF($J82=4, "Unknown", IF($J82=99, "Surveillance", E82)), 0),"Not required") -> 0 | P82: =IF(INTRO!$E$42="Endemic", IF($J82>1, IF($J82=4, "Unknown", IF($J82=99, "Surveillance", F82)), 0),"Not required") -> 0 | Q82: =IF(INTRO!$E$42="Endemic", IF($J82>1, IF($J82=4, "Unknown", IF($J82=99, "Surveillance", ROUND(D82*INTRO!$E$51,0))), 0),"Not required") -> 0 | R82: =IF(INTRO!$E$42="Endemic", IF($J82>1, IF($J82=4, "Unknown", IF($J82=99, "Surveillance", SUM($O82:$Q82))), 0),"Not required") -> 0 | S82: 9245 | T82: 29841 | U82: 64359 | V82: =IF(INTRO!$E$44="Endemic", IF($K82>1, IF($K82=4, "Unknown", IF($K82=99, "Surveillance", SUM($S82:$U82))), 0),"Not required") -> 103445 | W82: 1 | X82: 1 | Y82: 0 | Z82: 0 | AA82: MDA1 (IVM+ALB) | AH82: 44392 | AI82: MARIDI | AO82: ='MDA1'!K82 -> 47385 | AP82: ='MDA3'!O82 -> 0 | AQ82: ='MDA4'!S82 -> 0
A83: =IF(INTRO!$E$34<>0,INTRO!$E$34,"") -> South Sudan | B83: Wesstern Equatoria | C83: MVOLO | D83: 71996.9176 | E83: =IF(INTRO!$E$48="","",ROUND($D83*INTRO!$E$48,0)) -> 7970 | F83: =IF(INTRO!$E$49="","",ROUND($D83*INTRO!$E$49,0)) -> 22240 | G83: =IF(INTRO!$E$50="","",ROUND($D83*INTRO!$E$50,0)) -> 39807 | H83: 1 | I83: 1 | J83: 1 | K83: 1 | L83: 1 | M83: =IF(INTRO!$E$38="Endemic", IF($H83>0, IF($H83=4,"Unknown", IF($H83=99,"Stopped", $D83)), 0),"Not required") -> 71996.9176 | N83: =IF(INTRO!$E$40="Endemic", IF($I83>0, IF($I83=4,"Unknown",IF($I83=99,"Stopped", $D83)), 0),"Not required") -> 71996.9176 | O83: =IF(INTRO!$E$42="Endemic", IF($J83>1, IF($J83=4, "Unknown", IF($J83=99, "Surveillance", E83)), 0),"Not required") -> 0 | P83: =IF(INTRO!$E$42="Endemic", IF($J83>1, IF($J83=4, "Unknown", IF($J83=99, "Surveillance", F83)), 0),"Not required") -> 0 | Q83: =IF(INTRO!$E$42="Endemic", IF($J83>1, IF($J83=4, "Unknown", IF($J83=99, "Surveillance", ROUND(D83*INTRO!$E$51,0))), 0),"Not required") -> 0 | R83: =IF(INTRO!$E$42="Endemic", IF($J83>1, IF($J83=4, "Unknown", IF($J83=99, "Surveillance", SUM($O83:$Q83))), 0),"Not required") -> 0 | S83: 0 | T83: 0 | U83: 0 | V83: =IF(INTRO!$E$44="Endemic", IF($K83>1, IF($K83=4, "Unknown", IF($K83=99, "Surveillance", SUM($S83:$U83))), 0),"Not required") -> 0 | W83: 1 | X83: 1 | Y83: 0 | Z83: 0 | AA83: MDA1 (IVM+ALB) | AH83: 44395 | AI83: MVOLO | AO83: ='MDA1'!K83 -> 28282 | AP83: ='MDA3'!O83 -> 0 | AQ83: ='MDA4'!S83 -> 0
A84: =IF(INTRO!$E$34<>0,INTRO!$E$34,"") -> South Sudan | B84: Wesstern Equatoria | C84: MUNDRI WEST | D84: 50767.2477 | E84: =IF(INTRO!$E$48="","",ROUND($D84*INTRO!$E$48,0)) -> 5620 | F84: =IF(INTRO!$E$49="","",ROUND($D84*INTRO!$E$49,0)) -> 15682 | G84: =IF(INTRO!$E$50="","",ROUND($D84*INTRO!$E$50,0)) -> 28069 | H84: 1 | I84: 1 | J84: 1 | K84: 2 | L84: 1 | M84: =IF(INTRO!$E$38="Endemic", IF($H84>0, IF($H84=4,"Unknown", IF($H84=99,"Stopped", $D84)), 0),"Not required") -> 50767.2477 | N84: =IF(INTRO!$E$40="Endemic", IF($I84>0, IF($I84=4,"Unknown",IF($I84=99,"Stopped", $D84)), 0),"Not required") -> 50767.2477 | O84: =IF(INTRO!$E$42="Endemic", IF($J84>1, IF($J84=4, "Unknown", IF($J84=99, "Surveillance", E84)), 0),"Not required") -> 0 | P84: =IF(INTRO!$E$42="Endemic", IF($J84>1, IF($J84=4, "Unknown", IF($J84=99, "Surveillance", F84)), 0),"Not required") -> 0 | Q84: =IF(INTRO!$E$42="Endemic", IF($J84>1, IF($J84=4, "Unknown", IF($J84=99, "Surveillance", ROUND(D84*INTRO!$E$51,0))), 0),"Not required") -> 0 | R84: =IF(INTRO!$E$42="Endemic", IF($J84>1, IF($J84=4, "Unknown", IF($J84=99, "Surveillance", SUM($O84:$Q84))), 0),"Not required") -> 0 | S84: 2006 | T84: 6477 | U84: 13967 | V84: =IF(INTRO!$E$44="Endemic", IF($K84>1, IF($K84=4, "Unknown", IF($K84=99, "Surveillance", SUM($S84:$U84))), 0),"Not required") -> 22450 | W84: 1 | X84: 1 | Y84: 0 | Z84: 0 | AA84: MDA1 (IVM+ALB) | AH84: 44394 | AI84: MUNDRI WEST | AO84: ='MDA1'!K84 -> 24125 | AP84: ='MDA3'!O84 -> 0 | AQ84: ='MDA4'!S84 -> 0
A85: =IF(INTRO!$E$34<>0,INTRO!$E$34,"") -> South Sudan | B85: Wesstern Equatoria | C85: MUNDRI EAST | D85: 71996.9176 | E85: =IF(INTRO!$E$48="","",ROUND($D85*INTRO!$E$48,0)) -> 7970 | F85: =IF(INTRO!$E$49="","",ROUND($D85*INTRO!$E$49,0)) -> 22240 | G85: =IF(INTRO!$E$50="","",ROUND($D85*INTRO!$E$50,0)) -> 39807 | H85: 1 | I85: 1 | J85: 1 | K85: 2 | L85: 1 | M85: =IF(INTRO!$E$38="Endemic", IF($H85>0, IF($H85=4,"Unknown", IF($H85=99,"Stopped", $D85)), 0),"Not required") -> 71996.9176 | N85: =IF(INTRO!$E$40="Endemic", IF($I85>0, IF($I85=4,"Unknown",IF($I85=99,"Stopped", $D85)), 0),"Not required") -> 71996.9176 | O85: =IF(INTRO!$E$42="Endemic", IF($J85>1, IF($J85=4, "Unknown", IF($J85=99, "Surveillance", E85)), 0),"Not required") -> 0 | P85: =IF(INTRO!$E$42="Endemic", IF($J85>1, IF($J85=4, "Unknown", IF($J85=99, "Surveillance", F85)), 0),"Not required") -> 0 | Q85: =IF(INTRO!$E$42="Endemic", IF($J85>1, IF($J85=4, "Unknown", IF($J85=99, "Surveillance", ROUND(D85*INTRO!$E$51,0))), 0),"Not required") -> 0 | R85: =IF(INTRO!$E$42="Endemic", IF($J85>1, IF($J85=4, "Unknown", IF($J85=99, "Surveillance", SUM($O85:$Q85))), 0),"Not required") -> 0 | S85: 4202 | T85: 13558 | U85: 29242 | V85: =IF(INTRO!$E$44="Endemic", IF($K85>1, IF($K85=4, "Unknown", IF($K85=99, "Surveillance", SUM($S85:$U85))), 0),"Not required") -> 47002 | W85: 1 | X85: 1 | Y85: 0 | Z85: 0 | AA85: MDA1 (IVM+ALB) | AH85: 44393 | AI85: MUNDRI EAST | AO85: ='MDA1'!K85 -> 30456 | AP85: ='MDA3'!O85 -> 0 | AQ85: ='MDA4'!S85 -> 0
A86: =IF(INTRO!$E$34<>0,INTRO!$E$34,"") -> South Sudan | B86: Western Bahr El Ghazal | C86: RAGA | D86: 91072.9605 | E86: =IF(INTRO!$E$48="","",ROUND($D86*INTRO!$E$48,0)) -> 10082 | F86: =IF(INTRO!$E$49="","",ROUND($D86*INTRO!$E$49,0)) -> 28132 | G86: =IF(INTRO!$E$50="","",ROUND($D86*INTRO!$E$50,0)) -> 50354 | H86: 0 | I86: 1 | J86: 1 | K86: 1 | L86: 1 | M86: =IF(INTRO!$E$38="Endemic", IF($H86>0, IF($H86=4,"Unknown", IF($H86=99,"Stopped", $D86)), 0),"Not required") -> 0 | N86: =IF(INTRO!$E$40="Endemic", IF($I86>0, IF($I86=4,"Unknown",IF($I86=99,"Stopped", $D86)), 0),"Not required") -> 91072.9605 | O86: =IF(INTRO!$E$42="Endemic", IF($J86>1, IF($J86=4, "Unknown", IF($J86=99, "Surveillance", E86)), 0),"Not required") -> 0 | P86: =IF(INTRO!$E$42="Endemic", IF($J86>1, IF($J86=4, "Unknown", IF($J86=99, "Surveillance", F86)), 0),"Not required") -> 0 | Q86: =IF(INTRO!$E$42="Endemic", IF($J86>1, IF($J86=4, "Unknown", IF($J86=99, "Surveillance", ROUND(D86*INTRO!$E$51,0))), 0),"Not required") -> 0 | R86: =IF(INTRO!$E$42="Endemic", IF($J86>1, IF($J86=4, "Unknown", IF($J86=99, "Surveillance", SUM($O86:$Q86))), 0),"Not required") -> 0 | S86: 0 | T86: 0 | U86: 0 | V86: =IF(INTRO!$E$44="Endemic", IF($K86>1, IF($K86=4, "Unknown", IF($K86=99, "Surveillance", SUM($S86:$U86))), 0),"Not required") -> 0 | W86: 0 | X86: 1 | Y86: 0 | Z86: 0 | AA86: MDA3 (IVM) | AH86: 44402 | AI86: RAGA | AO86: ='MDA1'!K86 -> 0 | AP86: ='MDA3'!O86 -> 16417 | AQ86: ='MDA4'!S86 -> 0
A87: =IF(INTRO!$E$34<>0,INTRO!$E$34,"") -> South Sudan | B87: Western Bahr El Ghazal | C87: JUR RIVER | D87: 213990.9563 | E87: =IF(INTRO!$E$48="","",ROUND($D87*INTRO!$E$48,0)) -> 23689 | F87: =IF(INTRO!$E$49="","",ROUND($D87*INTRO!$E$49,0)) -> 66102 | G87: =IF(INTRO!$E$50="","",ROUND($D87*INTRO!$E$50,0)) -> 118316 | H87: 1 | I87: 1 | J87: 0 | K87: 1 | L87: 1 | M87: =IF(INTRO!$E$38="Endemic", IF($H87>0, IF($H87=4,"Unknown", IF($H87=99,"Stopped", $D87)), 0),"Not required") -> 213990.9563 | N87: =IF(INTRO!$E$40="Endemic", IF($I87>0, IF($I87=4,"Unknown",IF($I87=99,"Stopped", $D87)), 0),"Not required") -> 213990.9563 | O87: =IF(INTRO!$E$42="Endemic", IF($J87>1, IF($J87=4, "Unknown", IF($J87=99, "Surveillance", E87)), 0),"Not required") -> 0 | P87: =IF(INTRO!$E$42="Endemic", IF($J87>1, IF($J87=4, "Unknown", IF($J87=99, "Surveillance", F87)), 0),"Not required") -> 0 | Q87: =IF(INTRO!$E$42="Endemic", IF($J87>1, IF($J87=4, "Unknown", IF($J87=99, "Surveillance", ROUND(D87*INTRO!$E$51,0))), 0),"Not required") -> 0 | R87: =IF(INTRO!$E$42="Endemic", IF($J87>1, IF($J87=4, "Unknown", IF($J87=99, "Surveillance", SUM($O87:$Q87))), 0),"Not required") -> 0 | S87: 0 | T87: 0 | U87: 0 | V87: =IF(INTRO!$E$44="Endemic", IF($K87>1, IF($K87=4, "Unknown", IF($K87=99, "Surveillance", SUM($S87:$U87))), 0),"Not required") -> 0 | W87: 1 | X87: 1 | Y87: 0 | Z87: 0 | AA87: MDA1 (IVM+ALB) | AH87: 44401 | AI87: JUR RIVER | AO87: ='MDA1'!K87 -> 138871 | AP87: ='MDA3'!O87 -> 0 | AQ87: ='MDA4'!S87 -> 0
A88: =IF(INTRO!$E$34<>0,INTRO!$E$34,"") -> South Sudan | B88: Western Bahr El Ghazal | C88: WAU | D88: 253661.19 | E88: =IF(INTRO!$E$48="","",ROUND($D88*INTRO!$E$48,0)) -> 28080 | F88: =IF(INTRO!$E$49="","",ROUND($D88*INTRO!$E$49,0)) -> 78356 | G88: =IF(INTRO!$E$50="","",ROUND($D88*INTRO!$E$50,0)) -> 140249 | H88: 0 | I88: 1 | J88: 0 | K88: 0 | L88: 1 | M88: =IF(INTRO!$E$38="Endemic", IF($H88>0, IF($H88=4,"Unknown", IF($H88=99,"Stopped", $D88)), 0),"Not required") -> 0 | N88: =IF(INTRO!$E$40="Endemic", IF($I88>0, IF($I88=4,"Unknown",IF($I88=99,"Stopped", $D88)), 0),"Not required") -> 253661.19 | O88: =IF(INTRO!$E$42="Endemic", IF($J88>1, IF($J88=4, "Unknown", IF($J88=99, "Surveillance", E88)), 0),"Not required") -> 0 | P88: =IF(INTRO!$E$42="Endemic", IF($J88>1, IF($J88=4, "Unknown", IF($J88=99, "Surveillance", F88)), 0),"Not required") -> 0 | Q88: =IF(INTRO!$E$42="Endemic", IF($J88>1, IF($J88=4, "Unknown", IF($J88=99, "Surveillance", ROUND(D88*INTRO!$E$51,0))), 0),"Not required") -> 0 | R88: =IF(INTRO!$E$42="Endemic", IF($J88>1, IF($J88=4, "Unknown", IF($J88=99, "Surveillance", SUM($O88:$Q88))), 0),"Not required") -> 0 | S88: 0 | T88: 0 | U88: 0 | V88: =IF(INTRO!$E$44="Endemic", IF($K88>1, IF($K88=4, "Unknown", IF($K88=99, "Surveillance", SUM($S88:$U88))), 0),"Not required") -> 0 | W88: 0 | X88: 1 | Y88: 0 | Z88: 0 | AA88: MDA3 (IVM) | AH88: 44403 | AI88: WAU | AO88: ='MDA1'!K88 -> 0 | AP88: ='MDA3'!O88 -> 90647 | AQ88: ='MDA4'!S88 -> 0
A89: =IF(INTRO!$E$34<>0,INTRO!$E$34,"") -> South Sudan | B89: Upper Nile | C89: MABAN Refugee | D89: 116022 | E89: =IF(INTRO!$E$48="","",ROUND($D89*INTRO!$E$48,0)) -> 12844 | F89: =IF(INTRO!$E$49="","",ROUND($D89*INTRO!$E$49,0)) -> 35839 | G89: =IF(INTRO!$E$50="","",ROUND($D89*INTRO!$E$50,0)) -> 64149 | H89: 1 | I89: 1 | J89: 0 | K89: 0 | L89: 0 | M89: =IF(INTRO!$E$38="Endemic", IF($H89>0, IF($H89=4,"Unknown", IF($H89=99,"Stopped", $D89)), 0),"Not required") -> 116022 | N89: =IF(INTRO!$E$40="Endemic", IF($I89>0, IF($I89=4,"Unknown",IF($I89=99,"Stopped", $D89)), 0),"Not required") -> 116022 | O89: =IF(INTRO!$E$42="Endemic", IF($J89>1, IF($J89=4, "Unknown", IF($J89=99, "Surveillance", E89)), 0),"Not required") -> 0 | P89: =IF(INTRO!$E$42="Endemic", IF($J89>1, IF($J89=4, "Unknown", IF($J89=99, "Surveillance", F89)), 0),"Not required") -> 0 | Q89: =IF(INTRO!$E$42="Endemic", IF($J89>1, IF($J89=4, "Unknown", IF($J89=99, "Surveillance", ROUND(D89*INTRO!$E$51,0))), 0),"Not required") -> 0 | R89: =IF(INTRO!$E$42="Endemic", IF($J89>1, IF($J89=4, "Unknown", IF($J89=99, "Surveillance", SUM($O89:$Q89))), 0),"Not required") -> 0 | S89: =IF(INTRO!$E$44="Endemic", IF($K89>1, IF($K89=4, "Unknown", IF($K89=99, "Surveillance", ROUND(E89*0.75,0))), 0),"Not required") -> 0 | T89: =IF(INTRO!$E$44="Endemic", IF($K89>1, IF($K89=4, "Unknown", IF($K89=99, "Surveillance", F89)), 0),"Not required") -> 0 | U89: =IF(INTRO!$E$44="Endemic", IF($K89>1, IF($K89=4, "Unknown", IF($K89=99, "Surveillance", G89)), 0),"Not required") -> 0 | V89: =IF(INTRO!$E$44="Endemic", IF($K89>1, IF($K89=4, "Unknown", IF($K89=99, "Surveillance", SUM($S89:$U89))), 0),"Not required") -> 0 | W89: 1 | X89: 1 | Y89: 0 | Z89: 0 | AA89: MDA1 (IVM+ALB) | AH89: 44404 | AI89: MABAN Refugee | AJ89: 44375 | AK89: MABAN | AO89: ='MDA1'!K89 -> 32741 | AP89: ='MDA3'!O89 -> 0 | AQ89: ='MDA4'!S89 -> 0

Sheet MDA1
A1: MDA 1 - Ivermectin (IVM) and Albendazole (ALB)
A2: Administrative structure, population requiring PC by age group, population treated by age group and coverage
A4: TOTAL | G4: =SUBTOTAL(9,G$10:G$1010) -> 2607530 | H4: 4667216 | I4: 7274746 | K4: =SUBTOTAL(9,K$10:K$1010) -> 2525222 | L4: 2686202 | M4: 5211424 | O4: =IF(G4<>0, IF(K4/G4*100=0, "-", K4/G4*100), " ") -> 96.84344955 | P4: =IF(H4<>0, IF(L4/H4*100=0, "-", L4/H4*100), " ") -> 57.55469642 | Q4: =IF(I4<>0, IF(M4/I4*100=0, "-", M4/I4*100), " ") -> 71.63719531
A6: Country administrative structure | D6: PC implemented | E6: Date | F6: Population targeted for MDA 1 | J6: Population treated | N6: Programme coverage (%)
A7: Country | B7: Province/State | C7: District | F7: PreSAC | G7: SAC | H7: Adults | I7: Total | J7: PreSAC | K7: SAC | L7: Adults | M7: Total | N7: PreSAC | O7: SAC | P7: Adults | Q7: Total
A10: =IF(COUNTRY_INFO!A10=0," ",COUNTRY_INFO!A10) -> South Sudan | B10: =IF(COUNTRY_INFO!B10=0," ",COUNTRY_INFO!B10) -> Central Equatoria | C10: =IF(COUNTRY_INFO!C10=0," ",COUNTRY_INFO!C10) -> TEREKEKA | D10: =IF(COUNTRY_INFO!$AA10="MDA1 (IVM+ALB)", COUNTRY_INFO!$AA10, " ") -> MDA1 (IVM+ALB) | E10: February 2022 | G10: 75129 | H10: 134473 | I10: =SUM(F10:H10) -> 209602 | K10: 92868 | L10: 104032 | M10: =SUM(J10:L10) -> 196900 | O10: =IF(G10<>0, IF(K10/G10*100=0, "-", K10/G10*100), " ") -> 123.6113884 | P10: =IF(H10<>0, IF(L10/H10*100=0, "-", L10/H10*100), " ") -> 77.36274196 | Q10: 93.93994332
A11: =IF(COUNTRY_INFO!A11=0," ",COUNTRY_INFO!A11) -> South Sudan | B11: =IF(COUNTRY_INFO!B11=0," ",COUNTRY_INFO!B11) -> Central Equatoria | C11: =IF(COUNTRY_INFO!C11=0," ",COUNTRY_INFO!C11) -> JUBA | D11: =IF(COUNTRY_INFO!$AA11="MDA1 (IVM+ALB)", COUNTRY_INFO!$AA11, " ") -> MDA1 (IVM+ALB) | E11: February 2022 | G11: 191550 | H11: 342855 | I11: =SUM(F11:H11) -> 534405 | K11: 366852 | L11: 387071 | M11: =SUM(J11:L11) -> 753923 | O11: =IF(G11<>0, IF(K11/G11*100=0, "-", K11/G11*100), " ") -> 191.5176194 | P11: =IF(H11<>0, IF(L11/H11*100=0, "-", L11/H11*100), " ") -> 112.8964139 | Q11: =IF(I11<>0, IF(M11/I11*100=0, "-", M11/I11*100), " ") -> 141.0770857
A12: =IF(COUNTRY_INFO!A12=0," ",COUNTRY_INFO!A12) -> South Sudan | B12: =IF(COUNTRY_INFO!B12=0," ",COUNTRY_INFO!B12) -> Central Equatoria | C12: =IF(COUNTRY_INFO!C12=0," ",COUNTRY_INFO!C12) -> LAINYA | D12: =IF(COUNTRY_INFO!$AA12="MDA1 (IVM+ALB)", COUNTRY_INFO!$AA12, " ") -> MDA1 (IVM+ALB) | E12: July 2022 | G12: 46454 | H12: 83148 | I12: 129602 | K12: 23935 | L12: 23316 | M12: 47251 | O12: 51.52408835 | P12: 28.04156444 | Q12: 36.45854231
A13: =IF(COUNTRY_INFO!A13=0," ",COUNTRY_INFO!A13) -> South Sudan | B13: =IF(COUNTRY_INFO!B13=0," ",COUNTRY_INFO!B13) -> Central Equatoria | C13: =IF(COUNTRY_INFO!C13=0," ",COUNTRY_INFO!C13) -> YEI | D13: =IF(COUNTRY_INFO!$AA13="MDA1 (IVM+ALB)", COUNTRY_INFO!$AA13, " ") -> MDA1 (IVM+ALB) | E13: July 2022 | G13: 104951 | H13: 187852 | I13: 292803 | K13: 40468 | L13: 41408 | M13: 81876 | O13: 38.55894656 | P13: 22.04288482 | Q13: 27.96282825
A14: =IF(COUNTRY_INFO!A14=0," ",COUNTRY_INFO!A14) -> South Sudan | B14: =IF(COUNTRY_INFO!B14=0," ",COUNTRY_INFO!B14) -> Central Equatoria | C14: =IF(COUNTRY_INFO!C14=0," ",COUNTRY_INFO!C14) -> MOROBO | D14: =IF(COUNTRY_INFO!$AA14="MDA1 (IVM+ALB)", COUNTRY_INFO!$AA14, " ") -> MDA1 (IVM+ALB) | E14: July 2022 | G14: 53909 | H14: 96492 | I14: 150401 | K14: 23717 | L14: 21265 | M14: 44982 | O14: 43.99450927 | P14: 22.03809642 | Q14: 29.90804582
A15: =IF(COUNTRY_INFO!A15=0," ",COUNTRY_INFO!A15) -> South Sudan | B15: =IF(COUNTRY_INFO!B15=0," ",COUNTRY_INFO!B15) -> Central Equatoria | C15: =IF(COUNTRY_INFO!C15=0," ",COUNTRY_INFO!C15) -> KAJO KEJI | D15: =IF(COUNTRY_INFO!$AA15="MDA1 (IVM+ALB)", COUNTRY_INFO!$AA15, " ") -> MDA1 (IVM+ALB) | E15: June 2022 | G15: 102084 | H15: 182719 | I15: 284803 | K15: 95316 | L15: 110367 | M15: 205683 | O15: 93.37016575 | P15: 60.40258539 | Q15: 72.21939376
A16: =IF(COUNTRY_INFO!A16=0," ",COUNTRY_INFO!A16) -> South Sudan | B16: =IF(COUNTRY_INFO!B16=0," ",COUNTRY_INFO!B16) -> Eastern Equatoria | C16: =IF(COUNTRY_INFO!C16=0," ",COUNTRY_INFO!C16) -> TORIT | D16: =IF(COUNTRY_INFO!$AA16="MDA1 (IVM+ALB)", COUNTRY_INFO!$AA16, " ") -> MDA1 (IVM+ALB) | E16: July 2022 | G16: 57066 | H16: 102143 | I16: 159209 | K16: 51904 | L16: 56308 | M16: 108212 | O16: 90.95433358 | P16: 55.12663619 | Q16: 67.96851937
A17: =IF(COUNTRY_INFO!A17=0," ",COUNTRY_INFO!A17) -> South Sudan | B17: =IF(COUNTRY_INFO!B17=0," ",COUNTRY_INFO!B17) -> Eastern Equatoria | C17: =IF(COUNTRY_INFO!C17=0," ",COUNTRY_INFO!C17) -> LOPA/LAFON | D17: =IF(COUNTRY_INFO!$AA17="MDA1 (IVM+ALB)", COUNTRY_INFO!$AA17, " ") ->  | I17: 0 | M17: 0
A18: =IF(COUNTRY_INFO!A18=0," ",COUNTRY_INFO!A18) -> South Sudan | B18: =IF(COUNTRY_INFO!B18=0," ",COUNTRY_INFO!B18) -> Eastern Equatoria | C18: =IF(COUNTRY_INFO!C18=0," ",COUNTRY_INFO!C18) -> KAPOETA NORTH | D18: =IF(COUNTRY_INFO!$AA18="MDA1 (IVM+ALB)", COUNTRY_INFO!$AA18, " ") ->  | I18: 0 | M18: 0
A19: =IF(COUNTRY_INFO!A19=0," ",COUNTRY_INFO!A19) -> South Sudan | B19: =IF(COUNTRY_INFO!B19=0," ",COUNTRY_INFO!B19) -> Eastern Equatoria | C19: =IF(COUNTRY_INFO!C19=0," ",COUNTRY_INFO!C19) -> KAPOETA EAST | D19: =IF(COUNTRY_INFO!$AA19="MDA1 (IVM+ALB)", COUNTRY_INFO!$AA19, " ") ->  | I19: 0 | M19: 0
A20: =IF(COUNTRY_INFO!A20=0," ",COUNTRY_INFO!A20) -> South Sudan | B20: =IF(COUNTRY_INFO!B20=0," ",COUNTRY_INFO!B20) -> Eastern Equatoria | C20: =IF(COUNTRY_INFO!C20=0," ",COUNTRY_INFO!C20) -> KAPOETA SOUTH | D20: =IF(COUNTRY_INFO!$AA20="MDA1 (IVM+ALB)", COUNTRY_INFO!$AA20, " ") -> MDA1 (IVM+ALB) | E20: August 2022 | G20: 45653 | H20: 81714 | I20: 127367 | K20: 46892 | L20: 50867 | M20: 97759 | O20: 102.7139509 | P20: 62.25004283 | Q20: 76.75379023
A21: =IF(COUNTRY_INFO!A21=0," ",COUNTRY_INFO!A21) -> South Sudan | B21: =IF(COUNTRY_INFO!B21=0," ",COUNTRY_INFO!B21) -> Eastern Equatoria | C21: =IF(COUNTRY_INFO!C21=0," ",COUNTRY_INFO!C21) -> BUDI | D21: =IF(COUNTRY_INFO!$AA21="MDA1 (IVM+ALB)", COUNTRY_INFO!$AA21, " ") -> MDA1 (IVM+ALB) | E21: August 2022 | G21: 57066 | H21: 102143 | I21: 159209 | K21: 28980 | L21: 38068 | M21: 67048 | O21: 50.78330354 | P21: 37.2693185 | Q21: 42.11319712
A22: =IF(COUNTRY_INFO!A22=0," ",COUNTRY_INFO!A22) -> South Sudan | B22: =IF(COUNTRY_INFO!B22=0," ",COUNTRY_INFO!B22) -> Eastern Equatoria | C22: =IF(COUNTRY_INFO!C22=0," ",COUNTRY_INFO!C22) -> IKOTOS | D22: =IF(COUNTRY_INFO!$AA22="MDA1 (IVM+ALB)", COUNTRY_INFO!$AA22, " ") -> MDA1 (IVM+ALB) | E22: August 2022 | G22: 48247 | H22: 86357 | I22: 134604 | K22: 46400 | L22: 53636 | M22: 100036 | O22: 96.1717827 | P22: 62.10961474 | Q22: 74.31874239
A23: =IF(COUNTRY_INFO!A23=0," ",COUNTRY_INFO!A23) -> South Sudan | B23: =IF(COUNTRY_INFO!B23=0," ",COUNTRY_INFO!B23) -> Eastern Equatoria | C23: =IF(COUNTRY_INFO!C23=0," ",COUNTRY_INFO!C23) -> MAGWI | D23: =IF(COUNTRY_INFO!$AA23="MDA1 (IVM+ALB)", COUNTRY_INFO!$AA23, " ") -> MDA1 (IVM+ALB) | E23: July 2022 | G23: 97013 | H23: 173643 | I23: 270656 | K23: 73715 | L23: 72584 | M23: 146299 | O23: 75.98466185 | P23: 41.80070605 | Q23: 54.05348487
A24: =IF(COUNTRY_INFO!A24=0," ",COUNTRY_INFO!A24) -> South Sudan | B24: =IF(COUNTRY_INFO!B24=0," ",COUNTRY_INFO!B24) -> Jonglei | C24: =IF(COUNTRY_INFO!C24=0," ",COUNTRY_INFO!C24) -> FANGAK | D24: =IF(COUNTRY_INFO!$AA24="MDA1 (IVM+ALB)", COUNTRY_INFO!$AA24, " ") ->  | I24: 0 | M24: 0
A25: =IF(COUNTRY_INFO!A25=0," ",COUNTRY_INFO!A25) -> South Sudan | B25: =IF(COUNTRY_INFO!B25=0," ",COUNTRY_INFO!B25) -> Jonglei | C25: =IF(COUNTRY_INFO!C25=0," ",COUNTRY_INFO!C25) -> KHORFLUS | D25: =IF(COUNTRY_INFO!$AA25="MDA1 (IVM+ALB)", COUNTRY_INFO!$AA25, " ") -> MDA1 (IVM+ALB) | E25: June 2022 | G25: 49390 | H25: 88404 | I25: 137794 | K25: 17897 | L25: 16309 | M25: 34206 | O25: 36.23608018 | P25: 18.44826026 | Q25: 24.82401266
A26: =IF(COUNTRY_INFO!A26=0," ",COUNTRY_INFO!A26) -> South Sudan | B26: =IF(COUNTRY_INFO!B26=0," ",COUNTRY_INFO!B26) -> Jonglei | C26: =IF(COUNTRY_INFO!C26=0," ",COUNTRY_INFO!C26) -> AYOD | D26: =IF(COUNTRY_INFO!$AA26="MDA1 (IVM+ALB)", COUNTRY_INFO!$AA26, " ") ->  | I26: 0 | M26: 0
A27: =IF(COUNTRY_INFO!A27=0," ",COUNTRY_INFO!A27) -> South Sudan | B27: =IF(COUNTRY_INFO!B27=0," ",COUNTRY_INFO!B27) -> Jonglei | C27: =IF(COUNTRY_INFO!C27=0," ",COUNTRY_INFO!C27) -> DUK | D27: =IF(COUNTRY_INFO!$AA27="MDA1 (IVM+ALB)", COUNTRY_INFO!$AA27, " ") ->  | I27: 0 | M27: 0
A28: =IF(COUNTRY_INFO!A28=0," ",COUNTRY_INFO!A28) -> South Sudan | B28: =IF(COUNTRY_INFO!B28=0," ",COUNTRY_INFO!B28) -> Jonglei | C28: =IF(COUNTRY_INFO!C28=0," ",COUNTRY_INFO!C28) -> UROR | D28: =IF(COUNTRY_INFO!$AA28="MDA1 (IVM+ALB)", COUNTRY_INFO!$AA28, " ") ->  | I28: 0 | M28: 0
A29: =IF(COUNTRY_INFO!A29=0," ",COUNTRY_INFO!A29) -> South Sudan | B29: =IF(COUNTRY_INFO!B29=0," ",COUNTRY_INFO!B29) -> Jonglei | C29: =IF(COUNTRY_INFO!C29=0," ",COUNTRY_INFO!C29) -> NYIROL | D29: =IF(COUNTRY_INFO!$AA29="MDA1 (IVM+ALB)", COUNTRY_INFO!$AA29, " ") ->  | I29: 0 | M29: 0
A30: =IF(COUNTRY_INFO!A30=0," ",COUNTRY_INFO!A30) -> South Sudan | B30: =IF(COUNTRY_INFO!B30=0," ",COUNTRY_INFO!B30) -> Jonglei | C30: =IF(COUNTRY_INFO!C30=0," ",COUNTRY_INFO!C30) -> AKOBO | D30: =IF(COUNTRY_INFO!$AA30="MDA1 (IVM+ALB)", COUNTRY_INFO!$AA30, " ") ->  | I30: 0 | M30: 0
A31: =IF(COUNTRY_INFO!A31=0," ",COUNTRY_INFO!A31) -> South Sudan | B31: =IF(COUNTRY_INFO!B31=0," ",COUNTRY_INFO!B31) -> Jonglei | C31: =IF(COUNTRY_INFO!C31=0," ",COUNTRY_INFO!C31) -> POCHALA | D31: =IF(COUNTRY_INFO!$AA31="MDA1 (IVM+ALB)", COUNTRY_INFO!$AA31, " ") -> MDA1 (IVM+ALB) | E31: June 2022 | G31: 33153 | H31: 59340 | I31: 92493 | K31: 18759 | L31: 19148 | M31: 37907 | O31: 56.58311465 | P31: 32.26828446 | Q31: 40.98364201
A32: =IF(COUNTRY_INFO!A32=0," ",COUNTRY_INFO!A32) -> South Sudan | B32: =IF(COUNTRY_INFO!B32=0," ",COUNTRY_INFO!B32) -> Jonglei | C32: =IF(COUNTRY_INFO!C32=0," ",COUNTRY_INFO!C32) -> PIBOR | D32: =IF(COUNTRY_INFO!$AA32="MDA1 (IVM+ALB)", COUNTRY_INFO!$AA32, " ") -> MDA1 (IVM+ALB) | E32: June 2022 | G32: 73748 | H32: 132001 | I32: 205749 | K32: 36007 | L32: 38156 | M32: 74163 | O32: 48.8243749 | P32: 28.90584162 | Q32: 36.04537568
A33: =IF(COUNTRY_INFO!A33=0," ",COUNTRY_INFO!A33) -> South Sudan | B33: =IF(COUNTRY_INFO!B33=0," ",COUNTRY_INFO!B33) -> Jonglei | C33: =IF(COUNTRY_INFO!C33=0," ",COUNTRY_INFO!C33) -> TWIC EAST | D33: =IF(COUNTRY_INFO!$AA33="MDA1 (IVM+ALB)", COUNTRY_INFO!$AA33, " ") ->  | I33: 0 | M33: 0
A34: =IF(COUNTRY_INFO!A34=0," ",COUNTRY_INFO!A34) -> South Sudan | B34: =IF(COUNTRY_INFO!B34=0," ",COUNTRY_INFO!B34) -> Jonglei | C34: =IF(COUNTRY_INFO!C34=0," ",COUNTRY_INFO!C34) -> BOR SOUTH | D34: =IF(COUNTRY_INFO!$AA34="MDA1 (IVM+ALB)", COUNTRY_INFO!$AA34, " ") ->  | I34: 0 | M34: 0
A35: =IF(COUNTRY_INFO!A35=0," ",COUNTRY_INFO!A35) -> South Sudan | B35: =IF(COUNTRY_INFO!B35=0," ",COUNTRY_INFO!B35) -> Lakes | C35: =IF(COUNTRY_INFO!C35=0," ",COUNTRY_INFO!C35) -> CUEBIT | D35: =IF(COUNTRY_INFO!$AA35="MDA1 (IVM+ALB)", COUNTRY_INFO!$AA35, " ") ->  | I35: 0 | M35: 0
A36: =IF(COUNTRY_INFO!A36=0," ",COUNTRY_INFO!A36) -> South Sudan | B36: =IF(COUNTRY_INFO!B36=0," ",COUNTRY_INFO!B36) -> Lakes | C36: =IF(COUNTRY_INFO!C36=0," ",COUNTRY_INFO!C36) -> RUMBEK NORTH | D36: =IF(COUNTRY_INFO!$AA36="MDA1 (IVM+ALB)", COUNTRY_INFO!$AA36, " ") -> MDA1 (IVM+ALB) | E36: May 2022 | G36: 24302 | H36: 43498 | I36: 67800 | K36: 40127 | L36: 41383 | M36: 81510 | O36: 165.1180973 | P36: 95.13770748 | Q36: 120.2212389
A37: =IF(COUNTRY_INFO!A37=0," ",COUNTRY_INFO!A37) -> South Sudan | B37: =IF(COUNTRY_INFO!B37=0," ",COUNTRY_INFO!B37) -> Lakes | C37: =IF(COUNTRY_INFO!C37=0," ",COUNTRY_INFO!C37) -> RUMBEK CENTRE | D37: =IF(COUNTRY_INFO!$AA37="MDA1 (IVM+ALB)", COUNTRY_INFO!$AA37, " ") -> MDA1 (IVM+ALB) | E37: May 2022 | G37: 86624 | H37: 155049 | I37: 241673 | K37: 90346 | L37: 92023 | M37: 182369 | O37: 104.2967307 | P37: 59.35091487 | Q37: 75.46105688
A38: =IF(COUNTRY_INFO!A38=0," ",COUNTRY_INFO!A38) -> South Sudan | B38: =IF(COUNTRY_INFO!B38=0," ",COUNTRY_INFO!B38) -> Lakes | C38: =IF(COUNTRY_INFO!C38=0," ",COUNTRY_INFO!C38) -> WULU | D38: =IF(COUNTRY_INFO!$AA38="MDA1 (IVM+ALB)", COUNTRY_INFO!$AA38, " ") -> MDA1 (IVM+ALB) | E38: May 2022 | G38: 22734 | H38: 40692 | I38: 63426 | K38: 27653 | L38: 29292 | M38: 56945 | O38: 121.6371954 | P38: 71.98466529 | Q38: 89.78179296
A39: =IF(COUNTRY_INFO!A39=0," ",COUNTRY_INFO!A39) -> South Sudan | B39: =IF(COUNTRY_INFO!B39=0," ",COUNTRY_INFO!B39) -> Lakes | C39: =IF(COUNTRY_INFO!C39=0," ",COUNTRY_INFO!C39) -> RUMBEK EAST | D39: =IF(COUNTRY_INFO!$AA39="MDA1 (IVM+ALB)", COUNTRY_INFO!$AA39, " ") ->  | I39: 0 | M39: 0
A40: =IF(COUNTRY_INFO!A40=0," ",COUNTRY_INFO!A40) -> South Sudan | B40: =IF(COUNTRY_INFO!B40=0," ",COUNTRY_INFO!B40) -> Lakes | C40: =IF(COUNTRY_INFO!C40=0," ",COUNTRY_INFO!C40) -> YIROL WEST | D40: =IF(COUNTRY_INFO!$AA40="MDA1 (IVM+ALB)", COUNTRY_INFO!$AA40, " ") ->  | I40: 0 | M40: 0
A41: =IF(COUNTRY_INFO!A41=0," ",COUNTRY_INFO!A41) -> South Sudan | B41: =IF(COUNTRY_INFO!B41=0," ",COUNTRY_INFO!B41) -> Lakes | C41: =IF(COUNTRY_INFO!C41=0," ",COUNTRY_INFO!C41) -> YIROL EAST | D41: =IF(COUNTRY_INFO!$AA41="MDA1 (IVM+ALB)", COUNTRY_INFO!$AA41, " ") ->  | I41: 0 | M41: 0
A42: =IF(COUNTRY_INFO!A42=0," ",COUNTRY_INFO!A42) -> South Sudan | B42: =IF(COUNTRY_INFO!B42=0," ",COUNTRY_INFO!B42) -> Lakes | C42: =IF(COUNTRY_INFO!C42=0," ",COUNTRY_INFO!C42) -> AWERIAL | D42: =IF(COUNTRY_INFO!$AA42="MDA1 (IVM+ALB)", COUNTRY_INFO!$AA42, " ") -> MDA1 (IVM+ALB) | E42: July 2022 | G42: 26654 | H42: 47708 | I42: 74362 | K42: 39859 | L42: 40928 | M42: 80787 | O42: 149.5422826 | P42: 85.78854699 | Q42: 108.6401657
A43: =IF(COUNTRY_INFO!A43=0," ",COUNTRY_INFO!A43) -> South Sudan | B43: =IF(COUNTRY_INFO!B43=0," ",COUNTRY_INFO!B43) -> Northern Bahr El Ghazal | C43: =IF(COUNTRY_INFO!C43=0," ",COUNTRY_INFO!C43) -> AWIEL NORTH | D43: =IF(COUNTRY_INFO!$AA43="MDA1 (IVM+ALB)", COUNTRY_INFO!$AA43, " ") ->  | I43: 0 | M43: 0
A44: =IF(COUNTRY_INFO!A44=0," ",COUNTRY_INFO!A44) -> South Sudan | B44: =IF(COUNTRY_INFO!B44=0," ",COUNTRY_INFO!B44) -> Northern Bahr El Ghazal | C44: =IF(COUNTRY_INFO!C44=0," ",COUNTRY_INFO!C44) -> AWIEL EAST | D44: =IF(COUNTRY_INFO!$AA44="MDA1 (IVM+ALB)", COUNTRY_INFO!$AA44, " ") -> MDA1 (IVM+ALB) | E44: May 2022 | G44: 159679 | H44: 285809 | I44: 445488 | K44: 165096 | L44: 172394 | M44: 337490 | O44: 103.3924311 | P44: 60.31790461 | Q44: 75.75737169
A45: =IF(COUNTRY_INFO!A45=0," ",COUNTRY_INFO!A45) -> South Sudan | B45: =IF(COUNTRY_INFO!B45=0," ",COUNTRY_INFO!B45) -> Northern Bahr El Ghazal | C45: =IF(COUNTRY_INFO!C45=0," ",COUNTRY_INFO!C45) -> AWIEL SOUTH | D45: =IF(COUNTRY_INFO!$AA45="MDA1 (IVM+ALB)", COUNTRY_INFO!$AA45, " ") ->  | I45: 0 | M45: 0
A46: =IF(COUNTRY_INFO!A46=0," ",COUNTRY_INFO!A46) -> South Sudan | B46: =IF(COUNTRY_INFO!B46=0," ",COUNTRY_INFO!B46) -> Northern Bahr El Ghazal | C46: =IF(COUNTRY_INFO!C46=0," ",COUNTRY_INFO!C46) -> AWIEL WEST | D46: =IF(COUNTRY_INFO!$AA46="MDA1 (IVM+ALB)", COUNTRY_INFO!$AA46, " ") -> MDA1 (IVM+ALB) | E46: May 2022 | G46: 85781 | H46: 153539 | I46: 239320 | K46: 89690 | L46: 104161 | M46: 193851 | O46: 104.5569532 | P46: 67.84009275 | Q46: 81.00075213
A47: =IF(COUNTRY_INFO!A47=0," ",COUNTRY_INFO!A47) -> South Sudan | B47: =IF(COUNTRY_INFO!B47=0," ",COUNTRY_INFO!B47) -> Northern Bahr El Ghazal | C47: =IF(COUNTRY_INFO!C47=0," ",COUNTRY_INFO!C47) -> AWIEL CENTRE | D47: =IF(COUNTRY_INFO!$AA47="MDA1 (IVM+ALB)", COUNTRY_INFO!$AA47, " ") -> MDA1 (IVM+ALB) | E47: June 2022 | G47: 21538 | H47: 38551 | I47: 60089 | K47: 33491 | L47: 32836 | M47: 66327 | O47: 155.4972607 | P47: 85.17548183 | Q47: 110.3812678
A48: =IF(COUNTRY_INFO!A48=0," ",COUNTRY_INFO!A48) -> South Sudan | B48: =IF(COUNTRY_INFO!B48=0," ",COUNTRY_INFO!B48) -> Unity | C48: =IF(COUNTRY_INFO!C48=0," ",COUNTRY_INFO!C48) -> PARIANG | D48: =IF(COUNTRY_INFO!$AA48="MDA1 (IVM+ALB)", COUNTRY_INFO!$AA48, " ") ->  | I48: 0 | M48: 0
A49: =IF(COUNTRY_INFO!A49=0," ",COUNTRY_INFO!A49) -> South Sudan | B49: =IF(COUNTRY_INFO!B49=0," ",COUNTRY_INFO!B49) -> Unity | C49: =IF(COUNTRY_INFO!C49=0," ",COUNTRY_INFO!C49) -> ABIEMNHOM | D49: =IF(COUNTRY_INFO!$AA49="MDA1 (IVM+ALB)", COUNTRY_INFO!$AA49, " ") ->  | I49: 0 | M49: 0
A50: =IF(COUNTRY_INFO!A50=0," ",COUNTRY_INFO!A50) -> South Sudan | B50: =IF(COUNTRY_INFO!B50=0," ",COUNTRY_INFO!B50) -> Unity | C50: =IF(COUNTRY_INFO!C50=0," ",COUNTRY_INFO!C50) -> MAYOM | D50: =IF(COUNTRY_INFO!$AA50="MDA1 (IVM+ALB)", COUNTRY_INFO!$AA50, " ") ->  | I50: 0 | M50: 0
A51: =IF(COUNTRY_INFO!A51=0," ",COUNTRY_INFO!A51) -> South Sudan | B51: =IF(COUNTRY_INFO!B51=0," ",COUNTRY_INFO!B51) -> Unity | C51: =IF(COUNTRY_INFO!C51=0," ",COUNTRY_INFO!C51) -> RUBKONA | D51: =IF(COUNTRY_INFO!$AA51="MDA1 (IVM+ALB)", COUNTRY_INFO!$AA51, " ") ->  | I51: 0 | M51: 0
A52: =IF(COUNTRY_INFO!A52=0," ",COUNTRY_INFO!A52) -> South Sudan | B52: =IF(COUNTRY_INFO!B52=0," ",COUNTRY_INFO!B52) -> Unity | C52: =IF(COUNTRY_INFO!C52=0," ",COUNTRY_INFO!C52) -> GUIT | D52: =IF(COUNTRY_INFO!$AA52="MDA1 (IVM+ALB)", COUNTRY_INFO!$AA52, " ") ->  | I52: 0 | M52: 0
A53: =IF(COUNTRY_INFO!A53=0," ",COUNTRY_INFO!A53) -> South Sudan | B53: =IF(COUNTRY_INFO!B53=0," ",COUNTRY_INFO!B53) -> Unity | C53: =IF(COUNTRY_INFO!C53=0," ",COUNTRY_INFO!C53) -> KOCH | D53: =IF(COUNTRY_INFO!$AA53="MDA1 (IVM+ALB)", COUNTRY_INFO!$AA53, " ") ->  | I53: 0 | M53: 0
A54: =IF(COUNTRY_INFO!A54=0," ",COUNTRY_INFO!A54) -> South Sudan | B54: =IF(COUNTRY_INFO!B54=0," ",COUNTRY_INFO!B54) -> Unity | C54: =IF(COUNTRY_INFO!C54=0," ",COUNTRY_INFO!C54) -> LEER | D54: =IF(COUNTRY_INFO!$AA54="MDA1 (IVM+ALB)", COUNTRY_INFO!$AA54, " ") ->  | I54: 0 | M54: 0
A55: =IF(COUNTRY_INFO!A55=0," ",COUNTRY_INFO!A55) -> South Sudan | B55: =IF(COUNTRY_INFO!B55=0," ",COUNTRY_INFO!B55) -> Unity | C55: =IF(COUNTRY_INFO!C55=0," ",COUNTRY_INFO!C55) -> MAYENDIT | D55: =IF(COUNTRY_INFO!$AA55="MDA1 (IVM+ALB)", COUNTRY_INFO!$AA55, " ") ->  | I55: 0 | M55: 0
A56: =IF(COUNTRY_INFO!A56=0," ",COUNTRY_INFO!A56) -> South Sudan | B56: =IF(COUNTRY_INFO!B56=0," ",COUNTRY_INFO!B56) -> Unity | C56: =IF(COUNTRY_INFO!C56=0," ",COUNTRY_INFO!C56) -> PAYNIJAR | D56: =IF(COUNTRY_INFO!$AA56="MDA1 (IVM+ALB)", COUNTRY_INFO!$AA56, " ") ->  | I56: 0 | M56: 0
A57: =IF(COUNTRY_INFO!A57=0," ",COUNTRY_INFO!A57) -> South Sudan | B57: =IF(COUNTRY_INFO!B57=0," ",COUNTRY_INFO!B57) -> Upper Nile | C57: =IF(COUNTRY_INFO!C57=0," ",COUNTRY_INFO!C57) -> RENK | D57: =IF(COUNTRY_INFO!$AA57="MDA1 (IVM+ALB)", COUNTRY_INFO!$AA57, " ") -> MDA1 (IVM+ALB) | E57: May 2022 | G57: 72677 | H57: 130085 | I57: 202762 | K57: 30779 | L57: 36666 | M57: 67445 | O57: 42.35039971 | P57: 28.18618596 | Q57: 33.26313609
A58: =IF(COUNTRY_INFO!A58=0," ",COUNTRY_INFO!A58) -> South Sudan | B58: =IF(COUNTRY_INFO!B58=0," ",COUNTRY_INFO!B58) -> Upper Nile | C58: =IF(COUNTRY_INFO!C58=0," ",COUNTRY_INFO!C58) -> MANYO | D58: =IF(COUNTRY_INFO!$AA58="MDA1 (IVM+ALB)", COUNTRY_INFO!$AA58, " ") -> MDA1 (IVM+ALB) | E58: June 2022 | G58: 19821 | H58: 35478 | I58: 55299 | K58: 13564 | L58: 14470 | M58: 28034 | O58: 68.43247061 | P58: 40.78583911 | Q58: 50.69531095
A59: =IF(COUNTRY_INFO!A59=0," ",COUNTRY_INFO!A59) -> South Sudan | B59: =IF(COUNTRY_INFO!B59=0," ",COUNTRY_INFO!B59) -> Upper Nile | C59: =IF(COUNTRY_INFO!C59=0," ",COUNTRY_INFO!C59) -> FASHODA | D59: =IF(COUNTRY_INFO!$AA59="MDA1 (IVM+ALB)", COUNTRY_INFO!$AA59, " ") -> MDA1 (IVM+ALB) | E59: May 2022 | G59: 19313 | H59: 34568 | I59: 53881 | K59: 15740 | L59: 16579 | M59: 32319 | O59: 81.4995081 | P59: 47.96054154 | Q59: 59.98218296
A60: =IF(COUNTRY_INFO!A60=0," ",COUNTRY_INFO!A60) -> South Sudan | B60: =IF(COUNTRY_INFO!B60=0," ",COUNTRY_INFO!B60) -> Upper Nile | C60: =IF(COUNTRY_INFO!C60=0," ",COUNTRY_INFO!C60) -> MELUT | D60: =IF(COUNTRY_INFO!$AA60="MDA1 (IVM+ALB)", COUNTRY_INFO!$AA60, " ") -> MDA1 (IVM+ALB) | E60: May 2022 | G60: 25920 | H60: 46394 | I60: 72314 | K60: 9565 | L60: 9435 | M60: 19000 | O60: 36.90200617 | P60: 20.33668147 | Q60: 26.27430373
A61: =IF(COUNTRY_INFO!A61=0," ",COUNTRY_INFO!A61) -> South Sudan | B61: =IF(COUNTRY_INFO!B61=0," ",COUNTRY_INFO!B61) -> Upper Nile | C61: =IF(COUNTRY_INFO!C61=0," ",COUNTRY_INFO!C61) -> MABAN | D61: =IF(COUNTRY_INFO!$AA61="MDA1 (IVM+ALB)", COUNTRY_INFO!$AA61, " ") -> MDA1 (IVM+ALB) | E61: March 2022 | G61: 23887 | H61: 42755 | I61: 66642 | K61: 30551 | L61: 30461 | M61: 61012 | O61: 127.8980198 | P61: 71.24546837 | Q61: 91.55187419
A62: =IF(COUNTRY_INFO!A62=0," ",COUNTRY_INFO!A62) -> South Sudan | B62: =IF(COUNTRY_INFO!B62=0," ",COUNTRY_INFO!B62) -> Upper Nile | C62: =IF(COUNTRY_INFO!C62=0," ",COUNTRY_INFO!C62) -> MAIWUT | D62: =IF(COUNTRY_INFO!$AA62="MDA1 (IVM+ALB)", COUNTRY_INFO!$AA62, " ") ->  | I62: 0 | M62: 0
A63: =IF(COUNTRY_INFO!A63=0," ",COUNTRY_INFO!A63) -> South Sudan | B63: =IF(COUNTRY_INFO!B63=0," ",COUNTRY_INFO!B63) -> Upper Nile | C63: =IF(COUNTRY_INFO!C63=0," ",COUNTRY_INFO!C63) -> LUAKPINY/NASIR | D63: =IF(COUNTRY_INFO!$AA63="MDA1 (IVM+ALB)", COUNTRY_INFO!$AA63, " ") -> MDA1 (IVM+ALB) | E63: March 2022 | G63: 110794 | H63: 198310 | I63: 309104 | K63: 48107 | L63: 49896 | M63: 98003 | O63: 43.42022131 | P63: 25.16060713 | Q63: 31.70551012
A64: =IF(COUNTRY_INFO!A64=0," ",COUNTRY_INFO!A64) -> South Sudan | B64: =IF(COUNTRY_INFO!B64=0," ",COUNTRY_INFO!B64) -> Upper Nile | C64: =IF(COUNTRY_INFO!C64=0," ",COUNTRY_INFO!C64) -> LONGOCHUK | D64: =IF(COUNTRY_INFO!$AA64="MDA1 (IVM+ALB)", COUNTRY_INFO!$AA64, " ") ->  | I64: 0 | M64: 0
A65: =IF(COUNTRY_INFO!A65=0," ",COUNTRY_INFO!A65) -> South Sudan | B65: =IF(COUNTRY_INFO!B65=0," ",COUNTRY_INFO!B65) -> Upper Nile | C65: =IF(COUNTRY_INFO!C65=0," ",COUNTRY_INFO!C65) -> ULANG | D65: =IF(COUNTRY_INFO!$AA65="MDA1 (IVM+ALB)", COUNTRY_INFO!$AA65, " ") -> MDA1 (IVM+ALB) | E65: June 2022 | G65: 44724 | H65: 80052 | I65: 124776 | K65: 15447 | L65: 17486 | M65: 32933 | O65: 34.53850282 | P65: 21.84330185 | Q65: 26.39369751
A66: =IF(COUNTRY_INFO!A66=0," ",COUNTRY_INFO!A66) -> South Sudan | B66: =IF(COUNTRY_INFO!B66=0," ",COUNTRY_INFO!B66) -> Upper Nile | C66: =IF(COUNTRY_INFO!C66=0," ",COUNTRY_INFO!C66) -> BALIET | D66: =IF(COUNTRY_INFO!$AA66="MDA1 (IVM+ALB)", COUNTRY_INFO!$AA66, " ") -> MDA1 (IVM+ALB) | E66: June 2022 | G66: 20202 | H66: 36160 | I66: 56362 | K66: 7079 | L66: 7423 | M66: 14502 | O66: 35.04108504 | P66: 20.52820796 | Q66: 25.73010184
A67: =IF(COUNTRY_INFO!A67=0," ",COUNTRY_INFO!A67) -> South Sudan | B67: =IF(COUNTRY_INFO!B67=0," ",COUNTRY_INFO!B67) -> Upper Nile | C67: =IF(COUNTRY_INFO!C67=0," ",COUNTRY_INFO!C67) -> MALAKAL | D67: =IF(COUNTRY_INFO!$AA67="MDA1 (IVM+ALB)", COUNTRY_INFO!$AA67, " ") -> MDA1 (IVM+ALB) | E67: May 2022 | G67: 66578 | H67: 119168 | I67: 185746 | K67: 20554 | L67: 20103 | M67: 40657 | O67: 30.87205984 | P67: 16.8694616 | Q67: 21.88849289
A68: =IF(COUNTRY_INFO!A68=0," ",COUNTRY_INFO!A68) -> South Sudan | B68: =IF(COUNTRY_INFO!B68=0," ",COUNTRY_INFO!B68) -> Upper Nile | C68: =IF(COUNTRY_INFO!C68=0," ",COUNTRY_INFO!C68) -> PANYKANG | D68: =IF(COUNTRY_INFO!$AA68="MDA1 (IVM+ALB)", COUNTRY_INFO!$AA68, " ") -> MDA1 (IVM+ALB) | E68: June 2022 | G68: 23887 | H68: 42755 | I68: 66642 | K68: 17877 | L68: 17862 | M68: 35739 | O68: 74.83987106 | P68: 41.77756987 | Q68: 53.62834249
A69: =IF(COUNTRY_INFO!A69=0," ",COUNTRY_INFO!A69) -> South Sudan | B69: =IF(COUNTRY_INFO!B69=0," ",COUNTRY_INFO!B69) -> Warrap | C69: =IF(COUNTRY_INFO!C69=0," ",COUNTRY_INFO!C69) -> ABYEI | D69: =IF(COUNTRY_INFO!$AA69="MDA1 (IVM+ALB)", COUNTRY_INFO!$AA69, " ") ->  | I69: 0 | M69: 0
A70: =IF(COUNTRY_INFO!A70=0," ",COUNTRY_INFO!A70) -> South Sudan | B70: =IF(COUNTRY_INFO!B70=0," ",COUNTRY_INFO!B70) -> Warrap | C70: =IF(COUNTRY_INFO!C70=0," ",COUNTRY_INFO!C70) -> TWIC | D70: =IF(COUNTRY_INFO!$AA70="MDA1 (IVM+ALB)", COUNTRY_INFO!$AA70, " ") -> MDA1 (IVM+ALB) | E70: May 2022 | G70: 105960 | H70: 189658 | I70: 295618 | K70: 64416 | L70: 67735 | M70: 132151 | O70: 60.79275198 | P70: 35.71428571 | Q70: 44.70329953
A71: =IF(COUNTRY_INFO!A71=0," ",COUNTRY_INFO!A71) -> South Sudan | B71: =IF(COUNTRY_INFO!B71=0," ",COUNTRY_INFO!B71) -> Warrap | C71: =IF(COUNTRY_INFO!C71=0," ",COUNTRY_INFO!C71) -> GOGRIAL WEST | D71: =IF(COUNTRY_INFO!$AA71="MDA1 (IVM+ALB)", COUNTRY_INFO!$AA71, " ") -> MDA1 (IVM+ALB) | E71: May 2022 | G71: 126048 | H71: 225612 | I71: 351660 | K71: 166857 | L71: 176190 | M71: 343047 | O71: 132.3757616 | P71: 78.09425031 | Q71: 97.55075926
A72: =IF(COUNTRY_INFO!A72=0," ",COUNTRY_INFO!A72) -> South Sudan | B72: =IF(COUNTRY_INFO!B72=0," ",COUNTRY_INFO!B72) -> Warrap | C72: =IF(COUNTRY_INFO!C72=0," ",COUNTRY_INFO!C72) -> GOGRIAL EAST | D72: =IF(COUNTRY_INFO!$AA72="MDA1 (IVM+ALB)", COUNTRY_INFO!$AA72, " ") -> MDA1 (IVM+ALB) | E72: May 2022 | G72: 53231 | H72: 95279 | I72: 148510 | K72: 73159 | L72: 72971 | M72: 146130 | O72: 137.4368319 | P72: 76.58665603 | Q72: 98.39741432
A73: =IF(COUNTRY_INFO!A73=0," ",COUNTRY_INFO!A73) -> South Sudan | B73: =IF(COUNTRY_INFO!B73=0," ",COUNTRY_INFO!B73) -> Warrap | C73: =IF(COUNTRY_INFO!C73=0," ",COUNTRY_INFO!C73) -> TONJ NORTH | D73: =IF(COUNTRY_INFO!$AA73="MDA1 (IVM+ALB)", COUNTRY_INFO!$AA73, " ") ->  | I73: 0 | M73: 0
A74: =IF(COUNTRY_INFO!A74=0," ",COUNTRY_INFO!A74) -> South Sudan | B74: =IF(COUNTRY_INFO!B74=0," ",COUNTRY_INFO!B74) -> Warrap | C74: =IF(COUNTRY_INFO!C74=0," ",COUNTRY_INFO!C74) -> TONJ EAST | D74: =IF(COUNTRY_INFO!$AA74="MDA1 (IVM+ALB)", COUNTRY_INFO!$AA74, " ") ->  | I74: 0 | M74: 0
A75: =IF(COUNTRY_INFO!A75=0," ",COUNTRY_INFO!A75) -> South Sudan | B75: =IF(COUNTRY_INFO!B75=0," ",COUNTRY_INFO!B75) -> Warrap | C75: =IF(COUNTRY_INFO!C75=0," ",COUNTRY_INFO!C75) -> TONJ SOUTH | D75: =IF(COUNTRY_INFO!$AA75="MDA1 (IVM+ALB)", COUNTRY_INFO!$AA75, " ") -> MDA1 (IVM+ALB) | E75: June 2022 | G75: 44694 | H75: 79998 | I75: =SUM(F75:H75) -> 124692 | K75: 42262 | L75: 41896 | M75: =SUM(J75:L75) -> 84158 | O75: =IF(G75<>0, IF(K75/G75*100=0, "-", K75/G75*100), " ") -> 94.55855372 | P75: =IF(H75<>0, IF(L75/H75*100=0, "-", L75/H75*100), " ") -> 52.37130928 | Q75: =IF(I75<>0, IF(M75/I75*100=0, "-", M75/I75*100), " ") -> 67.49270202
A76: =IF(COUNTRY_INFO!A76=0," ",COUNTRY_INFO!A76) -> South Sudan | B76: =IF(COUNTRY_INFO!B76=0," ",COUNTRY_INFO!B76) -> Wesstern Equatoria | C76: =IF(COUNTRY_INFO!C76=0," ",COUNTRY_INFO!C76) -> TAMBURA | D76: =IF(COUNTRY_INFO!$AA76="MDA1 (IVM+ALB)", COUNTRY_INFO!$AA76, " ") -> MDA1 (IVM+ALB) | E76: July 2022 | G76: 25376 | H76: 45421 | I76: 70797 | K76: 22312 | L76: 23493 | M76: 45805 | O76: 87.92559899 | P76: 51.72277141 | Q76: 64.69906917
A77: =IF(COUNTRY_INFO!A77=0," ",COUNTRY_INFO!A77) -> South Sudan | B77: =IF(COUNTRY_INFO!B77=0," ",COUNTRY_INFO!B77) -> Wesstern Equatoria | C77: =IF(COUNTRY_INFO!C77=0," ",COUNTRY_INFO!C77) -> NAGERO | D77: =IF(COUNTRY_INFO!$AA77="MDA1 (IVM+ALB)", COUNTRY_INFO!$AA77, " ") -> MDA1 (IVM+ALB) | E77: July 2022 | G77: 4562 | H77: 8166 | I77: 12728 | K77: 4496 | L77: 4993 | M77: 9489 | O77: 98.55326611 | P77: 61.14376684 | Q77: 74.55216845
A78: =IF(COUNTRY_INFO!A78=0," ",COUNTRY_INFO!A78) -> South Sudan | B78: =IF(COUNTRY_INFO!B78=0," ",COUNTRY_INFO!B78) -> Wesstern Equatoria | C78: =IF(COUNTRY_INFO!C78=0," ",COUNTRY_INFO!C78) -> NZARA | D78: =IF(COUNTRY_INFO!$AA78="MDA1 (IVM+ALB)", COUNTRY_INFO!$AA78, " ") -> MDA1 (IVM+ALB) | E78: June 2022 | G78: 30224 | H78: 54097 | I78: 84321 | K78: 36720 | L78: 39229 | M78: 75949 | O78: 121.4928534 | P78: 72.51603601 | Q78: 90.07127525
A79: =IF(COUNTRY_INFO!A79=0," ",COUNTRY_INFO!A79) -> South Sudan | B79: =IF(COUNTRY_INFO!B79=0," ",COUNTRY_INFO!B79) -> Wesstern Equatoria | C79: =IF(COUNTRY_INFO!C79=0," ",COUNTRY_INFO!C79) -> EZO | D79: =IF(COUNTRY_INFO!$AA79="MDA1 (IVM+ALB)", COUNTRY_INFO!$AA79, " ") -> MDA1 (IVM+ALB) | E79: July 2022 | G79: 37352 | H79: 66856 | I79: 104208 | K79: 46656 | L79: 50644 | M79: 97300 | O79: 124.9089741 | P79: 75.75086754 | Q79: 93.37095041
A80: =IF(COUNTRY_INFO!A80=0," ",COUNTRY_INFO!A80) -> South Sudan | B80: =IF(COUNTRY_INFO!B80=0," ",COUNTRY_INFO!B80) -> Wesstern Equatoria | C80: =IF(COUNTRY_INFO!C80=0," ",COUNTRY_INFO!C80) -> YAMBIO | D80: =IF(COUNTRY_INFO!$AA80="MDA1 (IVM+ALB)", COUNTRY_INFO!$AA80, " ") -> MDA1 (IVM+ALB) | E80: June 2022 | G80: 70141 | H80: 125546 | I80: 195687 | K80: 82980 | L80: 88147 | M80: 171127 | O80: 118.304558 | P80: 70.21091871 | Q80: 87.44934513
A81: =IF(COUNTRY_INFO!A81=0," ",COUNTRY_INFO!A81) -> South Sudan | B81: =IF(COUNTRY_INFO!B81=0," ",COUNTRY_INFO!B81) -> Wesstern Equatoria | C81: =IF(COUNTRY_INFO!C81=0," ",COUNTRY_INFO!C81) -> IBBA | D81: =IF(COUNTRY_INFO!$AA81="MDA1 (IVM+ALB)", COUNTRY_INFO!$AA81, " ") -> MDA1 (IVM+ALB) | E81: October 2022 | G81: 19389 | H81: 34704 | I81: 54093 | K81: 24269 | L81: 25641 | M81: 49910 | O81: 125.1689102 | P81: 73.88485477 | Q81: 92.26702161
A82: =IF(COUNTRY_INFO!A82=0," ",COUNTRY_INFO!A82) -> South Sudan | B82: =IF(COUNTRY_INFO!B82=0," ",COUNTRY_INFO!B82) -> Wesstern Equatoria | C82: =IF(COUNTRY_INFO!C82=0," ",COUNTRY_INFO!C82) -> MARIDI | D82: =IF(COUNTRY_INFO!$AA82="MDA1 (IVM+ALB)", COUNTRY_INFO!$AA82, " ") -> MDA1 (IVM+ALB) | E82: October 2022 | G82: 37922 | H82: 67876 | I82: 105798 | K82: 47385 | L82: 50010 | M82: 97395 | O82: 124.9538526 | P82: 73.67847251 | Q82: 92.05750581
A83: =IF(COUNTRY_INFO!A83=0," ",COUNTRY_INFO!A83) -> South Sudan | B83: =IF(COUNTRY_INFO!B83=0," ",COUNTRY_INFO!B83) -> Wesstern Equatoria | C83: =IF(COUNTRY_INFO!C83=0," ",COUNTRY_INFO!C83) -> MVOLO | D83: =IF(COUNTRY_INFO!$AA83="MDA1 (IVM+ALB)", COUNTRY_INFO!$AA83, " ") -> MDA1 (IVM+ALB) | E83: June 2022 | G83: 22240 | H83: 39807 | I83: 62047 | K83: 28282 | L83: 29001 | M83: 57283 | O83: 127.1672662 | P83: 72.85402065 | Q83: 92.32194949
A84: =IF(COUNTRY_INFO!A84=0," ",COUNTRY_INFO!A84) -> South Sudan | B84: =IF(COUNTRY_INFO!B84=0," ",COUNTRY_INFO!B84) -> Wesstern Equatoria | C84: =IF(COUNTRY_INFO!C84=0," ",COUNTRY_INFO!C84) -> MUNDRI WEST | D84: =IF(COUNTRY_INFO!$AA84="MDA1 (IVM+ALB)", COUNTRY_INFO!$AA84, " ") -> MDA1 (IVM+ALB) | E84: June 2022 | G84: 15682 | H84: 28069 | I84: 43751 | K84: 24125 | L84: 23980 | M84: 48105 | O84: 153.8387961 | P84: 85.43232748 | Q84: 109.9517725
A85: =IF(COUNTRY_INFO!A85=0," ",COUNTRY_INFO!A85) -> South Sudan | B85: =IF(COUNTRY_INFO!B85=0," ",COUNTRY_INFO!B85) -> Wesstern Equatoria | C85: =IF(COUNTRY_INFO!C85=0," ",COUNTRY_INFO!C85) -> MUNDRI EAST | D85: =IF(COUNTRY_INFO!$AA85="MDA1 (IVM+ALB)", COUNTRY_INFO!$AA85, " ") -> MDA1 (IVM+ALB) | E85: June 2022 | G85: 22240 | H85: 39807 | I85: 62047 | K85: 30456 | L85: 30269 | M85: 60725 | O85: 136.942446 | P85: 76.03939006 | Q85: 97.8693571
A86: =IF(COUNTRY_INFO!A86=0," ",COUNTRY_INFO!A86) -> South Sudan | B86: =IF(COUNTRY_INFO!B86=0," ",COUNTRY_INFO!B86) -> Western Bahr El Ghazal | C86: =IF(COUNTRY_INFO!C86=0," ",COUNTRY_INFO!C86) -> RAGA | D86: =IF(COUNTRY_INFO!$AA86="MDA1 (IVM+ALB)", COUNTRY_INFO!$AA86, " ") ->  | I86: 0 | M86: 0
A87: =IF(COUNTRY_INFO!A87=0," ",COUNTRY_INFO!A87) -> South Sudan | B87: =IF(COUNTRY_INFO!B87=0," ",COUNTRY_INFO!B87) -> Western Bahr El Ghazal | C87: =IF(COUNTRY_INFO!C87=0," ",COUNTRY_INFO!C87) -> JUR RIVER | D87: =IF(COUNTRY_INFO!$AA87="MDA1 (IVM+ALB)", COUNTRY_INFO!$AA87, " ") -> MDA1 (IVM+ALB) | E87: June 2022 | G87: 66102 | H87: 118316 | I87: 184418 | K87: 138871 | L87: 157357 | M87: 296228 | O87: 210.0859278 | P87: 132.9972278 | Q87: 160.628572
A88: =IF(COUNTRY_INFO!A88=0," ",COUNTRY_INFO!A88) -> South Sudan | B88: =IF(COUNTRY_INFO!B88=0," ",COUNTRY_INFO!B88) -> Western Bahr El Ghazal | C88: =IF(COUNTRY_INFO!C88=0," ",COUNTRY_INFO!C88) -> WAU | D88: =IF(COUNTRY_INFO!$AA88="MDA1 (IVM+ALB)", COUNTRY_INFO!$AA88, " ") ->  | I88: 0 | M88: 0
A89: =IF(COUNTRY_INFO!A89=0," ",COUNTRY_INFO!A89) -> South Sudan | B89: =IF(COUNTRY_INFO!B89=0," ",COUNTRY_INFO!B89) -> Upper Nile | C89: =IF(COUNTRY_INFO!C89=0," ",COUNTRY_INFO!C89) -> MABAN Refugee | D89: =IF(COUNTRY_INFO!$AA89="MDA1 (IVM+ALB)", COUNTRY_INFO!$AA89, " ") -> MDA1 (IVM+ALB) | E89: March 2022 | G89: 35839 | H89: 64149 | I89: 99988 | K89: 32741 | L89: 38713 | M89: 71454 | O89: 91.3557856 | P89: 60.3485635 | Q89: 71.46257551

Sheet MDA3
A1: MDA 3 - Ivermectin (IVM)
A2: Administrative structure, population requiring PC by age group, population treated by age group and coverage
A4: TOTAL | F4: =SUBTOTAL(9,F$10:F$1010) -> 770119 | G4: 1378439 | H4: 2148558 | I4: 860359 | J4: 917975 | K4: 1778334 | L4: 0 | M4: 0 | N4: 0 | O4: 860359 | P4: 917975 | Q4: 1778334 | R4: =IF(F4<>0, IF(O4/F4*100=0, "-", O4/F4*100), " ") -> 111.7176696 | S4: =IF(G4<>0, IF(P4/G4*100=0, "-", P4/G4*100), " ") -> 66.59525739 | T4: =IF(H4<>0, IF(Q4/H4*100=0, "-", Q4/H4*100), " ") -> 82.76872209
A6: Country administrative structure | D6: PC implemented | E6: Date | F6: Population targeted for MDA 3 | I6: Population treated - 1st round | L6: Population treated - 2nd round | O6: Population treated | R6: Programme coverage (%)
A7: Country | B7: Province/State | C7: District | F7: SAC | G7: Adults | H7: Total | I7: SAC | J7: Adults | K7: Total | L7: SAC | M7: Adults | N7: Total | O7: SAC | P7: Adults | Q7: Total | R7: SAC | S7: Adults | T7: Total
A10: =IF(COUNTRY_INFO!A10=0," ",COUNTRY_INFO!A10) -> South Sudan | B10: =IF(COUNTRY_INFO!B10=0," ",COUNTRY_INFO!B10) -> Central Equatoria | C10: =IF(COUNTRY_INFO!C10=0," ",COUNTRY_INFO!C10) -> TEREKEKA | D10: =IF(COUNTRY_INFO!$AA10="MDA3 (IVM)", COUNTRY_INFO!$AA10, " ") ->  | H10: =SUM(F10:G10) -> 0 | K10: =SUM(I10:J10) -> 0 | N10: =SUM(L10:M10) -> 0 | O10: =MAX(I10,L10) -> 0 | P10: 0 | Q10: =SUM(O10:P10) -> 0 | R10: =IF(F10<>0, IF(MAX(I10,L10)/F10*100=0, "-", MAX(I10,L10)/F10*100), " ") ->  | T10: =IF(H10<>0, IF((MAX(I10,L10)+MAX(J10,M10))/H10*100=0, "-",(MAX(I10,L10)+MAX(J10,M10))/H10*100), " ") -> 
A11: =IF(COUNTRY_INFO!A11=0," ",COUNTRY_INFO!A11) -> South Sudan | B11: =IF(COUNTRY_INFO!B11=0," ",COUNTRY_INFO!B11) -> Central Equatoria | C11: =IF(COUNTRY_INFO!C11=0," ",COUNTRY_INFO!C11) -> JUBA | D11: =IF(COUNTRY_INFO!$AA11="MDA3 (IVM)", COUNTRY_INFO!$AA11, " ") ->  | H11: =SUM(F11:G11) -> 0 | K11: =SUM(I11:J11) -> 0 | N11: =SUM(L11:M11) -> 0 | O11: =MAX(I11,L11) -> 0 | P11: =MAX(J11,M11) -> 0 | Q11: =SUM(O11:P11) -> 0 | R11: =IF(F11<>0, IF(MAX(I11,L11)/F11*100=0, "-", MAX(I11,L11)/F11*100), " ") ->  | S11: =IF(G11<>0, IF(MAX(J11,M11)/G11*100=0, "-", MAX(J11,M11)/G11*100), " ") ->  | T11: =IF(H11<>0, IF((MAX(I11,L11)+MAX(J11,M11))/H11*100=0, "-",(MAX(I11,L11)+MAX(J11,M11))/H11*100), " ") -> 
A12: =IF(COUNTRY_INFO!A12=0," ",COUNTRY_INFO!A12) -> South Sudan | B12: =IF(COUNTRY_INFO!B12=0," ",COUNTRY_INFO!B12) -> Central Equatoria | C12: =IF(COUNTRY_INFO!C12=0," ",COUNTRY_INFO!C12) -> LAINYA | D12: =IF(COUNTRY_INFO!$AA12="MDA3 (IVM)", COUNTRY_INFO!$AA12, " ") ->  | H12: 0 | K12: 0 | N12: 0 | O12: 0 | P12: 0 | Q12: 0
A13: =IF(COUNTRY_INFO!A13=0," ",COUNTRY_INFO!A13) -> South Sudan | B13: =IF(COUNTRY_INFO!B13=0," ",COUNTRY_INFO!B13) -> Central Equatoria | C13: =IF(COUNTRY_INFO!C13=0," ",COUNTRY_INFO!C13) -> YEI | D13: =IF(COUNTRY_INFO!$AA13="MDA3 (IVM)", COUNTRY_INFO!$AA13, " ") ->  | H13: 0 | K13: 0 | N13: 0 | O13: 0 | P13: 0 | Q13: 0
A14: =IF(COUNTRY_INFO!A14=0," ",COUNTRY_INFO!A14) -> South Sudan | B14: =IF(COUNTRY_INFO!B14=0," ",COUNTRY_INFO!B14) -> Central Equatoria | C14: =IF(COUNTRY_INFO!C14=0," ",COUNTRY_INFO!C14) -> MOROBO | D14: =IF(COUNTRY_INFO!$AA14="MDA3 (IVM)", COUNTRY_INFO!$AA14, " ") ->  | H14: 0 | K14: 0 | N14: 0 | O14: 0 | P14: 0 | Q14: 0
A15: =IF(COUNTRY_INFO!A15=0," ",COUNTRY_INFO!A15) -> South Sudan | B15: =IF(COUNTRY_INFO!B15=0," ",COUNTRY_INFO!B15) -> Central Equatoria | C15: =IF(COUNTRY_INFO!C15=0," ",COUNTRY_INFO!C15) -> KAJO KEJI | D15: =IF(COUNTRY_INFO!$AA15="MDA3 (IVM)", COUNTRY_INFO!$AA15, " ") ->  | H15: 0 | K15: 0 | N15: 0 | O15: 0 | P15: 0 | Q15: 0
A16: =IF(COUNTRY_INFO!A16=0," ",COUNTRY_INFO!A16) -> South Sudan | B16: =IF(COUNTRY_INFO!B16=0," ",COUNTRY_INFO!B16) -> Eastern Equatoria | C16: =IF(COUNTRY_INFO!C16=0," ",COUNTRY_INFO!C16) -> TORIT | D16: =IF(COUNTRY_INFO!$AA16="MDA3 (IVM)", COUNTRY_INFO!$AA16, " ") ->  | H16: 0 | K16: 0 | N16: 0 | O16: 0 | P16: 0 | Q16: 0
A17: =IF(COUNTRY_INFO!A17=0," ",COUNTRY_INFO!A17) -> South Sudan | B17: =IF(COUNTRY_INFO!B17=0," ",COUNTRY_INFO!B17) -> Eastern Equatoria | C17: =IF(COUNTRY_INFO!C17=0," ",COUNTRY_INFO!C17) -> LOPA/LAFON | D17: =IF(COUNTRY_INFO!$AA17="MDA3 (IVM)", COUNTRY_INFO!$AA17, " ") -> MDA3 (IVM) | E17: June 2022 | F17: 58930 | G17: 105479 | H17: 164409 | I17: 15116 | J17: 16076 | K17: 31192 | N17: 0 | O17: 15116 | P17: 16076 | Q17: 31192 | R17: 25.6507721 | S17: 15.24094844 | T17: 18.97219739
A18: =IF(COUNTRY_INFO!A18=0," ",COUNTRY_INFO!A18) -> South Sudan | B18: =IF(COUNTRY_INFO!B18=0," ",COUNTRY_INFO!B18) -> Eastern Equatoria | C18: =IF(COUNTRY_INFO!C18=0," ",COUNTRY_INFO!C18) -> KAPOETA NORTH | D18: =IF(COUNTRY_INFO!$AA18="MDA3 (IVM)", COUNTRY_INFO!$AA18, " ") ->  | H18: 0 | K18: 0 | N18: 0 | O18: 0 | P18: 0 | Q18: 0
A19: =IF(COUNTRY_INFO!A19=0," ",COUNTRY_INFO!A19) -> South Sudan | B19: =IF(COUNTRY_INFO!B19=0," ",COUNTRY_INFO!B19) -> Eastern Equatoria | C19: =IF(COUNTRY_INFO!C19=0," ",COUNTRY_INFO!C19) -> KAPOETA EAST | D19: =IF(COUNTRY_INFO!$AA19="MDA3 (IVM)", COUNTRY_INFO!$AA19, " ") ->  | H19: 0 | K19: 0 | N19: 0 | O19: 0 | P19: 0 | Q19: 0
A20: =IF(COUNTRY_INFO!A20=0," ",COUNTRY_INFO!A20) -> South Sudan | B20: =IF(COUNTRY_INFO!B20=0," ",COUNTRY_INFO!B20) -> Eastern Equatoria | C20: =IF(COUNTRY_INFO!C20=0," ",COUNTRY_INFO!C20) -> KAPOETA SOUTH | D20: =IF(COUNTRY_INFO!$AA20="MDA3 (IVM)", COUNTRY_INFO!$AA20, " ") ->  | H20: 0 | K20: 0 | N20: 0 | O20: 0 | P20: 0 | Q20: 0
A21: =IF(COUNTRY_INFO!A21=0," ",COUNTRY_INFO!A21) -> South Sudan | B21: =IF(COUNTRY_INFO!B21=0," ",COUNTRY_INFO!B21) -> Eastern Equatoria | C21: =IF(COUNTRY_INFO!C21=0," ",COUNTRY_INFO!C21) -> BUDI | D21: =IF(COUNTRY_INFO!$AA21="MDA3 (IVM)", COUNTRY_INFO!$AA21, " ") ->  | H21: 0 | K21: 0 | N21: 0 | O21: 0 | P21: 0 | Q21: 0
A22: =IF(COUNTRY_INFO!A22=0," ",COUNTRY_INFO!A22) -> South Sudan | B22: =IF(COUNTRY_INFO!B22=0," ",COUNTRY_INFO!B22) -> Eastern Equatoria | C22: =IF(COUNTRY_INFO!C22=0," ",COUNTRY_INFO!C22) -> IKOTOS | D22: =IF(COUNTRY_INFO!$AA22="MDA3 (IVM)", COUNTRY_INFO!$AA22, " ") ->  | H22: 0 | K22: 0 | N22: 0 | O22: 0 | P22: 0 | Q22: 0
A23: =IF(COUNTRY_INFO!A23=0," ",COUNTRY_INFO!A23) -> South Sudan | B23: =IF(COUNTRY_INFO!B23=0," ",COUNTRY_INFO!B23) -> Eastern Equatoria | C23: =IF(COUNTRY_INFO!C23=0," ",COUNTRY_INFO!C23) -> MAGWI | D23: =IF(COUNTRY_INFO!$AA23="MDA3 (IVM)", COUNTRY_INFO!$AA23, " ") ->  | H23: 0 | K23: 0 | N23: 0 | O23: 0 | P23: 0 | Q23: 0
A24: =IF(COUNTRY_INFO!A24=0," ",COUNTRY_INFO!A24) -> South Sudan | B24: =IF(COUNTRY_INFO!B24=0," ",COUNTRY_INFO!B24) -> Jonglei | C24: =IF(COUNTRY_INFO!C24=0," ",COUNTRY_INFO!C24) -> FANGAK | D24: =IF(COUNTRY_INFO!$AA24="MDA3 (IVM)", COUNTRY_INFO!$AA24, " ") ->  | H24: 0 | K24: 0 | N24: 0 | O24: 0 | P24: 0 | Q24: 0
A25: =IF(COUNTRY_INFO!A25=0," ",COUNTRY_INFO!A25) -> South Sudan | B25: =IF(COUNTRY_INFO!B25=0," ",COUNTRY_INFO!B25) -> Jonglei | C25: =IF(COUNTRY_INFO!C25=0," ",COUNTRY_INFO!C25) -> KHORFLUS | D25: =IF(COUNTRY_INFO!$AA25="MDA3 (IVM)", COUNTRY_INFO!$AA25, " ") ->  | H25: 0 | K25: 0 | N25: 0 | O25: 0 | P25: 0 | Q25: 0
A26: =IF(COUNTRY_INFO!A26=0," ",COUNTRY_INFO!A26) -> South Sudan | B26: =IF(COUNTRY_INFO!B26=0," ",COUNTRY_INFO!B26) -> Jonglei | C26: =IF(COUNTRY_INFO!C26=0," ",COUNTRY_INFO!C26) -> AYOD | D26: =IF(COUNTRY_INFO!$AA26="MDA3 (IVM)", COUNTRY_INFO!$AA26, " ") ->  | H26: 0 | K26: 0 | N26: 0 | O26: 0 | P26: 0 | Q26: 0
A27: =IF(COUNTRY_INFO!A27=0," ",COUNTRY_INFO!A27) -> South Sudan | B27: =IF(COUNTRY_INFO!B27=0," ",COUNTRY_INFO!B27) -> Jonglei | C27: =IF(COUNTRY_INFO!C27=0," ",COUNTRY_INFO!C27) -> DUK | D27: =IF(COUNTRY_INFO!$AA27="MDA3 (IVM)", COUNTRY_INFO!$AA27, " ") ->  | H27: 0 | K27: 0 | N27: 0 | O27: 0 | P27: 0 | Q27: 0
A28: =IF(COUNTRY_INFO!A28=0," ",COUNTRY_INFO!A28) -> South Sudan | B28: =IF(COUNTRY_INFO!B28=0," ",COUNTRY_INFO!B28) -> Jonglei | C28: =IF(COUNTRY_INFO!C28=0," ",COUNTRY_INFO!C28) -> UROR | D28: =IF(COUNTRY_INFO!$AA28="MDA3 (IVM)", COUNTRY_INFO!$AA28, " ") ->  | H28: 0 | K28: 0 | N28: 0 | O28: 0 | P28: 0 | Q28: 0
A29: =IF(COUNTRY_INFO!A29=0," ",COUNTRY_INFO!A29) -> South Sudan | B29: =IF(COUNTRY_INFO!B29=0," ",COUNTRY_INFO!B29) -> Jonglei | C29: =IF(COUNTRY_INFO!C29=0," ",COUNTRY_INFO!C29) -> NYIROL | D29: =IF(COUNTRY_INFO!$AA29="MDA3 (IVM)", COUNTRY_INFO!$AA29, " ") ->  | H29: 0 | K29: 0 | N29: 0 | O29: 0 | P29: 0 | Q29: 0
A30: =IF(COUNTRY_INFO!A30=0," ",COUNTRY_INFO!A30) -> South Sudan | B30: =IF(COUNTRY_INFO!B30=0," ",COUNTRY_INFO!B30) -> Jonglei | C30: =IF(COUNTRY_INFO!C30=0," ",COUNTRY_INFO!C30) -> AKOBO | D30: =IF(COUNTRY_INFO!$AA30="MDA3 (IVM)", COUNTRY_INFO!$AA30, " ") -> MDA3 (IVM) | E30: June 2022 | F30: 67658 | G30: 121102 | H30: 188760 | I30: 35449 | J30: 37414 | K30: 72863 | N30: 0 | O30: 35449 | P30: 37414 | Q30: 72863 | R30: 52.39439534 | S30: 30.89461776 | T30: 38.60086883
A31: =IF(COUNTRY_INFO!A31=0," ",COUNTRY_INFO!A31) -> South Sudan | B31: =IF(COUNTRY_INFO!B31=0," ",COUNTRY_INFO!B31) -> Jonglei | C31: =IF(COUNTRY_INFO!C31=0," ",COUNTRY_INFO!C31) -> POCHALA | D31: =IF(COUNTRY_INFO!$AA31="MDA3 (IVM)", COUNTRY_INFO!$AA31, " ") ->  | H31: 0 | K31: 0 | N31: 0 | O31: 0 | P31: 0 | Q31: 0
A32: =IF(COUNTRY_INFO!A32=0," ",COUNTRY_INFO!A32) -> South Sudan | B32: =IF(COUNTRY_INFO!B32=0," ",COUNTRY_INFO!B32) -> Jonglei | C32: =IF(COUNTRY_INFO!C32=0," ",COUNTRY_INFO!C32) -> PIBOR | D32: =IF(COUNTRY_INFO!$AA32="MDA3 (IVM)", COUNTRY_INFO!$AA32, " ") ->  | H32: 0 | K32: 0 | N32: 0 | O32: 0 | P32: 0 | Q32: 0
A33: =IF(COUNTRY_INFO!A33=0," ",COUNTRY_INFO!A33) -> South Sudan | B33: =IF(COUNTRY_INFO!B33=0," ",COUNTRY_INFO!B33) -> Jonglei | C33: =IF(COUNTRY_INFO!C33=0," ",COUNTRY_INFO!C33) -> TWIC EAST | D33: =IF(COUNTRY_INFO!$AA33="MDA3 (IVM)", COUNTRY_INFO!$AA33, " ") ->  | H33: 0 | K33: 0 | N33: 0 | O33: 0 | P33: 0 | Q33: 0
A34: =IF(COUNTRY_INFO!A34=0," ",COUNTRY_INFO!A34) -> South Sudan | B34: =IF(COUNTRY_INFO!B34=0," ",COUNTRY_INFO!B34) -> Jonglei | C34: =IF(COUNTRY_INFO!C34=0," ",COUNTRY_INFO!C34) -> BOR SOUTH | D34: =IF(COUNTRY_INFO!$AA34="MDA3 (IVM)", COUNTRY_INFO!$AA34, " ") ->  | H34: 0 | K34: 0 | N34: 0 | O34: 0 | P34: 0 | Q34: 0
A35: =IF(COUNTRY_INFO!A35=0," ",COUNTRY_INFO!A35) -> South Sudan | B35: =IF(COUNTRY_INFO!B35=0," ",COUNTRY_INFO!B35) -> Lakes | C35: =IF(COUNTRY_INFO!C35=0," ",COUNTRY_INFO!C35) -> CUEBIT | D35: =IF(COUNTRY_INFO!$AA35="MDA3 (IVM)", COUNTRY_INFO!$AA35, " ") -> MDA3 (IVM) | E35: May 2022 | F35: 64313 | G35: 115114 | H35: 179427 | I35: 82073 | J35: 82076 | K35: 164149 | N35: 0 | O35: 82073 | P35: 82076 | Q35: 164149 | R35: 127.6149457 | S35: 71.29975503 | T35: 91.48511651
A36: =IF(COUNTRY_INFO!A36=0," ",COUNTRY_INFO!A36) -> South Sudan | B36: =IF(COUNTRY_INFO!B36=0," ",COUNTRY_INFO!B36) -> Lakes | C36: =IF(COUNTRY_INFO!C36=0," ",COUNTRY_INFO!C36) -> RUMBEK NORTH | D36: =IF(COUNTRY_INFO!$AA36="MDA3 (IVM)", COUNTRY_INFO!$AA36, " ") ->  | H36: 0 | K36: 0 | N36: 0 | O36: 0 | P36: 0 | Q36: 0
A37: =IF(COUNTRY_INFO!A37=0," ",COUNTRY_INFO!A37) -> South Sudan | B37: =IF(COUNTRY_INFO!B37=0," ",COUNTRY_INFO!B37) -> Lakes | C37: =IF(COUNTRY_INFO!C37=0," ",COUNTRY_INFO!C37) -> RUMBEK CENTRE | D37: =IF(COUNTRY_INFO!$AA37="MDA3 (IVM)", COUNTRY_INFO!$AA37, " ") ->  | H37: 0 | K37: 0 | N37: 0 | O37: 0 | P37: 0 | Q37: 0
A38: =IF(COUNTRY_INFO!A38=0," ",COUNTRY_INFO!A38) -> South Sudan | B38: =IF(COUNTRY_INFO!B38=0," ",COUNTRY_INFO!B38) -> Lakes | C38: =IF(COUNTRY_INFO!C38=0," ",COUNTRY_INFO!C38) -> WULU | D38: =IF(COUNTRY_INFO!$AA38="MDA3 (IVM)", COUNTRY_INFO!$AA38, " ") ->  | H38: 0 | K38: 0 | N38: 0 | O38: 0 | P38: 0 | Q38: 0
A39: =IF(COUNTRY_INFO!A39=0," ",COUNTRY_INFO!A39) -> South Sudan | B39: =IF(COUNTRY_INFO!B39=0," ",COUNTRY_INFO!B39) -> Lakes | C39: =IF(COUNTRY_INFO!C39=0," ",COUNTRY_INFO!C39) -> RUMBEK EAST | D39: =IF(COUNTRY_INFO!$AA39="MDA3 (IVM)", COUNTRY_INFO!$AA39, " ") -> MDA3 (IVM) | E39: June 2022 | F39: 67357 | G39: 120563 | H39: 187920 | I39: 122904 | J39: 126275 | K39: 249179 | N39: 0 | O39: 122904 | P39: 126275 | Q39: 249179 | R39: 182.4665588 | S39: 104.737772 | T39: 132.5984461
A40: =IF(COUNTRY_INFO!A40=0," ",COUNTRY_INFO!A40) -> South Sudan | B40: =IF(COUNTRY_INFO!B40=0," ",COUNTRY_INFO!B40) -> Lakes | C40: =IF(COUNTRY_INFO!C40=0," ",COUNTRY_INFO!C40) -> YIROL WEST | D40: =IF(COUNTRY_INFO!$AA40="MDA3 (IVM)", COUNTRY_INFO!$AA40, " ") -> MDA3 (IVM) | E40: July 2022 | F40: 56321 | G40: 100810 | H40: 157131 | I40: 34054 | J40: 34539 | K40: 68593 | N40: 0 | O40: 34054 | P40: 34539 | Q40: 68593 | R40: 60.46412528 | S40: 34.261482 | T40: 43.65338476
A41: =IF(COUNTRY_INFO!A41=0," ",COUNTRY_INFO!A41) -> South Sudan | B41: =IF(COUNTRY_INFO!B41=0," ",COUNTRY_INFO!B41) -> Lakes | C41: =IF(COUNTRY_INFO!C41=0," ",COUNTRY_INFO!C41) -> YIROL EAST | D41: =IF(COUNTRY_INFO!$AA41="MDA3 (IVM)", COUNTRY_INFO!$AA41, " ") -> MDA3 (IVM) | E41: July 2022 | F41: 36914 | G41: 66072 | H41: 102986 | I41: 46247 | J41: 51604 | K41: 97851 | N41: 0 | O41: 46247 | P41: 51604 | Q41: 97851 | R41: 125.2830904 | S41: 78.10267587 | T41: 95.01388538
A42: =IF(COUNTRY_INFO!A42=0," ",COUNTRY_INFO!A42) -> South Sudan | B42: =IF(COUNTRY_INFO!B42=0," ",COUNTRY_INFO!B42) -> Lakes | C42: =IF(COUNTRY_INFO!C42=0," ",COUNTRY_INFO!C42) -> AWERIAL | D42: =IF(COUNTRY_INFO!$AA42="MDA3 (IVM)", COUNTRY_INFO!$AA42, " ") ->  | H42: 0 | K42: 0 | N42: 0 | O42: 0 | P42: 0 | Q42: 0
A43: =IF(COUNTRY_INFO!A43=0," ",COUNTRY_INFO!A43) -> South Sudan | B43: =IF(COUNTRY_INFO!B43=0," ",COUNTRY_INFO!B43) -> Northern Bahr El Ghazal | C43: =IF(COUNTRY_INFO!C43=0," ",COUNTRY_INFO!C43) -> AWIEL NORTH | D43: =IF(COUNTRY_INFO!$AA43="MDA3 (IVM)", COUNTRY_INFO!$AA43, " ") -> MDA3 (IVM) | E43: May 2022 | F43: 64535 | G43: 115511 | H43: 180046 | I43: 82043 | J43: 90514 | K43: 172557 | N43: 0 | O43: 82043 | P43: 90514 | Q43: 172557 | R43: 127.1294646 | S43: 78.35963674 | T43: 95.84050743
A44: =IF(COUNTRY_INFO!A44=0," ",COUNTRY_INFO!A44) -> South Sudan | B44: =IF(COUNTRY_INFO!B44=0," ",COUNTRY_INFO!B44) -> Northern Bahr El Ghazal | C44: =IF(COUNTRY_INFO!C44=0," ",COUNTRY_INFO!C44) -> AWIEL EAST | D44: =IF(COUNTRY_INFO!$AA44="MDA3 (IVM)", COUNTRY_INFO!$AA44, " ") ->  | H44: 0 | K44: 0 | N44: 0 | O44: 0 | P44: 0 | Q44: 0
A45: =IF(COUNTRY_INFO!A45=0," ",COUNTRY_INFO!A45) -> South Sudan | B45: =IF(COUNTRY_INFO!B45=0," ",COUNTRY_INFO!B45) -> Northern Bahr El Ghazal | C45: =IF(COUNTRY_INFO!C45=0," ",COUNTRY_INFO!C45) -> AWIEL SOUTH | D45: =IF(COUNTRY_INFO!$AA45="MDA3 (IVM)", COUNTRY_INFO!$AA45, " ") -> MDA3 (IVM) | E45: June 2022 | F45: 36774 | G45: 65822 | H45: 102596 | I45: 52460 | J45: 56252 | K45: 108712 | N45: 0 | O45: 52460 | P45: 56252 | Q45: 108712 | R45: 142.6551368 | S45: 85.46078819 | T45: 105.9612461
A46: =IF(COUNTRY_INFO!A46=0," ",COUNTRY_INFO!A46) -> South Sudan | B46: =IF(COUNTRY_INFO!B46=0," ",COUNTRY_INFO!B46) -> Northern Bahr El Ghazal | C46: =IF(COUNTRY_INFO!C46=0," ",COUNTRY_INFO!C46) -> AWIEL WEST | D46: =IF(COUNTRY_INFO!$AA46="MDA3 (IVM)", COUNTRY_INFO!$AA46, " ") ->  | H46: 0 | K46: 0 | N46: 0 | O46: 0 | P46: 0 | Q46: 0
A47: =IF(COUNTRY_INFO!A47=0," ",COUNTRY_INFO!A47) -> South Sudan | B47: =IF(COUNTRY_INFO!B47=0," ",COUNTRY_INFO!B47) -> Northern Bahr El Ghazal | C47: =IF(COUNTRY_INFO!C47=0," ",COUNTRY_INFO!C47) -> AWIEL CENTRE | D47: =IF(COUNTRY_INFO!$AA47="MDA3 (IVM)", COUNTRY_INFO!$AA47, " ") ->  | H47: 0 | K47: 0 | N47: 0 | O47: 0 | P47: 0 | Q47: 0
A48: =IF(COUNTRY_INFO!A48=0," ",COUNTRY_INFO!A48) -> South Sudan | B48: =IF(COUNTRY_INFO!B48=0," ",COUNTRY_INFO!B48) -> Unity | C48: =IF(COUNTRY_INFO!C48=0," ",COUNTRY_INFO!C48) -> PARIANG | D48: =IF(COUNTRY_INFO!$AA48="MDA3 (IVM)", COUNTRY_INFO!$AA48, " ") ->  | H48: 0 | K48: 0 | N48: 0 | O48: 0 | P48: 0 | Q48: 0
A49: =IF(COUNTRY_INFO!A49=0," ",COUNTRY_INFO!A49) -> South Sudan | B49: =IF(COUNTRY_INFO!B49=0," ",COUNTRY_INFO!B49) -> Unity | C49: =IF(COUNTRY_INFO!C49=0," ",COUNTRY_INFO!C49) -> ABIEMNHOM | D49: =IF(COUNTRY_INFO!$AA49="MDA3 (IVM)", COUNTRY_INFO!$AA49, " ") ->  | H49: 0 | K49: 0 | N49: 0 | O49: 0 | P49: 0 | Q49: 0
A50: =IF(COUNTRY_INFO!A50=0," ",COUNTRY_INFO!A50) -> South Sudan | B50: =IF(COUNTRY_INFO!B50=0," ",COUNTRY_INFO!B50) -> Unity | C50: =IF(COUNTRY_INFO!C50=0," ",COUNTRY_INFO!C50) -> MAYOM | D50: =IF(COUNTRY_INFO!$AA50="MDA3 (IVM)", COUNTRY_INFO!$AA50, " ") ->  | H50: 0 | K50: 0 | N50: 0 | O50: 0 | P50: 0 | Q50: 0
A51: =IF(COUNTRY_INFO!A51=0," ",COUNTRY_INFO!A51) -> South Sudan | B51: =IF(COUNTRY_INFO!B51=0," ",COUNTRY_INFO!B51) -> Unity | C51: =IF(COUNTRY_INFO!C51=0," ",COUNTRY_INFO!C51) -> RUBKONA | D51: =IF(COUNTRY_INFO!$AA51="MDA3 (IVM)", COUNTRY_INFO!$AA51, " ") ->  | H51: 0 | K51: 0 | N51: 0 | O51: 0 | P51: 0 | Q51: 0
A52: =IF(COUNTRY_INFO!A52=0," ",COUNTRY_INFO!A52) -> South Sudan | B52: =IF(COUNTRY_INFO!B52=0," ",COUNTRY_INFO!B52) -> Unity | C52: =IF(COUNTRY_INFO!C52=0," ",COUNTRY_INFO!C52) -> GUIT | D52: =IF(COUNTRY_INFO!$AA52="MDA3 (IVM)", COUNTRY_INFO!$AA52, " ") ->  | H52: 0 | K52: 0 | N52: 0 | O52: 0 | P52: 0 | Q52: 0
A53: =IF(COUNTRY_INFO!A53=0," ",COUNTRY_INFO!A53) -> South Sudan | B53: =IF(COUNTRY_INFO!B53=0," ",COUNTRY_INFO!B53) -> Unity | C53: =IF(COUNTRY_INFO!C53=0," ",COUNTRY_INFO!C53) -> KOCH | D53: =IF(COUNTRY_INFO!$AA53="MDA3 (IVM)", COUNTRY_INFO!$AA53, " ") ->  | H53: 0 | K53: 0 | N53: 0 | O53: 0 | P53: 0 | Q53: 0
A54: =IF(COUNTRY_INFO!A54=0," ",COUNTRY_INFO!A54) -> South Sudan | B54: =IF(COUNTRY_INFO!B54=0," ",COUNTRY_INFO!B54) -> Unity | C54: =IF(COUNTRY_INFO!C54=0," ",COUNTRY_INFO!C54) -> LEER | D54: =IF(COUNTRY_INFO!$AA54="MDA3 (IVM)", COUNTRY_INFO!$AA54, " ") ->  | H54: 0 | K54: 0 | N54: 0 | O54: 0 | P54: 0 | Q54: 0
A55: =IF(COUNTRY_INFO!A55=0," ",COUNTRY_INFO!A55) -> South Sudan | B55: =IF(COUNTRY_INFO!B55=0," ",COUNTRY_INFO!B55) -> Unity | C55: =IF(COUNTRY_INFO!C55=0," ",COUNTRY_INFO!C55) -> MAYENDIT | D55: =IF(COUNTRY_INFO!$AA55="MDA3 (IVM)", COUNTRY_INFO!$AA55, " ") ->  | H55: 0 | K55: 0 | N55: 0 | O55: 0 | P55: 0 | Q55: 0
A56: =IF(COUNTRY_INFO!A56=0," ",COUNTRY_INFO!A56) -> South Sudan | B56: =IF(COUNTRY_INFO!B56=0," ",COUNTRY_INFO!B56) -> Unity | C56: =IF(COUNTRY_INFO!C56=0," ",COUNTRY_INFO!C56) -> PAYNIJAR | D56: =IF(COUNTRY_INFO!$AA56="MDA3 (IVM)", COUNTRY_INFO!$AA56, " ") ->  | H56: 0 | K56: 0 | N56: 0 | O56: 0 | P56: 0 | Q56: 0
A57: =IF(COUNTRY_INFO!A57=0," ",COUNTRY_INFO!A57) -> South Sudan | B57: =IF(COUNTRY_INFO!B57=0," ",COUNTRY_INFO!B57) -> Upper Nile | C57: =IF(COUNTRY_INFO!C57=0," ",COUNTRY_INFO!C57) -> RENK | D57: =IF(COUNTRY_INFO!$AA57="MDA3 (IVM)", COUNTRY_INFO!$AA57, " ") ->  | H57: 0 | K57: 0 | N57: 0 | O57: 0 | P57: 0 | Q57: 0
A58: =IF(COUNTRY_INFO!A58=0," ",COUNTRY_INFO!A58) -> South Sudan | B58: =IF(COUNTRY_INFO!B58=0," ",COUNTRY_INFO!B58) -> Upper Nile | C58: =IF(COUNTRY_INFO!C58=0," ",COUNTRY_INFO!C58) -> MANYO | D58: =IF(COUNTRY_INFO!$AA58="MDA3 (IVM)", COUNTRY_INFO!$AA58, " ") ->  | H58: 0 | K58: 0 | N58: 0 | O58: 0 | P58: 0 | Q58: 0
A59: =IF(COUNTRY_INFO!A59=0," ",COUNTRY_INFO!A59) -> South Sudan | B59: =IF(COUNTRY_INFO!B59=0," ",COUNTRY_INFO!B59) -> Upper Nile | C59: =IF(COUNTRY_INFO!C59=0," ",COUNTRY_INFO!C59) -> FASHODA | D59: =IF(COUNTRY_INFO!$AA59="MDA3 (IVM)", COUNTRY_INFO!$AA59, " ") ->  | H59: 0 | K59: 0 | N59: 0 | O59: 0 | P59: 0 | Q59: 0
A60: =IF(COUNTRY_INFO!A60=0," ",COUNTRY_INFO!A60) -> South Sudan | B60: =IF(COUNTRY_INFO!B60=0," ",COUNTRY_INFO!B60) -> Upper Nile | C60: =IF(COUNTRY_INFO!C60=0," ",COUNTRY_INFO!C60) -> MELUT | D60: =IF(COUNTRY_INFO!$AA60="MDA3 (IVM)", COUNTRY_INFO!$AA60, " ") ->  | H60: 0 | K60: 0 | N60: 0 | O60: 0 | P60: 0 | Q60: 0
A61: =IF(COUNTRY_INFO!A61=0," ",COUNTRY_INFO!A61) -> South Sudan | B61: =IF(COUNTRY_INFO!B61=0," ",COUNTRY_INFO!B61) -> Upper Nile | C61: =IF(COUNTRY_INFO!C61=0," ",COUNTRY_INFO!C61) -> MABAN | D61: =IF(COUNTRY_INFO!$AA61="MDA3 (IVM)", COUNTRY_INFO!$AA61, " ") ->  | H61: 0 | K61: 0 | N61: 0 | O61: 0 | P61: 0 | Q61: 0
A62: =IF(COUNTRY_INFO!A62=0," ",COUNTRY_INFO!A62) -> South Sudan | B62: =IF(COUNTRY_INFO!B62=0," ",COUNTRY_INFO!B62) -> Upper Nile | C62: =IF(COUNTRY_INFO!C62=0," ",COUNTRY_INFO!C62) -> MAIWUT | D62: =IF(COUNTRY_INFO!$AA62="MDA3 (IVM)", COUNTRY_INFO!$AA62, " ") -> MDA3 (IVM) | E62: April 2022 | F62: 40461 | G62: 72421 | H62: 112882 | I62: 37545 | J62: 41456 | K62: 79001 | N62: 0 | O62: 37545 | P62: 41456 | Q62: 79001 | R62: 92.79305998 | S62: 57.24306486 | T62: 69.98547155
A63: =IF(COUNTRY_INFO!A63=0," ",COUNTRY_INFO!A63) -> South Sudan | B63: =IF(COUNTRY_INFO!B63=0," ",COUNTRY_INFO!B63) -> Upper Nile | C63: =IF(COUNTRY_INFO!C63=0," ",COUNTRY_INFO!C63) -> LUAKPINY/NASIR | D63: =IF(COUNTRY_INFO!$AA63="MDA3 (IVM)", COUNTRY_INFO!$AA63, " ") ->  | H63: 0 | K63: 0 | N63: 0 | O63: 0 | P63: 0 | Q63: 0
A64: =IF(COUNTRY_INFO!A64=0," ",COUNTRY_INFO!A64) -> South Sudan | B64: =IF(COUNTRY_INFO!B64=0," ",COUNTRY_INFO!B64) -> Upper Nile | C64: =IF(COUNTRY_INFO!C64=0," ",COUNTRY_INFO!C64) -> LONGOCHUK | D64: =IF(COUNTRY_INFO!$AA64="MDA3 (IVM)", COUNTRY_INFO!$AA64, " ") -> MDA3 (IVM) | E64: April 2022 | F64: 32566 | G64: 58291 | H64: 90857 | I64: 32275 | J64: 32746 | K64: 65021 | N64: 0 | O64: 32275 | P64: 32746 | Q64: 65021 | R64: 99.10643002 | S64: 56.17676828 | T64: 71.56410623
A65: =IF(COUNTRY_INFO!A65=0," ",COUNTRY_INFO!A65) -> South Sudan | B65: =IF(COUNTRY_INFO!B65=0," ",COUNTRY_INFO!B65) -> Upper Nile | C65: =IF(COUNTRY_INFO!C65=0," ",COUNTRY_INFO!C65) -> ULANG | D65: =IF(COUNTRY_INFO!$AA65="MDA3 (IVM)", COUNTRY_INFO!$AA65, " ") ->  | H65: 0 | K65: 0 | N65: 0 | O65: 0 | P65: 0 | Q65: 0
A66: =IF(COUNTRY_INFO!A66=0," ",COUNTRY_INFO!A66) -> South Sudan | B66: =IF(COUNTRY_INFO!B66=0," ",COUNTRY_INFO!B66) -> Upper Nile | C66: =IF(COUNTRY_INFO!C66=0," ",COUNTRY_INFO!C66) -> BALIET | D66: =IF(COUNTRY_INFO!$AA66="MDA3 (IVM)", COUNTRY_INFO!$AA66, " ") ->  | H66: 0 | K66: 0 | N66: 0 | O66: 0 | P66: 0 | Q66: 0
A67: =IF(COUNTRY_INFO!A67=0," ",COUNTRY_INFO!A67) -> South Sudan | B67: =IF(COUNTRY_INFO!B67=0," ",COUNTRY_INFO!B67) -> Upper Nile | C67: =IF(COUNTRY_INFO!C67=0," ",COUNTRY_INFO!C67) -> MALAKAL | D67: =IF(COUNTRY_INFO!$AA67="MDA3 (IVM)", COUNTRY_INFO!$AA67, " ") ->  | H67: 0 | K67: 0 | N67: 0 | O67: 0 | P67: 0 | Q67: 0
A68: =IF(COUNTRY_INFO!A68=0," ",COUNTRY_INFO!A68) -> South Sudan | B68: =IF(COUNTRY_INFO!B68=0," ",COUNTRY_INFO!B68) -> Upper Nile | C68: =IF(COUNTRY_INFO!C68=0," ",COUNTRY_INFO!C68) -> PANYKANG | D68: =IF(COUNTRY_INFO!$AA68="MDA3 (IVM)", COUNTRY_INFO!$AA68, " ") ->  | H68: 0 | K68: 0 | N68: 0 | O68: 0 | P68: 0 | Q68: 0
A69: =IF(COUNTRY_INFO!A69=0," ",COUNTRY_INFO!A69) -> South Sudan | B69: =IF(COUNTRY_INFO!B69=0," ",COUNTRY_INFO!B69) -> Warrap | C69: =IF(COUNTRY_INFO!C69=0," ",COUNTRY_INFO!C69) -> ABYEI | D69: =IF(COUNTRY_INFO!$AA69="MDA3 (IVM)", COUNTRY_INFO!$AA69, " ") ->  | H69: 0 | K69: 0 | N69: 0 | O69: 0 | P69: 0 | Q69: 0
A70: =IF(COUNTRY_INFO!A70=0," ",COUNTRY_INFO!A70) -> South Sudan | B70: =IF(COUNTRY_INFO!B70=0," ",COUNTRY_INFO!B70) -> Warrap | C70: =IF(COUNTRY_INFO!C70=0," ",COUNTRY_INFO!C70) -> TWIC | D70: =IF(COUNTRY_INFO!$AA70="MDA3 (IVM)", COUNTRY_INFO!$AA70, " ") ->  | H70: 0 | K70: 0 | N70: 0 | O70: 0 | P70: 0 | Q70: 0
A71: =IF(COUNTRY_INFO!A71=0," ",COUNTRY_INFO!A71) -> South Sudan | B71: =IF(COUNTRY_INFO!B71=0," ",COUNTRY_INFO!B71) -> Warrap | C71: =IF(COUNTRY_INFO!C71=0," ",COUNTRY_INFO!C71) -> GOGRIAL WEST | D71: =IF(COUNTRY_INFO!$AA71="MDA3 (IVM)", COUNTRY_INFO!$AA71, " ") ->  | H71: 0 | K71: 0 | N71: 0 | O71: 0 | P71: 0 | Q71: 0
A72: =IF(COUNTRY_INFO!A72=0," ",COUNTRY_INFO!A72) -> South Sudan | B72: =IF(COUNTRY_INFO!B72=0," ",COUNTRY_INFO!B72) -> Warrap | C72: =IF(COUNTRY_INFO!C72=0," ",COUNTRY_INFO!C72) -> GOGRIAL EAST | D72: =IF(COUNTRY_INFO!$AA72="MDA3 (IVM)", COUNTRY_INFO!$AA72, " ") ->  | H72: 0 | K72: 0 | N72: 0 | O72: 0 | P72: 0 | Q72: 0
A73: =IF(COUNTRY_INFO!A73=0," ",COUNTRY_INFO!A73) -> South Sudan | B73: =IF(COUNTRY_INFO!B73=0," ",COUNTRY_INFO!B73) -> Warrap | C73: =IF(COUNTRY_INFO!C73=0," ",COUNTRY_INFO!C73) -> TONJ NORTH | D73: =IF(COUNTRY_INFO!$AA73="MDA3 (IVM)", COUNTRY_INFO!$AA73, " ") -> MDA3 (IVM) | E73: June 2022 | F73: 82884 | G73: 148355 | H73: 231239 | I73: 122935 | J73: 130818 | K73: 253753 | N73: 0 | O73: 122935 | P73: 130818 | Q73: 253753 | R73: 148.3217509 | S73: 88.17903003 | T73: 109.7362469
A74: =IF(COUNTRY_INFO!A74=0," ",COUNTRY_INFO!A74) -> South Sudan | B74: =IF(COUNTRY_INFO!B74=0," ",COUNTRY_INFO!B74) -> Warrap | C74: =IF(COUNTRY_INFO!C74=0," ",COUNTRY_INFO!C74) -> TONJ EAST | D74: =IF(COUNTRY_INFO!$AA74="MDA3 (IVM)", COUNTRY_INFO!$AA74, " ") -> MDA3 (IVM) | E74: June 2022 | F74: 58019 | G74: 103848 | H74: 161867 | I74: 90194 | J74: 95446 | K74: 185640 | N74: 0 | O74: 90194 | P74: 95446 | Q74: 185640 | R74: 155.4559713 | S74: 91.90932902 | T74: 114.686749
A75: =IF(COUNTRY_INFO!A75=0," ",COUNTRY_INFO!A75) -> South Sudan | B75: =IF(COUNTRY_INFO!B75=0," ",COUNTRY_INFO!B75) -> Warrap | C75: =IF(COUNTRY_INFO!C75=0," ",COUNTRY_INFO!C75) -> TONJ SOUTH | D75: =IF(COUNTRY_INFO!$AA75="MDA3 (IVM)", COUNTRY_INFO!$AA75, " ") ->  | H75: =SUM(F75:G75) -> 0 | K75: =SUM(I75:J75) -> 0 | N75: =SUM(L75:M75) -> 0 | O75: =MAX(I75,L75) -> 0 | P75: =MAX(J75,M75) -> 0 | Q75: =SUM(O75:P75) -> 0 | R75: =IF(F75<>0, IF(MAX(I75,L75)/F75*100=0, "-", MAX(I75,L75)/F75*100), " ") ->  | S75: =IF(G75<>0, IF(MAX(J75,M75)/G75*100=0, "-", MAX(J75,M75)/G75*100), " ") ->  | T75: =IF(H75<>0, IF((MAX(I75,L75)+MAX(J75,M75))/H75*100=0, "-",(MAX(I75,L75)+MAX(J75,M75))/H75*100), " ") -> 
A76: =IF(COUNTRY_INFO!A76=0," ",COUNTRY_INFO!A76) -> South Sudan | B76: =IF(COUNTRY_INFO!B76=0," ",COUNTRY_INFO!B76) -> Wesstern Equatoria | C76: =IF(COUNTRY_INFO!C76=0," ",COUNTRY_INFO!C76) -> TAMBURA | D76: =IF(COUNTRY_INFO!$AA76="MDA3 (IVM)", COUNTRY_INFO!$AA76, " ") ->  | H76: 0 | K76: 0 | N76: 0 | O76: 0 | P76: 0 | Q76: 0
A77: =IF(COUNTRY_INFO!A77=0," ",COUNTRY_INFO!A77) -> South Sudan | B77: =IF(COUNTRY_INFO!B77=0," ",COUNTRY_INFO!B77) -> Wesstern Equatoria | C77: =IF(COUNTRY_INFO!C77=0," ",COUNTRY_INFO!C77) -> NAGERO | D77: =IF(COUNTRY_INFO!$AA77="MDA3 (IVM)", COUNTRY_INFO!$AA77, " ") ->  | H77: 0 | K77: 0 | N77: 0 | O77: 0 | P77: 0 | Q77: 0
A78: =IF(COUNTRY_INFO!A78=0," ",COUNTRY_INFO!A78) -> South Sudan | B78: =IF(COUNTRY_INFO!B78=0," ",COUNTRY_INFO!B78) -> Wesstern Equatoria | C78: =IF(COUNTRY_INFO!C78=0," ",COUNTRY_INFO!C78) -> NZARA | D78: =IF(COUNTRY_INFO!$AA78="MDA3 (IVM)", COUNTRY_INFO!$AA78, " ") ->  | H78: 0 | K78: 0 | N78: 0 | O78: 0 | P78: 0 | Q78: 0
A79: =IF(COUNTRY_INFO!A79=0," ",COUNTRY_INFO!A79) -> South Sudan | B79: =IF(COUNTRY_INFO!B79=0," ",COUNTRY_INFO!B79) -> Wesstern Equatoria | C79: =IF(COUNTRY_INFO!C79=0," ",COUNTRY_INFO!C79) -> EZO | D79: =IF(COUNTRY_INFO!$AA79="MDA3 (IVM)", COUNTRY_INFO!$AA79, " ") ->  | H79: 0 | K79: 0 | N79: 0 | O79: 0 | P79: 0 | Q79: 0
A80: =IF(COUNTRY_INFO!A80=0," ",COUNTRY_INFO!A80) -> South Sudan | B80: =IF(COUNTRY_INFO!B80=0," ",COUNTRY_INFO!B80) -> Wesstern Equatoria | C80: =IF(COUNTRY_INFO!C80=0," ",COUNTRY_INFO!C80) -> YAMBIO | D80: =IF(COUNTRY_INFO!$AA80="MDA3 (IVM)", COUNTRY_INFO!$AA80, " ") ->  | H80: 0 | K80: 0 | N80: 0 | O80: 0 | P80: 0 | Q80: 0
A81: =IF(COUNTRY_INFO!A81=0," ",COUNTRY_INFO!A81) -> South Sudan | B81: =IF(COUNTRY_INFO!B81=0," ",COUNTRY_INFO!B81) -> Wesstern Equatoria | C81: =IF(COUNTRY_INFO!C81=0," ",COUNTRY_INFO!C81) -> IBBA | D81: =IF(COUNTRY_INFO!$AA81="MDA3 (IVM)", COUNTRY_INFO!$AA81, " ") ->  | H81: 0 | K81: 0 | N81: 0 | O81: 0 | P81: 0 | Q81: 0
A82: =IF(COUNTRY_INFO!A82=0," ",COUNTRY_INFO!A82) -> South Sudan | B82: =IF(COUNTRY_INFO!B82=0," ",COUNTRY_INFO!B82) -> Wesstern Equatoria | C82: =IF(COUNTRY_INFO!C82=0," ",COUNTRY_INFO!C82) -> MARIDI | D82: =IF(COUNTRY_INFO!$AA82="MDA3 (IVM)", COUNTRY_INFO!$AA82, " ") ->  | H82: 0 | K82: 0 | N82: 0 | O82: 0 | P82: 0 | Q82: 0
A83: =IF(COUNTRY_INFO!A83=0," ",COUNTRY_INFO!A83) -> South Sudan | B83: =IF(COUNTRY_INFO!B83=0," ",COUNTRY_INFO!B83) -> Wesstern Equatoria | C83: =IF(COUNTRY_INFO!C83=0," ",COUNTRY_INFO!C83) -> MVOLO | D83: =IF(COUNTRY_INFO!$AA83="MDA3 (IVM)", COUNTRY_INFO!$AA83, " ") ->  | H83: 0 | K83: 0 | N83: 0 | O83: 0 | P83: 0 | Q83: 0
A84: =IF(COUNTRY_INFO!A84=0," ",COUNTRY_INFO!A84) -> South Sudan | B84: =IF(COUNTRY_INFO!B84=0," ",COUNTRY_INFO!B84) -> Wesstern Equatoria | C84: =IF(COUNTRY_INFO!C84=0," ",COUNTRY_INFO!C84) -> MUNDRI WEST | D84: =IF(COUNTRY_INFO!$AA84="MDA3 (IVM)", COUNTRY_INFO!$AA84, " ") ->  | H84: 0 | K84: 0 | N84: 0 | O84: 0 | P84: 0 | Q84: 0
A85: =IF(COUNTRY_INFO!A85=0," ",COUNTRY_INFO!A85) -> South Sudan | B85: =IF(COUNTRY_INFO!B85=0," ",COUNTRY_INFO!B85) -> Wesstern Equatoria | C85: =IF(COUNTRY_INFO!C85=0," ",COUNTRY_INFO!C85) -> MUNDRI EAST | D85: =IF(COUNTRY_INFO!$AA85="MDA3 (IVM)", COUNTRY_INFO!$AA85, " ") ->  | H85: 0 | K85: 0 | N85: 0 | O85: 0 | P85: 0 | Q85: 0
A86: =IF(COUNTRY_INFO!A86=0," ",COUNTRY_INFO!A86) -> South Sudan | B86: =IF(COUNTRY_INFO!B86=0," ",COUNTRY_INFO!B86) -> Western Bahr El Ghazal | C86: =IF(COUNTRY_INFO!C86=0," ",COUNTRY_INFO!C86) -> RAGA | D86: =IF(COUNTRY_INFO!$AA86="MDA3 (IVM)", COUNTRY_INFO!$AA86, " ") -> MDA3 (IVM) | E86: June 2022 | F86: 27313 | G86: 48887 | H86: 76200 | I86: 16417 | J86: 15808 | K86: 32225 | N86: 0 | O86: 16417 | P86: 15808 | Q86: 32225 | R86: 60.1069088 | S86: 32.33579479 | T86: 42.29002625
A87: =IF(COUNTRY_INFO!A87=0," ",COUNTRY_INFO!A87) -> South Sudan | B87: =IF(COUNTRY_INFO!B87=0," ",COUNTRY_INFO!B87) -> Western Bahr El Ghazal | C87: =IF(COUNTRY_INFO!C87=0," ",COUNTRY_INFO!C87) -> JUR RIVER | D87: =IF(COUNTRY_INFO!$AA87="MDA3 (IVM)", COUNTRY_INFO!$AA87, " ") ->  | H87: 0 | K87: 0 | N87: 0 | O87: 0 | P87: 0 | Q87: 0
A88: =IF(COUNTRY_INFO!A88=0," ",COUNTRY_INFO!A88) -> South Sudan | B88: =IF(COUNTRY_INFO!B88=0," ",COUNTRY_INFO!B88) -> Western Bahr El Ghazal | C88: =IF(COUNTRY_INFO!C88=0," ",COUNTRY_INFO!C88) -> WAU | D88: =IF(COUNTRY_INFO!$AA88="MDA3 (IVM)", COUNTRY_INFO!$AA88, " ") -> MDA3 (IVM) | E88: June 2022 | F88: 76074 | G88: 136164 | H88: 212238 | I88: 90647 | J88: 106951 | K88: 197598 | N88: 0 | O88: 90647 | P88: 106951 | Q88: 197598 | R88: 119.1563478 | S88: 78.54572427 | T88: 93.10208351
A89: =IF(COUNTRY_INFO!A89=0," ",COUNTRY_INFO!A89) -> South Sudan | B89: =IF(COUNTRY_INFO!B89=0," ",COUNTRY_INFO!B89) -> Upper Nile | C89: =IF(COUNTRY_INFO!C89=0," ",COUNTRY_INFO!C89) -> MABAN Refugee | D89: =IF(COUNTRY_INFO!$AA89="MDA3 (IVM)", COUNTRY_INFO!$AA89, " ") ->  | H89: 0 | K89: 0 | N89: 0 | O89: 0 | P89: 0 | Q89: 0

Sheet MDA4
A1: MDA 4 - Albendazole (ALB) or 2 x Albendazole (ALB)
A2: Administrative structure, population requiring PC by age group, population treated by age group and coverage
A4: TOTAL | F4: =SUBTOTAL(9,F$10:F$1010) -> 0 | G4: 226973 | H4: 406259 | I4: 633232 | J4: 0 | K4: 201127 | L4: 232966 | M4: 434093 | N4: 0 | O4: 0 | P4: 0 | Q4: 0 | R4: 0 | S4: 201127 | T4: 232966 | U4: 434093 | V4: =IF(F4<>0, IF(R4/F4*100=0, "-", R4/F4*100), " ") ->  | W4: =IF(G4<>0, IF(S4/G4*100=0, "-", S4/G4*100), " ") -> 88.61274248 | X4: =IF(H4<>0, IF(T4/H4*100=0, "-", T4/H4*100), " ") -> 57.34420653 | Y4: =IF(I4<>0, IF(U4/I4*100=0, "-", U4/I4*100), " ") -> 68.55196831
A6: Country administrative structure | D6: PC implemented | E6: Date | F6: Population targeted for MDA 4 | J6: Population treated - 1st round | N6: Population treated - 2nd round | R6: Population treated | V6: Programme coverage (%)
A7: Country | B7: Province/State | C7: District | F7: PreSAC | G7: SAC | H7: Adults | I7: Total | J7: PreSAC | K7: SAC | L7: Adults | M7: Total | N7: PreSAC | O7: SAC | P7: Adults | Q7: Total | R7: PreSAC | S7: SAC | T7: Adults | U7: Total | V7: PreSAC | W7: SAC | X7: Adults | Y7: Total
A10: =IF(COUNTRY_INFO!A10=0," ",COUNTRY_INFO!A10) -> South Sudan | B10: =IF(COUNTRY_INFO!B10=0," ",COUNTRY_INFO!B10) -> Central Equatoria | C10: =IF(COUNTRY_INFO!C10=0," ",COUNTRY_INFO!C10) -> TEREKEKA | D10: =IF(COUNTRY_INFO!$AA10="MDA4 (ALB/2*ALB)", COUNTRY_INFO!$AA10, " ") ->  | I10: =SUM(G10:H10) -> 0 | M10: =SUM(J10:L10) -> 0 | Q10: =SUM(N10:P10) -> 0 | R10: =MAX(J10,N10) -> 0 | S10: =MAX(K10,O10) -> 0 | T10: =MAX(L10,P10) -> 0 | U10: =SUM(R10:T10) -> 0 | V10: =IF(F10<>0, IF(R10/F10*100=0, "-", R10/F10*100), " ") ->  | W10: =IF(G10<>0, IF(S10/G10*100=0, "-", S10/G10*100), " ") ->  | X10: =IF(H10<>0, IF(T10/H10*100=0, "-", T10/H10*100), " ") ->  | Y10: =IF(I10<>0, IF(U10/I10*100=0, "-",U10/I10*100), " ") -> 
A11: =IF(COUNTRY_INFO!A11=0," ",COUNTRY_INFO!A11) -> South Sudan | B11: =IF(COUNTRY_INFO!B11=0," ",COUNTRY_INFO!B11) -> Central Equatoria | C11: =IF(COUNTRY_INFO!C11=0," ",COUNTRY_INFO!C11) -> JUBA | D11: =IF(COUNTRY_INFO!$AA11="MDA4 (ALB/2*ALB)", COUNTRY_INFO!$AA11, " ") ->  | I11: =SUM(G11:H11) -> 0 | M11: 0 | Q11: 0 | R11: 0 | S11: 0 | T11: 0 | U11: 0
A12: =IF(COUNTRY_INFO!A12=0," ",COUNTRY_INFO!A12) -> South Sudan | B12: =IF(COUNTRY_INFO!B12=0," ",COUNTRY_INFO!B12) -> Central Equatoria | C12: =IF(COUNTRY_INFO!C12=0," ",COUNTRY_INFO!C12) -> LAINYA | D12: =IF(COUNTRY_INFO!$AA12="MDA4 (ALB/2*ALB)", COUNTRY_INFO!$AA12, " ") ->  | I12: 0 | M12: 0 | Q12: 0 | R12: 0 | S12: 0 | T12: 0 | U12: 0
A13: =IF(COUNTRY_INFO!A13=0," ",COUNTRY_INFO!A13) -> South Sudan | B13: =IF(COUNTRY_INFO!B13=0," ",COUNTRY_INFO!B13) -> Central Equatoria | C13: =IF(COUNTRY_INFO!C13=0," ",COUNTRY_INFO!C13) -> YEI | D13: =IF(COUNTRY_INFO!$AA13="MDA4 (ALB/2*ALB)", COUNTRY_INFO!$AA13, " ") ->  | I13: 0 | M13: 0 | Q13: 0 | R13: 0 | S13: 0 | T13: 0 | U13: 0
A14: =IF(COUNTRY_INFO!A14=0," ",COUNTRY_INFO!A14) -> South Sudan | B14: =IF(COUNTRY_INFO!B14=0," ",COUNTRY_INFO!B14) -> Central Equatoria | C14: =IF(COUNTRY_INFO!C14=0," ",COUNTRY_INFO!C14) -> MOROBO | D14: =IF(COUNTRY_INFO!$AA14="MDA4 (ALB/2*ALB)", COUNTRY_INFO!$AA14, " ") ->  | I14: 0 | M14: 0 | Q14: 0 | R14: 0 | S14: 0 | T14: 0 | U14: 0
A15: =IF(COUNTRY_INFO!A15=0," ",COUNTRY_INFO!A15) -> South Sudan | B15: =IF(COUNTRY_INFO!B15=0," ",COUNTRY_INFO!B15) -> Central Equatoria | C15: =IF(COUNTRY_INFO!C15=0," ",COUNTRY_INFO!C15) -> KAJO KEJI | D15: =IF(COUNTRY_INFO!$AA15="MDA4 (ALB/2*ALB)", COUNTRY_INFO!$AA15, " ") ->  | I15: 0 | M15: 0 | Q15: 0 | R15: 0 | S15: 0 | T15: 0 | U15: 0
A16: =IF(COUNTRY_INFO!A16=0," ",COUNTRY_INFO!A16) -> South Sudan | B16: =IF(COUNTRY_INFO!B16=0," ",COUNTRY_INFO!B16) -> Eastern Equatoria | C16: =IF(COUNTRY_INFO!C16=0," ",COUNTRY_INFO!C16) -> TORIT | D16: =IF(COUNTRY_INFO!$AA16="MDA4 (ALB/2*ALB)", COUNTRY_INFO!$AA16, " ") ->  | I16: 0 | M16: 0 | Q16: 0 | R16: 0 | S16: 0 | T16: 0 | U16: 0
A17: =IF(COUNTRY_INFO!A17=0," ",COUNTRY_INFO!A17) -> South Sudan | B17: =IF(COUNTRY_INFO!B17=0," ",COUNTRY_INFO!B17) -> Eastern Equatoria | C17: =IF(COUNTRY_INFO!C17=0," ",COUNTRY_INFO!C17) -> LOPA/LAFON | D17: =IF(COUNTRY_INFO!$AA17="MDA4 (ALB/2*ALB)", COUNTRY_INFO!$AA17, " ") ->  | I17: 0 | M17: 0 | Q17: 0 | R17: 0 | S17: 0 | T17: 0 | U17: 0
A18: =IF(COUNTRY_INFO!A18=0," ",COUNTRY_INFO!A18) -> South Sudan | B18: =IF(COUNTRY_INFO!B18=0," ",COUNTRY_INFO!B18) -> Eastern Equatoria | C18: =IF(COUNTRY_INFO!C18=0," ",COUNTRY_INFO!C18) -> KAPOETA NORTH | D18: =IF(COUNTRY_INFO!$AA18="MDA4 (ALB/2*ALB)", COUNTRY_INFO!$AA18, " ") ->  | I18: 0 | M18: 0 | Q18: 0 | R18: 0 | S18: 0 | T18: 0 | U18: 0
A19: =IF(COUNTRY_INFO!A19=0," ",COUNTRY_INFO!A19) -> South Sudan | B19: =IF(COUNTRY_INFO!B19=0," ",COUNTRY_INFO!B19) -> Eastern Equatoria | C19: =IF(COUNTRY_INFO!C19=0," ",COUNTRY_INFO!C19) -> KAPOETA EAST | D19: =IF(COUNTRY_INFO!$AA19="MDA4 (ALB/2*ALB)", COUNTRY_INFO!$AA19, " ") -> MDA4 (ALB/2*ALB) | E19: July 2022 | G19: 91165 | H19: 163176 | I19: 254341 | K19: 67069 | L19: 69113 | M19: 136182 | Q19: 0 | R19: 0 | S19: 67069 | T19: 69113 | U19: 136182 | W19: 73.56880382 | X19: 42.35488062 | Y19: 53.54307799 | AB19: 91165 | AC19: 163176
A20: =IF(COUNTRY_INFO!A20=0," ",COUNTRY_INFO!A20) -> South Sudan | B20: =IF(COUNTRY_INFO!B20=0," ",COUNTRY_INFO!B20) -> Eastern Equatoria | C20: =IF(COUNTRY_INFO!C20=0," ",COUNTRY_INFO!C20) -> KAPOETA SOUTH | D20: =IF(COUNTRY_INFO!$AA20="MDA4 (ALB/2*ALB)", COUNTRY_INFO!$AA20, " ") ->  | I20: 0 | M20: 0 | Q20: 0 | R20: 0 | S20: 0 | T20: 0 | U20: 0
A21: =IF(COUNTRY_INFO!A21=0," ",COUNTRY_INFO!A21) -> South Sudan | B21: =IF(COUNTRY_INFO!B21=0," ",COUNTRY_INFO!B21) -> Eastern Equatoria | C21: =IF(COUNTRY_INFO!C21=0," ",COUNTRY_INFO!C21) -> BUDI | D21: =IF(COUNTRY_INFO!$AA21="MDA4 (ALB/2*ALB)", COUNTRY_INFO!$AA21, " ") ->  | I21: 0 | M21: 0 | Q21: 0 | R21: 0 | S21: 0 | T21: 0 | U21: 0
A22: =IF(COUNTRY_INFO!A22=0," ",COUNTRY_INFO!A22) -> South Sudan | B22: =IF(COUNTRY_INFO!B22=0," ",COUNTRY_INFO!B22) -> Eastern Equatoria | C22: =IF(COUNTRY_INFO!C22=0," ",COUNTRY_INFO!C22) -> IKOTOS | D22: =IF(COUNTRY_INFO!$AA22="MDA4 (ALB/2*ALB)", COUNTRY_INFO!$AA22, " ") ->  | I22: 0 | M22: 0 | Q22: 0 | R22: 0 | S22: 0 | T22: 0 | U22: 0
A23: =IF(COUNTRY_INFO!A23=0," ",COUNTRY_INFO!A23) -> South Sudan | B23: =IF(COUNTRY_INFO!B23=0," ",COUNTRY_INFO!B23) -> Eastern Equatoria | C23: =IF(COUNTRY_INFO!C23=0," ",COUNTRY_INFO!C23) -> MAGWI | D23: =IF(COUNTRY_INFO!$AA23="MDA4 (ALB/2*ALB)", COUNTRY_INFO!$AA23, " ") ->  | I23: 0 | M23: 0 | Q23: 0 | R23: 0 | S23: 0 | T23: 0 | U23: 0
A24: =IF(COUNTRY_INFO!A24=0," ",COUNTRY_INFO!A24) -> South Sudan | B24: =IF(COUNTRY_INFO!B24=0," ",COUNTRY_INFO!B24) -> Jonglei | C24: =IF(COUNTRY_INFO!C24=0," ",COUNTRY_INFO!C24) -> FANGAK | D24: =IF(COUNTRY_INFO!$AA24="MDA4 (ALB/2*ALB)", COUNTRY_INFO!$AA24, " ") -> MDA4 (ALB/2*ALB) | E24: December 2022 | G24: 53207 | H24: 95235 | I24: 148442 | K24: 38107 | L24: 52591 | M24: 90698 | Q24: 0 | R24: 0 | S24: 38107 | T24: 52591 | U24: 90698 | W24: 71.62027553 | X24: 55.22234473 | Y24: 61.09995823 | AB24: 53207 | AC24: 95235
A25: =IF(COUNTRY_INFO!A25=0," ",COUNTRY_INFO!A25) -> South Sudan | B25: =IF(COUNTRY_INFO!B25=0," ",COUNTRY_INFO!B25) -> Jonglei | C25: =IF(COUNTRY_INFO!C25=0," ",COUNTRY_INFO!C25) -> KHORFLUS | D25: =IF(COUNTRY_INFO!$AA25="MDA4 (ALB/2*ALB)", COUNTRY_INFO!$AA25, " ") ->  | I25: 0 | M25: 0 | Q25: 0 | R25: 0 | S25: 0 | T25: 0 | U25: 0
A26: =IF(COUNTRY_INFO!A26=0," ",COUNTRY_INFO!A26) -> South Sudan | B26: =IF(COUNTRY_INFO!B26=0," ",COUNTRY_INFO!B26) -> Jonglei | C26: =IF(COUNTRY_INFO!C26=0," ",COUNTRY_INFO!C26) -> AYOD | D26: =IF(COUNTRY_INFO!$AA26="MDA4 (ALB/2*ALB)", COUNTRY_INFO!$AA26, " ") ->  | I26: 0 | M26: 0 | Q26: 0 | R26: 0 | S26: 0 | T26: 0 | U26: 0
A27: =IF(COUNTRY_INFO!A27=0," ",COUNTRY_INFO!A27) -> South Sudan | B27: =IF(COUNTRY_INFO!B27=0," ",COUNTRY_INFO!B27) -> Jonglei | C27: =IF(COUNTRY_INFO!C27=0," ",COUNTRY_INFO!C27) -> DUK | D27: =IF(COUNTRY_INFO!$AA27="MDA4 (ALB/2*ALB)", COUNTRY_INFO!$AA27, " ") ->  | I27: 0 | M27: 0 | Q27: 0 | R27: 0 | S27: 0 | T27: 0 | U27: 0
A28: =IF(COUNTRY_INFO!A28=0," ",COUNTRY_INFO!A28) -> South Sudan | B28: =IF(COUNTRY_INFO!B28=0," ",COUNTRY_INFO!B28) -> Jonglei | C28: =IF(COUNTRY_INFO!C28=0," ",COUNTRY_INFO!C28) -> UROR | D28: =IF(COUNTRY_INFO!$AA28="MDA4 (ALB/2*ALB)", COUNTRY_INFO!$AA28, " ") ->  | I28: 0 | M28: 0 | Q28: 0 | R28: 0 | S28: 0 | T28: 0 | U28: 0
A29: =IF(COUNTRY_INFO!A29=0," ",COUNTRY_INFO!A29) -> South Sudan | B29: =IF(COUNTRY_INFO!B29=0," ",COUNTRY_INFO!B29) -> Jonglei | C29: =IF(COUNTRY_INFO!C29=0," ",COUNTRY_INFO!C29) -> NYIROL | D29: =IF(COUNTRY_INFO!$AA29="MDA4 (ALB/2*ALB)", COUNTRY_INFO!$AA29, " ") ->  | I29: 0 | M29: 0 | Q29: 0 | R29: 0 | S29: 0 | T29: 0 | U29: 0
A30: =IF(COUNTRY_INFO!A30=0," ",COUNTRY_INFO!A30) -> South Sudan | B30: =IF(COUNTRY_INFO!B30=0," ",COUNTRY_INFO!B30) -> Jonglei | C30: =IF(COUNTRY_INFO!C30=0," ",COUNTRY_INFO!C30) -> AKOBO | D30: =IF(COUNTRY_INFO!$AA30="MDA4 (ALB/2*ALB)", COUNTRY_INFO!$AA30, " ") ->  | I30: 0 | M30: 0 | Q30: 0 | R30: 0 | S30: 0 | T30: 0 | U30: 0
A31: =IF(COUNTRY_INFO!A31=0," ",COUNTRY_INFO!A31) -> South Sudan | B31: =IF(COUNTRY_INFO!B31=0," ",COUNTRY_INFO!B31) -> Jonglei | C31: =IF(COUNTRY_INFO!C31=0," ",COUNTRY_INFO!C31) -> POCHALA | D31: =IF(COUNTRY_INFO!$AA31="MDA4 (ALB/2*ALB)", COUNTRY_INFO!$AA31, " ") ->  | I31: 0 | M31: 0 | Q31: 0 | R31: 0 | S31: 0 | T31: 0 | U31: 0
A32: =IF(COUNTRY_INFO!A32=0," ",COUNTRY_INFO!A32) -> South Sudan | B32: =IF(COUNTRY_INFO!B32=0," ",COUNTRY_INFO!B32) -> Jonglei | C32: =IF(COUNTRY_INFO!C32=0," ",COUNTRY_INFO!C32) -> PIBOR | D32: =IF(COUNTRY_INFO!$AA32="MDA4 (ALB/2*ALB)", COUNTRY_INFO!$AA32, " ") ->  | I32: 0 | M32: 0 | Q32: 0 | R32: 0 | S32: 0 | T32: 0 | U32: 0
A33: =IF(COUNTRY_INFO!A33=0," ",COUNTRY_INFO!A33) -> South Sudan | B33: =IF(COUNTRY_INFO!B33=0," ",COUNTRY_INFO!B33) -> Jonglei | C33: =IF(COUNTRY_INFO!C33=0," ",COUNTRY_INFO!C33) -> TWIC EAST | D33: =IF(COUNTRY_INFO!$AA33="MDA4 (ALB/2*ALB)", COUNTRY_INFO!$AA33, " ") ->  | I33: 0 | M33: 0 | Q33: 0 | R33: 0 | S33: 0 | T33: 0 | U33: 0
A34: =IF(COUNTRY_INFO!A34=0," ",COUNTRY_INFO!A34) -> South Sudan | B34: =IF(COUNTRY_INFO!B34=0," ",COUNTRY_INFO!B34) -> Jonglei | C34: =IF(COUNTRY_INFO!C34=0," ",COUNTRY_INFO!C34) -> BOR SOUTH | D34: =IF(COUNTRY_INFO!$AA34="MDA4 (ALB/2*ALB)", COUNTRY_INFO!$AA34, " ") ->  | I34: 0 | M34: 0 | Q34: 0 | R34: 0 | S34: 0 | T34: 0 | U34: 0
A35: =IF(COUNTRY_INFO!A35=0," ",COUNTRY_INFO!A35) -> South Sudan | B35: =IF(COUNTRY_INFO!B35=0," ",COUNTRY_INFO!B35) -> Lakes | C35: =IF(COUNTRY_INFO!C35=0," ",COUNTRY_INFO!C35) -> CUEBIT | D35: =IF(COUNTRY_INFO!$AA35="MDA4 (ALB/2*ALB)", COUNTRY_INFO!$AA35, " ") ->  | I35: 0 | M35: 0 | Q35: 0 | R35: 0 | S35: 0 | T35: 0 | U35: 0
A36: =IF(COUNTRY_INFO!A36=0," ",COUNTRY_INFO!A36) -> South Sudan | B36: =IF(COUNTRY_INFO!B36=0," ",COUNTRY_INFO!B36) -> Lakes | C36: =IF(COUNTRY_INFO!C36=0," ",COUNTRY_INFO!C36) -> RUMBEK NORTH | D36: =IF(COUNTRY_INFO!$AA36="MDA4 (ALB/2*ALB)", COUNTRY_INFO!$AA36, " ") ->  | I36: 0 | M36: 0 | Q36: 0 | R36: 0 | S36: 0 | T36: 0 | U36: 0
A37: =IF(COUNTRY_INFO!A37=0," ",COUNTRY_INFO!A37) -> South Sudan | B37: =IF(COUNTRY_INFO!B37=0," ",COUNTRY_INFO!B37) -> Lakes | C37: =IF(COUNTRY_INFO!C37=0," ",COUNTRY_INFO!C37) -> RUMBEK CENTRE | D37: =IF(COUNTRY_INFO!$AA37="MDA4 (ALB/2*ALB)", COUNTRY_INFO!$AA37, " ") ->  | I37: 0 | M37: 0 | Q37: 0 | R37: 0 | S37: 0 | T37: 0 | U37: 0
A38: =IF(COUNTRY_INFO!A38=0," ",COUNTRY_INFO!A38) -> South Sudan | B38: =IF(COUNTRY_INFO!B38=0," ",COUNTRY_INFO!B38) -> Lakes | C38: =IF(COUNTRY_INFO!C38=0," ",COUNTRY_INFO!C38) -> WULU | D38: =IF(COUNTRY_INFO!$AA38="MDA4 (ALB/2*ALB)", COUNTRY_INFO!$AA38, " ") ->  | I38: 0 | M38: 0 | Q38: 0 | R38: 0 | S38: 0 | T38: 0 | U38: 0
A39: =IF(COUNTRY_INFO!A39=0," ",COUNTRY_INFO!A39) -> South Sudan | B39: =IF(COUNTRY_INFO!B39=0," ",COUNTRY_INFO!B39) -> Lakes | C39: =IF(COUNTRY_INFO!C39=0," ",COUNTRY_INFO!C39) -> RUMBEK EAST | D39: =IF(COUNTRY_INFO!$AA39="MDA4 (ALB/2*ALB)", COUNTRY_INFO!$AA39, " ") ->  | I39: 0 | M39: 0 | Q39: 0 | R39: 0 | S39: 0 | T39: 0 | U39: 0
A40: =IF(COUNTRY_INFO!A40=0," ",COUNTRY_INFO!A40) -> South Sudan | B40: =IF(COUNTRY_INFO!B40=0," ",COUNTRY_INFO!B40) -> Lakes | C40: =IF(COUNTRY_INFO!C40=0," ",COUNTRY_INFO!C40) -> YIROL WEST | D40: =IF(COUNTRY_INFO!$AA40="MDA4 (ALB/2*ALB)", COUNTRY_INFO!$AA40, " ") ->  | I40: 0 | M40: 0 | Q40: 0 | R40: 0 | S40: 0 | T40: 0 | U40: 0
A41: =IF(COUNTRY_INFO!A41=0," ",COUNTRY_INFO!A41) -> South Sudan | B41: =IF(COUNTRY_INFO!B41=0," ",COUNTRY_INFO!B41) -> Lakes | C41: =IF(COUNTRY_INFO!C41=0," ",COUNTRY_INFO!C41) -> YIROL EAST | D41: =IF(COUNTRY_INFO!$AA41="MDA4 (ALB/2*ALB)", COUNTRY_INFO!$AA41, " ") ->  | I41: 0 | M41: 0 | Q41: 0 | R41: 0 | S41: 0 | T41: 0 | U41: 0
A42: =IF(COUNTRY_INFO!A42=0," ",COUNTRY_INFO!A42) -> South Sudan | B42: =IF(COUNTRY_INFO!B42=0," ",COUNTRY_INFO!B42) -> Lakes | C42: =IF(COUNTRY_INFO!C42=0," ",COUNTRY_INFO!C42) -> AWERIAL | D42: =IF(COUNTRY_INFO!$AA42="MDA4 (ALB/2*ALB)", COUNTRY_INFO!$AA42, " ") ->  | I42: 0 | M42: =SUM(J42:L42) -> 0 | Q42: =SUM(N42:P42) -> 0 | R42: =MAX(J42,N42) -> 0 | S42: =MAX(K42,O42) -> 0 | T42: =MAX(L42,P42) -> 0 | U42: =SUM(R42:T42) -> 0 | V42: =IF(F42<>0, IF(R42/F42*100=0, "-", R42/F42*100), " ") ->  | W42: =IF(G42<>0, IF(S42/G42*100=0, "-", S42/G42*100), " ") ->  | X42: =IF(H42<>0, IF(T42/H42*100=0, "-", T42/H42*100), " ") ->  | Y42: =IF(I42<>0, IF(U42/I42*100=0, "-",U42/I42*100), " ") -> 
A43: =IF(COUNTRY_INFO!A43=0," ",COUNTRY_INFO!A43) -> South Sudan | B43: =IF(COUNTRY_INFO!B43=0," ",COUNTRY_INFO!B43) -> Northern Bahr El Ghazal | C43: =IF(COUNTRY_INFO!C43=0," ",COUNTRY_INFO!C43) -> AWIEL NORTH | D43: =IF(COUNTRY_INFO!$AA43="MDA4 (ALB/2*ALB)", COUNTRY_INFO!$AA43, " ") ->  | I43: 0 | M43: 0 | Q43: 0 | R43: 0 | S43: 0 | T43: 0 | U43: 0
A44: =IF(COUNTRY_INFO!A44=0," ",COUNTRY_INFO!A44) -> South Sudan | B44: =IF(COUNTRY_INFO!B44=0," ",COUNTRY_INFO!B44) -> Northern Bahr El Ghazal | C44: =IF(COUNTRY_INFO!C44=0," ",COUNTRY_INFO!C44) -> AWIEL EAST | D44: =IF(COUNTRY_INFO!$AA44="MDA4 (ALB/2*ALB)", COUNTRY_INFO!$AA44, " ") ->  | I44: 0 | M44: 0 | Q44: 0 | R44: 0 | S44: 0 | T44: 0 | U44: 0
A45: =IF(COUNTRY_INFO!A45=0," ",COUNTRY_INFO!A45) -> South Sudan | B45: =IF(COUNTRY_INFO!B45=0," ",COUNTRY_INFO!B45) -> Northern Bahr El Ghazal | C45: =IF(COUNTRY_INFO!C45=0," ",COUNTRY_INFO!C45) -> AWIEL SOUTH | D45: =IF(COUNTRY_INFO!$AA45="MDA4 (ALB/2*ALB)", COUNTRY_INFO!$AA45, " ") ->  | I45: 0 | M45: 0 | Q45: 0 | R45: 0 | S45: 0 | T45: 0 | U45: 0
A46: =IF(COUNTRY_INFO!A46=0," ",COUNTRY_INFO!A46) -> South Sudan | B46: =IF(COUNTRY_INFO!B46=0," ",COUNTRY_INFO!B46) -> Northern Bahr El Ghazal | C46: =IF(COUNTRY_INFO!C46=0," ",COUNTRY_INFO!C46) -> AWIEL WEST | D46: =IF(COUNTRY_INFO!$AA46="MDA4 (ALB/2*ALB)", COUNTRY_INFO!$AA46, " ") ->  | I46: 0 | M46: 0 | Q46: 0 | R46: 0 | S46: 0 | T46: 0 | U46: 0
A47: =IF(COUNTRY_INFO!A47=0," ",COUNTRY_INFO!A47) -> South Sudan | B47: =IF(COUNTRY_INFO!B47=0," ",COUNTRY_INFO!B47) -> Northern Bahr El Ghazal | C47: =IF(COUNTRY_INFO!C47=0," ",COUNTRY_INFO!C47) -> AWIEL CENTRE | D47: =IF(COUNTRY_INFO!$AA47="MDA4 (ALB/2*ALB)", COUNTRY_INFO!$AA47, " ") ->  | I47: 0 | M47: 0 | Q47: 0 | R47: 0 | S47: 0 | T47: 0 | U47: 0
A48: =IF(COUNTRY_INFO!A48=0," ",COUNTRY_INFO!A48) -> South Sudan | B48: =IF(COUNTRY_INFO!B48=0," ",COUNTRY_INFO!B48) -> Unity | C48: =IF(COUNTRY_INFO!C48=0," ",COUNTRY_INFO!C48) -> PARIANG | D48: =IF(COUNTRY_INFO!$AA48="MDA4 (ALB/2*ALB)", COUNTRY_INFO!$AA48, " ") ->  | I48: 0 | M48: 0 | Q48: 0 | R48: 0 | S48: 0 | T48: 0 | U48: 0
A49: =IF(COUNTRY_INFO!A49=0," ",COUNTRY_INFO!A49) -> South Sudan | B49: =IF(COUNTRY_INFO!B49=0," ",COUNTRY_INFO!B49) -> Unity | C49: =IF(COUNTRY_INFO!C49=0," ",COUNTRY_INFO!C49) -> ABIEMNHOM | D49: =IF(COUNTRY_INFO!$AA49="MDA4 (ALB/2*ALB)", COUNTRY_INFO!$AA49, " ") ->  | I49: 0 | M49: 0 | Q49: 0 | R49: 0 | S49: 0 | T49: 0 | U49: 0
A50: =IF(COUNTRY_INFO!A50=0," ",COUNTRY_INFO!A50) -> South Sudan | B50: =IF(COUNTRY_INFO!B50=0," ",COUNTRY_INFO!B50) -> Unity | C50: =IF(COUNTRY_INFO!C50=0," ",COUNTRY_INFO!C50) -> MAYOM | D50: =IF(COUNTRY_INFO!$AA50="MDA4 (ALB/2*ALB)", COUNTRY_INFO!$AA50, " ") ->  | I50: 0 | M50: 0 | Q50: 0 | R50: 0 | S50: 0 | T50: 0 | U50: 0
A51: =IF(COUNTRY_INFO!A51=0," ",COUNTRY_INFO!A51) -> South Sudan | B51: =IF(COUNTRY_INFO!B51=0," ",COUNTRY_INFO!B51) -> Unity | C51: =IF(COUNTRY_INFO!C51=0," ",COUNTRY_INFO!C51) -> RUBKONA | D51: =IF(COUNTRY_INFO!$AA51="MDA4 (ALB/2*ALB)", COUNTRY_INFO!$AA51, " ") -> MDA4 (ALB/2*ALB) | E51: October 2022 | G51: 53911 | H51: 96496 | I51: 150407 | K51: 68618 | L51: 72412 | M51: 141030 | Q51: 0 | R51: 0 | S51: 68618 | T51: 72412 | U51: 141030 | W51: 127.2801469 | X51: 75.0414525 | Y51: 93.76558272 | AB51: 53911 | AC51: 96496
A52: =IF(COUNTRY_INFO!A52=0," ",COUNTRY_INFO!A52) -> South Sudan | B52: =IF(COUNTRY_INFO!B52=0," ",COUNTRY_INFO!B52) -> Unity | C52: =IF(COUNTRY_INFO!C52=0," ",COUNTRY_INFO!C52) -> GUIT | D52: =IF(COUNTRY_INFO!$AA52="MDA4 (ALB/2*ALB)", COUNTRY_INFO!$AA52, " ") ->  | I52: 0 | M52: 0 | Q52: 0 | R52: 0 | S52: 0 | T52: 0 | U52: 0
A53: =IF(COUNTRY_INFO!A53=0," ",COUNTRY_INFO!A53) -> South Sudan | B53: =IF(COUNTRY_INFO!B53=0," ",COUNTRY_INFO!B53) -> Unity | C53: =IF(COUNTRY_INFO!C53=0," ",COUNTRY_INFO!C53) -> KOCH | D53: =IF(COUNTRY_INFO!$AA53="MDA4 (ALB/2*ALB)", COUNTRY_INFO!$AA53, " ") ->  | I53: 0 | M53: 0 | Q53: 0 | R53: 0 | S53: 0 | T53: 0 | U53: 0
A54: =IF(COUNTRY_INFO!A54=0," ",COUNTRY_INFO!A54) -> South Sudan | B54: =IF(COUNTRY_INFO!B54=0," ",COUNTRY_INFO!B54) -> Unity | C54: =IF(COUNTRY_INFO!C54=0," ",COUNTRY_INFO!C54) -> LEER | D54: =IF(COUNTRY_INFO!$AA54="MDA4 (ALB/2*ALB)", COUNTRY_INFO!$AA54, " ") -> MDA4 (ALB/2*ALB) | E54: September 2022 | G54: 28690 | H54: 51352 | I54: 80042 | K54: 27333 | L54: 38850 | M54: 66183 | Q54: 0 | R54: 0 | S54: 27333 | T54: 38850 | U54: 66183 | W54: 95.27012896 | X54: 75.65430752 | Y54: 82.6853402 | AB54: 28690 | AC54: 51352
A55: =IF(COUNTRY_INFO!A55=0," ",COUNTRY_INFO!A55) -> South Sudan | B55: =IF(COUNTRY_INFO!B55=0," ",COUNTRY_INFO!B55) -> Unity | C55: =IF(COUNTRY_INFO!C55=0," ",COUNTRY_INFO!C55) -> MAYENDIT | D55: =IF(COUNTRY_INFO!$AA55="MDA4 (ALB/2*ALB)", COUNTRY_INFO!$AA55, " ") ->  | I55: 0 | M55: 0 | Q55: 0 | R55: 0 | S55: 0 | T55: 0 | U55: 0
A56: =IF(COUNTRY_INFO!A56=0," ",COUNTRY_INFO!A56) -> South Sudan | B56: =IF(COUNTRY_INFO!B56=0," ",COUNTRY_INFO!B56) -> Unity | C56: =IF(COUNTRY_INFO!C56=0," ",COUNTRY_INFO!C56) -> PAYNIJAR | D56: =IF(COUNTRY_INFO!$AA56="MDA4 (ALB/2*ALB)", COUNTRY_INFO!$AA56, " ") ->  | I56: 0 | M56: 0 | Q56: 0 | R56: 0 | S56: 0 | T56: 0 | U56: 0
A57: =IF(COUNTRY_INFO!A57=0," ",COUNTRY_INFO!A57) -> South Sudan | B57: =IF(COUNTRY_INFO!B57=0," ",COUNTRY_INFO!B57) -> Upper Nile | C57: =IF(COUNTRY_INFO!C57=0," ",COUNTRY_INFO!C57) -> RENK | D57: =IF(COUNTRY_INFO!$AA57="MDA4 (ALB/2*ALB)", COUNTRY_INFO!$AA57, " ") ->  | I57: 0 | M57: 0 | Q57: 0 | R57: 0 | S57: 0 | T57: 0 | U57: 0
A58: =IF(COUNTRY_INFO!A58=0," ",COUNTRY_INFO!A58) -> South Sudan | B58: =IF(COUNTRY_INFO!B58=0," ",COUNTRY_INFO!B58) -> Upper Nile | C58: =IF(COUNTRY_INFO!C58=0," ",COUNTRY_INFO!C58) -> MANYO | D58: =IF(COUNTRY_INFO!$AA58="MDA4 (ALB/2*ALB)", COUNTRY_INFO!$AA58, " ") ->  | I58: 0 | M58: 0 | Q58: 0 | R58: 0 | S58: 0 | T58: 0 | U58: 0
A59: =IF(COUNTRY_INFO!A59=0," ",COUNTRY_INFO!A59) -> South Sudan | B59: =IF(COUNTRY_INFO!B59=0," ",COUNTRY_INFO!B59) -> Upper Nile | C59: =IF(COUNTRY_INFO!C59=0," ",COUNTRY_INFO!C59) -> FASHODA | D59: =IF(COUNTRY_INFO!$AA59="MDA4 (ALB/2*ALB)", COUNTRY_INFO!$AA59, " ") ->  | I59: 0 | M59: 0 | Q59: 0 | R59: 0 | S59: 0 | T59: 0 | U59: 0
A60: =IF(COUNTRY_INFO!A60=0," ",COUNTRY_INFO!A60) -> South Sudan | B60: =IF(COUNTRY_INFO!B60=0," ",COUNTRY_INFO!B60) -> Upper Nile | C60: =IF(COUNTRY_INFO!C60=0," ",COUNTRY_INFO!C60) -> MELUT | D60: =IF(COUNTRY_INFO!$AA60="MDA4 (ALB/2*ALB)", COUNTRY_INFO!$AA60, " ") ->  | I60: 0 | M60: 0 | Q60: 0 | R60: 0 | S60: 0 | T60: 0 | U60: 0
A61: =IF(COUNTRY_INFO!A61=0," ",COUNTRY_INFO!A61) -> South Sudan | B61: =IF(COUNTRY_INFO!B61=0," ",COUNTRY_INFO!B61) -> Upper Nile | C61: =IF(COUNTRY_INFO!C61=0," ",COUNTRY_INFO!C61) -> MABAN | D61: =IF(COUNTRY_INFO!$AA61="MDA4 (ALB/2*ALB)", COUNTRY_INFO!$AA61, " ") ->  | I61: 0 | M61: 0 | Q61: 0 | R61: 0 | S61: 0 | T61: 0 | U61: 0
A62: =IF(COUNTRY_INFO!A62=0," ",COUNTRY_INFO!A62) -> South Sudan | B62: =IF(COUNTRY_INFO!B62=0," ",COUNTRY_INFO!B62) -> Upper Nile | C62: =IF(COUNTRY_INFO!C62=0," ",COUNTRY_INFO!C62) -> MAIWUT | D62: =IF(COUNTRY_INFO!$AA62="MDA4 (ALB/2*ALB)", COUNTRY_INFO!$AA62, " ") ->  | I62: 0 | M62: 0 | Q62: 0 | R62: 0 | S62: 0 | T62: 0 | U62: 0
A63: =IF(COUNTRY_INFO!A63=0," ",COUNTRY_INFO!A63) -> South Sudan | B63: =IF(COUNTRY_INFO!B63=0," ",COUNTRY_INFO!B63) -> Upper Nile | C63: =IF(COUNTRY_INFO!C63=0," ",COUNTRY_INFO!C63) -> LUAKPINY/NASIR | D63: =IF(COUNTRY_INFO!$AA63="MDA4 (ALB/2*ALB)", COUNTRY_INFO!$AA63, " ") ->  | I63: 0 | M63: 0 | Q63: 0 | R63: 0 | S63: 0 | T63: 0 | U63: 0
A64: =IF(COUNTRY_INFO!A64=0," ",COUNTRY_INFO!A64) -> South Sudan | B64: =IF(COUNTRY_INFO!B64=0," ",COUNTRY_INFO!B64) -> Upper Nile | C64: =IF(COUNTRY_INFO!C64=0," ",COUNTRY_INFO!C64) -> LONGOCHUK | D64: =IF(COUNTRY_INFO!$AA64="MDA4 (ALB/2*ALB)", COUNTRY_INFO!$AA64, " ") ->  | I64: 0 | M64: 0 | Q64: 0 | R64: 0 | S64: 0 | T64: 0 | U64: 0
A65: =IF(COUNTRY_INFO!A65=0," ",COUNTRY_INFO!A65) -> South Sudan | B65: =IF(COUNTRY_INFO!B65=0," ",COUNTRY_INFO!B65) -> Upper Nile | C65: =IF(COUNTRY_INFO!C65=0," ",COUNTRY_INFO!C65) -> ULANG | D65: =IF(COUNTRY_INFO!$AA65="MDA4 (ALB/2*ALB)", COUNTRY_INFO!$AA65, " ") ->  | I65: 0 | M65: 0 | Q65: 0 | R65: 0 | S65: 0 | T65: 0 | U65: 0
A66: =IF(COUNTRY_INFO!A66=0," ",COUNTRY_INFO!A66) -> South Sudan | B66: =IF(COUNTRY_INFO!B66=0," ",COUNTRY_INFO!B66) -> Upper Nile | C66: =IF(COUNTRY_INFO!C66=0," ",COUNTRY_INFO!C66) -> BALIET | D66: =IF(COUNTRY_INFO!$AA66="MDA4 (ALB/2*ALB)", COUNTRY_INFO!$AA66, " ") ->  | I66: 0 | M66: 0 | Q66: 0 | R66: 0 | S66: 0 | T66: 0 | U66: 0
A67: =IF(COUNTRY_INFO!A67=0," ",COUNTRY_INFO!A67) -> South Sudan | B67: =IF(COUNTRY_INFO!B67=0," ",COUNTRY_INFO!B67) -> Upper Nile | C67: =IF(COUNTRY_INFO!C67=0," ",COUNTRY_INFO!C67) -> MALAKAL | D67: =IF(COUNTRY_INFO!$AA67="MDA4 (ALB/2*ALB)", COUNTRY_INFO!$AA67, " ") ->  | I67: 0 | M67: 0 | Q67: 0 | R67: 0 | S67: 0 | T67: 0 | U67: 0
A68: =IF(COUNTRY_INFO!A68=0," ",COUNTRY_INFO!A68) -> South Sudan | B68: =IF(COUNTRY_INFO!B68=0," ",COUNTRY_INFO!B68) -> Upper Nile | C68: =IF(COUNTRY_INFO!C68=0," ",COUNTRY_INFO!C68) -> PANYKANG | D68: =IF(COUNTRY_INFO!$AA68="MDA4 (ALB/2*ALB)", COUNTRY_INFO!$AA68, " ") ->  | I68: 0 | M68: 0 | Q68: 0 | R68: 0 | S68: 0 | T68: 0 | U68: 0
A69: =IF(COUNTRY_INFO!A69=0," ",COUNTRY_INFO!A69) -> South Sudan | B69: =IF(COUNTRY_INFO!B69=0," ",COUNTRY_INFO!B69) -> Warrap | C69: =IF(COUNTRY_INFO!C69=0," ",COUNTRY_INFO!C69) -> ABYEI | D69: =IF(COUNTRY_INFO!$AA69="MDA4 (ALB/2*ALB)", COUNTRY_INFO!$AA69, " ") ->  | I69: 0 | M69: 0 | Q69: 0 | R69: 0 | S69: 0 | T69: 0 | U69: 0
A70: =IF(COUNTRY_INFO!A70=0," ",COUNTRY_INFO!A70) -> South Sudan | B70: =IF(COUNTRY_INFO!B70=0," ",COUNTRY_INFO!B70) -> Warrap | C70: =IF(COUNTRY_INFO!C70=0," ",COUNTRY_INFO!C70) -> TWIC | D70: =IF(COUNTRY_INFO!$AA70="MDA4 (ALB/2*ALB)", COUNTRY_INFO!$AA70, " ") ->  | I70: 0 | M70: 0 | Q70: 0 | R70: 0 | S70: 0 | T70: 0 | U70: 0
A71: =IF(COUNTRY_INFO!A71=0," ",COUNTRY_INFO!A71) -> South Sudan | B71: =IF(COUNTRY_INFO!B71=0," ",COUNTRY_INFO!B71) -> Warrap | C71: =IF(COUNTRY_INFO!C71=0," ",COUNTRY_INFO!C71) -> GOGRIAL WEST | D71: =IF(COUNTRY_INFO!$AA71="MDA4 (ALB/2*ALB)", COUNTRY_INFO!$AA71, " ") ->  | I71: 0 | M71: 0 | Q71: 0 | R71: 0 | S71: 0 | T71: 0 | U71: 0
A72: =IF(COUNTRY_INFO!A72=0," ",COUNTRY_INFO!A72) -> South Sudan | B72: =IF(COUNTRY_INFO!B72=0," ",COUNTRY_INFO!B72) -> Warrap | C72: =IF(COUNTRY_INFO!C72=0," ",COUNTRY_INFO!C72) -> GOGRIAL EAST | D72: =IF(COUNTRY_INFO!$AA72="MDA4 (ALB/2*ALB)", COUNTRY_INFO!$AA72, " ") ->  | I72: 0 | M72: 0 | Q72: 0 | R72: 0 | S72: 0 | T72: 0 | U72: 0
A73: =IF(COUNTRY_INFO!A73=0," ",COUNTRY_INFO!A73) -> South Sudan | B73: =IF(COUNTRY_INFO!B73=0," ",COUNTRY_INFO!B73) -> Warrap | C73: =IF(COUNTRY_INFO!C73=0," ",COUNTRY_INFO!C73) -> TONJ NORTH | D73: =IF(COUNTRY_INFO!$AA73="MDA4 (ALB/2*ALB)", COUNTRY_INFO!$AA73, " ") ->  | I73: 0 | M73: 0 | Q73: 0 | R73: 0 | S73: 0 | T73: 0 | U73: 0
A74: =IF(COUNTRY_INFO!A74=0," ",COUNTRY_INFO!A74) -> South Sudan | B74: =IF(COUNTRY_INFO!B74=0," ",COUNTRY_INFO!B74) -> Warrap | C74: =IF(COUNTRY_INFO!C74=0," ",COUNTRY_INFO!C74) -> TONJ EAST | D74: =IF(COUNTRY_INFO!$AA74="MDA4 (ALB/2*ALB)", COUNTRY_INFO!$AA74, " ") ->  | I74: 0 | M74: =SUM(J74:L74) -> 0 | Q74: =SUM(N74:P74) -> 0 | R74: =MAX(J74,N74) -> 0 | S74: =MAX(K74,O74) -> 0 | T74: =MAX(L74,P74) -> 0 | U74: =SUM(R74:T74) -> 0 | V74: =IF(F74<>0, IF(R74/F74*100=0, "-", R74/F74*100), " ") ->  | W74: =IF(G74<>0, IF(S74/G74*100=0, "-", S74/G74*100), " ") ->  | X74: =IF(H74<>0, IF(T74/H74*100=0, "-", T74/H74*100), " ") ->  | Y74: =IF(I74<>0, IF(U74/I74*100=0, "-",U74/I74*100), " ") -> 
A75: =IF(COUNTRY_INFO!A75=0," ",COUNTRY_INFO!A75) -> South Sudan | B75: =IF(COUNTRY_INFO!B75=0," ",COUNTRY_INFO!B75) -> Warrap | C75: =IF(COUNTRY_INFO!C75=0," ",COUNTRY_INFO!C75) -> TONJ SOUTH | D75: =IF(COUNTRY_INFO!$AA75="MDA4 (ALB/2*ALB)", COUNTRY_INFO!$AA75, " ") ->  | I75: =SUM(G75:H75) -> 0 | M75: 0 | Q75: 0 | R75: 0 | S75: 0 | T75: 0 | U75: 0
A76: =IF(COUNTRY_INFO!A76=0," ",COUNTRY_INFO!A76) -> South Sudan | B76: =IF(COUNTRY_INFO!B76=0," ",COUNTRY_INFO!B76) -> Wesstern Equatoria | C76: =IF(COUNTRY_INFO!C76=0," ",COUNTRY_INFO!C76) -> TAMBURA | D76: =IF(COUNTRY_INFO!$AA76="MDA4 (ALB/2*ALB)", COUNTRY_INFO!$AA76, " ") ->  | I76: 0 | M76: 0 | Q76: 0 | R76: 0 | S76: 0 | T76: 0 | U76: 0
A77: =IF(COUNTRY_INFO!A77=0," ",COUNTRY_INFO!A77) -> South Sudan | B77: =IF(COUNTRY_INFO!B77=0," ",COUNTRY_INFO!B77) -> Wesstern Equatoria | C77: =IF(COUNTRY_INFO!C77=0," ",COUNTRY_INFO!C77) -> NAGERO | D77: =IF(COUNTRY_INFO!$AA77="MDA4 (ALB/2*ALB)", COUNTRY_INFO!$AA77, " ") ->  | I77: 0 | M77: 0 | Q77: 0 | R77: 0 | S77: 0 | T77: 0 | U77: 0
A78: =IF(COUNTRY_INFO!A78=0," ",COUNTRY_INFO!A78) -> South Sudan | B78: =IF(COUNTRY_INFO!B78=0," ",COUNTRY_INFO!B78) -> Wesstern Equatoria | C78: =IF(COUNTRY_INFO!C78=0," ",COUNTRY_INFO!C78) -> NZARA | D78: =IF(COUNTRY_INFO!$AA78="MDA4 (ALB/2*ALB)", COUNTRY_INFO!$AA78, " ") ->  | I78: 0 | M78: 0 | Q78: 0 | R78: 0 | S78: 0 | T78: 0 | U78: 0
A79: =IF(COUNTRY_INFO!A79=0," ",COUNTRY_INFO!A79) -> South Sudan | B79: =IF(COUNTRY_INFO!B79=0," ",COUNTRY_INFO!B79) -> Wesstern Equatoria | C79: =IF(COUNTRY_INFO!C79=0," ",COUNTRY_INFO!C79) -> EZO | D79: =IF(COUNTRY_INFO!$AA79="MDA4 (ALB/2*ALB)", COUNTRY_INFO!$AA79, " ") ->  | I79: 0 | M79: 0 | Q79: 0 | R79: 0 | S79: 0 | T79: 0 | U79: 0
A80: =IF(COUNTRY_INFO!A80=0," ",COUNTRY_INFO!A80) -> South Sudan | B80: =IF(COUNTRY_INFO!B80=0," ",COUNTRY_INFO!B80) -> Wesstern Equatoria | C80: =IF(COUNTRY_INFO!C80=0," ",COUNTRY_INFO!C80) -> YAMBIO | D80: =IF(COUNTRY_INFO!$AA80="MDA4 (ALB/2*ALB)", COUNTRY_INFO!$AA80, " ") ->  | I80: 0 | M80: 0 | Q80: 0 | R80: 0 | S80: 0 | T80: 0 | U80: 0
A81: =IF(COUNTRY_INFO!A81=0," ",COUNTRY_INFO!A81) -> South Sudan | B81: =IF(COUNTRY_INFO!B81=0," ",COUNTRY_INFO!B81) -> Wesstern Equatoria | C81: =IF(COUNTRY_INFO!C81=0," ",COUNTRY_INFO!C81) -> IBBA | D81: =IF(COUNTRY_INFO!$AA81="MDA4 (ALB/2*ALB)", COUNTRY_INFO!$AA81, " ") ->  | I81: 0 | M81: 0 | Q81: 0 | R81: 0 | S81: 0 | T81: 0 | U81: 0
A82: =IF(COUNTRY_INFO!A82=0," ",COUNTRY_INFO!A82) -> South Sudan | B82: =IF(COUNTRY_INFO!B82=0," ",COUNTRY_INFO!B82) -> Wesstern Equatoria | C82: =IF(COUNTRY_INFO!C82=0," ",COUNTRY_INFO!C82) -> MARIDI | D82: =IF(COUNTRY_INFO!$AA82="MDA4 (ALB/2*ALB)", COUNTRY_INFO!$AA82, " ") ->  | I82: 0 | M82: 0 | Q82: 0 | R82: 0 | S82: 0 | T82: 0 | U82: 0
A83: =IF(COUNTRY_INFO!A83=0," ",COUNTRY_INFO!A83) -> South Sudan | B83: =IF(COUNTRY_INFO!B83=0," ",COUNTRY_INFO!B83) -> Wesstern Equatoria | C83: =IF(COUNTRY_INFO!C83=0," ",COUNTRY_INFO!C83) -> MVOLO | D83: =IF(COUNTRY_INFO!$AA83="MDA4 (ALB/2*ALB)", COUNTRY_INFO!$AA83, " ") ->  | I83: 0 | M83: 0 | Q83: 0 | R83: 0 | S83: 0 | T83: 0 | U83: 0
A84: =IF(COUNTRY_INFO!A84=0," ",COUNTRY_INFO!A84) -> South Sudan | B84: =IF(COUNTRY_INFO!B84=0," ",COUNTRY_INFO!B84) -> Wesstern Equatoria | C84: =IF(COUNTRY_INFO!C84=0," ",COUNTRY_INFO!C84) -> MUNDRI WEST | D84: =IF(COUNTRY_INFO!$AA84="MDA4 (ALB/2*ALB)", COUNTRY_INFO!$AA84, " ") ->  | I84: 0 | M84: 0 | Q84: 0 | R84: 0 | S84: 0 | T84: 0 | U84: 0
A85: =IF(COUNTRY_INFO!A85=0," ",COUNTRY_INFO!A85) -> South Sudan | B85: =IF(COUNTRY_INFO!B85=0," ",COUNTRY_INFO!B85) -> Wesstern Equatoria | C85: =IF(COUNTRY_INFO!C85=0," ",COUNTRY_INFO!C85) -> MUNDRI EAST | D85: =IF(COUNTRY_INFO!$AA85="MDA4 (ALB/2*ALB)", COUNTRY_INFO!$AA85, " ") ->  | I85: 0 | M85: 0 | Q85: 0 | R85: 0 | S85: 0 | T85: 0 | U85: 0
A86: =IF(COUNTRY_INFO!A86=0," ",COUNTRY_INFO!A86) -> South Sudan | B86: =IF(COUNTRY_INFO!B86=0," ",COUNTRY_INFO!B86) -> Western Bahr El Ghazal | C86: =IF(COUNTRY_INFO!C86=0," ",COUNTRY_INFO!C86) -> RAGA | D86: =IF(COUNTRY_INFO!$AA86="MDA4 (ALB/2*ALB)", COUNTRY_INFO!$AA86, " ") ->  | I86: 0 | M86: 0 | Q86: 0 | R86: 0 | S86: 0 | T86: 0 | U86: 0
A87: =IF(COUNTRY_INFO!A87=0," ",COUNTRY_INFO!A87) -> South Sudan | B87: =IF(COUNTRY_INFO!B87=0," ",COUNTRY_INFO!B87) -> Western Bahr El Ghazal | C87: =IF(COUNTRY_INFO!C87=0," ",COUNTRY_INFO!C87) -> JUR RIVER | D87: =IF(COUNTRY_INFO!$AA87="MDA4 (ALB/2*ALB)", COUNTRY_INFO!$AA87, " ") ->  | I87: 0 | M87: 0 | Q87: 0 | R87: 0 | S87: 0 | T87: 0 | U87: 0
A88: =IF(COUNTRY_INFO!A88=0," ",COUNTRY_INFO!A88) -> South Sudan | B88: =IF(COUNTRY_INFO!B88=0," ",COUNTRY_INFO!B88) -> Western Bahr El Ghazal | C88: =IF(COUNTRY_INFO!C88=0," ",COUNTRY_INFO!C88) -> WAU | D88: =IF(COUNTRY_INFO!$AA88="MDA4 (ALB/2*ALB)", COUNTRY_INFO!$AA88, " ") ->  | I88: 0 | M88: 0 | Q88: 0 | R88: 0 | S88: 0 | T88: 0 | U88: 0
A89: =IF(COUNTRY_INFO!A89=0," ",COUNTRY_INFO!A89) -> South Sudan | B89: =IF(COUNTRY_INFO!B89=0," ",COUNTRY_INFO!B89) -> Upper Nile | C89: =IF(COUNTRY_INFO!C89=0," ",COUNTRY_INFO!C89) -> MABAN Refugee | D89: =IF(COUNTRY_INFO!$AA89="MDA4 (ALB/2*ALB)", COUNTRY_INFO!$AA89, " ") ->  | I89: 0 | M89: 0 | Q89: 0 | R89: 0 | S89: 0 | T89: 0 | U89: 0

Sheet T1
A1: T 1 - Praziquantel (PZQ) and Albendazole (ALB) or Mebendazole (MBD)
A2: Administrative structure, population requiring PC by age group, population treated by age group and coverage
A4: TOTAL | G4: =SUBTOTAL(9,G$10:G$1010) -> 0 | H4: 0 | I4: 0 | J4: 0 | K4: 0 | L4: 0 | M4: 0 | N4: 0 | O4: =IF(G4<>0, IF(K4/G4*100=0, "-", K4/G4*100), " ") ->  | P4: =IF(H4<>0, IF(L4/H4*100=0, "-", L4/H4*100), " ") ->  | Q4: =IF(I4<>0, IF(M4/I4*100=0, "-", M4/I4*100), " ") ->  | R4: =IF(J4<>0, IF(N4/J4*100=0, "-", N4/J4*100), " ") -> 
A6: Country administrative structure | D6: PC implemented | E6: Medicine | F6: Date | G6: Population targeted for T1 | K6: Population treated | O6: Programme coverage (%)
A7: Country | B7: Province/State | C7: District | G7: PreSAC | H7: SAC | I7: Adults | J7: Total | K7: PreSAC | L7: SAC | M7: Adults | N7: Total | O7: PreSAC | P7: SAC | Q7: Adults | R7: Total
A10: =IF(COUNTRY_INFO!A10=0," ",COUNTRY_INFO!A10) -> South Sudan | B10: =IF(COUNTRY_INFO!B10=0," ",COUNTRY_INFO!B10) -> Central Equatoria | C10: =IF(COUNTRY_INFO!C10=0," ",COUNTRY_INFO!C10) -> TEREKEKA | D10: =IF(OR(COUNTRY_INFO!$AA10="T1 (PZQ+ALB/MBD)",COUNTRY_INFO!$AB10="T1 (PZQ+ALB/MBD)"), "T1 (PZQ+ALB/MBD)", " ") ->  | J10: =SUM(G10:I10) -> 0 | N10: =SUM(K10:M10) -> 0 | O10: =IF(G10<>0, IF(K10/G10*100=0, "-", K10/G10*100), " ") ->  | P10: =IF(H10<>0, IF(L10/H10*100=0, "-", L10/H10*100), " ") ->  | Q10: =IF(I10<>0, IF(M10/I10*100=0, "-", M10/I10*100), " ") -> 
A11: =IF(COUNTRY_INFO!A11=0," ",COUNTRY_INFO!A11) -> South Sudan | B11: =IF(COUNTRY_INFO!B11=0," ",COUNTRY_INFO!B11) -> Central Equatoria | C11: =IF(COUNTRY_INFO!C11=0," ",COUNTRY_INFO!C11) -> JUBA | D11: =IF(OR(COUNTRY_INFO!$AA11="T1 (PZQ+ALB/MBD)",COUNTRY_INFO!$AB11="T1 (PZQ+ALB/MBD)"), "T1 (PZQ+ALB/MBD)", " ") ->  | J11: =SUM(G11:I11) -> 0 | N11: =SUM(K11:M11) -> 0 | O11: =IF(G11<>0, IF(K11/G11*100=0, "-", K11/G11*100), " ") ->  | P11: =IF(H11<>0, IF(L11/H11*100=0, "-", L11/H11*100), " ") ->  | Q11: =IF(I11<>0, IF(M11/I11*100=0, "-", M11/I11*100), " ") ->  | R11: =IF(J11<>0, IF(N11/J11*100=0, "-", N11/J11*100), " ") -> 
A12: =IF(COUNTRY_INFO!A12=0," ",COUNTRY_INFO!A12) -> South Sudan | B12: =IF(COUNTRY_INFO!B12=0," ",COUNTRY_INFO!B12) -> Central Equatoria | C12: =IF(COUNTRY_INFO!C12=0," ",COUNTRY_INFO!C12) -> LAINYA | D12: =IF(OR(COUNTRY_INFO!$AA12="T1 (PZQ+ALB/MBD)",COUNTRY_INFO!$AB12="T1 (PZQ+ALB/MBD)"), "T1 (PZQ+ALB/MBD)", " ") ->  | J12: 0 | N12: 0
A13: =IF(COUNTRY_INFO!A13=0," ",COUNTRY_INFO!A13) -> South Sudan | B13: =IF(COUNTRY_INFO!B13=0," ",COUNTRY_INFO!B13) -> Central Equatoria | C13: =IF(COUNTRY_INFO!C13=0," ",COUNTRY_INFO!C13) -> YEI | D13: =IF(OR(COUNTRY_INFO!$AA13="T1 (PZQ+ALB/MBD)",COUNTRY_INFO!$AB13="T1 (PZQ+ALB/MBD)"), "T1 (PZQ+ALB/MBD)", " ") ->  | J13: 0 | N13: 0
A14: =IF(COUNTRY_INFO!A14=0," ",COUNTRY_INFO!A14) -> South Sudan | B14: =IF(COUNTRY_INFO!B14=0," ",COUNTRY_INFO!B14) -> Central Equatoria | C14: =IF(COUNTRY_INFO!C14=0," ",COUNTRY_INFO!C14) -> MOROBO | D14: =IF(OR(COUNTRY_INFO!$AA14="T1 (PZQ+ALB/MBD)",COUNTRY_INFO!$AB14="T1 (PZQ+ALB/MBD)"), "T1 (PZQ+ALB/MBD)", " ") ->  | J14: 0 | N14: 0
A15: =IF(COUNTRY_INFO!A15=0," ",COUNTRY_INFO!A15) -> South Sudan | B15: =IF(COUNTRY_INFO!B15=0," ",COUNTRY_INFO!B15) -> Central Equatoria | C15: =IF(COUNTRY_INFO!C15=0," ",COUNTRY_INFO!C15) -> KAJO KEJI | D15: =IF(OR(COUNTRY_INFO!$AA15="T1 (PZQ+ALB/MBD)",COUNTRY_INFO!$AB15="T1 (PZQ+ALB/MBD)"), "T1 (PZQ+ALB/MBD)", " ") ->  | J15: 0 | N15: 0
A16: =IF(COUNTRY_INFO!A16=0," ",COUNTRY_INFO!A16) -> South Sudan | B16: =IF(COUNTRY_INFO!B16=0," ",COUNTRY_INFO!B16) -> Eastern Equatoria | C16: =IF(COUNTRY_INFO!C16=0," ",COUNTRY_INFO!C16) -> TORIT | D16: =IF(OR(COUNTRY_INFO!$AA16="T1 (PZQ+ALB/MBD)",COUNTRY_INFO!$AB16="T1 (PZQ+ALB/MBD)"), "T1 (PZQ+ALB/MBD)", " ") ->  | J16: 0 | N16: 0
A17: =IF(COUNTRY_INFO!A17=0," ",COUNTRY_INFO!A17) -> South Sudan | B17: =IF(COUNTRY_INFO!B17=0," ",COUNTRY_INFO!B17) -> Eastern Equatoria | C17: =IF(COUNTRY_INFO!C17=0," ",COUNTRY_INFO!C17) -> LOPA/LAFON | D17: =IF(OR(COUNTRY_INFO!$AA17="T1 (PZQ+ALB/MBD)",COUNTRY_INFO!$AB17="T1 (PZQ+ALB/MBD)"), "T1 (PZQ+ALB/MBD)", " ") ->  | J17: 0 | N17: 0
A18: =IF(COUNTRY_INFO!A18=0," ",COUNTRY_INFO!A18) -> South Sudan | B18: =IF(COUNTRY_INFO!B18=0," ",COUNTRY_INFO!B18) -> Eastern Equatoria | C18: =IF(COUNTRY_INFO!C18=0," ",COUNTRY_INFO!C18) -> KAPOETA NORTH | D18: =IF(OR(COUNTRY_INFO!$AA18="T1 (PZQ+ALB/MBD)",COUNTRY_INFO!$AB18="T1 (PZQ+ALB/MBD)"), "T1 (PZQ+ALB/MBD)", " ") ->  | J18: 0 | N18: 0
A19: =IF(COUNTRY_INFO!A19=0," ",COUNTRY_INFO!A19) -> South Sudan | B19: =IF(COUNTRY_INFO!B19=0," ",COUNTRY_INFO!B19) -> Eastern Equatoria | C19: =IF(COUNTRY_INFO!C19=0," ",COUNTRY_INFO!C19) -> KAPOETA EAST | D19: =IF(OR(COUNTRY_INFO!$AA19="T1 (PZQ+ALB/MBD)",COUNTRY_INFO!$AB19="T1 (PZQ+ALB/MBD)"), "T1 (PZQ+ALB/MBD)", " ") ->  | J19: 0 | N19: 0
A20: =IF(COUNTRY_INFO!A20=0," ",COUNTRY_INFO!A20) -> South Sudan | B20: =IF(COUNTRY_INFO!B20=0," ",COUNTRY_INFO!B20) -> Eastern Equatoria | C20: =IF(COUNTRY_INFO!C20=0," ",COUNTRY_INFO!C20) -> KAPOETA SOUTH | D20: =IF(OR(COUNTRY_INFO!$AA20="T1 (PZQ+ALB/MBD)",COUNTRY_INFO!$AB20="T1 (PZQ+ALB/MBD)"), "T1 (PZQ+ALB/MBD)", " ") ->  | J20: 0 | N20: 0
A21: =IF(COUNTRY_INFO!A21=0," ",COUNTRY_INFO!A21) -> South Sudan | B21: =IF(COUNTRY_INFO!B21=0," ",COUNTRY_INFO!B21) -> Eastern Equatoria | C21: =IF(COUNTRY_INFO!C21=0," ",COUNTRY_INFO!C21) -> BUDI | D21: =IF(OR(COUNTRY_INFO!$AA21="T1 (PZQ+ALB/MBD)",COUNTRY_INFO!$AB21="T1 (PZQ+ALB/MBD)"), "T1 (PZQ+ALB/MBD)", " ") ->  | J21: 0 | N21: 0
A22: =IF(COUNTRY_INFO!A22=0," ",COUNTRY_INFO!A22) -> South Sudan | B22: =IF(COUNTRY_INFO!B22=0," ",COUNTRY_INFO!B22) -> Eastern Equatoria | C22: =IF(COUNTRY_INFO!C22=0," ",COUNTRY_INFO!C22) -> IKOTOS | D22: =IF(OR(COUNTRY_INFO!$AA22="T1 (PZQ+ALB/MBD)",COUNTRY_INFO!$AB22="T1 (PZQ+ALB/MBD)"), "T1 (PZQ+ALB/MBD)", " ") ->  | J22: 0 | N22: 0
A23: =IF(COUNTRY_INFO!A23=0," ",COUNTRY_INFO!A23) -> South Sudan | B23: =IF(COUNTRY_INFO!B23=0," ",COUNTRY_INFO!B23) -> Eastern Equatoria | C23: =IF(COUNTRY_INFO!C23=0," ",COUNTRY_INFO!C23) -> MAGWI | D23: =IF(OR(COUNTRY_INFO!$AA23="T1 (PZQ+ALB/MBD)",COUNTRY_INFO!$AB23="T1 (PZQ+ALB/MBD)"), "T1 (PZQ+ALB/MBD)", " ") ->  | J23: 0 | N23: 0
A24: =IF(COUNTRY_INFO!A24=0," ",COUNTRY_INFO!A24) -> South Sudan | B24: =IF(COUNTRY_INFO!B24=0," ",COUNTRY_INFO!B24) -> Jonglei | C24: =IF(COUNTRY_INFO!C24=0," ",COUNTRY_INFO!C24) -> FANGAK | D24: =IF(OR(COUNTRY_INFO!$AA24="T1 (PZQ+ALB/MBD)",COUNTRY_INFO!$AB24="T1 (PZQ+ALB/MBD)"), "T1 (PZQ+ALB/MBD)", " ") ->  | J24: 0 | N24: 0
A25: =IF(COUNTRY_INFO!A25=0," ",COUNTRY_INFO!A25) -> South Sudan | B25: =IF(COUNTRY_INFO!B25=0," ",COUNTRY_INFO!B25) -> Jonglei | C25: =IF(COUNTRY_INFO!C25=0," ",COUNTRY_INFO!C25) -> KHORFLUS | D25: =IF(OR(COUNTRY_INFO!$AA25="T1 (PZQ+ALB/MBD)",COUNTRY_INFO!$AB25="T1 (PZQ+ALB/MBD)"), "T1 (PZQ+ALB/MBD)", " ") ->  | J25: 0 | N25: 0
A26: =IF(COUNTRY_INFO!A26=0," ",COUNTRY_INFO!A26) -> South Sudan | B26: =IF(COUNTRY_INFO!B26=0," ",COUNTRY_INFO!B26) -> Jonglei | C26: =IF(COUNTRY_INFO!C26=0," ",COUNTRY_INFO!C26) -> AYOD | D26: =IF(OR(COUNTRY_INFO!$AA26="T1 (PZQ+ALB/MBD)",COUNTRY_INFO!$AB26="T1 (PZQ+ALB/MBD)"), "T1 (PZQ+ALB/MBD)", " ") ->  | J26: 0 | N26: 0
A27: =IF(COUNTRY_INFO!A27=0," ",COUNTRY_INFO!A27) -> South Sudan | B27: =IF(COUNTRY_INFO!B27=0," ",COUNTRY_INFO!B27) -> Jonglei | C27: =IF(COUNTRY_INFO!C27=0," ",COUNTRY_INFO!C27) -> DUK | D27: =IF(OR(COUNTRY_INFO!$AA27="T1 (PZQ+ALB/MBD)",COUNTRY_INFO!$AB27="T1 (PZQ+ALB/MBD)"), "T1 (PZQ+ALB/MBD)", " ") ->  | J27: 0 | N27: 0
A28: =IF(COUNTRY_INFO!A28=0," ",COUNTRY_INFO!A28) -> South Sudan | B28: =IF(COUNTRY_INFO!B28=0," ",COUNTRY_INFO!B28) -> Jonglei | C28: =IF(COUNTRY_INFO!C28=0," ",COUNTRY_INFO!C28) -> UROR | D28: =IF(OR(COUNTRY_INFO!$AA28="T1 (PZQ+ALB/MBD)",COUNTRY_INFO!$AB28="T1 (PZQ+ALB/MBD)"), "T1 (PZQ+ALB/MBD)", " ") ->  | J28: 0 | N28: 0
A29: =IF(COUNTRY_INFO!A29=0," ",COUNTRY_INFO!A29) -> South Sudan | B29: =IF(COUNTRY_INFO!B29=0," ",COUNTRY_INFO!B29) -> Jonglei | C29: =IF(COUNTRY_INFO!C29=0," ",COUNTRY_INFO!C29) -> NYIROL | D29: =IF(OR(COUNTRY_INFO!$AA29="T1 (PZQ+ALB/MBD)",COUNTRY_INFO!$AB29="T1 (PZQ+ALB/MBD)"), "T1 (PZQ+ALB/MBD)", " ") ->  | J29: 0 | N29: 0
A30: =IF(COUNTRY_INFO!A30=0," ",COUNTRY_INFO!A30) -> South Sudan | B30: =IF(COUNTRY_INFO!B30=0," ",COUNTRY_INFO!B30) -> Jonglei | C30: =IF(COUNTRY_INFO!C30=0," ",COUNTRY_INFO!C30) -> AKOBO | D30: =IF(OR(COUNTRY_INFO!$AA30="T1 (PZQ+ALB/MBD)",COUNTRY_INFO!$AB30="T1 (PZQ+ALB/MBD)"), "T1 (PZQ+ALB/MBD)", " ") ->  | J30: 0 | N30: 0
A31: =IF(COUNTRY_INFO!A31=0," ",COUNTRY_INFO!A31) -> South Sudan | B31: =IF(COUNTRY_INFO!B31=0," ",COUNTRY_INFO!B31) -> Jonglei | C31: =IF(COUNTRY_INFO!C31=0," ",COUNTRY_INFO!C31) -> POCHALA | D31: =IF(OR(COUNTRY_INFO!$AA31="T1 (PZQ+ALB/MBD)",COUNTRY_INFO!$AB31="T1 (PZQ+ALB/MBD)"), "T1 (PZQ+ALB/MBD)", " ") ->  | J31: 0 | N31: 0
A32: =IF(COUNTRY_INFO!A32=0," ",COUNTRY_INFO!A32) -> South Sudan | B32: =IF(COUNTRY_INFO!B32=0," ",COUNTRY_INFO!B32) -> Jonglei | C32: =IF(COUNTRY_INFO!C32=0," ",COUNTRY_INFO!C32) -> PIBOR | D32: =IF(OR(COUNTRY_INFO!$AA32="T1 (PZQ+ALB/MBD)",COUNTRY_INFO!$AB32="T1 (PZQ+ALB/MBD)"), "T1 (PZQ+ALB/MBD)", " ") ->  | J32: 0 | N32: 0
A33: =IF(COUNTRY_INFO!A33=0," ",COUNTRY_INFO!A33) -> South Sudan | B33: =IF(COUNTRY_INFO!B33=0," ",COUNTRY_INFO!B33) -> Jonglei | C33: =IF(COUNTRY_INFO!C33=0," ",COUNTRY_INFO!C33) -> TWIC EAST | D33: =IF(OR(COUNTRY_INFO!$AA33="T1 (PZQ+ALB/MBD)",COUNTRY_INFO!$AB33="T1 (PZQ+ALB/MBD)"), "T1 (PZQ+ALB/MBD)", " ") ->  | J33: 0 | N33: 0
A34: =IF(COUNTRY_INFO!A34=0," ",COUNTRY_INFO!A34) -> South Sudan | B34: =IF(COUNTRY_INFO!B34=0," ",COUNTRY_INFO!B34) -> Jonglei | C34: =IF(COUNTRY_INFO!C34=0," ",COUNTRY_INFO!C34) -> BOR SOUTH | D34: =IF(OR(COUNTRY_INFO!$AA34="T1 (PZQ+ALB/MBD)",COUNTRY_INFO!$AB34="T1 (PZQ+ALB/MBD)"), "T1 (PZQ+ALB/MBD)", " ") ->  | J34: 0 | N34: 0
A35: =IF(COUNTRY_INFO!A35=0," ",COUNTRY_INFO!A35) -> South Sudan | B35: =IF(COUNTRY_INFO!B35=0," ",COUNTRY_INFO!B35) -> Lakes | C35: =IF(COUNTRY_INFO!C35=0," ",COUNTRY_INFO!C35) -> CUEBIT | D35: =IF(OR(COUNTRY_INFO!$AA35="T1 (PZQ+ALB/MBD)",COUNTRY_INFO!$AB35="T1 (PZQ+ALB/MBD)"), "T1 (PZQ+ALB/MBD)", " ") ->  | J35: 0 | N35: 0
A36: =IF(COUNTRY_INFO!A36=0," ",COUNTRY_INFO!A36) -> South Sudan | B36: =IF(COUNTRY_INFO!B36=0," ",COUNTRY_INFO!B36) -> Lakes | C36: =IF(COUNTRY_INFO!C36=0," ",COUNTRY_INFO!C36) -> RUMBEK NORTH | D36: =IF(OR(COUNTRY_INFO!$AA36="T1 (PZQ+ALB/MBD)",COUNTRY_INFO!$AB36="T1 (PZQ+ALB/MBD)"), "T1 (PZQ+ALB/MBD)", " ") ->  | J36: 0 | N36: 0
A37: =IF(COUNTRY_INFO!A37=0," ",COUNTRY_INFO!A37) -> South Sudan | B37: =IF(COUNTRY_INFO!B37=0," ",COUNTRY_INFO!B37) -> Lakes | C37: =IF(COUNTRY_INFO!C37=0," ",COUNTRY_INFO!C37) -> RUMBEK CENTRE | D37: =IF(OR(COUNTRY_INFO!$AA37="T1 (PZQ+ALB/MBD)",COUNTRY_INFO!$AB37="T1 (PZQ+ALB/MBD)"), "T1 (PZQ+ALB/MBD)", " ") ->  | J37: 0 | N37: 0
A38: =IF(COUNTRY_INFO!A38=0," ",COUNTRY_INFO!A38) -> South Sudan | B38: =IF(COUNTRY_INFO!B38=0," ",COUNTRY_INFO!B38) -> Lakes | C38: =IF(COUNTRY_INFO!C38=0," ",COUNTRY_INFO!C38) -> WULU | D38: =IF(OR(COUNTRY_INFO!$AA38="T1 (PZQ+ALB/MBD)",COUNTRY_INFO!$AB38="T1 (PZQ+ALB/MBD)"), "T1 (PZQ+ALB/MBD)", " ") ->  | J38: 0 | N38: 0
A39: =IF(COUNTRY_INFO!A39=0," ",COUNTRY_INFO!A39) -> South Sudan | B39: =IF(COUNTRY_INFO!B39=0," ",COUNTRY_INFO!B39) -> Lakes | C39: =IF(COUNTRY_INFO!C39=0," ",COUNTRY_INFO!C39) -> RUMBEK EAST | D39: =IF(OR(COUNTRY_INFO!$AA39="T1 (PZQ+ALB/MBD)",COUNTRY_INFO!$AB39="T1 (PZQ+ALB/MBD)"), "T1 (PZQ+ALB/MBD)", " ") ->  | J39: 0 | N39: 0
A40: =IF(COUNTRY_INFO!A40=0," ",COUNTRY_INFO!A40) -> South Sudan | B40: =IF(COUNTRY_INFO!B40=0," ",COUNTRY_INFO!B40) -> Lakes | C40: =IF(COUNTRY_INFO!C40=0," ",COUNTRY_INFO!C40) -> YIROL WEST | D40: =IF(OR(COUNTRY_INFO!$AA40="T1 (PZQ+ALB/MBD)",COUNTRY_INFO!$AB40="T1 (PZQ+ALB/MBD)"), "T1 (PZQ+ALB/MBD)", " ") ->  | J40: 0 | N40: 0
A41: =IF(COUNTRY_INFO!A41=0," ",COUNTRY_INFO!A41) -> South Sudan | B41: =IF(COUNTRY_INFO!B41=0," ",COUNTRY_INFO!B41) -> Lakes | C41: =IF(COUNTRY_INFO!C41=0," ",COUNTRY_INFO!C41) -> YIROL EAST | D41: =IF(OR(COUNTRY_INFO!$AA41="T1 (PZQ+ALB/MBD)",COUNTRY_INFO!$AB41="T1 (PZQ+ALB/MBD)"), "T1 (PZQ+ALB/MBD)", " ") ->  | J41: 0 | N41: 0
A42: =IF(COUNTRY_INFO!A42=0," ",COUNTRY_INFO!A42) -> South Sudan | B42: =IF(COUNTRY_INFO!B42=0," ",COUNTRY_INFO!B42) -> Lakes | C42: =IF(COUNTRY_INFO!C42=0," ",COUNTRY_INFO!C42) -> AWERIAL | D42: =IF(OR(COUNTRY_INFO!$AA42="T1 (PZQ+ALB/MBD)",COUNTRY_INFO!$AB42="T1 (PZQ+ALB/MBD)"), "T1 (PZQ+ALB/MBD)", " ") ->  | J42: 0 | N42: 0
A43: =IF(COUNTRY_INFO!A43=0," ",COUNTRY_INFO!A43) -> South Sudan | B43: =IF(COUNTRY_INFO!B43=0," ",COUNTRY_INFO!B43) -> Northern Bahr El Ghazal | C43: =IF(COUNTRY_INFO!C43=0," ",COUNTRY_INFO!C43) -> AWIEL NORTH | D43: =IF(OR(COUNTRY_INFO!$AA43="T1 (PZQ+ALB/MBD)",COUNTRY_INFO!$AB43="T1 (PZQ+ALB/MBD)"), "T1 (PZQ+ALB/MBD)", " ") ->  | J43: 0 | N43: 0
A44: =IF(COUNTRY_INFO!A44=0," ",COUNTRY_INFO!A44) -> South Sudan | B44: =IF(COUNTRY_INFO!B44=0," ",COUNTRY_INFO!B44) -> Northern Bahr El Ghazal | C44: =IF(COUNTRY_INFO!C44=0," ",COUNTRY_INFO!C44) -> AWIEL EAST | D44: =IF(OR(COUNTRY_INFO!$AA44="T1 (PZQ+ALB/MBD)",COUNTRY_INFO!$AB44="T1 (PZQ+ALB/MBD)"), "T1 (PZQ+ALB/MBD)", " ") ->  | J44: 0 | N44: 0
A45: =IF(COUNTRY_INFO!A45=0," ",COUNTRY_INFO!A45) -> South Sudan | B45: =IF(COUNTRY_INFO!B45=0," ",COUNTRY_INFO!B45) -> Northern Bahr El Ghazal | C45: =IF(COUNTRY_INFO!C45=0," ",COUNTRY_INFO!C45) -> AWIEL SOUTH | D45: =IF(OR(COUNTRY_INFO!$AA45="T1 (PZQ+ALB/MBD)",COUNTRY_INFO!$AB45="T1 (PZQ+ALB/MBD)"), "T1 (PZQ+ALB/MBD)", " ") ->  | J45: 0 | N45: 0
A46: =IF(COUNTRY_INFO!A46=0," ",COUNTRY_INFO!A46) -> South Sudan | B46: =IF(COUNTRY_INFO!B46=0," ",COUNTRY_INFO!B46) -> Northern Bahr El Ghazal | C46: =IF(COUNTRY_INFO!C46=0," ",COUNTRY_INFO!C46) -> AWIEL WEST | D46: =IF(OR(COUNTRY_INFO!$AA46="T1 (PZQ+ALB/MBD)",COUNTRY_INFO!$AB46="T1 (PZQ+ALB/MBD)"), "T1 (PZQ+ALB/MBD)", " ") ->  | J46: 0 | N46: 0
A47: =IF(COUNTRY_INFO!A47=0," ",COUNTRY_INFO!A47) -> South Sudan | B47: =IF(COUNTRY_INFO!B47=0," ",COUNTRY_INFO!B47) -> Northern Bahr El Ghazal | C47: =IF(COUNTRY_INFO!C47=0," ",COUNTRY_INFO!C47) -> AWIEL CENTRE | D47: =IF(OR(COUNTRY_INFO!$AA47="T1 (PZQ+ALB/MBD)",COUNTRY_INFO!$AB47="T1 (PZQ+ALB/MBD)"), "T1 (PZQ+ALB/MBD)", " ") ->  | J47: 0 | N47: 0
A48: =IF(COUNTRY_INFO!A48=0," ",COUNTRY_INFO!A48) -> South Sudan | B48: =IF(COUNTRY_INFO!B48=0," ",COUNTRY_INFO!B48) -> Unity | C48: =IF(COUNTRY_INFO!C48=0," ",COUNTRY_INFO!C48) -> PARIANG | D48: =IF(OR(COUNTRY_INFO!$AA48="T1 (PZQ+ALB/MBD)",COUNTRY_INFO!$AB48="T1 (PZQ+ALB/MBD)"), "T1 (PZQ+ALB/MBD)", " ") ->  | J48: 0 | N48: 0
A49: =IF(COUNTRY_INFO!A49=0," ",COUNTRY_INFO!A49) -> South Sudan | B49: =IF(COUNTRY_INFO!B49=0," ",COUNTRY_INFO!B49) -> Unity | C49: =IF(COUNTRY_INFO!C49=0," ",COUNTRY_INFO!C49) -> ABIEMNHOM | D49: =IF(OR(COUNTRY_INFO!$AA49="T1 (PZQ+ALB/MBD)",COUNTRY_INFO!$AB49="T1 (PZQ+ALB/MBD)"), "T1 (PZQ+ALB/MBD)", " ") ->  | J49: 0 | N49: 0
A50: =IF(COUNTRY_INFO!A50=0," ",COUNTRY_INFO!A50) -> South Sudan | B50: =IF(COUNTRY_INFO!B50=0," ",COUNTRY_INFO!B50) -> Unity | C50: =IF(COUNTRY_INFO!C50=0," ",COUNTRY_INFO!C50) -> MAYOM | D50: =IF(OR(COUNTRY_INFO!$AA50="T1 (PZQ+ALB/MBD)",COUNTRY_INFO!$AB50="T1 (PZQ+ALB/MBD)"), "T1 (PZQ+ALB/MBD)", " ") ->  | J50: 0 | N50: 0
A51: =IF(COUNTRY_INFO!A51=0," ",COUNTRY_INFO!A51) -> South Sudan | B51: =IF(COUNTRY_INFO!B51=0," ",COUNTRY_INFO!B51) -> Unity | C51: =IF(COUNTRY_INFO!C51=0," ",COUNTRY_INFO!C51) -> RUBKONA | D51: =IF(OR(COUNTRY_INFO!$AA51="T1 (PZQ+ALB/MBD)",COUNTRY_INFO!$AB51="T1 (PZQ+ALB/MBD)"), "T1 (PZQ+ALB/MBD)", " ") ->  | J51: 0 | N51: 0
A52: =IF(COUNTRY_INFO!A52=0," ",COUNTRY_INFO!A52) -> South Sudan | B52: =IF(COUNTRY_INFO!B52=0," ",COUNTRY_INFO!B52) -> Unity | C52: =IF(COUNTRY_INFO!C52=0," ",COUNTRY_INFO!C52) -> GUIT | D52: =IF(OR(COUNTRY_INFO!$AA52="T1 (PZQ+ALB/MBD)",COUNTRY_INFO!$AB52="T1 (PZQ+ALB/MBD)"), "T1 (PZQ+ALB/MBD)", " ") ->  | J52: 0 | N52: 0
A53: =IF(COUNTRY_INFO!A53=0," ",COUNTRY_INFO!A53) -> South Sudan | B53: =IF(COUNTRY_INFO!B53=0," ",COUNTRY_INFO!B53) -> Unity | C53: =IF(COUNTRY_INFO!C53=0," ",COUNTRY_INFO!C53) -> KOCH | D53: =IF(OR(COUNTRY_INFO!$AA53="T1 (PZQ+ALB/MBD)",COUNTRY_INFO!$AB53="T1 (PZQ+ALB/MBD)"), "T1 (PZQ+ALB/MBD)", " ") ->  | J53: 0 | N53: 0
A54: =IF(COUNTRY_INFO!A54=0," ",COUNTRY_INFO!A54) -> South Sudan | B54: =IF(COUNTRY_INFO!B54=0," ",COUNTRY_INFO!B54) -> Unity | C54: =IF(COUNTRY_INFO!C54=0," ",COUNTRY_INFO!C54) -> LEER | D54: =IF(OR(COUNTRY_INFO!$AA54="T1 (PZQ+ALB/MBD)",COUNTRY_INFO!$AB54="T1 (PZQ+ALB/MBD)"), "T1 (PZQ+ALB/MBD)", " ") ->  | J54: 0 | N54: 0
A55: =IF(COUNTRY_INFO!A55=0," ",COUNTRY_INFO!A55) -> South Sudan | B55: =IF(COUNTRY_INFO!B55=0," ",COUNTRY_INFO!B55) -> Unity | C55: =IF(COUNTRY_INFO!C55=0," ",COUNTRY_INFO!C55) -> MAYENDIT | D55: =IF(OR(COUNTRY_INFO!$AA55="T1 (PZQ+ALB/MBD)",COUNTRY_INFO!$AB55="T1 (PZQ+ALB/MBD)"), "T1 (PZQ+ALB/MBD)", " ") ->  | J55: 0 | N55: 0
A56: =IF(COUNTRY_INFO!A56=0," ",COUNTRY_INFO!A56) -> South Sudan | B56: =IF(COUNTRY_INFO!B56=0," ",COUNTRY_INFO!B56) -> Unity | C56: =IF(COUNTRY_INFO!C56=0," ",COUNTRY_INFO!C56) -> PAYNIJAR | D56: =IF(OR(COUNTRY_INFO!$AA56="T1 (PZQ+ALB/MBD)",COUNTRY_INFO!$AB56="T1 (PZQ+ALB/MBD)"), "T1 (PZQ+ALB/MBD)", " ") ->  | J56: 0 | N56: 0
A57: =IF(COUNTRY_INFO!A57=0," ",COUNTRY_INFO!A57) -> South Sudan | B57: =IF(COUNTRY_INFO!B57=0," ",COUNTRY_INFO!B57) -> Upper Nile | C57: =IF(COUNTRY_INFO!C57=0," ",COUNTRY_INFO!C57) -> RENK | D57: =IF(OR(COUNTRY_INFO!$AA57="T1 (PZQ+ALB/MBD)",COUNTRY_INFO!$AB57="T1 (PZQ+ALB/MBD)"), "T1 (PZQ+ALB/MBD)", " ") ->  | J57: 0 | N57: 0
A58: =IF(COUNTRY_INFO!A58=0," ",COUNTRY_INFO!A58) -> South Sudan | B58: =IF(COUNTRY_INFO!B58=0," ",COUNTRY_INFO!B58) -> Upper Nile | C58: =IF(COUNTRY_INFO!C58=0," ",COUNTRY_INFO!C58) -> MANYO | D58: =IF(OR(COUNTRY_INFO!$AA58="T1 (PZQ+ALB/MBD)",COUNTRY_INFO!$AB58="T1 (PZQ+ALB/MBD)"), "T1 (PZQ+ALB/MBD)", " ") ->  | J58: 0 | N58: 0
A59: =IF(COUNTRY_INFO!A59=0," ",COUNTRY_INFO!A59) -> South Sudan | B59: =IF(COUNTRY_INFO!B59=0," ",COUNTRY_INFO!B59) -> Upper Nile | C59: =IF(COUNTRY_INFO!C59=0," ",COUNTRY_INFO!C59) -> FASHODA | D59: =IF(OR(COUNTRY_INFO!$AA59="T1 (PZQ+ALB/MBD)",COUNTRY_INFO!$AB59="T1 (PZQ+ALB/MBD)"), "T1 (PZQ+ALB/MBD)", " ") ->  | J59: 0 | N59: 0
A60: =IF(COUNTRY_INFO!A60=0," ",COUNTRY_INFO!A60) -> South Sudan | B60: =IF(COUNTRY_INFO!B60=0," ",COUNTRY_INFO!B60) -> Upper Nile | C60: =IF(COUNTRY_INFO!C60=0," ",COUNTRY_INFO!C60) -> MELUT | D60: =IF(OR(COUNTRY_INFO!$AA60="T1 (PZQ+ALB/MBD)",COUNTRY_INFO!$AB60="T1 (PZQ+ALB/MBD)"), "T1 (PZQ+ALB/MBD)", " ") ->  | J60: 0 | N60: 0
A61: =IF(COUNTRY_INFO!A61=0," ",COUNTRY_INFO!A61) -> South Sudan | B61: =IF(COUNTRY_INFO!B61=0," ",COUNTRY_INFO!B61) -> Upper Nile | C61: =IF(COUNTRY_INFO!C61=0," ",COUNTRY_INFO!C61) -> MABAN | D61: =IF(OR(COUNTRY_INFO!$AA61="T1 (PZQ+ALB/MBD)",COUNTRY_INFO!$AB61="T1 (PZQ+ALB/MBD)"), "T1 (PZQ+ALB/MBD)", " ") ->  | J61: 0 | N61: 0
A62: =IF(COUNTRY_INFO!A62=0," ",COUNTRY_INFO!A62) -> South Sudan | B62: =IF(COUNTRY_INFO!B62=0," ",COUNTRY_INFO!B62) -> Upper Nile | C62: =IF(COUNTRY_INFO!C62=0," ",COUNTRY_INFO!C62) -> MAIWUT | D62: =IF(OR(COUNTRY_INFO!$AA62="T1 (PZQ+ALB/MBD)",COUNTRY_INFO!$AB62="T1 (PZQ+ALB/MBD)"), "T1 (PZQ+ALB/MBD)", " ") ->  | J62: 0 | N62: 0
A63: =IF(COUNTRY_INFO!A63=0," ",COUNTRY_INFO!A63) -> South Sudan | B63: =IF(COUNTRY_INFO!B63=0," ",COUNTRY_INFO!B63) -> Upper Nile | C63: =IF(COUNTRY_INFO!C63=0," ",COUNTRY_INFO!C63) -> LUAKPINY/NASIR | D63: =IF(OR(COUNTRY_INFO!$AA63="T1 (PZQ+ALB/MBD)",COUNTRY_INFO!$AB63="T1 (PZQ+ALB/MBD)"), "T1 (PZQ+ALB/MBD)", " ") ->  | J63: 0 | N63: 0
A64: =IF(COUNTRY_INFO!A64=0," ",COUNTRY_INFO!A64) -> South Sudan | B64: =IF(COUNTRY_INFO!B64=0," ",COUNTRY_INFO!B64) -> Upper Nile | C64: =IF(COUNTRY_INFO!C64=0," ",COUNTRY_INFO!C64) -> LONGOCHUK | D64: =IF(OR(COUNTRY_INFO!$AA64="T1 (PZQ+ALB/MBD)",COUNTRY_INFO!$AB64="T1 (PZQ+ALB/MBD)"), "T1 (PZQ+ALB/MBD)", " ") ->  | J64: 0 | N64: 0
A65: =IF(COUNTRY_INFO!A65=0," ",COUNTRY_INFO!A65) -> South Sudan | B65: =IF(COUNTRY_INFO!B65=0," ",COUNTRY_INFO!B65) -> Upper Nile | C65: =IF(COUNTRY_INFO!C65=0," ",COUNTRY_INFO!C65) -> ULANG | D65: =IF(OR(COUNTRY_INFO!$AA65="T1 (PZQ+ALB/MBD)",COUNTRY_INFO!$AB65="T1 (PZQ+ALB/MBD)"), "T1 (PZQ+ALB/MBD)", " ") ->  | J65: 0 | N65: 0
A66: =IF(COUNTRY_INFO!A66=0," ",COUNTRY_INFO!A66) -> South Sudan | B66: =IF(COUNTRY_INFO!B66=0," ",COUNTRY_INFO!B66) -> Upper Nile | C66: =IF(COUNTRY_INFO!C66=0," ",COUNTRY_INFO!C66) -> BALIET | D66: =IF(OR(COUNTRY_INFO!$AA66="T1 (PZQ+ALB/MBD)",COUNTRY_INFO!$AB66="T1 (PZQ+ALB/MBD)"), "T1 (PZQ+ALB/MBD)", " ") ->  | J66: 0 | N66: 0
A67: =IF(COUNTRY_INFO!A67=0," ",COUNTRY_INFO!A67) -> South Sudan | B67: =IF(COUNTRY_INFO!B67=0," ",COUNTRY_INFO!B67) -> Upper Nile | C67: =IF(COUNTRY_INFO!C67=0," ",COUNTRY_INFO!C67) -> MALAKAL | D67: =IF(OR(COUNTRY_INFO!$AA67="T1 (PZQ+ALB/MBD)",COUNTRY_INFO!$AB67="T1 (PZQ+ALB/MBD)"), "T1 (PZQ+ALB/MBD)", " ") ->  | J67: 0 | N67: 0
A68: =IF(COUNTRY_INFO!A68=0," ",COUNTRY_INFO!A68) -> South Sudan | B68: =IF(COUNTRY_INFO!B68=0," ",COUNTRY_INFO!B68) -> Upper Nile | C68: =IF(COUNTRY_INFO!C68=0," ",COUNTRY_INFO!C68) -> PANYKANG | D68: =IF(OR(COUNTRY_INFO!$AA68="T1 (PZQ+ALB/MBD)",COUNTRY_INFO!$AB68="T1 (PZQ+ALB/MBD)"), "T1 (PZQ+ALB/MBD)", " ") ->  | J68: 0 | N68: 0
A69: =IF(COUNTRY_INFO!A69=0," ",COUNTRY_INFO!A69) -> South Sudan | B69: =IF(COUNTRY_INFO!B69=0," ",COUNTRY_INFO!B69) -> Warrap | C69: =IF(COUNTRY_INFO!C69=0," ",COUNTRY_INFO!C69) -> ABYEI | D69: =IF(OR(COUNTRY_INFO!$AA69="T1 (PZQ+ALB/MBD)",COUNTRY_INFO!$AB69="T1 (PZQ+ALB/MBD)"), "T1 (PZQ+ALB/MBD)", " ") ->  | J69: 0 | N69: 0
A70: =IF(COUNTRY_INFO!A70=0," ",COUNTRY_INFO!A70) -> South Sudan | B70: =IF(COUNTRY_INFO!B70=0," ",COUNTRY_INFO!B70) -> Warrap | C70: =IF(COUNTRY_INFO!C70=0," ",COUNTRY_INFO!C70) -> TWIC | D70: =IF(OR(COUNTRY_INFO!$AA70="T1 (PZQ+ALB/MBD)",COUNTRY_INFO!$AB70="T1 (PZQ+ALB/MBD)"), "T1 (PZQ+ALB/MBD)", " ") ->  | J70: 0 | N70: 0
A71: =IF(COUNTRY_INFO!A71=0," ",COUNTRY_INFO!A71) -> South Sudan | B71: =IF(COUNTRY_INFO!B71=0," ",COUNTRY_INFO!B71) -> Warrap | C71: =IF(COUNTRY_INFO!C71=0," ",COUNTRY_INFO!C71) -> GOGRIAL WEST | D71: =IF(OR(COUNTRY_INFO!$AA71="T1 (PZQ+ALB/MBD)",COUNTRY_INFO!$AB71="T1 (PZQ+ALB/MBD)"), "T1 (PZQ+ALB/MBD)", " ") ->  | J71: 0 | N71: 0
A72: =IF(COUNTRY_INFO!A72=0," ",COUNTRY_INFO!A72) -> South Sudan | B72: =IF(COUNTRY_INFO!B72=0," ",COUNTRY_INFO!B72) -> Warrap | C72: =IF(COUNTRY_INFO!C72=0," ",COUNTRY_INFO!C72) -> GOGRIAL EAST | D72: =IF(OR(COUNTRY_INFO!$AA72="T1 (PZQ+ALB/MBD)",COUNTRY_INFO!$AB72="T1 (PZQ+ALB/MBD)"), "T1 (PZQ+ALB/MBD)", " ") ->  | J72: 0 | N72: 0
A73: =IF(COUNTRY_INFO!A73=0," ",COUNTRY_INFO!A73) -> South Sudan | B73: =IF(COUNTRY_INFO!B73=0," ",COUNTRY_INFO!B73) -> Warrap | C73: =IF(COUNTRY_INFO!C73=0," ",COUNTRY_INFO!C73) -> TONJ NORTH | D73: =IF(OR(COUNTRY_INFO!$AA73="T1 (PZQ+ALB/MBD)",COUNTRY_INFO!$AB73="T1 (PZQ+ALB/MBD)"), "T1 (PZQ+ALB/MBD)", " ") ->  | J73: 0 | N73: 0
A74: =IF(COUNTRY_INFO!A74=0," ",COUNTRY_INFO!A74) -> South Sudan | B74: =IF(COUNTRY_INFO!B74=0," ",COUNTRY_INFO!B74) -> Warrap | C74: =IF(COUNTRY_INFO!C74=0," ",COUNTRY_INFO!C74) -> TONJ EAST | D74: =IF(OR(COUNTRY_INFO!$AA74="T1 (PZQ+ALB/MBD)",COUNTRY_INFO!$AB74="T1 (PZQ+ALB/MBD)"), "T1 (PZQ+ALB/MBD)", " ") ->  | J74: 0 | N74: 0
A75: =IF(COUNTRY_INFO!A75=0," ",COUNTRY_INFO!A75) -> South Sudan | B75: =IF(COUNTRY_INFO!B75=0," ",COUNTRY_INFO!B75) -> Warrap | C75: =IF(COUNTRY_INFO!C75=0," ",COUNTRY_INFO!C75) -> TONJ SOUTH | D75: =IF(OR(COUNTRY_INFO!$AA75="T1 (PZQ+ALB/MBD)",COUNTRY_INFO!$AB75="T1 (PZQ+ALB/MBD)"), "T1 (PZQ+ALB/MBD)", " ") ->  | J75: =SUM(G75:I75) -> 0 | N75: =SUM(K75:M75) -> 0 | O75: =IF(G75<>0, IF(K75/G75*100=0, "-", K75/G75*100), " ") ->  | P75: =IF(H75<>0, IF(L75/H75*100=0, "-", L75/H75*100), " ") ->  | Q75: =IF(I75<>0, IF(M75/I75*100=0, "-", M75/I75*100), " ") ->  | R75: =IF(J75<>0, IF(N75/J75*100=0, "-", N75/J75*100), " ") -> 
A76: =IF(COUNTRY_INFO!A76=0," ",COUNTRY_INFO!A76) -> South Sudan | B76: =IF(COUNTRY_INFO!B76=0," ",COUNTRY_INFO!B76) -> Wesstern Equatoria | C76: =IF(COUNTRY_INFO!C76=0," ",COUNTRY_INFO!C76) -> TAMBURA | D76: =IF(OR(COUNTRY_INFO!$AA76="T1 (PZQ+ALB/MBD)",COUNTRY_INFO!$AB76="T1 (PZQ+ALB/MBD)"), "T1 (PZQ+ALB/MBD)", " ") ->  | J76: 0 | N76: 0
A77: =IF(COUNTRY_INFO!A77=0," ",COUNTRY_INFO!A77) -> South Sudan | B77: =IF(COUNTRY_INFO!B77=0," ",COUNTRY_INFO!B77) -> Wesstern Equatoria | C77: =IF(COUNTRY_INFO!C77=0," ",COUNTRY_INFO!C77) -> NAGERO | D77: =IF(OR(COUNTRY_INFO!$AA77="T1 (PZQ+ALB/MBD)",COUNTRY_INFO!$AB77="T1 (PZQ+ALB/MBD)"), "T1 (PZQ+ALB/MBD)", " ") ->  | J77: 0 | N77: 0
A78: =IF(COUNTRY_INFO!A78=0," ",COUNTRY_INFO!A78) -> South Sudan | B78: =IF(COUNTRY_INFO!B78=0," ",COUNTRY_INFO!B78) -> Wesstern Equatoria | C78: =IF(COUNTRY_INFO!C78=0," ",COUNTRY_INFO!C78) -> NZARA | D78: =IF(OR(COUNTRY_INFO!$AA78="T1 (PZQ+ALB/MBD)",COUNTRY_INFO!$AB78="T1 (PZQ+ALB/MBD)"), "T1 (PZQ+ALB/MBD)", " ") ->  | J78: 0 | N78: 0
A79: =IF(COUNTRY_INFO!A79=0," ",COUNTRY_INFO!A79) -> South Sudan | B79: =IF(COUNTRY_INFO!B79=0," ",COUNTRY_INFO!B79) -> Wesstern Equatoria | C79: =IF(COUNTRY_INFO!C79=0," ",COUNTRY_INFO!C79) -> EZO | D79: =IF(OR(COUNTRY_INFO!$AA79="T1 (PZQ+ALB/MBD)",COUNTRY_INFO!$AB79="T1 (PZQ+ALB/MBD)"), "T1 (PZQ+ALB/MBD)", " ") ->  | J79: 0 | N79: 0
A80: =IF(COUNTRY_INFO!A80=0," ",COUNTRY_INFO!A80) -> South Sudan | B80: =IF(COUNTRY_INFO!B80=0," ",COUNTRY_INFO!B80) -> Wesstern Equatoria | C80: =IF(COUNTRY_INFO!C80=0," ",COUNTRY_INFO!C80) -> YAMBIO | D80: =IF(OR(COUNTRY_INFO!$AA80="T1 (PZQ+ALB/MBD)",COUNTRY_INFO!$AB80="T1 (PZQ+ALB/MBD)"), "T1 (PZQ+ALB/MBD)", " ") ->  | J80: 0 | N80: 0
A81: =IF(COUNTRY_INFO!A81=0," ",COUNTRY_INFO!A81) -> South Sudan | B81: =IF(COUNTRY_INFO!B81=0," ",COUNTRY_INFO!B81) -> Wesstern Equatoria | C81: =IF(COUNTRY_INFO!C81=0," ",COUNTRY_INFO!C81) -> IBBA | D81: =IF(OR(COUNTRY_INFO!$AA81="T1 (PZQ+ALB/MBD)",COUNTRY_INFO!$AB81="T1 (PZQ+ALB/MBD)"), "T1 (PZQ+ALB/MBD)", " ") ->  | J81: 0 | N81: 0
A82: =IF(COUNTRY_INFO!A82=0," ",COUNTRY_INFO!A82) -> South Sudan | B82: =IF(COUNTRY_INFO!B82=0," ",COUNTRY_INFO!B82) -> Wesstern Equatoria | C82: =IF(COUNTRY_INFO!C82=0," ",COUNTRY_INFO!C82) -> MARIDI | D82: =IF(OR(COUNTRY_INFO!$AA82="T1 (PZQ+ALB/MBD)",COUNTRY_INFO!$AB82="T1 (PZQ+ALB/MBD)"), "T1 (PZQ+ALB/MBD)", " ") ->  | J82: 0 | N82: 0
A83: =IF(COUNTRY_INFO!A83=0," ",COUNTRY_INFO!A83) -> South Sudan | B83: =IF(COUNTRY_INFO!B83=0," ",COUNTRY_INFO!B83) -> Wesstern Equatoria | C83: =IF(COUNTRY_INFO!C83=0," ",COUNTRY_INFO!C83) -> MVOLO | D83: =IF(OR(COUNTRY_INFO!$AA83="T1 (PZQ+ALB/MBD)",COUNTRY_INFO!$AB83="T1 (PZQ+ALB/MBD)"), "T1 (PZQ+ALB/MBD)", " ") ->  | J83: 0 | N83: 0
A84: =IF(COUNTRY_INFO!A84=0," ",COUNTRY_INFO!A84) -> South Sudan | B84: =IF(COUNTRY_INFO!B84=0," ",COUNTRY_INFO!B84) -> Wesstern Equatoria | C84: =IF(COUNTRY_INFO!C84=0," ",COUNTRY_INFO!C84) -> MUNDRI WEST | D84: =IF(OR(COUNTRY_INFO!$AA84="T1 (PZQ+ALB/MBD)",COUNTRY_INFO!$AB84="T1 (PZQ+ALB/MBD)"), "T1 (PZQ+ALB/MBD)", " ") ->  | J84: 0 | N84: 0
A85: =IF(COUNTRY_INFO!A85=0," ",COUNTRY_INFO!A85) -> South Sudan | B85: =IF(COUNTRY_INFO!B85=0," ",COUNTRY_INFO!B85) -> Wesstern Equatoria | C85: =IF(COUNTRY_INFO!C85=0," ",COUNTRY_INFO!C85) -> MUNDRI EAST | D85: =IF(OR(COUNTRY_INFO!$AA85="T1 (PZQ+ALB/MBD)",COUNTRY_INFO!$AB85="T1 (PZQ+ALB/MBD)"), "T1 (PZQ+ALB/MBD)", " ") ->  | J85: 0 | N85: 0
A86: =IF(COUNTRY_INFO!A86=0," ",COUNTRY_INFO!A86) -> South Sudan | B86: =IF(COUNTRY_INFO!B86=0," ",COUNTRY_INFO!B86) -> Western Bahr El Ghazal | C86: =IF(COUNTRY_INFO!C86=0," ",COUNTRY_INFO!C86) -> RAGA | D86: =IF(OR(COUNTRY_INFO!$AA86="T1 (PZQ+ALB/MBD)",COUNTRY_INFO!$AB86="T1 (PZQ+ALB/MBD)"), "T1 (PZQ+ALB/MBD)", " ") ->  | J86: 0 | N86: 0
A87: =IF(COUNTRY_INFO!A87=0," ",COUNTRY_INFO!A87) -> South Sudan | B87: =IF(COUNTRY_INFO!B87=0," ",COUNTRY_INFO!B87) -> Western Bahr El Ghazal | C87: =IF(COUNTRY_INFO!C87=0," ",COUNTRY_INFO!C87) -> JUR RIVER | D87: =IF(OR(COUNTRY_INFO!$AA87="T1 (PZQ+ALB/MBD)",COUNTRY_INFO!$AB87="T1 (PZQ+ALB/MBD)"), "T1 (PZQ+ALB/MBD)", " ") ->  | J87: 0 | N87: 0
A88: =IF(COUNTRY_INFO!A88=0," ",COUNTRY_INFO!A88) -> South Sudan | B88: =IF(COUNTRY_INFO!B88=0," ",COUNTRY_INFO!B88) -> Western Bahr El Ghazal | C88: =IF(COUNTRY_INFO!C88=0," ",COUNTRY_INFO!C88) -> WAU | D88: =IF(OR(COUNTRY_INFO!$AA88="T1 (PZQ+ALB/MBD)",COUNTRY_INFO!$AB88="T1 (PZQ+ALB/MBD)"), "T1 (PZQ+ALB/MBD)", " ") ->  | J88: 0 | N88: 0
A89: =IF(COUNTRY_INFO!A89=0," ",COUNTRY_INFO!A89) -> South Sudan | B89: =IF(COUNTRY_INFO!B89=0," ",COUNTRY_INFO!B89) -> Upper Nile | C89: =IF(COUNTRY_INFO!C89=0," ",COUNTRY_INFO!C89) -> MABAN Refugee | D89: =IF(OR(COUNTRY_INFO!$AA89="T1 (PZQ+ALB/MBD)",COUNTRY_INFO!$AB89="T1 (PZQ+ALB/MBD)"), "T1 (PZQ+ALB/MBD)", " ") ->  | J89: 0 | N89: 0

Sheet T2
A1: T 2 - Praziquantel (PZQ)
A2: Administrative structure, population requiring PC by age group, population treated by age group and coverage
A4: TOTAL | F4: =SUBTOTAL(9,F$10:F$1010) -> 0 | G4: =SUBTOTAL(9,G$10:G$1010) -> 0 | H4: 0 | I4: 0 | J4: =SUBTOTAL(9,J$10:J$1010) -> 0 | K4: 0 | L4: 0 | M4: 0 | N4: 0 | O4: 0 | P4: 0 | Q4: 0 | R4: 0 | S4: 0 | T4: 0 | U4: 0 | V4: =IF(F4<>0, IF(R4/F4*100=0, "-", R4/F4*100), " ") ->  | W4: =IF(G4<>0, IF(S4/G4*100=0, "-", S4/G4*100), " ") ->  | X4: =IF(H4<>0, IF(T4/H4*100=0, "-", T4/H4*100), " ") ->  | Y4: =IF(I4<>0, IF(U4/I4*100=0, "-", U4/I4*100), " ") -> 
A6: Country administrative structure | D6: PC implemented | E6: Date | F6: Population targeted for T2 | J6: Population treated | N6: Population treated in HOT SPOTS | R6: Total population treated | V6: Programme coverage (%)
A7: Country | B7: Province/State | C7: District | F7: PreSAC | G7: SAC | H7: Adults | I7: Total | J7: PreSAC | K7: SAC | L7: Adults | M7: Total | N7: PreSAC | O7: SAC | P7: Adults | Q7: Total | R7: PreSAC | S7: SAC | T7: Adults | U7: Total | V7: PreSAC | W7: SAC | X7: Adults | Y7: Total
A10: =IF(COUNTRY_INFO!A10=0," ",COUNTRY_INFO!A10) -> South Sudan | B10: =IF(COUNTRY_INFO!B10=0," ",COUNTRY_INFO!B10) -> Central Equatoria | C10: =IF(COUNTRY_INFO!C10=0," ",COUNTRY_INFO!C10) -> TEREKEKA | D10: =IF(OR(COUNTRY_INFO!$AA10="T2 (PZQ)",COUNTRY_INFO!$AB10="T2 (PZQ)"), "T2 (PZQ)", " ") ->  | I10: =SUM(F10:H10) -> 0 | M10: =SUM(J10:L10) -> 0 | Q10: =SUM(N10:P10) -> 0 | R10: =MAX(J10,N10) -> 0 | S10: =MAX(K10,O10) -> 0 | T10: =MAX(L10,P10) -> 0 | U10: =SUM(R10:T10) -> 0 | V10: =IF(F10<>0, IF(R10/F10*100=0, "-", R10/F10*100), " ") ->  | W10: =IF(G10<>0, IF(S10/G10*100=0, "-", S10/G10*100), " ") ->  | X10: =IF(H10<>0, IF(T10/H10*100=0, "-",T10/H10*100), " ") ->  | Y10: =IF(I10<>0, IF(U10/I10*100=0, "-", U10/I10*100), " ") -> 
A11: =IF(COUNTRY_INFO!A11=0," ",COUNTRY_INFO!A11) -> South Sudan | B11: =IF(COUNTRY_INFO!B11=0," ",COUNTRY_INFO!B11) -> Central Equatoria | C11: =IF(COUNTRY_INFO!C11=0," ",COUNTRY_INFO!C11) -> JUBA | D11: =IF(OR(COUNTRY_INFO!$AA11="T2 (PZQ)",COUNTRY_INFO!$AB11="T2 (PZQ)"), "T2 (PZQ)", " ") ->  | I11: =SUM(F11:H11) -> 0 | M11: =SUM(J11:L11) -> 0 | Q11: =SUM(N11:P11) -> 0 | R11: =MAX(J11,N11) -> 0 | S11: =MAX(K11,O11) -> 0 | T11: =MAX(L11,P11) -> 0 | U11: =SUM(R11:T11) -> 0 | V11: =IF(F11<>0, IF(R11/F11*100=0, "-", R11/F11*100), " ") ->  | W11: =IF(G11<>0, IF(S11/G11*100=0, "-", S11/G11*100), " ") ->  | X11: =IF(H11<>0, IF(T11/H11*100=0, "-",T11/H11*100), " ") ->  | Y11: =IF(I11<>0, IF(U11/I11*100=0, "-", U11/I11*100), " ") -> 
A12: =IF(COUNTRY_INFO!A12=0," ",COUNTRY_INFO!A12) -> South Sudan | B12: =IF(COUNTRY_INFO!B12=0," ",COUNTRY_INFO!B12) -> Central Equatoria | C12: =IF(COUNTRY_INFO!C12=0," ",COUNTRY_INFO!C12) -> LAINYA | D12: =IF(OR(COUNTRY_INFO!$AA12="T2 (PZQ)",COUNTRY_INFO!$AB12="T2 (PZQ)"), "T2 (PZQ)", " ") ->  | I12: 0 | M12: 0 | Q12: 0 | R12: 0 | S12: 0 | T12: 0 | U12: 0
A13: =IF(COUNTRY_INFO!A13=0," ",COUNTRY_INFO!A13) -> South Sudan | B13: =IF(COUNTRY_INFO!B13=0," ",COUNTRY_INFO!B13) -> Central Equatoria | C13: =IF(COUNTRY_INFO!C13=0," ",COUNTRY_INFO!C13) -> YEI | D13: =IF(OR(COUNTRY_INFO!$AA13="T2 (PZQ)",COUNTRY_INFO!$AB13="T2 (PZQ)"), "T2 (PZQ)", " ") ->  | I13: 0 | M13: 0 | Q13: 0 | R13: 0 | S13: 0 | T13: 0 | U13: 0
A14: =IF(COUNTRY_INFO!A14=0," ",COUNTRY_INFO!A14) -> South Sudan | B14: =IF(COUNTRY_INFO!B14=0," ",COUNTRY_INFO!B14) -> Central Equatoria | C14: =IF(COUNTRY_INFO!C14=0," ",COUNTRY_INFO!C14) -> MOROBO | D14: =IF(OR(COUNTRY_INFO!$AA14="T2 (PZQ)",COUNTRY_INFO!$AB14="T2 (PZQ)"), "T2 (PZQ)", " ") ->  | I14: 0 | M14: 0 | Q14: 0 | R14: 0 | S14: 0 | T14: 0 | U14: 0
A15: =IF(COUNTRY_INFO!A15=0," ",COUNTRY_INFO!A15) -> South Sudan | B15: =IF(COUNTRY_INFO!B15=0," ",COUNTRY_INFO!B15) -> Central Equatoria | C15: =IF(COUNTRY_INFO!C15=0," ",COUNTRY_INFO!C15) -> KAJO KEJI | D15: =IF(OR(COUNTRY_INFO!$AA15="T2 (PZQ)",COUNTRY_INFO!$AB15="T2 (PZQ)"), "T2 (PZQ)", " ") ->  | I15: 0 | M15: 0 | Q15: 0 | R15: 0 | S15: 0 | T15: 0 | U15: 0
A16: =IF(COUNTRY_INFO!A16=0," ",COUNTRY_INFO!A16) -> South Sudan | B16: =IF(COUNTRY_INFO!B16=0," ",COUNTRY_INFO!B16) -> Eastern Equatoria | C16: =IF(COUNTRY_INFO!C16=0," ",COUNTRY_INFO!C16) -> TORIT | D16: =IF(OR(COUNTRY_INFO!$AA16="T2 (PZQ)",COUNTRY_INFO!$AB16="T2 (PZQ)"), "T2 (PZQ)", " ") ->  | I16: 0 | M16: 0 | Q16: 0 | R16: 0 | S16: 0 | T16: 0 | U16: 0
A17: =IF(COUNTRY_INFO!A17=0," ",COUNTRY_INFO!A17) -> South Sudan | B17: =IF(COUNTRY_INFO!B17=0," ",COUNTRY_INFO!B17) -> Eastern Equatoria | C17: =IF(COUNTRY_INFO!C17=0," ",COUNTRY_INFO!C17) -> LOPA/LAFON | D17: =IF(OR(COUNTRY_INFO!$AA17="T2 (PZQ)",COUNTRY_INFO!$AB17="T2 (PZQ)"), "T2 (PZQ)", " ") ->  | I17: 0 | M17: 0 | Q17: 0 | R17: 0 | S17: 0 | T17: 0 | U17: 0
A18: =IF(COUNTRY_INFO!A18=0," ",COUNTRY_INFO!A18) -> South Sudan | B18: =IF(COUNTRY_INFO!B18=0," ",COUNTRY_INFO!B18) -> Eastern Equatoria | C18: =IF(COUNTRY_INFO!C18=0," ",COUNTRY_INFO!C18) -> KAPOETA NORTH | D18: =IF(OR(COUNTRY_INFO!$AA18="T2 (PZQ)",COUNTRY_INFO!$AB18="T2 (PZQ)"), "T2 (PZQ)", " ") ->  | I18: 0 | M18: 0 | Q18: 0 | R18: 0 | S18: 0 | T18: 0 | U18: 0
A19: =IF(COUNTRY_INFO!A19=0," ",COUNTRY_INFO!A19) -> South Sudan | B19: =IF(COUNTRY_INFO!B19=0," ",COUNTRY_INFO!B19) -> Eastern Equatoria | C19: =IF(COUNTRY_INFO!C19=0," ",COUNTRY_INFO!C19) -> KAPOETA EAST | D19: =IF(OR(COUNTRY_INFO!$AA19="T2 (PZQ)",COUNTRY_INFO!$AB19="T2 (PZQ)"), "T2 (PZQ)", " ") ->  | I19: 0 | M19: 0 | Q19: 0 | R19: 0 | S19: 0 | T19: 0 | U19: 0
A20: =IF(COUNTRY_INFO!A20=0," ",COUNTRY_INFO!A20) -> South Sudan | B20: =IF(COUNTRY_INFO!B20=0," ",COUNTRY_INFO!B20) -> Eastern Equatoria | C20: =IF(COUNTRY_INFO!C20=0," ",COUNTRY_INFO!C20) -> KAPOETA SOUTH | D20: =IF(OR(COUNTRY_INFO!$AA20="T2 (PZQ)",COUNTRY_INFO!$AB20="T2 (PZQ)"), "T2 (PZQ)", " ") ->  | I20: 0 | M20: 0 | Q20: 0 | R20: 0 | S20: 0 | T20: 0 | U20: 0
A21: =IF(COUNTRY_INFO!A21=0," ",COUNTRY_INFO!A21) -> South Sudan | B21: =IF(COUNTRY_INFO!B21=0," ",COUNTRY_INFO!B21) -> Eastern Equatoria | C21: =IF(COUNTRY_INFO!C21=0," ",COUNTRY_INFO!C21) -> BUDI | D21: =IF(OR(COUNTRY_INFO!$AA21="T2 (PZQ)",COUNTRY_INFO!$AB21="T2 (PZQ)"), "T2 (PZQ)", " ") ->  | I21: 0 | M21: 0 | Q21: 0 | R21: 0 | S21: 0 | T21: 0 | U21: 0
A22: =IF(COUNTRY_INFO!A22=0," ",COUNTRY_INFO!A22) -> South Sudan | B22: =IF(COUNTRY_INFO!B22=0," ",COUNTRY_INFO!B22) -> Eastern Equatoria | C22: =IF(COUNTRY_INFO!C22=0," ",COUNTRY_INFO!C22) -> IKOTOS | D22: =IF(OR(COUNTRY_INFO!$AA22="T2 (PZQ)",COUNTRY_INFO!$AB22="T2 (PZQ)"), "T2 (PZQ)", " ") ->  | I22: 0 | M22: 0 | Q22: 0 | R22: 0 | S22: 0 | T22: 0 | U22: 0
A23: =IF(COUNTRY_INFO!A23=0," ",COUNTRY_INFO!A23) -> South Sudan | B23: =IF(COUNTRY_INFO!B23=0," ",COUNTRY_INFO!B23) -> Eastern Equatoria | C23: =IF(COUNTRY_INFO!C23=0," ",COUNTRY_INFO!C23) -> MAGWI | D23: =IF(OR(COUNTRY_INFO!$AA23="T2 (PZQ)",COUNTRY_INFO!$AB23="T2 (PZQ)"), "T2 (PZQ)", " ") ->  | I23: 0 | M23: 0 | Q23: 0 | R23: 0 | S23: 0 | T23: 0 | U23: 0
A24: =IF(COUNTRY_INFO!A24=0," ",COUNTRY_INFO!A24) -> South Sudan | B24: =IF(COUNTRY_INFO!B24=0," ",COUNTRY_INFO!B24) -> Jonglei | C24: =IF(COUNTRY_INFO!C24=0," ",COUNTRY_INFO!C24) -> FANGAK | D24: =IF(OR(COUNTRY_INFO!$AA24="T2 (PZQ)",COUNTRY_INFO!$AB24="T2 (PZQ)"), "T2 (PZQ)", " ") ->  | I24: 0 | M24: 0 | Q24: 0 | R24: 0 | S24: 0 | T24: 0 | U24: 0
A25: =IF(COUNTRY_INFO!A25=0," ",COUNTRY_INFO!A25) -> South Sudan | B25: =IF(COUNTRY_INFO!B25=0," ",COUNTRY_INFO!B25) -> Jonglei | C25: =IF(COUNTRY_INFO!C25=0," ",COUNTRY_INFO!C25) -> KHORFLUS | D25: =IF(OR(COUNTRY_INFO!$AA25="T2 (PZQ)",COUNTRY_INFO!$AB25="T2 (PZQ)"), "T2 (PZQ)", " ") ->  | I25: 0 | M25: 0 | Q25: 0 | R25: 0 | S25: 0 | T25: 0 | U25: 0
A26: =IF(COUNTRY_INFO!A26=0," ",COUNTRY_INFO!A26) -> South Sudan | B26: =IF(COUNTRY_INFO!B26=0," ",COUNTRY_INFO!B26) -> Jonglei | C26: =IF(COUNTRY_INFO!C26=0," ",COUNTRY_INFO!C26) -> AYOD | D26: =IF(OR(COUNTRY_INFO!$AA26="T2 (PZQ)",COUNTRY_INFO!$AB26="T2 (PZQ)"), "T2 (PZQ)", " ") ->  | I26: 0 | M26: 0 | Q26: 0 | R26: 0 | S26: 0 | T26: 0 | U26: 0
A27: =IF(COUNTRY_INFO!A27=0," ",COUNTRY_INFO!A27) -> South Sudan | B27: =IF(COUNTRY_INFO!B27=0," ",COUNTRY_INFO!B27) -> Jonglei | C27: =IF(COUNTRY_INFO!C27=0," ",COUNTRY_INFO!C27) -> DUK | D27: =IF(OR(COUNTRY_INFO!$AA27="T2 (PZQ)",COUNTRY_INFO!$AB27="T2 (PZQ)"), "T2 (PZQ)", " ") ->  | I27: 0 | M27: 0 | Q27: 0 | R27: 0 | S27: 0 | T27: 0 | U27: 0
A28: =IF(COUNTRY_INFO!A28=0," ",COUNTRY_INFO!A28) -> South Sudan | B28: =IF(COUNTRY_INFO!B28=0," ",COUNTRY_INFO!B28) -> Jonglei | C28: =IF(COUNTRY_INFO!C28=0," ",COUNTRY_INFO!C28) -> UROR | D28: =IF(OR(COUNTRY_INFO!$AA28="T2 (PZQ)",COUNTRY_INFO!$AB28="T2 (PZQ)"), "T2 (PZQ)", " ") ->  | I28: 0 | M28: 0 | Q28: 0 | R28: 0 | S28: 0 | T28: 0 | U28: 0
A29: =IF(COUNTRY_INFO!A29=0," ",COUNTRY_INFO!A29) -> South Sudan | B29: =IF(COUNTRY_INFO!B29=0," ",COUNTRY_INFO!B29) -> Jonglei | C29: =IF(COUNTRY_INFO!C29=0," ",COUNTRY_INFO!C29) -> NYIROL | D29: =IF(OR(COUNTRY_INFO!$AA29="T2 (PZQ)",COUNTRY_INFO!$AB29="T2 (PZQ)"), "T2 (PZQ)", " ") ->  | I29: 0 | M29: 0 | Q29: 0 | R29: 0 | S29: 0 | T29: 0 | U29: 0
A30: =IF(COUNTRY_INFO!A30=0," ",COUNTRY_INFO!A30) -> South Sudan | B30: =IF(COUNTRY_INFO!B30=0," ",COUNTRY_INFO!B30) -> Jonglei | C30: =IF(COUNTRY_INFO!C30=0," ",COUNTRY_INFO!C30) -> AKOBO | D30: =IF(OR(COUNTRY_INFO!$AA30="T2 (PZQ)",COUNTRY_INFO!$AB30="T2 (PZQ)"), "T2 (PZQ)", " ") ->  | I30: 0 | M30: 0 | Q30: 0 | R30: 0 | S30: 0 | T30: 0 | U30: 0
A31: =IF(COUNTRY_INFO!A31=0," ",COUNTRY_INFO!A31) -> South Sudan | B31: =IF(COUNTRY_INFO!B31=0," ",COUNTRY_INFO!B31) -> Jonglei | C31: =IF(COUNTRY_INFO!C31=0," ",COUNTRY_INFO!C31) -> POCHALA | D31: =IF(OR(COUNTRY_INFO!$AA31="T2 (PZQ)",COUNTRY_INFO!$AB31="T2 (PZQ)"), "T2 (PZQ)", " ") ->  | I31: 0 | M31: 0 | Q31: 0 | R31: 0 | S31: 0 | T31: 0 | U31: 0
A32: =IF(COUNTRY_INFO!A32=0," ",COUNTRY_INFO!A32) -> South Sudan | B32: =IF(COUNTRY_INFO!B32=0," ",COUNTRY_INFO!B32) -> Jonglei | C32: =IF(COUNTRY_INFO!C32=0," ",COUNTRY_INFO!C32) -> PIBOR | D32: =IF(OR(COUNTRY_INFO!$AA32="T2 (PZQ)",COUNTRY_INFO!$AB32="T2 (PZQ)"), "T2 (PZQ)", " ") ->  | I32: 0 | M32: 0 | Q32: 0 | R32: 0 | S32: 0 | T32: 0 | U32: 0
A33: =IF(COUNTRY_INFO!A33=0," ",COUNTRY_INFO!A33) -> South Sudan | B33: =IF(COUNTRY_INFO!B33=0," ",COUNTRY_INFO!B33) -> Jonglei | C33: =IF(COUNTRY_INFO!C33=0," ",COUNTRY_INFO!C33) -> TWIC EAST | D33: =IF(OR(COUNTRY_INFO!$AA33="T2 (PZQ)",COUNTRY_INFO!$AB33="T2 (PZQ)"), "T2 (PZQ)", " ") ->  | I33: 0 | M33: 0 | Q33: 0 | R33: 0 | S33: 0 | T33: 0 | U33: 0
A34: =IF(COUNTRY_INFO!A34=0," ",COUNTRY_INFO!A34) -> South Sudan | B34: =IF(COUNTRY_INFO!B34=0," ",COUNTRY_INFO!B34) -> Jonglei | C34: =IF(COUNTRY_INFO!C34=0," ",COUNTRY_INFO!C34) -> BOR SOUTH | D34: =IF(OR(COUNTRY_INFO!$AA34="T2 (PZQ)",COUNTRY_INFO!$AB34="T2 (PZQ)"), "T2 (PZQ)", " ") ->  | I34: 0 | M34: 0 | Q34: 0 | R34: 0 | S34: 0 | T34: 0 | U34: 0
A35: =IF(COUNTRY_INFO!A35=0," ",COUNTRY_INFO!A35) -> South Sudan | B35: =IF(COUNTRY_INFO!B35=0," ",COUNTRY_INFO!B35) -> Lakes | C35: =IF(COUNTRY_INFO!C35=0," ",COUNTRY_INFO!C35) -> CUEBIT | D35: =IF(OR(COUNTRY_INFO!$AA35="T2 (PZQ)",COUNTRY_INFO!$AB35="T2 (PZQ)"), "T2 (PZQ)", " ") ->  | I35: 0 | M35: 0 | Q35: 0 | R35: 0 | S35: 0 | T35: 0 | U35: 0
A36: =IF(COUNTRY_INFO!A36=0," ",COUNTRY_INFO!A36) -> South Sudan | B36: =IF(COUNTRY_INFO!B36=0," ",COUNTRY_INFO!B36) -> Lakes | C36: =IF(COUNTRY_INFO!C36=0," ",COUNTRY_INFO!C36) -> RUMBEK NORTH | D36: =IF(OR(COUNTRY_INFO!$AA36="T2 (PZQ)",COUNTRY_INFO!$AB36="T2 (PZQ)"), "T2 (PZQ)", " ") ->  | I36: 0 | M36: 0 | Q36: 0 | R36: 0 | S36: 0 | T36: 0 | U36: 0
A37: =IF(COUNTRY_INFO!A37=0," ",COUNTRY_INFO!A37) -> South Sudan | B37: =IF(COUNTRY_INFO!B37=0," ",COUNTRY_INFO!B37) -> Lakes | C37: =IF(COUNTRY_INFO!C37=0," ",COUNTRY_INFO!C37) -> RUMBEK CENTRE | D37: =IF(OR(COUNTRY_INFO!$AA37="T2 (PZQ)",COUNTRY_INFO!$AB37="T2 (PZQ)"), "T2 (PZQ)", " ") ->  | I37: 0 | M37: 0 | Q37: 0 | R37: 0 | S37: 0 | T37: 0 | U37: 0
A38: =IF(COUNTRY_INFO!A38=0," ",COUNTRY_INFO!A38) -> South Sudan | B38: =IF(COUNTRY_INFO!B38=0," ",COUNTRY_INFO!B38) -> Lakes | C38: =IF(COUNTRY_INFO!C38=0," ",COUNTRY_INFO!C38) -> WULU | D38: =IF(OR(COUNTRY_INFO!$AA38="T2 (PZQ)",COUNTRY_INFO!$AB38="T2 (PZQ)"), "T2 (PZQ)", " ") ->  | I38: 0 | M38: 0 | Q38: 0 | R38: 0 | S38: 0 | T38: 0 | U38: 0
A39: =IF(COUNTRY_INFO!A39=0," ",COUNTRY_INFO!A39) -> South Sudan | B39: =IF(COUNTRY_INFO!B39=0," ",COUNTRY_INFO!B39) -> Lakes | C39: =IF(COUNTRY_INFO!C39=0," ",COUNTRY_INFO!C39) -> RUMBEK EAST | D39: =IF(OR(COUNTRY_INFO!$AA39="T2 (PZQ)",COUNTRY_INFO!$AB39="T2 (PZQ)"), "T2 (PZQ)", " ") ->  | I39: 0 | M39: 0 | Q39: 0 | R39: 0 | S39: 0 | T39: 0 | U39: 0
A40: =IF(COUNTRY_INFO!A40=0," ",COUNTRY_INFO!A40) -> South Sudan | B40: =IF(COUNTRY_INFO!B40=0," ",COUNTRY_INFO!B40) -> Lakes | C40: =IF(COUNTRY_INFO!C40=0," ",COUNTRY_INFO!C40) -> YIROL WEST | D40: =IF(OR(COUNTRY_INFO!$AA40="T2 (PZQ)",COUNTRY_INFO!$AB40="T2 (PZQ)"), "T2 (PZQ)", " ") ->  | I40: 0 | M40: 0 | Q40: 0 | R40: 0 | S40: 0 | T40: 0 | U40: 0
A41: =IF(COUNTRY_INFO!A41=0," ",COUNTRY_INFO!A41) -> South Sudan | B41: =IF(COUNTRY_INFO!B41=0," ",COUNTRY_INFO!B41) -> Lakes | C41: =IF(COUNTRY_INFO!C41=0," ",COUNTRY_INFO!C41) -> YIROL EAST | D41: =IF(OR(COUNTRY_INFO!$AA41="T2 (PZQ)",COUNTRY_INFO!$AB41="T2 (PZQ)"), "T2 (PZQ)", " ") ->  | I41: 0 | M41: 0 | Q41: 0 | R41: 0 | S41: 0 | T41: 0 | U41: 0
A42: =IF(COUNTRY_INFO!A42=0," ",COUNTRY_INFO!A42) -> South Sudan | B42: =IF(COUNTRY_INFO!B42=0," ",COUNTRY_INFO!B42) -> Lakes | C42: =IF(COUNTRY_INFO!C42=0," ",COUNTRY_INFO!C42) -> AWERIAL | D42: =IF(OR(COUNTRY_INFO!$AA42="T2 (PZQ)",COUNTRY_INFO!$AB42="T2 (PZQ)"), "T2 (PZQ)", " ") ->  | I42: 0 | M42: 0 | Q42: 0 | R42: 0 | S42: 0 | T42: 0 | U42: 0
A43: =IF(COUNTRY_INFO!A43=0," ",COUNTRY_INFO!A43) -> South Sudan | B43: =IF(COUNTRY_INFO!B43=0," ",COUNTRY_INFO!B43) -> Northern Bahr El Ghazal | C43: =IF(COUNTRY_INFO!C43=0," ",COUNTRY_INFO!C43) -> AWIEL NORTH | D43: =IF(OR(COUNTRY_INFO!$AA43="T2 (PZQ)",COUNTRY_INFO!$AB43="T2 (PZQ)"), "T2 (PZQ)", " ") ->  | I43: 0 | M43: 0 | Q43: 0 | R43: 0 | S43: 0 | T43: 0 | U43: 0
A44: =IF(COUNTRY_INFO!A44=0," ",COUNTRY_INFO!A44) -> South Sudan | B44: =IF(COUNTRY_INFO!B44=0," ",COUNTRY_INFO!B44) -> Northern Bahr El Ghazal | C44: =IF(COUNTRY_INFO!C44=0," ",COUNTRY_INFO!C44) -> AWIEL EAST | D44: =IF(OR(COUNTRY_INFO!$AA44="T2 (PZQ)",COUNTRY_INFO!$AB44="T2 (PZQ)"), "T2 (PZQ)", " ") ->  | I44: 0 | M44: 0 | Q44: 0 | R44: 0 | S44: 0 | T44: 0 | U44: 0
A45: =IF(COUNTRY_INFO!A45=0," ",COUNTRY_INFO!A45) -> South Sudan | B45: =IF(COUNTRY_INFO!B45=0," ",COUNTRY_INFO!B45) -> Northern Bahr El Ghazal | C45: =IF(COUNTRY_INFO!C45=0," ",COUNTRY_INFO!C45) -> AWIEL SOUTH | D45: =IF(OR(COUNTRY_INFO!$AA45="T2 (PZQ)",COUNTRY_INFO!$AB45="T2 (PZQ)"), "T2 (PZQ)", " ") ->  | I45: 0 | M45: 0 | Q45: 0 | R45: 0 | S45: 0 | T45: 0 | U45: 0
A46: =IF(COUNTRY_INFO!A46=0," ",COUNTRY_INFO!A46) -> South Sudan | B46: =IF(COUNTRY_INFO!B46=0," ",COUNTRY_INFO!B46) -> Northern Bahr El Ghazal | C46: =IF(COUNTRY_INFO!C46=0," ",COUNTRY_INFO!C46) -> AWIEL WEST | D46: =IF(OR(COUNTRY_INFO!$AA46="T2 (PZQ)",COUNTRY_INFO!$AB46="T2 (PZQ)"), "T2 (PZQ)", " ") ->  | I46: 0 | M46: 0 | Q46: 0 | R46: 0 | S46: 0 | T46: 0 | U46: 0
A47: =IF(COUNTRY_INFO!A47=0," ",COUNTRY_INFO!A47) -> South Sudan | B47: =IF(COUNTRY_INFO!B47=0," ",COUNTRY_INFO!B47) -> Northern Bahr El Ghazal | C47: =IF(COUNTRY_INFO!C47=0," ",COUNTRY_INFO!C47) -> AWIEL CENTRE | D47: =IF(OR(COUNTRY_INFO!$AA47="T2 (PZQ)",COUNTRY_INFO!$AB47="T2 (PZQ)"), "T2 (PZQ)", " ") ->  | I47: 0 | M47: 0 | Q47: 0 | R47: 0 | S47: 0 | T47: 0 | U47: 0
A48: =IF(COUNTRY_INFO!A48=0," ",COUNTRY_INFO!A48) -> South Sudan | B48: =IF(COUNTRY_INFO!B48=0," ",COUNTRY_INFO!B48) -> Unity | C48: =IF(COUNTRY_INFO!C48=0," ",COUNTRY_INFO!C48) -> PARIANG | D48: =IF(OR(COUNTRY_INFO!$AA48="T2 (PZQ)",COUNTRY_INFO!$AB48="T2 (PZQ)"), "T2 (PZQ)", " ") ->  | I48: 0 | M48: 0 | Q48: 0 | R48: 0 | S48: 0 | T48: 0 | U48: 0
A49: =IF(COUNTRY_INFO!A49=0," ",COUNTRY_INFO!A49) -> South Sudan | B49: =IF(COUNTRY_INFO!B49=0," ",COUNTRY_INFO!B49) -> Unity | C49: =IF(COUNTRY_INFO!C49=0," ",COUNTRY_INFO!C49) -> ABIEMNHOM | D49: =IF(OR(COUNTRY_INFO!$AA49="T2 (PZQ)",COUNTRY_INFO!$AB49="T2 (PZQ)"), "T2 (PZQ)", " ") ->  | I49: 0 | M49: 0 | Q49: 0 | R49: 0 | S49: 0 | T49: 0 | U49: 0
A50: =IF(COUNTRY_INFO!A50=0," ",COUNTRY_INFO!A50) -> South Sudan | B50: =IF(COUNTRY_INFO!B50=0," ",COUNTRY_INFO!B50) -> Unity | C50: =IF(COUNTRY_INFO!C50=0," ",COUNTRY_INFO!C50) -> MAYOM | D50: =IF(OR(COUNTRY_INFO!$AA50="T2 (PZQ)",COUNTRY_INFO!$AB50="T2 (PZQ)"), "T2 (PZQ)", " ") ->  | I50: 0 | M50: 0 | Q50: 0 | R50: 0 | S50: 0 | T50: 0 | U50: 0
A51: =IF(COUNTRY_INFO!A51=0," ",COUNTRY_INFO!A51) -> South Sudan | B51: =IF(COUNTRY_INFO!B51=0," ",COUNTRY_INFO!B51) -> Unity | C51: =IF(COUNTRY_INFO!C51=0," ",COUNTRY_INFO!C51) -> RUBKONA | D51: =IF(OR(COUNTRY_INFO!$AA51="T2 (PZQ)",COUNTRY_INFO!$AB51="T2 (PZQ)"), "T2 (PZQ)", " ") ->  | I51: 0 | M51: 0 | Q51: 0 | R51: 0 | S51: 0 | T51: 0 | U51: 0
A52: =IF(COUNTRY_INFO!A52=0," ",COUNTRY_INFO!A52) -> South Sudan | B52: =IF(COUNTRY_INFO!B52=0," ",COUNTRY_INFO!B52) -> Unity | C52: =IF(COUNTRY_INFO!C52=0," ",COUNTRY_INFO!C52) -> GUIT | D52: =IF(OR(COUNTRY_INFO!$AA52="T2 (PZQ)",COUNTRY_INFO!$AB52="T2 (PZQ)"), "T2 (PZQ)", " ") ->  | I52: 0 | M52: 0 | Q52: 0 | R52: 0 | S52: 0 | T52: 0 | U52: 0
A53: =IF(COUNTRY_INFO!A53=0," ",COUNTRY_INFO!A53) -> South Sudan | B53: =IF(COUNTRY_INFO!B53=0," ",COUNTRY_INFO!B53) -> Unity | C53: =IF(COUNTRY_INFO!C53=0," ",COUNTRY_INFO!C53) -> KOCH | D53: =IF(OR(COUNTRY_INFO!$AA53="T2 (PZQ)",COUNTRY_INFO!$AB53="T2 (PZQ)"), "T2 (PZQ)", " ") ->  | I53: 0 | M53: 0 | Q53: 0 | R53: 0 | S53: 0 | T53: 0 | U53: 0
A54: =IF(COUNTRY_INFO!A54=0," ",COUNTRY_INFO!A54) -> South Sudan | B54: =IF(COUNTRY_INFO!B54=0," ",COUNTRY_INFO!B54) -> Unity | C54: =IF(COUNTRY_INFO!C54=0," ",COUNTRY_INFO!C54) -> LEER | D54: =IF(OR(COUNTRY_INFO!$AA54="T2 (PZQ)",COUNTRY_INFO!$AB54="T2 (PZQ)"), "T2 (PZQ)", " ") ->  | I54: 0 | M54: 0 | Q54: 0 | R54: 0 | S54: 0 | T54: 0 | U54: 0
A55: =IF(COUNTRY_INFO!A55=0," ",COUNTRY_INFO!A55) -> South Sudan | B55: =IF(COUNTRY_INFO!B55=0," ",COUNTRY_INFO!B55) -> Unity | C55: =IF(COUNTRY_INFO!C55=0," ",COUNTRY_INFO!C55) -> MAYENDIT | D55: =IF(OR(COUNTRY_INFO!$AA55="T2 (PZQ)",COUNTRY_INFO!$AB55="T2 (PZQ)"), "T2 (PZQ)", " ") ->  | I55: 0 | M55: 0 | Q55: 0 | R55: 0 | S55: 0 | T55: 0 | U55: 0
A56: =IF(COUNTRY_INFO!A56=0," ",COUNTRY_INFO!A56) -> South Sudan | B56: =IF(COUNTRY_INFO!B56=0," ",COUNTRY_INFO!B56) -> Unity | C56: =IF(COUNTRY_INFO!C56=0," ",COUNTRY_INFO!C56) -> PAYNIJAR | D56: =IF(OR(COUNTRY_INFO!$AA56="T2 (PZQ)",COUNTRY_INFO!$AB56="T2 (PZQ)"), "T2 (PZQ)", " ") ->  | I56: 0 | M56: 0 | Q56: 0 | R56: 0 | S56: 0 | T56: 0 | U56: 0
A57: =IF(COUNTRY_INFO!A57=0," ",COUNTRY_INFO!A57) -> South Sudan | B57: =IF(COUNTRY_INFO!B57=0," ",COUNTRY_INFO!B57) -> Upper Nile | C57: =IF(COUNTRY_INFO!C57=0," ",COUNTRY_INFO!C57) -> RENK | D57: =IF(OR(COUNTRY_INFO!$AA57="T2 (PZQ)",COUNTRY_INFO!$AB57="T2 (PZQ)"), "T2 (PZQ)", " ") ->  | I57: 0 | M57: 0 | Q57: 0 | R57: 0 | S57: 0 | T57: 0 | U57: 0
A58: =IF(COUNTRY_INFO!A58=0," ",COUNTRY_INFO!A58) -> South Sudan | B58: =IF(COUNTRY_INFO!B58=0," ",COUNTRY_INFO!B58) -> Upper Nile | C58: =IF(COUNTRY_INFO!C58=0," ",COUNTRY_INFO!C58) -> MANYO | D58: =IF(OR(COUNTRY_INFO!$AA58="T2 (PZQ)",COUNTRY_INFO!$AB58="T2 (PZQ)"), "T2 (PZQ)", " ") ->  | I58: 0 | M58: 0 | Q58: 0 | R58: 0 | S58: 0 | T58: 0 | U58: 0
A59: =IF(COUNTRY_INFO!A59=0," ",COUNTRY_INFO!A59) -> South Sudan | B59: =IF(COUNTRY_INFO!B59=0," ",COUNTRY_INFO!B59) -> Upper Nile | C59: =IF(COUNTRY_INFO!C59=0," ",COUNTRY_INFO!C59) -> FASHODA | D59: =IF(OR(COUNTRY_INFO!$AA59="T2 (PZQ)",COUNTRY_INFO!$AB59="T2 (PZQ)"), "T2 (PZQ)", " ") ->  | I59: 0 | M59: 0 | Q59: 0 | R59: 0 | S59: 0 | T59: 0 | U59: 0
A60: =IF(COUNTRY_INFO!A60=0," ",COUNTRY_INFO!A60) -> South Sudan | B60: =IF(COUNTRY_INFO!B60=0," ",COUNTRY_INFO!B60) -> Upper Nile | C60: =IF(COUNTRY_INFO!C60=0," ",COUNTRY_INFO!C60) -> MELUT | D60: =IF(OR(COUNTRY_INFO!$AA60="T2 (PZQ)",COUNTRY_INFO!$AB60="T2 (PZQ)"), "T2 (PZQ)", " ") ->  | I60: 0 | M60: 0 | Q60: 0 | R60: 0 | S60: 0 | T60: 0 | U60: 0
A61: =IF(COUNTRY_INFO!A61=0," ",COUNTRY_INFO!A61) -> South Sudan | B61: =IF(COUNTRY_INFO!B61=0," ",COUNTRY_INFO!B61) -> Upper Nile | C61: =IF(COUNTRY_INFO!C61=0," ",COUNTRY_INFO!C61) -> MABAN | D61: =IF(OR(COUNTRY_INFO!$AA61="T2 (PZQ)",COUNTRY_INFO!$AB61="T2 (PZQ)"), "T2 (PZQ)", " ") ->  | I61: 0 | M61: 0 | Q61: 0 | R61: 0 | S61: 0 | T61: 0 | U61: 0
A62: =IF(COUNTRY_INFO!A62=0," ",COUNTRY_INFO!A62) -> South Sudan | B62: =IF(COUNTRY_INFO!B62=0," ",COUNTRY_INFO!B62) -> Upper Nile | C62: =IF(COUNTRY_INFO!C62=0," ",COUNTRY_INFO!C62) -> MAIWUT | D62: =IF(OR(COUNTRY_INFO!$AA62="T2 (PZQ)",COUNTRY_INFO!$AB62="T2 (PZQ)"), "T2 (PZQ)", " ") ->  | I62: 0 | M62: 0 | Q62: 0 | R62: 0 | S62: 0 | T62: 0 | U62: 0
A63: =IF(COUNTRY_INFO!A63=0," ",COUNTRY_INFO!A63) -> South Sudan | B63: =IF(COUNTRY_INFO!B63=0," ",COUNTRY_INFO!B63) -> Upper Nile | C63: =IF(COUNTRY_INFO!C63=0," ",COUNTRY_INFO!C63) -> LUAKPINY/NASIR | D63: =IF(OR(COUNTRY_INFO!$AA63="T2 (PZQ)",COUNTRY_INFO!$AB63="T2 (PZQ)"), "T2 (PZQ)", " ") ->  | I63: 0 | M63: 0 | Q63: 0 | R63: 0 | S63: 0 | T63: 0 | U63: 0
A64: =IF(COUNTRY_INFO!A64=0," ",COUNTRY_INFO!A64) -> South Sudan | B64: =IF(COUNTRY_INFO!B64=0," ",COUNTRY_INFO!B64) -> Upper Nile | C64: =IF(COUNTRY_INFO!C64=0," ",COUNTRY_INFO!C64) -> LONGOCHUK | D64: =IF(OR(COUNTRY_INFO!$AA64="T2 (PZQ)",COUNTRY_INFO!$AB64="T2 (PZQ)"), "T2 (PZQ)", " ") ->  | I64: 0 | M64: 0 | Q64: 0 | R64: 0 | S64: 0 | T64: 0 | U64: 0
A65: =IF(COUNTRY_INFO!A65=0," ",COUNTRY_INFO!A65) -> South Sudan | B65: =IF(COUNTRY_INFO!B65=0," ",COUNTRY_INFO!B65) -> Upper Nile | C65: =IF(COUNTRY_INFO!C65=0," ",COUNTRY_INFO!C65) -> ULANG | D65: =IF(OR(COUNTRY_INFO!$AA65="T2 (PZQ)",COUNTRY_INFO!$AB65="T2 (PZQ)"), "T2 (PZQ)", " ") ->  | I65: 0 | M65: 0 | Q65: 0 | R65: 0 | S65: 0 | T65: 0 | U65: 0
A66: =IF(COUNTRY_INFO!A66=0," ",COUNTRY_INFO!A66) -> South Sudan | B66: =IF(COUNTRY_INFO!B66=0," ",COUNTRY_INFO!B66) -> Upper Nile | C66: =IF(COUNTRY_INFO!C66=0," ",COUNTRY_INFO!C66) -> BALIET | D66: =IF(OR(COUNTRY_INFO!$AA66="T2 (PZQ)",COUNTRY_INFO!$AB66="T2 (PZQ)"), "T2 (PZQ)", " ") ->  | I66: 0 | M66: 0 | Q66: 0 | R66: 0 | S66: 0 | T66: 0 | U66: 0
A67: =IF(COUNTRY_INFO!A67=0," ",COUNTRY_INFO!A67) -> South Sudan | B67: =IF(COUNTRY_INFO!B67=0," ",COUNTRY_INFO!B67) -> Upper Nile | C67: =IF(COUNTRY_INFO!C67=0," ",COUNTRY_INFO!C67) -> MALAKAL | D67: =IF(OR(COUNTRY_INFO!$AA67="T2 (PZQ)",COUNTRY_INFO!$AB67="T2 (PZQ)"), "T2 (PZQ)", " ") ->  | I67: 0 | M67: 0 | Q67: 0 | R67: 0 | S67: 0 | T67: 0 | U67: 0
A68: =IF(COUNTRY_INFO!A68=0," ",COUNTRY_INFO!A68) -> South Sudan | B68: =IF(COUNTRY_INFO!B68=0," ",COUNTRY_INFO!B68) -> Upper Nile | C68: =IF(COUNTRY_INFO!C68=0," ",COUNTRY_INFO!C68) -> PANYKANG | D68: =IF(OR(COUNTRY_INFO!$AA68="T2 (PZQ)",COUNTRY_INFO!$AB68="T2 (PZQ)"), "T2 (PZQ)", " ") ->  | I68: 0 | M68: 0 | Q68: 0 | R68: 0 | S68: 0 | T68: 0 | U68: 0
A69: =IF(COUNTRY_INFO!A69=0," ",COUNTRY_INFO!A69) -> South Sudan | B69: =IF(COUNTRY_INFO!B69=0," ",COUNTRY_INFO!B69) -> Warrap | C69: =IF(COUNTRY_INFO!C69=0," ",COUNTRY_INFO!C69) -> ABYEI | D69: =IF(OR(COUNTRY_INFO!$AA69="T2 (PZQ)",COUNTRY_INFO!$AB69="T2 (PZQ)"), "T2 (PZQ)", " ") ->  | I69: 0 | M69: 0 | Q69: 0 | R69: 0 | S69: 0 | T69: 0 | U69: 0
A70: =IF(COUNTRY_INFO!A70=0," ",COUNTRY_INFO!A70) -> South Sudan | B70: =IF(COUNTRY_INFO!B70=0," ",COUNTRY_INFO!B70) -> Warrap | C70: =IF(COUNTRY_INFO!C70=0," ",COUNTRY_INFO!C70) -> TWIC | D70: =IF(OR(COUNTRY_INFO!$AA70="T2 (PZQ)",COUNTRY_INFO!$AB70="T2 (PZQ)"), "T2 (PZQ)", " ") ->  | I70: 0 | M70: 0 | Q70: 0 | R70: 0 | S70: 0 | T70: 0 | U70: 0
A71: =IF(COUNTRY_INFO!A71=0," ",COUNTRY_INFO!A71) -> South Sudan | B71: =IF(COUNTRY_INFO!B71=0," ",COUNTRY_INFO!B71) -> Warrap | C71: =IF(COUNTRY_INFO!C71=0," ",COUNTRY_INFO!C71) -> GOGRIAL WEST | D71: =IF(OR(COUNTRY_INFO!$AA71="T2 (PZQ)",COUNTRY_INFO!$AB71="T2 (PZQ)"), "T2 (PZQ)", " ") ->  | I71: 0 | M71: 0 | Q71: 0 | R71: 0 | S71: 0 | T71: 0 | U71: 0
A72: =IF(COUNTRY_INFO!A72=0," ",COUNTRY_INFO!A72) -> South Sudan | B72: =IF(COUNTRY_INFO!B72=0," ",COUNTRY_INFO!B72) -> Warrap | C72: =IF(COUNTRY_INFO!C72=0," ",COUNTRY_INFO!C72) -> GOGRIAL EAST | D72: =IF(OR(COUNTRY_INFO!$AA72="T2 (PZQ)",COUNTRY_INFO!$AB72="T2 (PZQ)"), "T2 (PZQ)", " ") ->  | I72: 0 | M72: 0 | Q72: 0 | R72: 0 | S72: 0 | T72: 0 | U72: 0
A73: =IF(COUNTRY_INFO!A73=0," ",COUNTRY_INFO!A73) -> South Sudan | B73: =IF(COUNTRY_INFO!B73=0," ",COUNTRY_INFO!B73) -> Warrap | C73: =IF(COUNTRY_INFO!C73=0," ",COUNTRY_INFO!C73) -> TONJ NORTH | D73: =IF(OR(COUNTRY_INFO!$AA73="T2 (PZQ)",COUNTRY_INFO!$AB73="T2 (PZQ)"), "T2 (PZQ)", " ") ->  | I73: 0 | M73: 0 | Q73: 0 | R73: 0 | S73: 0 | T73: 0 | U73: 0
A74: =IF(COUNTRY_INFO!A74=0," ",COUNTRY_INFO!A74) -> South Sudan | B74: =IF(COUNTRY_INFO!B74=0," ",COUNTRY_INFO!B74) -> Warrap | C74: =IF(COUNTRY_INFO!C74=0," ",COUNTRY_INFO!C74) -> TONJ EAST | D74: =IF(OR(COUNTRY_INFO!$AA74="T2 (PZQ)",COUNTRY_INFO!$AB74="T2 (PZQ)"), "T2 (PZQ)", " ") ->  | I74: 0 | M74: 0 | Q74: 0 | R74: 0 | S74: 0 | T74: 0 | U74: 0
A75: =IF(COUNTRY_INFO!A75=0," ",COUNTRY_INFO!A75) -> South Sudan | B75: =IF(COUNTRY_INFO!B75=0," ",COUNTRY_INFO!B75) -> Warrap | C75: =IF(COUNTRY_INFO!C75=0," ",COUNTRY_INFO!C75) -> TONJ SOUTH | D75: =IF(OR(COUNTRY_INFO!$AA75="T2 (PZQ)",COUNTRY_INFO!$AB75="T2 (PZQ)"), "T2 (PZQ)", " ") ->  | I75: =SUM(F75:H75) -> 0 | M75: =SUM(J75:L75) -> 0 | Q75: =SUM(N75:P75) -> 0 | R75: =MAX(J75,N75) -> 0 | S75: =MAX(K75,O75) -> 0 | T75: =MAX(L75,P75) -> 0 | U75: =SUM(R75:T75) -> 0 | V75: =IF(F75<>0, IF(R75/F75*100=0, "-", R75/F75*100), " ") ->  | W75: =IF(G75<>0, IF(S75/G75*100=0, "-", S75/G75*100), " ") ->  | X75: =IF(H75<>0, IF(T75/H75*100=0, "-",T75/H75*100), " ") ->  | Y75: =IF(I75<>0, IF(U75/I75*100=0, "-", U75/I75*100), " ") -> 
A76: =IF(COUNTRY_INFO!A76=0," ",COUNTRY_INFO!A76) -> South Sudan | B76: =IF(COUNTRY_INFO!B76=0," ",COUNTRY_INFO!B76) -> Wesstern Equatoria | C76: =IF(COUNTRY_INFO!C76=0," ",COUNTRY_INFO!C76) -> TAMBURA | D76: =IF(OR(COUNTRY_INFO!$AA76="T2 (PZQ)",COUNTRY_INFO!$AB76="T2 (PZQ)"), "T2 (PZQ)", " ") ->  | I76: 0 | M76: 0 | Q76: 0 | R76: 0 | S76: 0 | T76: 0 | U76: 0
A77: =IF(COUNTRY_INFO!A77=0," ",COUNTRY_INFO!A77) -> South Sudan | B77: =IF(COUNTRY_INFO!B77=0," ",COUNTRY_INFO!B77) -> Wesstern Equatoria | C77: =IF(COUNTRY_INFO!C77=0," ",COUNTRY_INFO!C77) -> NAGERO | D77: =IF(OR(COUNTRY_INFO!$AA77="T2 (PZQ)",COUNTRY_INFO!$AB77="T2 (PZQ)"), "T2 (PZQ)", " ") ->  | I77: 0 | M77: 0 | Q77: 0 | R77: 0 | S77: 0 | T77: 0 | U77: 0
A78: =IF(COUNTRY_INFO!A78=0," ",COUNTRY_INFO!A78) -> South Sudan | B78: =IF(COUNTRY_INFO!B78=0," ",COUNTRY_INFO!B78) -> Wesstern Equatoria | C78: =IF(COUNTRY_INFO!C78=0," ",COUNTRY_INFO!C78) -> NZARA | D78: =IF(OR(COUNTRY_INFO!$AA78="T2 (PZQ)",COUNTRY_INFO!$AB78="T2 (PZQ)"), "T2 (PZQ)", " ") ->  | I78: 0 | M78: 0 | Q78: 0 | R78: 0 | S78: 0 | T78: 0 | U78: 0
A79: =IF(COUNTRY_INFO!A79=0," ",COUNTRY_INFO!A79) -> South Sudan | B79: =IF(COUNTRY_INFO!B79=0," ",COUNTRY_INFO!B79) -> Wesstern Equatoria | C79: =IF(COUNTRY_INFO!C79=0," ",COUNTRY_INFO!C79) -> EZO | D79: =IF(OR(COUNTRY_INFO!$AA79="T2 (PZQ)",COUNTRY_INFO!$AB79="T2 (PZQ)"), "T2 (PZQ)", " ") ->  | I79: 0 | M79: 0 | Q79: 0 | R79: 0 | S79: 0 | T79: 0 | U79: 0
A80: =IF(COUNTRY_INFO!A80=0," ",COUNTRY_INFO!A80) -> South Sudan | B80: =IF(COUNTRY_INFO!B80=0," ",COUNTRY_INFO!B80) -> Wesstern Equatoria | C80: =IF(COUNTRY_INFO!C80=0," ",COUNTRY_INFO!C80) -> YAMBIO | D80: =IF(OR(COUNTRY_INFO!$AA80="T2 (PZQ)",COUNTRY_INFO!$AB80="T2 (PZQ)"), "T2 (PZQ)", " ") ->  | I80: 0 | M80: 0 | Q80: 0 | R80: 0 | S80: 0 | T80: 0 | U80: 0
A81: =IF(COUNTRY_INFO!A81=0," ",COUNTRY_INFO!A81) -> South Sudan | B81: =IF(COUNTRY_INFO!B81=0," ",COUNTRY_INFO!B81) -> Wesstern Equatoria | C81: =IF(COUNTRY_INFO!C81=0," ",COUNTRY_INFO!C81) -> IBBA | D81: =IF(OR(COUNTRY_INFO!$AA81="T2 (PZQ)",COUNTRY_INFO!$AB81="T2 (PZQ)"), "T2 (PZQ)", " ") ->  | I81: 0 | M81: 0 | Q81: 0 | R81: 0 | S81: 0 | T81: 0 | U81: 0
A82: =IF(COUNTRY_INFO!A82=0," ",COUNTRY_INFO!A82) -> South Sudan | B82: =IF(COUNTRY_INFO!B82=0," ",COUNTRY_INFO!B82) -> Wesstern Equatoria | C82: =IF(COUNTRY_INFO!C82=0," ",COUNTRY_INFO!C82) -> MARIDI | D82: =IF(OR(COUNTRY_INFO!$AA82="T2 (PZQ)",COUNTRY_INFO!$AB82="T2 (PZQ)"), "T2 (PZQ)", " ") ->  | I82: 0 | M82: 0 | Q82: 0 | R82: 0 | S82: 0 | T82: 0 | U82: 0
A83: =IF(COUNTRY_INFO!A83=0," ",COUNTRY_INFO!A83) -> South Sudan | B83: =IF(COUNTRY_INFO!B83=0," ",COUNTRY_INFO!B83) -> Wesstern Equatoria | C83: =IF(COUNTRY_INFO!C83=0," ",COUNTRY_INFO!C83) -> MVOLO | D83: =IF(OR(COUNTRY_INFO!$AA83="T2 (PZQ)",COUNTRY_INFO!$AB83="T2 (PZQ)"), "T2 (PZQ)", " ") ->  | I83: 0 | M83: 0 | Q83: 0 | R83: 0 | S83: 0 | T83: 0 | U83: 0
A84: =IF(COUNTRY_INFO!A84=0," ",COUNTRY_INFO!A84) -> South Sudan | B84: =IF(COUNTRY_INFO!B84=0," ",COUNTRY_INFO!B84) -> Wesstern Equatoria | C84: =IF(COUNTRY_INFO!C84=0," ",COUNTRY_INFO!C84) -> MUNDRI WEST | D84: =IF(OR(COUNTRY_INFO!$AA84="T2 (PZQ)",COUNTRY_INFO!$AB84="T2 (PZQ)"), "T2 (PZQ)", " ") ->  | I84: 0 | M84: 0 | Q84: 0 | R84: 0 | S84: 0 | T84: 0 | U84: 0
A85: =IF(COUNTRY_INFO!A85=0," ",COUNTRY_INFO!A85) -> South Sudan | B85: =IF(COUNTRY_INFO!B85=0," ",COUNTRY_INFO!B85) -> Wesstern Equatoria | C85: =IF(COUNTRY_INFO!C85=0," ",COUNTRY_INFO!C85) -> MUNDRI EAST | D85: =IF(OR(COUNTRY_INFO!$AA85="T2 (PZQ)",COUNTRY_INFO!$AB85="T2 (PZQ)"), "T2 (PZQ)", " ") ->  | I85: 0 | M85: 0 | Q85: 0 | R85: 0 | S85: 0 | T85: 0 | U85: 0
A86: =IF(COUNTRY_INFO!A86=0," ",COUNTRY_INFO!A86) -> South Sudan | B86: =IF(COUNTRY_INFO!B86=0," ",COUNTRY_INFO!B86) -> Western Bahr El Ghazal | C86: =IF(COUNTRY_INFO!C86=0," ",COUNTRY_INFO!C86) -> RAGA | D86: =IF(OR(COUNTRY_INFO!$AA86="T2 (PZQ)",COUNTRY_INFO!$AB86="T2 (PZQ)"), "T2 (PZQ)", " ") ->  | I86: 0 | M86: 0 | Q86: 0 | R86: 0 | S86: 0 | T86: 0 | U86: 0
A87: =IF(COUNTRY_INFO!A87=0," ",COUNTRY_INFO!A87) -> South Sudan | B87: =IF(COUNTRY_INFO!B87=0," ",COUNTRY_INFO!B87) -> Western Bahr El Ghazal | C87: =IF(COUNTRY_INFO!C87=0," ",COUNTRY_INFO!C87) -> JUR RIVER | D87: =IF(OR(COUNTRY_INFO!$AA87="T2 (PZQ)",COUNTRY_INFO!$AB87="T2 (PZQ)"), "T2 (PZQ)", " ") ->  | I87: 0 | M87: 0 | Q87: 0 | R87: 0 | S87: 0 | T87: 0 | U87: 0
A88: =IF(COUNTRY_INFO!A88=0," ",COUNTRY_INFO!A88) -> South Sudan | B88: =IF(COUNTRY_INFO!B88=0," ",COUNTRY_INFO!B88) -> Western Bahr El Ghazal | C88: =IF(COUNTRY_INFO!C88=0," ",COUNTRY_INFO!C88) -> WAU | D88: =IF(OR(COUNTRY_INFO!$AA88="T2 (PZQ)",COUNTRY_INFO!$AB88="T2 (PZQ)"), "T2 (PZQ)", " ") ->  | I88: 0 | M88: 0 | Q88: 0 | R88: 0 | S88: 0 | T88: 0 | U88: 0
A89: =IF(COUNTRY_INFO!A89=0," ",COUNTRY_INFO!A89) -> South Sudan | B89: =IF(COUNTRY_INFO!B89=0," ",COUNTRY_INFO!B89) -> Upper Nile | C89: =IF(COUNTRY_INFO!C89=0," ",COUNTRY_INFO!C89) -> MABAN Refugee | D89: =IF(OR(COUNTRY_INFO!$AA89="T2 (PZQ)",COUNTRY_INFO!$AB89="T2 (PZQ)"), "T2 (PZQ)", " ") ->  | I89: 0 | M89: 0 | Q89: 0 | R89: 0 | S89: 0 | T89: 0 | U89: 0

Sheet T3_R1
A1: T 3 - Albendazole (ALB) or Mebendazole (MBD) - Round 1 | F1: Select medicine used for treatment of STH for each age group
A2: Administrative structure, population requiring PC by age group, population treated by age group and coverage | J2: Select the category of Adults
A4: TOTAL | F4: =SUBTOTAL(9,F$10:F$1010) -> 0 | G4: 0 | H4: 0 | I4: 0 | J4: 0 | K4: 0 | L4: 0 | M4: 0 | N4: =IF(F4<>0, IF(J4/F4*100=0, "-", J4/F4*100), " ") ->  | O4: =IF(G4<>0, IF(K4/G4*100=0, "-", K4/G4*100), " ") ->  | P4: =IF(H4<>0, IF(L4/H4*100=0, "-", L4/H4*100), " ") ->  | Q4: =IF(I4<>0, IF(M4/I4*100=0, "-", M4/I4*100), " ") -> 
A6: Country administrative structure | D6: PC implemented | E6: Date | F6: Population targeted for T3 | J6: Population treated | N6: Programme coverage (%)
A7: Country | B7: Province/State | C7: District | F7: PreSAC | G7: SAC | H7: Adults | I7: Total | J7: PreSAC | K7: SAC | L7: Adults | M7: Total | N7: PreSAC | O7: SAC | P7: Adults | Q7: Total
A10: =IF(COUNTRY_INFO!A10=0," ",COUNTRY_INFO!A10) -> South Sudan | B10: =IF(COUNTRY_INFO!B10=0," ",COUNTRY_INFO!B10) -> Central Equatoria | C10: =IF(COUNTRY_INFO!C10=0," ",COUNTRY_INFO!C10) -> TEREKEKA | D10: =IF(OR(COUNTRY_INFO!$AA10="T3 (ALB/MBD)",COUNTRY_INFO!$AB10="T3 (ALB/MBD)"), "T3 (ALB/MBD)", " ") ->  | I10: =SUM(F10:H10) -> 0 | M10: =SUM(J10:L10) -> 0 | N10: =IF(F10<>0, IF(J10/F10*100=0, "-", J10/F10*100), " ") -> 
A11: =IF(COUNTRY_INFO!A11=0," ",COUNTRY_INFO!A11) -> South Sudan | B11: =IF(COUNTRY_INFO!B11=0," ",COUNTRY_INFO!B11) -> Central Equatoria | C11: =IF(COUNTRY_INFO!C11=0," ",COUNTRY_INFO!C11) -> JUBA | D11: =IF(OR(COUNTRY_INFO!$AA11="T3 (ALB/MBD)",COUNTRY_INFO!$AB11="T3 (ALB/MBD)"), "T3 (ALB/MBD)", " ") ->  | I11: =SUM(F11:H11) -> 0 | M11: =SUM(J11:L11) -> 0 | N11: =IF(F11<>0, IF(J11/F11*100=0, "-", J11/F11*100), " ") ->  | O11: =IF(G11<>0, IF(K11/G11*100=0, "-", K11/G11*100), " ") ->  | P11: =IF(H11<>0, IF(L11/H11*100=0, "-", L11/H11*100), " ") ->  | Q11: =IF(I11<>0, IF(M11/I11*100=0, "-", M11/I11*100), " ") -> 
A12: =IF(COUNTRY_INFO!A12=0," ",COUNTRY_INFO!A12) -> South Sudan | B12: =IF(COUNTRY_INFO!B12=0," ",COUNTRY_INFO!B12) -> Central Equatoria | C12: =IF(COUNTRY_INFO!C12=0," ",COUNTRY_INFO!C12) -> LAINYA | D12: =IF(OR(COUNTRY_INFO!$AA12="T3 (ALB/MBD)",COUNTRY_INFO!$AB12="T3 (ALB/MBD)"), "T3 (ALB/MBD)", " ") ->  | I12: 0 | M12: 0
A13: =IF(COUNTRY_INFO!A13=0," ",COUNTRY_INFO!A13) -> South Sudan | B13: =IF(COUNTRY_INFO!B13=0," ",COUNTRY_INFO!B13) -> Central Equatoria | C13: =IF(COUNTRY_INFO!C13=0," ",COUNTRY_INFO!C13) -> YEI | D13: =IF(OR(COUNTRY_INFO!$AA13="T3 (ALB/MBD)",COUNTRY_INFO!$AB13="T3 (ALB/MBD)"), "T3 (ALB/MBD)", " ") ->  | I13: 0 | M13: 0
A14: =IF(COUNTRY_INFO!A14=0," ",COUNTRY_INFO!A14) -> South Sudan | B14: =IF(COUNTRY_INFO!B14=0," ",COUNTRY_INFO!B14) -> Central Equatoria | C14: =IF(COUNTRY_INFO!C14=0," ",COUNTRY_INFO!C14) -> MOROBO | D14: =IF(OR(COUNTRY_INFO!$AA14="T3 (ALB/MBD)",COUNTRY_INFO!$AB14="T3 (ALB/MBD)"), "T3 (ALB/MBD)", " ") ->  | I14: 0 | M14: 0
A15: =IF(COUNTRY_INFO!A15=0," ",COUNTRY_INFO!A15) -> South Sudan | B15: =IF(COUNTRY_INFO!B15=0," ",COUNTRY_INFO!B15) -> Central Equatoria | C15: =IF(COUNTRY_INFO!C15=0," ",COUNTRY_INFO!C15) -> KAJO KEJI | D15: =IF(OR(COUNTRY_INFO!$AA15="T3 (ALB/MBD)",COUNTRY_INFO!$AB15="T3 (ALB/MBD)"), "T3 (ALB/MBD)", " ") ->  | I15: 0 | M15: 0
A16: =IF(COUNTRY_INFO!A16=0," ",COUNTRY_INFO!A16) -> South Sudan | B16: =IF(COUNTRY_INFO!B16=0," ",COUNTRY_INFO!B16) -> Eastern Equatoria | C16: =IF(COUNTRY_INFO!C16=0," ",COUNTRY_INFO!C16) -> TORIT | D16: =IF(OR(COUNTRY_INFO!$AA16="T3 (ALB/MBD)",COUNTRY_INFO!$AB16="T3 (ALB/MBD)"), "T3 (ALB/MBD)", " ") ->  | I16: 0 | M16: 0
A17: =IF(COUNTRY_INFO!A17=0," ",COUNTRY_INFO!A17) -> South Sudan | B17: =IF(COUNTRY_INFO!B17=0," ",COUNTRY_INFO!B17) -> Eastern Equatoria | C17: =IF(COUNTRY_INFO!C17=0," ",COUNTRY_INFO!C17) -> LOPA/LAFON | D17: =IF(OR(COUNTRY_INFO!$AA17="T3 (ALB/MBD)",COUNTRY_INFO!$AB17="T3 (ALB/MBD)"), "T3 (ALB/MBD)", " ") ->  | I17: 0 | M17: 0
A18: =IF(COUNTRY_INFO!A18=0," ",COUNTRY_INFO!A18) -> South Sudan | B18: =IF(COUNTRY_INFO!B18=0," ",COUNTRY_INFO!B18) -> Eastern Equatoria | C18: =IF(COUNTRY_INFO!C18=0," ",COUNTRY_INFO!C18) -> KAPOETA NORTH | D18: =IF(OR(COUNTRY_INFO!$AA18="T3 (ALB/MBD)",COUNTRY_INFO!$AB18="T3 (ALB/MBD)"), "T3 (ALB/MBD)", " ") ->  | I18: 0 | M18: 0
A19: =IF(COUNTRY_INFO!A19=0," ",COUNTRY_INFO!A19) -> South Sudan | B19: =IF(COUNTRY_INFO!B19=0," ",COUNTRY_INFO!B19) -> Eastern Equatoria | C19: =IF(COUNTRY_INFO!C19=0," ",COUNTRY_INFO!C19) -> KAPOETA EAST | D19: =IF(OR(COUNTRY_INFO!$AA19="T3 (ALB/MBD)",COUNTRY_INFO!$AB19="T3 (ALB/MBD)"), "T3 (ALB/MBD)", " ") ->  | I19: 0 | M19: 0
A20: =IF(COUNTRY_INFO!A20=0," ",COUNTRY_INFO!A20) -> South Sudan | B20: =IF(COUNTRY_INFO!B20=0," ",COUNTRY_INFO!B20) -> Eastern Equatoria | C20: =IF(COUNTRY_INFO!C20=0," ",COUNTRY_INFO!C20) -> KAPOETA SOUTH | D20: =IF(OR(COUNTRY_INFO!$AA20="T3 (ALB/MBD)",COUNTRY_INFO!$AB20="T3 (ALB/MBD)"), "T3 (ALB/MBD)", " ") ->  | I20: 0 | M20: 0
A21: =IF(COUNTRY_INFO!A21=0," ",COUNTRY_INFO!A21) -> South Sudan | B21: =IF(COUNTRY_INFO!B21=0," ",COUNTRY_INFO!B21) -> Eastern Equatoria | C21: =IF(COUNTRY_INFO!C21=0," ",COUNTRY_INFO!C21) -> BUDI | D21: =IF(OR(COUNTRY_INFO!$AA21="T3 (ALB/MBD)",COUNTRY_INFO!$AB21="T3 (ALB/MBD)"), "T3 (ALB/MBD)", " ") ->  | I21: 0 | M21: 0
A22: =IF(COUNTRY_INFO!A22=0," ",COUNTRY_INFO!A22) -> South Sudan | B22: =IF(COUNTRY_INFO!B22=0," ",COUNTRY_INFO!B22) -> Eastern Equatoria | C22: =IF(COUNTRY_INFO!C22=0," ",COUNTRY_INFO!C22) -> IKOTOS | D22: =IF(OR(COUNTRY_INFO!$AA22="T3 (ALB/MBD)",COUNTRY_INFO!$AB22="T3 (ALB/MBD)"), "T3 (ALB/MBD)", " ") ->  | I22: 0 | M22: 0
A23: =IF(COUNTRY_INFO!A23=0," ",COUNTRY_INFO!A23) -> South Sudan | B23: =IF(COUNTRY_INFO!B23=0," ",COUNTRY_INFO!B23) -> Eastern Equatoria | C23: =IF(COUNTRY_INFO!C23=0," ",COUNTRY_INFO!C23) -> MAGWI | D23: =IF(OR(COUNTRY_INFO!$AA23="T3 (ALB/MBD)",COUNTRY_INFO!$AB23="T3 (ALB/MBD)"), "T3 (ALB/MBD)", " ") ->  | I23: 0 | M23: 0
A24: =IF(COUNTRY_INFO!A24=0," ",COUNTRY_INFO!A24) -> South Sudan | B24: =IF(COUNTRY_INFO!B24=0," ",COUNTRY_INFO!B24) -> Jonglei | C24: =IF(COUNTRY_INFO!C24=0," ",COUNTRY_INFO!C24) -> FANGAK | D24: =IF(OR(COUNTRY_INFO!$AA24="T3 (ALB/MBD)",COUNTRY_INFO!$AB24="T3 (ALB/MBD)"), "T3 (ALB/MBD)", " ") ->  | I24: 0 | M24: 0
A25: =IF(COUNTRY_INFO!A25=0," ",COUNTRY_INFO!A25) -> South Sudan | B25: =IF(COUNTRY_INFO!B25=0," ",COUNTRY_INFO!B25) -> Jonglei | C25: =IF(COUNTRY_INFO!C25=0," ",COUNTRY_INFO!C25) -> KHORFLUS | D25: =IF(OR(COUNTRY_INFO!$AA25="T3 (ALB/MBD)",COUNTRY_INFO!$AB25="T3 (ALB/MBD)"), "T3 (ALB/MBD)", " ") ->  | I25: 0 | M25: 0
A26: =IF(COUNTRY_INFO!A26=0," ",COUNTRY_INFO!A26) -> South Sudan | B26: =IF(COUNTRY_INFO!B26=0," ",COUNTRY_INFO!B26) -> Jonglei | C26: =IF(COUNTRY_INFO!C26=0," ",COUNTRY_INFO!C26) -> AYOD | D26: =IF(OR(COUNTRY_INFO!$AA26="T3 (ALB/MBD)",COUNTRY_INFO!$AB26="T3 (ALB/MBD)"), "T3 (ALB/MBD)", " ") ->  | I26: 0 | M26: 0
A27: =IF(COUNTRY_INFO!A27=0," ",COUNTRY_INFO!A27) -> South Sudan | B27: =IF(COUNTRY_INFO!B27=0," ",COUNTRY_INFO!B27) -> Jonglei | C27: =IF(COUNTRY_INFO!C27=0," ",COUNTRY_INFO!C27) -> DUK | D27: =IF(OR(COUNTRY_INFO!$AA27="T3 (ALB/MBD)",COUNTRY_INFO!$AB27="T3 (ALB/MBD)"), "T3 (ALB/MBD)", " ") ->  | I27: 0 | M27: 0
A28: =IF(COUNTRY_INFO!A28=0," ",COUNTRY_INFO!A28) -> South Sudan | B28: =IF(COUNTRY_INFO!B28=0," ",COUNTRY_INFO!B28) -> Jonglei | C28: =IF(COUNTRY_INFO!C28=0," ",COUNTRY_INFO!C28) -> UROR | D28: =IF(OR(COUNTRY_INFO!$AA28="T3 (ALB/MBD)",COUNTRY_INFO!$AB28="T3 (ALB/MBD)"), "T3 (ALB/MBD)", " ") ->  | I28: 0 | M28: 0
A29: =IF(COUNTRY_INFO!A29=0," ",COUNTRY_INFO!A29) -> South Sudan | B29: =IF(COUNTRY_INFO!B29=0," ",COUNTRY_INFO!B29) -> Jonglei | C29: =IF(COUNTRY_INFO!C29=0," ",COUNTRY_INFO!C29) -> NYIROL | D29: =IF(OR(COUNTRY_INFO!$AA29="T3 (ALB/MBD)",COUNTRY_INFO!$AB29="T3 (ALB/MBD)"), "T3 (ALB/MBD)", " ") ->  | I29: 0 | M29: 0
A30: =IF(COUNTRY_INFO!A30=0," ",COUNTRY_INFO!A30) -> South Sudan | B30: =IF(COUNTRY_INFO!B30=0," ",COUNTRY_INFO!B30) -> Jonglei | C30: =IF(COUNTRY_INFO!C30=0," ",COUNTRY_INFO!C30) -> AKOBO | D30: =IF(OR(COUNTRY_INFO!$AA30="T3 (ALB/MBD)",COUNTRY_INFO!$AB30="T3 (ALB/MBD)"), "T3 (ALB/MBD)", " ") ->  | I30: 0 | M30: 0
A31: =IF(COUNTRY_INFO!A31=0," ",COUNTRY_INFO!A31) -> South Sudan | B31: =IF(COUNTRY_INFO!B31=0," ",COUNTRY_INFO!B31) -> Jonglei | C31: =IF(COUNTRY_INFO!C31=0," ",COUNTRY_INFO!C31) -> POCHALA | D31: =IF(OR(COUNTRY_INFO!$AA31="T3 (ALB/MBD)",COUNTRY_INFO!$AB31="T3 (ALB/MBD)"), "T3 (ALB/MBD)", " ") ->  | I31: 0 | M31: 0
A32: =IF(COUNTRY_INFO!A32=0," ",COUNTRY_INFO!A32) -> South Sudan | B32: =IF(COUNTRY_INFO!B32=0," ",COUNTRY_INFO!B32) -> Jonglei | C32: =IF(COUNTRY_INFO!C32=0," ",COUNTRY_INFO!C32) -> PIBOR | D32: =IF(OR(COUNTRY_INFO!$AA32="T3 (ALB/MBD)",COUNTRY_INFO!$AB32="T3 (ALB/MBD)"), "T3 (ALB/MBD)", " ") ->  | I32: 0 | M32: 0
A33: =IF(COUNTRY_INFO!A33=0," ",COUNTRY_INFO!A33) -> South Sudan | B33: =IF(COUNTRY_INFO!B33=0," ",COUNTRY_INFO!B33) -> Jonglei | C33: =IF(COUNTRY_INFO!C33=0," ",COUNTRY_INFO!C33) -> TWIC EAST | D33: =IF(OR(COUNTRY_INFO!$AA33="T3 (ALB/MBD)",COUNTRY_INFO!$AB33="T3 (ALB/MBD)"), "T3 (ALB/MBD)", " ") ->  | I33: 0 | M33: 0
A34: =IF(COUNTRY_INFO!A34=0," ",COUNTRY_INFO!A34) -> South Sudan | B34: =IF(COUNTRY_INFO!B34=0," ",COUNTRY_INFO!B34) -> Jonglei | C34: =IF(COUNTRY_INFO!C34=0," ",COUNTRY_INFO!C34) -> BOR SOUTH | D34: =IF(OR(COUNTRY_INFO!$AA34="T3 (ALB/MBD)",COUNTRY_INFO!$AB34="T3 (ALB/MBD)"), "T3 (ALB/MBD)", " ") ->  | I34: 0 | M34: 0
A35: =IF(COUNTRY_INFO!A35=0," ",COUNTRY_INFO!A35) -> South Sudan | B35: =IF(COUNTRY_INFO!B35=0," ",COUNTRY_INFO!B35) -> Lakes | C35: =IF(COUNTRY_INFO!C35=0," ",COUNTRY_INFO!C35) -> CUEBIT | D35: =IF(OR(COUNTRY_INFO!$AA35="T3 (ALB/MBD)",COUNTRY_INFO!$AB35="T3 (ALB/MBD)"), "T3 (ALB/MBD)", " ") ->  | I35: 0 | M35: 0
A36: =IF(COUNTRY_INFO!A36=0," ",COUNTRY_INFO!A36) -> South Sudan | B36: =IF(COUNTRY_INFO!B36=0," ",COUNTRY_INFO!B36) -> Lakes | C36: =IF(COUNTRY_INFO!C36=0," ",COUNTRY_INFO!C36) -> RUMBEK NORTH | D36: =IF(OR(COUNTRY_INFO!$AA36="T3 (ALB/MBD)",COUNTRY_INFO!$AB36="T3 (ALB/MBD)"), "T3 (ALB/MBD)", " ") ->  | I36: 0 | M36: 0
A37: =IF(COUNTRY_INFO!A37=0," ",COUNTRY_INFO!A37) -> South Sudan | B37: =IF(COUNTRY_INFO!B37=0," ",COUNTRY_INFO!B37) -> Lakes | C37: =IF(COUNTRY_INFO!C37=0," ",COUNTRY_INFO!C37) -> RUMBEK CENTRE | D37: =IF(OR(COUNTRY_INFO!$AA37="T3 (ALB/MBD)",COUNTRY_INFO!$AB37="T3 (ALB/MBD)"), "T3 (ALB/MBD)", " ") ->  | I37: 0 | M37: 0
A38: =IF(COUNTRY_INFO!A38=0," ",COUNTRY_INFO!A38) -> South Sudan | B38: =IF(COUNTRY_INFO!B38=0," ",COUNTRY_INFO!B38) -> Lakes | C38: =IF(COUNTRY_INFO!C38=0," ",COUNTRY_INFO!C38) -> WULU | D38: =IF(OR(COUNTRY_INFO!$AA38="T3 (ALB/MBD)",COUNTRY_INFO!$AB38="T3 (ALB/MBD)"), "T3 (ALB/MBD)", " ") ->  | I38: 0 | M38: 0
A39: =IF(COUNTRY_INFO!A39=0," ",COUNTRY_INFO!A39) -> South Sudan | B39: =IF(COUNTRY_INFO!B39=0," ",COUNTRY_INFO!B39) -> Lakes | C39: =IF(COUNTRY_INFO!C39=0," ",COUNTRY_INFO!C39) -> RUMBEK EAST | D39: =IF(OR(COUNTRY_INFO!$AA39="T3 (ALB/MBD)",COUNTRY_INFO!$AB39="T3 (ALB/MBD)"), "T3 (ALB/MBD)", " ") ->  | I39: 0 | M39: 0
A40: =IF(COUNTRY_INFO!A40=0," ",COUNTRY_INFO!A40) -> South Sudan | B40: =IF(COUNTRY_INFO!B40=0," ",COUNTRY_INFO!B40) -> Lakes | C40: =IF(COUNTRY_INFO!C40=0," ",COUNTRY_INFO!C40) -> YIROL WEST | D40: =IF(OR(COUNTRY_INFO!$AA40="T3 (ALB/MBD)",COUNTRY_INFO!$AB40="T3 (ALB/MBD)"), "T3 (ALB/MBD)", " ") ->  | I40: 0 | M40: 0
A41: =IF(COUNTRY_INFO!A41=0," ",COUNTRY_INFO!A41) -> South Sudan | B41: =IF(COUNTRY_INFO!B41=0," ",COUNTRY_INFO!B41) -> Lakes | C41: =IF(COUNTRY_INFO!C41=0," ",COUNTRY_INFO!C41) -> YIROL EAST | D41: =IF(OR(COUNTRY_INFO!$AA41="T3 (ALB/MBD)",COUNTRY_INFO!$AB41="T3 (ALB/MBD)"), "T3 (ALB/MBD)", " ") ->  | I41: 0 | M41: 0
A42: =IF(COUNTRY_INFO!A42=0," ",COUNTRY_INFO!A42) -> South Sudan | B42: =IF(COUNTRY_INFO!B42=0," ",COUNTRY_INFO!B42) -> Lakes | C42: =IF(COUNTRY_INFO!C42=0," ",COUNTRY_INFO!C42) -> AWERIAL | D42: =IF(OR(COUNTRY_INFO!$AA42="T3 (ALB/MBD)",COUNTRY_INFO!$AB42="T3 (ALB/MBD)"), "T3 (ALB/MBD)", " ") ->  | I42: 0 | M42: 0
A43: =IF(COUNTRY_INFO!A43=0," ",COUNTRY_INFO!A43) -> South Sudan | B43: =IF(COUNTRY_INFO!B43=0," ",COUNTRY_INFO!B43) -> Northern Bahr El Ghazal | C43: =IF(COUNTRY_INFO!C43=0," ",COUNTRY_INFO!C43) -> AWIEL NORTH | D43: =IF(OR(COUNTRY_INFO!$AA43="T3 (ALB/MBD)",COUNTRY_INFO!$AB43="T3 (ALB/MBD)"), "T3 (ALB/MBD)", " ") ->  | I43: 0 | M43: 0
A44: =IF(COUNTRY_INFO!A44=0," ",COUNTRY_INFO!A44) -> South Sudan | B44: =IF(COUNTRY_INFO!B44=0," ",COUNTRY_INFO!B44) -> Northern Bahr El Ghazal | C44: =IF(COUNTRY_INFO!C44=0," ",COUNTRY_INFO!C44) -> AWIEL EAST | D44: =IF(OR(COUNTRY_INFO!$AA44="T3 (ALB/MBD)",COUNTRY_INFO!$AB44="T3 (ALB/MBD)"), "T3 (ALB/MBD)", " ") ->  | I44: 0 | M44: 0
A45: =IF(COUNTRY_INFO!A45=0," ",COUNTRY_INFO!A45) -> South Sudan | B45: =IF(COUNTRY_INFO!B45=0," ",COUNTRY_INFO!B45) -> Northern Bahr El Ghazal | C45: =IF(COUNTRY_INFO!C45=0," ",COUNTRY_INFO!C45) -> AWIEL SOUTH | D45: =IF(OR(COUNTRY_INFO!$AA45="T3 (ALB/MBD)",COUNTRY_INFO!$AB45="T3 (ALB/MBD)"), "T3 (ALB/MBD)", " ") ->  | I45: 0 | M45: 0
A46: =IF(COUNTRY_INFO!A46=0," ",COUNTRY_INFO!A46) -> South Sudan | B46: =IF(COUNTRY_INFO!B46=0," ",COUNTRY_INFO!B46) -> Northern Bahr El Ghazal | C46: =IF(COUNTRY_INFO!C46=0," ",COUNTRY_INFO!C46) -> AWIEL WEST | D46: =IF(OR(COUNTRY_INFO!$AA46="T3 (ALB/MBD)",COUNTRY_INFO!$AB46="T3 (ALB/MBD)"), "T3 (ALB/MBD)", " ") ->  | I46: 0 | M46: 0
A47: =IF(COUNTRY_INFO!A47=0," ",COUNTRY_INFO!A47) -> South Sudan | B47: =IF(COUNTRY_INFO!B47=0," ",COUNTRY_INFO!B47) -> Northern Bahr El Ghazal | C47: =IF(COUNTRY_INFO!C47=0," ",COUNTRY_INFO!C47) -> AWIEL CENTRE | D47: =IF(OR(COUNTRY_INFO!$AA47="T3 (ALB/MBD)",COUNTRY_INFO!$AB47="T3 (ALB/MBD)"), "T3 (ALB/MBD)", " ") ->  | I47: 0 | M47: 0
A48: =IF(COUNTRY_INFO!A48=0," ",COUNTRY_INFO!A48) -> South Sudan | B48: =IF(COUNTRY_INFO!B48=0," ",COUNTRY_INFO!B48) -> Unity | C48: =IF(COUNTRY_INFO!C48=0," ",COUNTRY_INFO!C48) -> PARIANG | D48: =IF(OR(COUNTRY_INFO!$AA48="T3 (ALB/MBD)",COUNTRY_INFO!$AB48="T3 (ALB/MBD)"), "T3 (ALB/MBD)", " ") ->  | I48: 0 | M48: 0
A49: =IF(COUNTRY_INFO!A49=0," ",COUNTRY_INFO!A49) -> South Sudan | B49: =IF(COUNTRY_INFO!B49=0," ",COUNTRY_INFO!B49) -> Unity | C49: =IF(COUNTRY_INFO!C49=0," ",COUNTRY_INFO!C49) -> ABIEMNHOM | D49: =IF(OR(COUNTRY_INFO!$AA49="T3 (ALB/MBD)",COUNTRY_INFO!$AB49="T3 (ALB/MBD)"), "T3 (ALB/MBD)", " ") ->  | I49: 0 | M49: 0
A50: =IF(COUNTRY_INFO!A50=0," ",COUNTRY_INFO!A50) -> South Sudan | B50: =IF(COUNTRY_INFO!B50=0," ",COUNTRY_INFO!B50) -> Unity | C50: =IF(COUNTRY_INFO!C50=0," ",COUNTRY_INFO!C50) -> MAYOM | D50: =IF(OR(COUNTRY_INFO!$AA50="T3 (ALB/MBD)",COUNTRY_INFO!$AB50="T3 (ALB/MBD)"), "T3 (ALB/MBD)", " ") ->  | I50: 0 | M50: 0
A51: =IF(COUNTRY_INFO!A51=0," ",COUNTRY_INFO!A51) -> South Sudan | B51: =IF(COUNTRY_INFO!B51=0," ",COUNTRY_INFO!B51) -> Unity | C51: =IF(COUNTRY_INFO!C51=0," ",COUNTRY_INFO!C51) -> RUBKONA | D51: =IF(OR(COUNTRY_INFO!$AA51="T3 (ALB/MBD)",COUNTRY_INFO!$AB51="T3 (ALB/MBD)"), "T3 (ALB/MBD)", " ") ->  | I51: 0 | M51: 0
A52: =IF(COUNTRY_INFO!A52=0," ",COUNTRY_INFO!A52) -> South Sudan | B52: =IF(COUNTRY_INFO!B52=0," ",COUNTRY_INFO!B52) -> Unity | C52: =IF(COUNTRY_INFO!C52=0," ",COUNTRY_INFO!C52) -> GUIT | D52: =IF(OR(COUNTRY_INFO!$AA52="T3 (ALB/MBD)",COUNTRY_INFO!$AB52="T3 (ALB/MBD)"), "T3 (ALB/MBD)", " ") ->  | I52: 0 | M52: 0
A53: =IF(COUNTRY_INFO!A53=0," ",COUNTRY_INFO!A53) -> South Sudan | B53: =IF(COUNTRY_INFO!B53=0," ",COUNTRY_INFO!B53) -> Unity | C53: =IF(COUNTRY_INFO!C53=0," ",COUNTRY_INFO!C53) -> KOCH | D53: =IF(OR(COUNTRY_INFO!$AA53="T3 (ALB/MBD)",COUNTRY_INFO!$AB53="T3 (ALB/MBD)"), "T3 (ALB/MBD)", " ") ->  | I53: 0 | M53: 0
A54: =IF(COUNTRY_INFO!A54=0," ",COUNTRY_INFO!A54) -> South Sudan | B54: =IF(COUNTRY_INFO!B54=0," ",COUNTRY_INFO!B54) -> Unity | C54: =IF(COUNTRY_INFO!C54=0," ",COUNTRY_INFO!C54) -> LEER | D54: =IF(OR(COUNTRY_INFO!$AA54="T3 (ALB/MBD)",COUNTRY_INFO!$AB54="T3 (ALB/MBD)"), "T3 (ALB/MBD)", " ") ->  | I54: 0 | M54: 0
A55: =IF(COUNTRY_INFO!A55=0," ",COUNTRY_INFO!A55) -> South Sudan | B55: =IF(COUNTRY_INFO!B55=0," ",COUNTRY_INFO!B55) -> Unity | C55: =IF(COUNTRY_INFO!C55=0," ",COUNTRY_INFO!C55) -> MAYENDIT | D55: =IF(OR(COUNTRY_INFO!$AA55="T3 (ALB/MBD)",COUNTRY_INFO!$AB55="T3 (ALB/MBD)"), "T3 (ALB/MBD)", " ") ->  | I55: 0 | M55: 0
A56: =IF(COUNTRY_INFO!A56=0," ",COUNTRY_INFO!A56) -> South Sudan | B56: =IF(COUNTRY_INFO!B56=0," ",COUNTRY_INFO!B56) -> Unity | C56: =IF(COUNTRY_INFO!C56=0," ",COUNTRY_INFO!C56) -> PAYNIJAR | D56: =IF(OR(COUNTRY_INFO!$AA56="T3 (ALB/MBD)",COUNTRY_INFO!$AB56="T3 (ALB/MBD)"), "T3 (ALB/MBD)", " ") ->  | I56: 0 | M56: 0
A57: =IF(COUNTRY_INFO!A57=0," ",COUNTRY_INFO!A57) -> South Sudan | B57: =IF(COUNTRY_INFO!B57=0," ",COUNTRY_INFO!B57) -> Upper Nile | C57: =IF(COUNTRY_INFO!C57=0," ",COUNTRY_INFO!C57) -> RENK | D57: =IF(OR(COUNTRY_INFO!$AA57="T3 (ALB/MBD)",COUNTRY_INFO!$AB57="T3 (ALB/MBD)"), "T3 (ALB/MBD)", " ") ->  | I57: 0 | M57: 0
A58: =IF(COUNTRY_INFO!A58=0," ",COUNTRY_INFO!A58) -> South Sudan | B58: =IF(COUNTRY_INFO!B58=0," ",COUNTRY_INFO!B58) -> Upper Nile | C58: =IF(COUNTRY_INFO!C58=0," ",COUNTRY_INFO!C58) -> MANYO | D58: =IF(OR(COUNTRY_INFO!$AA58="T3 (ALB/MBD)",COUNTRY_INFO!$AB58="T3 (ALB/MBD)"), "T3 (ALB/MBD)", " ") ->  | I58: 0 | M58: 0
A59: =IF(COUNTRY_INFO!A59=0," ",COUNTRY_INFO!A59) -> South Sudan | B59: =IF(COUNTRY_INFO!B59=0," ",COUNTRY_INFO!B59) -> Upper Nile | C59: =IF(COUNTRY_INFO!C59=0," ",COUNTRY_INFO!C59) -> FASHODA | D59: =IF(OR(COUNTRY_INFO!$AA59="T3 (ALB/MBD)",COUNTRY_INFO!$AB59="T3 (ALB/MBD)"), "T3 (ALB/MBD)", " ") ->  | I59: 0 | M59: 0
A60: =IF(COUNTRY_INFO!A60=0," ",COUNTRY_INFO!A60) -> South Sudan | B60: =IF(COUNTRY_INFO!B60=0," ",COUNTRY_INFO!B60) -> Upper Nile | C60: =IF(COUNTRY_INFO!C60=0," ",COUNTRY_INFO!C60) -> MELUT | D60: =IF(OR(COUNTRY_INFO!$AA60="T3 (ALB/MBD)",COUNTRY_INFO!$AB60="T3 (ALB/MBD)"), "T3 (ALB/MBD)", " ") ->  | I60: 0 | M60: 0
A61: =IF(COUNTRY_INFO!A61=0," ",COUNTRY_INFO!A61) -> South Sudan | B61: =IF(COUNTRY_INFO!B61=0," ",COUNTRY_INFO!B61) -> Upper Nile | C61: =IF(COUNTRY_INFO!C61=0," ",COUNTRY_INFO!C61) -> MABAN | D61: =IF(OR(COUNTRY_INFO!$AA61="T3 (ALB/MBD)",COUNTRY_INFO!$AB61="T3 (ALB/MBD)"), "T3 (ALB/MBD)", " ") ->  | I61: 0 | M61: 0
A62: =IF(COUNTRY_INFO!A62=0," ",COUNTRY_INFO!A62) -> South Sudan | B62: =IF(COUNTRY_INFO!B62=0," ",COUNTRY_INFO!B62) -> Upper Nile | C62: =IF(COUNTRY_INFO!C62=0," ",COUNTRY_INFO!C62) -> MAIWUT | D62: =IF(OR(COUNTRY_INFO!$AA62="T3 (ALB/MBD)",COUNTRY_INFO!$AB62="T3 (ALB/MBD)"), "T3 (ALB/MBD)", " ") ->  | I62: 0 | M62: 0
A63: =IF(COUNTRY_INFO!A63=0," ",COUNTRY_INFO!A63) -> South Sudan | B63: =IF(COUNTRY_INFO!B63=0," ",COUNTRY_INFO!B63) -> Upper Nile | C63: =IF(COUNTRY_INFO!C63=0," ",COUNTRY_INFO!C63) -> LUAKPINY/NASIR | D63: =IF(OR(COUNTRY_INFO!$AA63="T3 (ALB/MBD)",COUNTRY_INFO!$AB63="T3 (ALB/MBD)"), "T3 (ALB/MBD)", " ") ->  | I63: 0 | M63: 0
A64: =IF(COUNTRY_INFO!A64=0," ",COUNTRY_INFO!A64) -> South Sudan | B64: =IF(COUNTRY_INFO!B64=0," ",COUNTRY_INFO!B64) -> Upper Nile | C64: =IF(COUNTRY_INFO!C64=0," ",COUNTRY_INFO!C64) -> LONGOCHUK | D64: =IF(OR(COUNTRY_INFO!$AA64="T3 (ALB/MBD)",COUNTRY_INFO!$AB64="T3 (ALB/MBD)"), "T3 (ALB/MBD)", " ") ->  | I64: 0 | M64: 0
A65: =IF(COUNTRY_INFO!A65=0," ",COUNTRY_INFO!A65) -> South Sudan | B65: =IF(COUNTRY_INFO!B65=0," ",COUNTRY_INFO!B65) -> Upper Nile | C65: =IF(COUNTRY_INFO!C65=0," ",COUNTRY_INFO!C65) -> ULANG | D65: =IF(OR(COUNTRY_INFO!$AA65="T3 (ALB/MBD)",COUNTRY_INFO!$AB65="T3 (ALB/MBD)"), "T3 (ALB/MBD)", " ") ->  | I65: 0 | M65: 0
A66: =IF(COUNTRY_INFO!A66=0," ",COUNTRY_INFO!A66) -> South Sudan | B66: =IF(COUNTRY_INFO!B66=0," ",COUNTRY_INFO!B66) -> Upper Nile | C66: =IF(COUNTRY_INFO!C66=0," ",COUNTRY_INFO!C66) -> BALIET | D66: =IF(OR(COUNTRY_INFO!$AA66="T3 (ALB/MBD)",COUNTRY_INFO!$AB66="T3 (ALB/MBD)"), "T3 (ALB/MBD)", " ") ->  | I66: 0 | M66: 0
A67: =IF(COUNTRY_INFO!A67=0," ",COUNTRY_INFO!A67) -> South Sudan | B67: =IF(COUNTRY_INFO!B67=0," ",COUNTRY_INFO!B67) -> Upper Nile | C67: =IF(COUNTRY_INFO!C67=0," ",COUNTRY_INFO!C67) -> MALAKAL | D67: =IF(OR(COUNTRY_INFO!$AA67="T3 (ALB/MBD)",COUNTRY_INFO!$AB67="T3 (ALB/MBD)"), "T3 (ALB/MBD)", " ") ->  | I67: 0 | M67: 0
A68: =IF(COUNTRY_INFO!A68=0," ",COUNTRY_INFO!A68) -> South Sudan | B68: =IF(COUNTRY_INFO!B68=0," ",COUNTRY_INFO!B68) -> Upper Nile | C68: =IF(COUNTRY_INFO!C68=0," ",COUNTRY_INFO!C68) -> PANYKANG | D68: =IF(OR(COUNTRY_INFO!$AA68="T3 (ALB/MBD)",COUNTRY_INFO!$AB68="T3 (ALB/MBD)"), "T3 (ALB/MBD)", " ") ->  | I68: 0 | M68: 0
A69: =IF(COUNTRY_INFO!A69=0," ",COUNTRY_INFO!A69) -> South Sudan | B69: =IF(COUNTRY_INFO!B69=0," ",COUNTRY_INFO!B69) -> Warrap | C69: =IF(COUNTRY_INFO!C69=0," ",COUNTRY_INFO!C69) -> ABYEI | D69: =IF(OR(COUNTRY_INFO!$AA69="T3 (ALB/MBD)",COUNTRY_INFO!$AB69="T3 (ALB/MBD)"), "T3 (ALB/MBD)", " ") ->  | I69: 0 | M69: 0
A70: =IF(COUNTRY_INFO!A70=0," ",COUNTRY_INFO!A70) -> South Sudan | B70: =IF(COUNTRY_INFO!B70=0," ",COUNTRY_INFO!B70) -> Warrap | C70: =IF(COUNTRY_INFO!C70=0," ",COUNTRY_INFO!C70) -> TWIC | D70: =IF(OR(COUNTRY_INFO!$AA70="T3 (ALB/MBD)",COUNTRY_INFO!$AB70="T3 (ALB/MBD)"), "T3 (ALB/MBD)", " ") ->  | I70: 0 | M70: 0
A71: =IF(COUNTRY_INFO!A71=0," ",COUNTRY_INFO!A71) -> South Sudan | B71: =IF(COUNTRY_INFO!B71=0," ",COUNTRY_INFO!B71) -> Warrap | C71: =IF(COUNTRY_INFO!C71=0," ",COUNTRY_INFO!C71) -> GOGRIAL WEST | D71: =IF(OR(COUNTRY_INFO!$AA71="T3 (ALB/MBD)",COUNTRY_INFO!$AB71="T3 (ALB/MBD)"), "T3 (ALB/MBD)", " ") ->  | I71: 0 | M71: 0
A72: =IF(COUNTRY_INFO!A72=0," ",COUNTRY_INFO!A72) -> South Sudan | B72: =IF(COUNTRY_INFO!B72=0," ",COUNTRY_INFO!B72) -> Warrap | C72: =IF(COUNTRY_INFO!C72=0," ",COUNTRY_INFO!C72) -> GOGRIAL EAST | D72: =IF(OR(COUNTRY_INFO!$AA72="T3 (ALB/MBD)",COUNTRY_INFO!$AB72="T3 (ALB/MBD)"), "T3 (ALB/MBD)", " ") ->  | I72: 0 | M72: 0
A73: =IF(COUNTRY_INFO!A73=0," ",COUNTRY_INFO!A73) -> South Sudan | B73: =IF(COUNTRY_INFO!B73=0," ",COUNTRY_INFO!B73) -> Warrap | C73: =IF(COUNTRY_INFO!C73=0," ",COUNTRY_INFO!C73) -> TONJ NORTH | D73: =IF(OR(COUNTRY_INFO!$AA73="T3 (ALB/MBD)",COUNTRY_INFO!$AB73="T3 (ALB/MBD)"), "T3 (ALB/MBD)", " ") ->  | I73: 0 | M73: 0
A74: =IF(COUNTRY_INFO!A74=0," ",COUNTRY_INFO!A74) -> South Sudan | B74: =IF(COUNTRY_INFO!B74=0," ",COUNTRY_INFO!B74) -> Warrap | C74: =IF(COUNTRY_INFO!C74=0," ",COUNTRY_INFO!C74) -> TONJ EAST | D74: =IF(OR(COUNTRY_INFO!$AA74="T3 (ALB/MBD)",COUNTRY_INFO!$AB74="T3 (ALB/MBD)"), "T3 (ALB/MBD)", " ") ->  | I74: 0 | M74: 0
A75: =IF(COUNTRY_INFO!A75=0," ",COUNTRY_INFO!A75) -> South Sudan | B75: =IF(COUNTRY_INFO!B75=0," ",COUNTRY_INFO!B75) -> Warrap | C75: =IF(COUNTRY_INFO!C75=0," ",COUNTRY_INFO!C75) -> TONJ SOUTH | D75: =IF(OR(COUNTRY_INFO!$AA75="T3 (ALB/MBD)",COUNTRY_INFO!$AB75="T3 (ALB/MBD)"), "T3 (ALB/MBD)", " ") ->  | I75: =SUM(F75:H75) -> 0 | M75: =SUM(J75:L75) -> 0 | N75: =IF(F75<>0, IF(J75/F75*100=0, "-", J75/F75*100), " ") ->  | O75: =IF(G75<>0, IF(K75/G75*100=0, "-", K75/G75*100), " ") ->  | P75: =IF(H75<>0, IF(L75/H75*100=0, "-", L75/H75*100), " ") ->  | Q75: =IF(I75<>0, IF(M75/I75*100=0, "-", M75/I75*100), " ") -> 
A76: =IF(COUNTRY_INFO!A76=0," ",COUNTRY_INFO!A76) -> South Sudan | B76: =IF(COUNTRY_INFO!B76=0," ",COUNTRY_INFO!B76) -> Wesstern Equatoria | C76: =IF(COUNTRY_INFO!C76=0," ",COUNTRY_INFO!C76) -> TAMBURA | D76: =IF(OR(COUNTRY_INFO!$AA76="T3 (ALB/MBD)",COUNTRY_INFO!$AB76="T3 (ALB/MBD)"), "T3 (ALB/MBD)", " ") ->  | I76: 0 | M76: 0
A77: =IF(COUNTRY_INFO!A77=0," ",COUNTRY_INFO!A77) -> South Sudan | B77: =IF(COUNTRY_INFO!B77=0," ",COUNTRY_INFO!B77) -> Wesstern Equatoria | C77: =IF(COUNTRY_INFO!C77=0," ",COUNTRY_INFO!C77) -> NAGERO | D77: =IF(OR(COUNTRY_INFO!$AA77="T3 (ALB/MBD)",COUNTRY_INFO!$AB77="T3 (ALB/MBD)"), "T3 (ALB/MBD)", " ") ->  | I77: 0 | M77: 0
A78: =IF(COUNTRY_INFO!A78=0," ",COUNTRY_INFO!A78) -> South Sudan | B78: =IF(COUNTRY_INFO!B78=0," ",COUNTRY_INFO!B78) -> Wesstern Equatoria | C78: =IF(COUNTRY_INFO!C78=0," ",COUNTRY_INFO!C78) -> NZARA | D78: =IF(OR(COUNTRY_INFO!$AA78="T3 (ALB/MBD)",COUNTRY_INFO!$AB78="T3 (ALB/MBD)"), "T3 (ALB/MBD)", " ") ->  | I78: 0 | M78: 0
A79: =IF(COUNTRY_INFO!A79=0," ",COUNTRY_INFO!A79) -> South Sudan | B79: =IF(COUNTRY_INFO!B79=0," ",COUNTRY_INFO!B79) -> Wesstern Equatoria | C79: =IF(COUNTRY_INFO!C79=0," ",COUNTRY_INFO!C79) -> EZO | D79: =IF(OR(COUNTRY_INFO!$AA79="T3 (ALB/MBD)",COUNTRY_INFO!$AB79="T3 (ALB/MBD)"), "T3 (ALB/MBD)", " ") ->  | I79: 0 | M79: 0
A80: =IF(COUNTRY_INFO!A80=0," ",COUNTRY_INFO!A80) -> South Sudan | B80: =IF(COUNTRY_INFO!B80=0," ",COUNTRY_INFO!B80) -> Wesstern Equatoria | C80: =IF(COUNTRY_INFO!C80=0," ",COUNTRY_INFO!C80) -> YAMBIO | D80: =IF(OR(COUNTRY_INFO!$AA80="T3 (ALB/MBD)",COUNTRY_INFO!$AB80="T3 (ALB/MBD)"), "T3 (ALB/MBD)", " ") ->  | I80: 0 | M80: 0
A81: =IF(COUNTRY_INFO!A81=0," ",COUNTRY_INFO!A81) -> South Sudan | B81: =IF(COUNTRY_INFO!B81=0," ",COUNTRY_INFO!B81) -> Wesstern Equatoria | C81: =IF(COUNTRY_INFO!C81=0," ",COUNTRY_INFO!C81) -> IBBA | D81: =IF(OR(COUNTRY_INFO!$AA81="T3 (ALB/MBD)",COUNTRY_INFO!$AB81="T3 (ALB/MBD)"), "T3 (ALB/MBD)", " ") ->  | I81: 0 | M81: 0
